Workbook

Sheet Cover
A1: =RIGHT(CELL("filename", $A$1), LEN(CELL("filename", $A$1)) - SEARCH("]", CELL("filename", $A$1))) -> Cover
C3: Model name: | D3: Grants and Contributions Feeder Model
C4: Version number: | D4: v3z
C5: Filename: | D5: PR19FM007_GandC Feeder SSC
C6: Date: | D6: 2019-12-16
C7: Author: | D7: Ofwat
C8: Author contact information: | D8: pr19@ofwat.gov.uk
C11: Summary of model: | D11: This model calculates the capex and opex, price control and non-price control Grants & Contributions for input to the financial model.
C14: Known limitations: | D14: There are a number of areas of further work to be carried out in the model. These are listed below:
D16: Issue | F16: Details | G16: Model link
D17: No known issues | F17: not applicable | G17: not applicable
D19: The model has been subject to internal Ofwat quality assurance.
D20: The model is not a policy statement.
D21: Users should refer to the "Delivering Water 2020: Our final methodology for the 2019 price review" for information on proposed policy.
C23: Feedback: | D23: We would welcome feedback on this PR19 model. Please send any feedback to the following email address.
D24: pr19@ofwat.gov.uk
C26: Error check status: | D26: =Check!$F$2 -> 1 | E26: =IF(D26 = 0, "No error checks", "Alerts/checks active") -> Alerts/checks active
D27: =Check!$F$3 -> 30 | E27: =IF(D27 = 0, "No output changes", "Output changes") -> Output changes
C29: Instructions: | D29: A model 'User guide' is present in the model to help the user in operating the model.
D30: Follow link >> | E30: Go to User Guide
A32: End of sheet

Sheet User Guide
A1: =RIGHT(CELL("filename", $A$1), LEN(CELL("filename", $A$1)) - SEARCH("]", CELL("filename", $A$1))) -> User Guide
A3: GENERIC MODEL DESIGN
F5: Logic Flow
H7: Companies receive grants and contributions from developers towards the costs of ‘new developments’, expenditure to reinforce the network, and ‘new connections’, expenditure to connect a property, for example the meter and connection pipe.
K9: divided by
Q12: multiplied by
T14: equals
L18: multiplied by
L20: equals
H46: NOTES:
H47: 1 Connection charges do not apply to wastewater.
H48: 2 We assume that new connections totex, and connection charges, relate to water network+ only, so there is no impact on water resources.
H49: 3 We assume that there is no Bioresources activity for developer services totex and revenues.
A52: HOW TO RUN THE MODEL
G54: Step 1 - | H54: Load F_Inputs from Fountain for the company to be modelled
G56: Step 2 - | H56: Go to the InpOverride sheet and apply any company specific overrides
G58: Step 3 - | H58: Press Ctrl-Alt-F9 to recalculate the workbook
G60: Step 4 - | H60: Upload F_Outputs to Fountain
A63: SHEET TABS
H65: Light Yellow | J65: Input sheets
H67: No colour (default Excel tab colour) | J67: Calculation and documentation sheets
H69: Pale Blue | J69: Key output sheets
H71: Turquoise | J71: Quality control sheets
H73: Yellow | J73: To be completed, temporary, restructured, or deleted
A76: COLOUR
B78: Font colour only
H79: Blue font | J79: Imported from another sheet
H81: Red font | J81: Exported to another sheet (except from Input sheets)
H83: Black font | J83: Within sheet link or calculation
B85: Font + shade combinations
H86: Black font + Light Yellow shade | J86: Inputs
H88: Black font + Light Grey shade on entire row | J88: Within-worksheet counter-flow
H90: Blue font + Light Grey shade on entire row | J90: Between-worksheet counter-flow
H92: Empty Cell with Light Grey shade | J92: Empty cells being deliberately referenced
B94: Other
H95: Black font + Pale Blue shade on entire row | J95: Section separator
H97: Light Turquoise shade | J97: Stored/dead/hard coded outputs
H99: Tan shade | J99: Pre-model time line actuals
H101: Yellow shade | J101: Work in progress / temporary
H103: Lime shade | J103: Values or logic to be reviewed
B105: Error checks & alerts
H106: Green shade | J106: OK
H108: Red shade | J108: Error
H110: Gold shade | J110: Alert
A113: ABBREVIATIONS
H115: £ | I115: Great Britain Pound
H116: CALC | I116: Calculation
H117: m | I117: Million
H118: na | I118: Not available / applicable
H119: Opex | I119: Operating expenditure
H120: POS | I120: Positive
H121: Totex | I121: Total expenditure
A123: NAMES
H125: CHK_TOL
H126: LIVE_RESULTS
H127: START_TRACK_STORE
H128: TRACK_ACTIVE
H129: TRACK_COMMENT_START
H130: TRK_COMMENT
A132: LIST OF MACROS USED
B134: Store track results
H135: Store track results | L135: This macro helps in storing the results/outputs after any change is made in the model on "Track" sheet.
L136: These stored results then can be used to analyse the impact of any change made in the model.
L137: Go to macro
B139: Save as PDF
H140: Save as PDF | L140: This macro helps in saving any worksheet or chart in PDF format.
A145: End of sheet

Sheet Adjustments Log
A1: =RIGHT(CELL("filename", $A$1), LEN(CELL("filename", $A$1)) - SEARCH("]", CELL("filename", $A$1))) -> Adjustments Log
C5: This sheets logs any company specific overrides used in this feeder model.
B7: Company Specific Corrections
C9: Adjustment for expenditure at Hampton Load treatment works
C10: SSC receive a contribution from Severn Trent Water for expenditure at Hampton Load treatment works. An adjustment of £10.5m has been added to the water network price control capex. This is added after grants & contributions have been calculated to give a final figure.
B13: 1 | C13: Apply overrides | D13: Unit | E13: Sheet | G13: 2020-25 | H13: 2020-21 | I13: 2021-22 | J13: 2022-23 | K13: 2023-24 | L13: 2024-25
C14: =InpOverride!$E$93 -> One-off contribution to capex - water network - price control | D14: £m | E14: InpOverride | G14: =SUM(H14:L14) -> 10.5 | H14: =InpOverride!L$93 -> 3.5 | I14: =InpOverride!M$93 -> 3.5 | J14: =InpOverride!N$93 -> 3.5 | K14: =InpOverride!O$93 -> 0 | L14: =InpOverride!P$93 -> 0

Sheet Inputs >>

Sheet F_input report 01 Nov
C2: PR19_FD_GC_In | E2: Run on 08 Nov 2019 15:10
A4: Company Acronym | B4: Item Code | C4: Item Description | D4: Item Unit | E4: Item Table Suite | F4: 2020-21 | G4: 2021-22 | H4: 2022-23 | I4: 2023-24 | J4: 2024-25
A5: Company Acronym | B5: Item Code | C5: Item Description | D5: Item Unit | E5: Item Table Suite | F5: PR19 Run 8: Final Determinations | G5: PR19 Run 8: Final Determinations | H5: PR19 Run 8: Final Determinations | I5: PR19 Run 8: Final Determinations | J5: PR19 Run 8: Final Determinations
A6: SSC | B6: BA1086PC | C6: Grants and contributions received ~ wholesale water service - Other contributions (price control) | D6: £m | E6: Price Review 2019 | F6: 3.77897888 | G6: 3.77897888 | H6: 3.77897888 | I6: 0.21597888 | J6: 0.21597888
A7: SSC | B7: BA1086NPC | C7: Grants and contributions received ~ wholesale water service - Other contributions (non-price control) | D7: £m | E7: Price Review 2019 | F7: 3.797308984 | G7: 3.797308984 | H7: 2.668672403 | I7: 0.0002457890556 | J7: 0.0002457890556
A8: SSC | B8: BA2086PC | C8: Grants and contributions received ~ wholesale wastewater service - Other contributions (price control) | D8: £m | E8: Price Review 2019
A9: SSC | B9: BA2086NPC | C9: Grants and contributions received ~ wholesale wastewater service - Other contributions (non-price control) | D9: £m | E9: Price Review 2019
A10: SSC | B10: BC11271IN | C10: Connection charges (s45) | D10: £m | E10: Price Review 2019 | F10: 5.105761481 | G10: 4.828429033 | H10: 4.589812511 | I10: 4.464183282 | J10: 4.345665142
A11: SSC | B11: APP280036 | C11: Activity forecasts ~ wholesale water service - Total number of new residential connections | D11: 000s | E11: Price Review 2019 | F11: 8.502704482 | G11: 8.031368253 | H11: 7.64668554 | I11: 7.413547899 | J11: 7.214626559
A12: SSC | B12: APP280037 | C12: Activity forecasts ~ wholesale water service - Total number of new business connections | D12: 000s | E12: Price Review 2019 | F12: 0.4480109222 | G12: 0.4480109222 | H12: 0.4480109222 | I12: 0.4480109222 | J12: 0.4480109222
A13: SSC | B13: APP280038 | C13: Activity forecasts ~ wholesale wastewater service - Residential properties connected during the year | D13: 000s | E13: Price Review 2019 | F13: 0 | G13: 0 | H13: 0 | I13: 0 | J13: 0
A14: SSC | B14: APP280039 | C14: Activity forecasts ~ wholesale wastewater service - Business properties connected during the year | D14: 000s | E14: Price Review 2019 | F14: 0 | G14: 0 | H14: 0 | I14: 0 | J14: 0
A15: SSC | B15: A19048WR | C15: Water resources operating expenditure grants and contributions (price control) | D15: £m | E15: Price Review 2019 | F15: 0 | G15: 0 | H15: 0 | I15: 0 | J15: 0
A16: SSC | B16: A19049WR | C16: Water resources capital expenditure grants and contributions (price control) | D16: £m | E16: Price Review 2019 | F16: 0 | G16: 0 | H16: 0 | I16: 0 | J16: 0
A17: SSC | B17: A19052WR | C17: Water resources operating expenditure grants and contributions (non-price control) | D17: £m | E17: Price Review 2019 | F17: 0 | G17: 0 | H17: 0 | I17: 0 | J17: 0
A18: SSC | B18: A19053WR | C18: Water resources capital expenditure grants and contributions (non-price control) | D18: £m | E18: Price Review 2019 | F18: 0 | G18: 0 | H18: 0 | I18: 0 | J18: 0
A19: SSC | B19: A19052WN | C19: Water network operating expenditure grants and contributions (price control) | D19: £m | E19: Price Review 2019 | F19: 0.912637 | G19: 0.912637 | H19: 0.912637 | I19: 0.912637 | J19: 0.912637
A20: SSC | B20: A19053WN | C20: Water network capital expenditure grants and contributions (price control) | D20: £m | E20: Price Review 2019 | F20: 13.07749852 | G20: 12.57738566 | H20: 12.15481331 | I20: 8.358562539 | J20: 8.145785703
A21: SSC | B21: A19054WN | C21: Water network operating expenditure grants and contributions (non-price control) | D21: £m | E21: Price Review 2019 | F21: 3.797308984 | G21: 3.797308984 | H21: 2.668672403 | I21: 0.0002457890556 | J21: 0.0002457890556
A22: SSC | B22: A19055WN | C22: Water network capital expenditure grants and contributions (non-price control) | D22: £m | E22: Price Review 2019 | F22: 0 | G22: 0 | H22: 0 | I22: 0 | J22: 0
A23: SSC | B23: A19052WWN | C23: Wastewater network operating expenditure grants and contributions (price control) | D23: £m | E23: Price Review 2019
A24: SSC | B24: A19053WWN | C24: Wastewater network capital expenditure grants and contributions (price control) | D24: £m | E24: Price Review 2019
A25: SSC | B25: A19054WWN | C25: Wastewater network operating expenditure grants and contributions (non-price control) | D25: £m | E25: Price Review 2019
A26: SSC | B26: A19055WWN | C26: Wastewater network capital expenditure grants and contributions (non-price control) | D26: £m | E26: Price Review 2019
A27: SSC | B27: A19052BIO | C27: Bioresources operating expenditure grants and contributions (price control) | D27: £m | E27: Price Review 2019
A28: SSC | B28: A19053BIO | C28: Bioresources capital expenditure grants and contributions (price control) | D28: £m | E28: Price Review 2019
A29: SSC | B29: A19054BIO | C29: Bioresources operating expenditure grants and contributions (non-price control) | D29: £m | E29: Price Review 2019
A30: SSC | B30: A19055BIO | C30: Bioresources capital expenditure grants and contributions (non-price control) | D30: £m | E30: Price Review 2019
A31: SSC | B31: A19052_DMMY | C31: Dummy operating expenditure grants and contributions (price control) | D31: £m | E31: Price Review 2019
A32: SSC | B32: A19053_DMMY | C32: Dummy capital expenditure grants and contributions (price control) | D32: £m | E32: Price Review 2019
A33: SSC | B33: A19054_DMMY | C33: Dummy operating expenditure grants and contributions (non-price control) | D33: £m | E33: Price Review 2019
A34: SSC | B34: A19055_DMMY | C34: Dummy capital expenditure grants and contributions (non-price control) | D34: £m | E34: Price Review 2019
A35: SSC | B35: PR19GC0040 | C35: Wastewater efficiency challenge - opex | D35: % | E35: Price Review 2019 | F35: 0 | G35: 0 | H35: 0 | I35: 0 | J35: 0
A36: SSC | B36: PR19GC0044 | C36: Water efficiency challenge - opex | D36: % | E36: Price Review 2019 | F36: 0.04621504436 | G36: 0.04621504436 | H36: 0.04621504436 | I36: 0.04621504436 | J36: 0.04621504436
A37: SSC | B37: APP28RR_W0005 | C37: Diversions income - water s185 | D37: £m | E37: Price Review 2019 | F37: 0.451 | G37: 0.451 | H37: 0.451 | I37: 0.4514191377 | J37: 0.4514191377
A38: SSC | B38: APP28RR_W0006 | C38: Diversions income - water NRSWA | D38: £m | E38: Price Review 2019 | F38: 0.461 | G38: 0.461 | H38: 0.461 | I38: 0.4612325973 | J38: 0.4612325973
A39: SSC | B39: APP28RR_W0007 | C39: Diversions income - water Other non-s185 | D39: £m | E39: Price Review 2019 | F39: 0 | G39: 0 | H39: 0 | I39: 0 | J39: 0
A40: SSC | B40: APP28RR_WW0005 | C40: Diversions income - wastewater s185 | D40: £m | E40: Price Review 2019
A41: SSC | B41: APP28RR_WW0006 | C41: Diversions income - wastewater NRSWA | D41: £m | E41: Price Review 2019
A42: SSC | B42: APP28RR_WW0007 | C42: Diversions income - wastewater Other non-s185 | D42: £m | E42: Price Review 2019
A43: SSC | B43: APP28RR_W0001 | C43: Diversions expenditure - water s185 | D43: £m | E43: Price Review 2019 | F43: 0.4969819203 | G43: 0.4969819203 | H43: 0.5078837449 | I43: 0.5335638435 | J43: 0.5335638435
A44: SSC | B44: APP28RR_W0002 | C44: Diversions expenditure - water NRSWA | D44: £m | E44: Price Review 2019 | F44: 0.5077858751 | G44: 0.5077858751 | H44: 0.5189246959 | I44: 0.5451630575 | J44: 0.5451630575
A45: SSC | B45: APP28RR_W0003 | C45: Diversions expenditure - water Other non-s185 | D45: £m | E45: Price Review 2019 | F45: 0 | G45: 0 | H45: 0 | I45: 0 | J45: 0
A46: SSC | B46: APP28RR_WW0001 | C46: Diversions expenditure - wastewater s185 | D46: £m | E46: Price Review 2019
A47: SSC | B47: APP28RR_WW0002 | C47: Diversions expenditure - wastewater NRSWA | D47: £m | E47: Price Review 2019
A48: SSC | B48: APP28RR_WW0003 | C48: Diversions expenditure - wastewater Other non-s185 | D48: £m | E48: Price Review 2019
A49: SSC | B49: APP28RR_W00018 | C49: Properties volume data - water New properties (residential) | D49: nr | E49: Price Review 2019 | F49: 5890 | G49: 5873 | H49: 5857 | I49: 5847 | J49: 5837
A50: SSC | B50: APP28RR_W00019 | C50: Properties volume data - water New properties (business) | D50: nr | E50: Price Review 2019 | F50: 300 | G50: 317 | H50: 332 | I50: 342 | J50: 351
A51: SSC | B51: APP28RR_W00021 | C51: Properties volume data - water New properties on NAV sites (residential) | D51: nr | E51: Price Review 2019 | F51: 0 | G51: 0 | H51: 0 | I51: 0 | J51: 0
A52: SSC | B52: APP28RR_W00022 | C52: Properties volume data - water New properties on NAV sites (business) | D52: nr | E52: Price Review 2019 | F52: 0 | G52: 0 | H52: 0 | I52: 0 | J52: 0
A53: SSC | B53: APP28RR_WW00018 | C53: Properties volume data - wastewater New properties (residential) | D53: nr | E53: Price Review 2019
A54: SSC | B54: APP28RR_WW00019 | C54: Properties volume data - wastewater New properties (business) | D54: nr | E54: Price Review 2019
A55: SSC | B55: APP28RR_WW00021 | C55: Properties volume data - wastewater New properties on NAV sites (residential) | D55: nr | E55: Price Review 2019
A56: SSC | B56: APP28RR_WW00022 | C56: Properties volume data - wastewater New properties on NAV sites (business) | D56: nr | E56: Price Review 2019
A57: SSC | B57: APP28RR_W00036 | C57: App 28 data (£m) Infrastructure charge receipts (s146) | D57: £m | E57: Price Review 2019 | F57: -1.928627819 | G57: -1.160407023 | H57: -0.6378263971 | I57: -1.711149599 | J57: -1.666657993
A58: SSC | B58: APP28RR_W00037 | C58: App 28 data (£m) Requisitioned mains (s43, s55 & s56) | D58: £m | E58: Price Review 2019 | F58: 3.122621333 | G58: 3.117154618 | H58: 3.103922905 | I58: 3.108493023 | J58: 3.104520466
A59: SSC | B59: APP28RR_W00038 | C59: App 28 data (£m) Total value of income offset allowances | D59: £m | E59: Price Review 2019 | F59: 3.395420626 | G59: 3.39516084 | H59: 3.395439988 | I59: 3.395503209 | J59: 3.395473301
A60: SSC | B60: APP28RR_WW00036 | C60: App 28 data (£m) Infrastructure charge receipts (s146) | D60: £m | E60: Price Review 2019
A61: SSC | B61: APP28RR_WW00037 | C61: App 28 data (£m) Requisitioned sewers (s100) | D61: £m | E61: Price Review 2019
A62: SSC | B62: APP28RR_WW00038 | C62: App 28 data (£m) Total value of income offset allowances | D62: £m | E62: Price Review 2019
A63: SSC | B63: PR19GC0050 | C63: Water efficiency challenge excluding scope challenge | D63: % | E63: Price Review 2019 | F63: 0.02106610799 | G63: 0.02106610799 | H63: 0.02106610799 | I63: 0.02106610799 | J63: 0.02106610799
A64: SSC | B64: PR19GC0049 | C64: Wastewater efficiency challenge excluding scope challenge | D64: % | E64: Price Review 2019 | F64: 0 | G64: 0 | H64: 0 | I64: 0 | J64: 0

Sheet F_Inputs (combined)
C1: PR19_FD_GC_In
A2: Acronym | B2: Reference | C2: Item description | D2: Unit | E2: Model | F2: 2020-21 | G2: 2021-22 | H2: 2022-23 | I2: 2023-24 | J2: 2024-25
F4: PR19 Run 8A: 7 November draft FD | G4: PR19 Run 8A: 7 November draft FD | H4: PR19 Run 8A: 7 November draft FD | I4: PR19 Run 8A: 7 November draft FD | J4: PR19 Run 8A: 7 November draft FD
A5: SSC | B5: BA1086PC | C5: Grants and contributions received ~ wholesale water service - Other contributions (price control) | D5: £m | E5: Price Review 2019 | F5: 0 | G5: 0 | H5: 0 | I5: 0 | J5: 0
A6: SSC | B6: BA1086NPC | C6: Grants and contributions received ~ wholesale water service - Other contributions (non-price control) | D6: £m | E6: Price Review 2019 | F6: 4.466892155 | G6: 3.899892155 | H6: 3.89887448 | I6: 0.6769154301 | J6: 0.6769154301
A7: SSC | B7: BA2086PC | C7: Grants and contributions received ~ wholesale wastewater service - Other contributions (price control) | D7: £m | E7: Price Review 2019
A8: SSC | B8: BA2086NPC | C8: Grants and contributions received ~ wholesale wastewater service - Other contributions (non-price control) | D8: £m | E8: Price Review 2019
A9: SSC | B9: BC11271IN | C9: Connection charges (s45) | D9: £m | E9: Price Review 2019 | F9: 3.42258328 | G9: 3.416591427 | H9: 3.402088663 | I9: 3.407097791 | J9: 3.402743626
A10: SSC | B10: APP280036 | C10: Activity forecasts ~ wholesale water service - Total number of new residential connections | D10: 000s | E10: Price Review 2019 | F10: ='F_input report 01 Nov'!F11 -> 8.502704482 | G10: ='F_input report 01 Nov'!G11 -> 8.031368253 | H10: ='F_input report 01 Nov'!H11 -> 7.64668554 | I10: ='F_input report 01 Nov'!I11 -> 7.413547899 | J10: ='F_input report 01 Nov'!J11 -> 7.214626559
A11: SSC | B11: APP280037 | C11: Activity forecasts ~ wholesale water service - Total number of new business connections | D11: 000s | E11: Price Review 2019 | F11: ='F_input report 01 Nov'!F12 -> 0.4480109222 | G11: ='F_input report 01 Nov'!G12 -> 0.4480109222 | H11: ='F_input report 01 Nov'!H12 -> 0.4480109222 | I11: ='F_input report 01 Nov'!I12 -> 0.4480109222 | J11: ='F_input report 01 Nov'!J12 -> 0.4480109222
A12: SSC | B12: APP280038 | C12: Activity forecasts ~ wholesale wastewater service - Residential properties connected during the year | D12: 000s | E12: Price Review 2019 | F12: ='F_input report 01 Nov'!F13 -> 0 | G12: ='F_input report 01 Nov'!G13 -> 0 | H12: ='F_input report 01 Nov'!H13 -> 0 | I12: ='F_input report 01 Nov'!I13 -> 0 | J12: ='F_input report 01 Nov'!J13 -> 0
A13: SSC | B13: APP280039 | C13: Activity forecasts ~ wholesale wastewater service - Business properties connected during the year | D13: 000s | E13: Price Review 2019 | F13: ='F_input report 01 Nov'!F14 -> 0 | G13: ='F_input report 01 Nov'!G14 -> 0 | H13: ='F_input report 01 Nov'!H14 -> 0 | I13: ='F_input report 01 Nov'!I14 -> 0 | J13: ='F_input report 01 Nov'!J14 -> 0
A14: SSC | B14: A19048WR | C14: Water resources operating expenditure grants and contributions (price control) | D14: £m | E14: Price Review 2019 | F14: 0 | G14: 0 | H14: 0 | I14: 0 | J14: 0
A15: SSC | B15: A19049WR | C15: Water resources capital expenditure grants and contributions (price control) | D15: £m | E15: Price Review 2019 | F15: 0 | G15: 0 | H15: 0 | I15: 0 | J15: 0
A16: SSC | B16: A19052WR | C16: Water resources operating expenditure grants and contributions (non-price control) | D16: £m | E16: Price Review 2019 | F16: 0 | G16: 0 | H16: 0 | I16: 0 | J16: 0
A17: SSC | B17: A19053WR | C17: Water resources capital expenditure grants and contributions (non-price control) | D17: £m | E17: Price Review 2019 | F17: 0.567 | G17: 0 | H17: 0 | I17: 0 | J17: 0
A18: SSC | B18: A19052WN | C18: Water network operating expenditure grants and contributions (price control) | D18: £m | E18: Price Review 2019 | F18: 0.451 | G18: 0.451 | H18: 0.451 | I18: 0.4514191377 | J18: 0.4514191377
A19: SSC | B19: A19053WN | C19: Water network capital expenditure grants and contributions (price control) | D19: £m | E19: Price Review 2019 | F19: 4.692789146 | G19: 5.498237805 | H19: 6.025595586 | I19: 4.893633347 | J19: 4.932384555
A20: SSC | B20: A19054WN | C20: Water network operating expenditure grants and contributions (non-price control) | D20: £m | E20: Price Review 2019 | F20: 0.461 | G20: 0.461 | H20: 0.461 | I20: 0.461 | J20: 0.461
A21: SSC | B21: A19055WN | C21: Water network capital expenditure grants and contributions (non-price control) | D21: £m | E21: Price Review 2019 | F21: 3.438892155 | G21: 3.438892155 | H21: 3.43787448 | I21: 0.2159154301 | J21: 0.2159154301
A22: SSC | B22: A19052WWN | C22: Wastewater network operating expenditure grants and contributions (price control) | D22: £m | E22: Price Review 2019
A23: SSC | B23: A19053WWN | C23: Wastewater network capital expenditure grants and contributions (price control) | D23: £m | E23: Price Review 2019
A24: SSC | B24: A19054WWN | C24: Wastewater network operating expenditure grants and contributions (non-price control) | D24: £m | E24: Price Review 2019
A25: SSC | B25: A19055WWN | C25: Wastewater network capital expenditure grants and contributions (non-price control) | D25: £m | E25: Price Review 2019
A26: SSC | B26: A19052BIO | C26: Bioresources operating expenditure grants and contributions (price control) | D26: £m | E26: Price Review 2019
A27: SSC | B27: A19053BIO | C27: Bioresources capital expenditure grants and contributions (price control) | D27: £m | E27: Price Review 2019
A28: SSC | B28: A19054BIO | C28: Bioresources operating expenditure grants and contributions (non-price control) | D28: £m | E28: Price Review 2019
A29: SSC | B29: A19055BIO | C29: Bioresources capital expenditure grants and contributions (non-price control) | D29: £m | E29: Price Review 2019
A30: SSC | B30: A19052_DMMY | C30: Dummy operating expenditure grants and contributions (price control) | D30: £m | E30: Price Review 2019
A31: SSC | B31: A19053_DMMY | C31: Dummy capital expenditure grants and contributions (price control) | D31: £m | E31: Price Review 2019
A32: SSC | B32: A19054_DMMY | C32: Dummy operating expenditure grants and contributions (non-price control) | D32: £m | E32: Price Review 2019
A33: SSC | B33: A19055_DMMY | C33: Dummy capital expenditure grants and contributions (non-price control) | D33: £m | E33: Price Review 2019
A34: SSC | B34: PR19GC0040 | C34: Wastewater efficiency challenge - opex | D34: % | E34: Price Review 2019 | F34: ='F_input report 01 Nov'!F35 -> 0 | G34: ='F_input report 01 Nov'!G35 -> 0 | H34: ='F_input report 01 Nov'!H35 -> 0 | I34: ='F_input report 01 Nov'!I35 -> 0 | J34: ='F_input report 01 Nov'!J35 -> 0
A35: SSC | B35: PR19GC0044 | C35: Water efficiency challenge - opex | D35: % | E35: Price Review 2019 | F35: ='F_input report 01 Nov'!F36 -> 0.04621504436 | G35: ='F_input report 01 Nov'!G36 -> 0.04621504436 | H35: ='F_input report 01 Nov'!H36 -> 0.04621504436 | I35: ='F_input report 01 Nov'!I36 -> 0.04621504436 | J35: ='F_input report 01 Nov'!J36 -> 0.04621504436
A36: SSC | B36: APP28RR_W0005 | C36: Diversions income - water s185 | D36: £m | E36: Price Review 2019 | F36: 0.451 | G36: 0.451 | H36: 0.451 | I36: 0.4514191377 | J36: 0.4514191377
A37: SSC | B37: APP28RR_W0006 | C37: Diversions income - water NRSWA | D37: £m | E37: Price Review 2019 | F37: 0.461 | G37: 0.461 | H37: 0.461 | I37: 0.4612325973 | J37: 0.4612325973
A38: SSC | B38: APP28RR_W0007 | C38: Diversions income - water Other non-s185 | D38: £m | E38: Price Review 2019 | F38: 0 | G38: 0 | H38: 0 | I38: 0 | J38: 0
A39: SSC | B39: APP28RR_WW0005 | C39: Diversions income - wastewater s185 | D39: £m | E39: Price Review 2019
A40: SSC | B40: APP28RR_WW0006 | C40: Diversions income - wastewater NRSWA | D40: £m | E40: Price Review 2019
A41: SSC | B41: APP28RR_WW0007 | C41: Diversions income - wastewater Other non-s185 | D41: £m | E41: Price Review 2019
A42: SSC | B42: APP28RR_W0001 | C42: Diversions expenditure - water s185 | D42: £m | E42: Price Review 2019 | F42: 0.4969819203 | G42: 0.4969819203 | H42: 0.5078837449 | I42: 0.5335638435 | J42: 0.5335638435
A43: SSC | B43: APP28RR_W0002 | C43: Diversions expenditure - water NRSWA | D43: £m | E43: Price Review 2019 | F43: 0.5077858751 | G43: 0.5077858751 | H43: 0.5189246959 | I43: 0.5451630575 | J43: 0.5451630575
A44: SSC | B44: APP28RR_W0003 | C44: Diversions expenditure - water Other non-s185 | D44: £m | E44: Price Review 2019 | F44: 0 | G44: 0 | H44: 0 | I44: 0 | J44: 0
A45: SSC | B45: APP28RR_WW0001 | C45: Diversions expenditure - wastewater s185 | D45: £m | E45: Price Review 2019
A46: SSC | B46: APP28RR_WW0002 | C46: Diversions expenditure - wastewater NRSWA | D46: £m | E46: Price Review 2019
A47: SSC | B47: APP28RR_WW0003 | C47: Diversions expenditure - wastewater Other non-s185 | D47: £m | E47: Price Review 2019
A48: SSC | B48: APP28RR_W00018 | C48: Properties volume data - water New properties (residential) | D48: nr | E48: Price Review 2019 | F48: 5890 | G48: 5873 | H48: 5857 | I48: 5847 | J48: 5837
A49: SSC | B49: APP28RR_W00019 | C49: Properties volume data - water New properties (business) | D49: nr | E49: Price Review 2019 | F49: 300 | G49: 317 | H49: 332 | I49: 342 | J49: 351
A50: SSC | B50: APP28RR_W00021 | C50: Properties volume data - water New properties on NAV sites (residential) | D50: nr | E50: Price Review 2019 | F50: 0 | G50: 0 | H50: 0 | I50: 0 | J50: 0
A51: SSC | B51: APP28RR_W00022 | C51: Properties volume data - water New properties on NAV sites (business) | D51: nr | E51: Price Review 2019 | F51: 0 | G51: 0 | H51: 0 | I51: 0 | J51: 0
A52: SSC | B52: APP28RR_WW00018 | C52: Properties volume data - wastewater New properties (residential) | D52: nr | E52: Price Review 2019
A53: SSC | B53: APP28RR_WW00019 | C53: Properties volume data - wastewater New properties (business) | D53: nr | E53: Price Review 2019
A54: SSC | B54: APP28RR_WW00021 | C54: Properties volume data - wastewater New properties on NAV sites (residential) | D54: nr | E54: Price Review 2019
A55: SSC | B55: APP28RR_WW00022 | C55: Properties volume data - wastewater New properties on NAV sites (business) | D55: nr | E55: Price Review 2019
A56: SSC | B56: APP28RR_W00036 | C56: App 28 data (£m) Infrastructure charge receipts (s146) | D56: £m | E56: Price Review 2019 | F56: -2.051731722 | G56: -1.234475556 | H56: -0.6785387203 | I56: -1.820371914 | J56: -1.773040418
A57: SSC | B57: APP28RR_W00037 | C57: App 28 data (£m) Requisitioned mains (s43, s55 & s56) | D57: £m | E57: Price Review 2019 | F57: 3.321937588 | G57: 3.316121934 | H57: 3.302045643 | I57: 3.306907471 | J57: 3.302681346
A58: SSC | B58: APP28RR_W00038 | C58: App 28 data (£m) Total value of income offset allowances | D58: £m | E58: Price Review 2019 | F58: 3.612149602 | G58: 3.611873234 | H58: 3.6121702 | I58: 3.612237457 | J58: 3.61220564
A59: SSC | B59: APP28RR_WW00036 | C59: App 28 data (£m) Infrastructure charge receipts (s146) | D59: £m | E59: Price Review 2019
A60: SSC | B60: APP28RR_WW00037 | C60: App 28 data (£m) Requisitioned sewers (s100) | D60: £m | E60: Price Review 2019
A61: SSC | B61: APP28RR_WW00038 | C61: App 28 data (£m) Total value of income offset allowances | D61: £m | E61: Price Review 2019
A62: SSC | B62: PR19GC0050 | C62: Water efficiency challenge excluding scope challenge | D62: % | E62: Price Review 2019 | F62: ='F_input report 01 Nov'!F63 -> 0.02106610799 | G62: ='F_input report 01 Nov'!G63 -> 0.02106610799 | H62: ='F_input report 01 Nov'!H63 -> 0.02106610799 | I62: ='F_input report 01 Nov'!I63 -> 0.02106610799 | J62: ='F_input report 01 Nov'!J63 -> 0.02106610799
A63: SSC | B63: PR19GC0049 | C63: Wastewater efficiency challenge excluding scope challenge | D63: % | E63: Price Review 2019 | F63: ='F_input report 01 Nov'!F64 -> 0 | G63: ='F_input report 01 Nov'!G64 -> 0 | H63: ='F_input report 01 Nov'!H64 -> 0 | I63: ='F_input report 01 Nov'!I64 -> 0 | J63: ='F_input report 01 Nov'!J64 -> 0
C66: Key - data from resubmitted developer services data request:
C67: withBoNs Resubmitted DD Developer Services Data Request 25_10_19.xlsx
C68: Resubmitted data for feeder model 25_10_19.xlsx

Sheet InpOverride
A1: =RIGHT(CELL("filename", $A$1), LEN(CELL("filename", $A$1)) - SEARCH("]", CELL("filename", $A$1))) -> InpOverride | F1: =IF(InpOverride!$F$108 > 0, "Overrides", "No Overrides") -> Overrides
E2: =Time!E$25 -> Model period ending | F2: =Check!$F$2 -> 1 | G2: Checks/Alerts | J2: =Time!J$25 -> 2019-03-31 | K2: =Time!K$25 -> 2020-03-31 | L2: =Time!L$25 -> 2021-03-31 | M2: =Time!M$25 -> 2022-03-31 | N2: =Time!N$25 -> 2023-03-31 | O2: =Time!O$25 -> 2024-03-31 | P2: =Time!P$25 -> 2025-03-31 | Q2: =Time!Q$25 -> 2026-03-31 | R2: =Time!R$25 -> 2027-03-31 | S2: =Time!S$25 -> 2028-03-31 | T2: =Time!T$25 -> 2029-03-31 | U2: =Time!U$25 -> 2030-03-31
E3: =Time!E$104 -> Timeline label | F3: =Check!$F$3 -> 30 | G3: Track chgs | J3: =Time!J$104 -> Pre-Fcst | K3: =Time!K$104 -> Pre-Fcst | L3: =Time!L$104 -> Forecast | M3: =Time!M$104 -> Forecast | N3: =Time!N$104 -> Forecast | O3: =Time!O$104 -> Forecast | P3: =Time!P$104 -> Forecast | Q3: =Time!Q$104 -> Post-Fcst | R3: =Time!R$104 -> Post-Fcst | S3: =Time!S$104 -> Post-Fcst | T3: =Time!T$104 -> Post-Fcst | U3: =Time!U$104 -> Post-Fcst
E4: =Time!E$127 -> Financial year ending | J4: =Time!J$127 -> 2019 | K4: =Time!K$127 -> 2020 | L4: =Time!L$127 -> 2021 | M4: =Time!M$127 -> 2022 | N4: =Time!N$127 -> 2023 | O4: =Time!O$127 -> 2024 | P4: =Time!P$127 -> 2025 | Q4: =Time!Q$127 -> 2026 | R4: =Time!R$127 -> 2027 | S4: =Time!S$127 -> 2028 | T4: =Time!T$127 -> 2029 | U4: =Time!U$127 -> 2030
D5: Input references | E5: =Time!E$10 -> Model column counter | F5: Constant | G5: Unit | H5: Total | J5: =Time!J$10 -> 1 | K5: =Time!K$10 -> 2 | L5: =Time!L$10 -> 3 | M5: =Time!M$10 -> 4 | N5: =Time!N$10 -> 5 | O5: =Time!O$10 -> 6 | P5: =Time!P$10 -> 7 | Q5: =Time!Q$10 -> 8 | R5: =Time!R$10 -> 9 | S5: =Time!S$10 -> 10 | T5: =Time!T$10 -> 11 | U5: =Time!U$10 -> 12
A8: OVERRIDE ON INPUTS
B10: Efficiency challenge
D11: ='F_Inputs (combined)'!B34 -> PR19GC0040 | E11: ='F_Inputs (combined)'!C34 -> Wastewater efficiency challenge - opex | F11: ='F_Inputs (combined)'!F34 -> 0 | G11: ='F_Inputs (combined)'!D34 -> % | H11: opex % = capex %
E12: Wastewater efficiency challenge - override | G12: %
D13: =D11 & " overridden" -> PR19GC0040 overridden | E13: Wastewater efficiency challenge - (post override) | F13: =IF(F12 = "", F11, F12) -> 0 | G13: %
D15: ='F_Inputs (combined)'!B35 -> PR19GC0044 | E15: ='F_Inputs (combined)'!C35 -> Water efficiency challenge - opex | F15: ='F_Inputs (combined)'!F35 -> 0.04621504436 | G15: ='F_Inputs (combined)'!D35 -> % | H15: opex % = capex %
E16: Water efficiency challenge - override | G16: %
D17: =D15 & " overridden" -> PR19GC0044 overridden | E17: Water efficiency challenge - (post override) | F17: =IF(F16 = "", F15, F16) -> 0.04621504436 | G17: %
D19: ='F_Inputs (combined)'!B62 -> PR19GC0050 | E19: ='F_Inputs (combined)'!C62 -> Water efficiency challenge excluding scope challenge | F19: ='F_Inputs (combined)'!F62 -> 0.02106610799 | G19: ='F_Inputs (combined)'!D62 -> %
E20: Water efficiency challenge excluding scope challenge - override | G20: %
D21: =D19 & " overridden" -> PR19GC0050 overridden | E21: Water efficiency challenge excluding scope challenge - (post override) | F21: =IF(F20 = "", F19, F20) -> 0.02106610799 | G21: %
D23: ='F_Inputs (combined)'!B63 -> PR19GC0049 | E23: ='F_Inputs (combined)'!C63 -> Wastewater efficiency challenge excluding scope challenge | F23: ='F_Inputs (combined)'!F63 -> 0 | G23: ='F_Inputs (combined)'!D63 -> %
E24: Wastewater efficiency challenge excluding scope challenge - override | G24: %
D25: =D23 & " overridden" -> PR19GC0049 overridden | E25: Wastewater efficiency challenge excluding scope challenge - (post override) | F25: =IF(F24 = "", F23, F24) -> 0 | G25: %
B27: Diversions
B28: We would expect expenditure on diversions to be recovered in full, so we treat them separately to other G&C and apply 100% recovery rate
E30: Diversion Overrides active switch | F30: 1 | G30: 1 = Active, 0 = Inactive
D32: ='F_Inputs (combined)'!B36 -> APP28RR_W0005 | E32: ='F_Inputs (combined)'!C36 -> Diversions income - water s185 | G32: £m | H32: =SUM(J32:U32) -> 2.255838275 | L32: ='F_Inputs (combined)'!F36 -> 0.451 | M32: ='F_Inputs (combined)'!G36 -> 0.451 | N32: ='F_Inputs (combined)'!H36 -> 0.451 | O32: ='F_Inputs (combined)'!I36 -> 0.4514191377 | P32: ='F_Inputs (combined)'!J36 -> 0.4514191377 | Q32: ='F_Inputs (combined)'!K36 -> 0 | R32: ='F_Inputs (combined)'!L36 -> 0 | S32: ='F_Inputs (combined)'!M36 -> 0 | T32: ='F_Inputs (combined)'!N36 -> 0 | U32: ='F_Inputs (combined)'!O36 -> 0
E33: =E32 & " - override" -> Diversions income - water s185 - override | G33: £m | H33: 0
D34: =D32 & " overridden" -> APP28RR_W0005 overridden | E34: =E32 & " - post override" -> Diversions income - water s185 - post override | G34: £m | H34: =SUM(J34:U34) -> 2.255838275 | J34: =IF(AND($F$30 = 1, J33 <> ""), J33, J32) -> 0 | K34: =IF(AND($F$30 = 1, K33 <> ""), K33, K32) -> 0 | L34: 0.451 | M34: 0.451 | N34: 0.451 | O34: 0.4514191377 | P34: 0.4514191377 | Q34: =IF(AND($F$30 = 1, Q33 <> ""), Q33, Q32) -> 0 | R34: 0 | S34: 0 | T34: 0 | U34: 0
D36: ='F_Inputs (combined)'!B37 -> APP28RR_W0006 | E36: ='F_Inputs (combined)'!C37 -> Diversions income - water NRSWA | G36: £m | H36: =SUM(J36:U36) -> 2.305465195 | L36: ='F_Inputs (combined)'!F37 -> 0.461 | M36: ='F_Inputs (combined)'!G37 -> 0.461 | N36: ='F_Inputs (combined)'!H37 -> 0.461 | O36: ='F_Inputs (combined)'!I37 -> 0.4612325973 | P36: ='F_Inputs (combined)'!J37 -> 0.4612325973 | Q36: ='F_Inputs (combined)'!K37 -> 0 | R36: ='F_Inputs (combined)'!L37 -> 0 | S36: ='F_Inputs (combined)'!M37 -> 0 | T36: ='F_Inputs (combined)'!N37 -> 0 | U36: ='F_Inputs (combined)'!O37 -> 0
E37: =E36 & " - override" -> Diversions income - water NRSWA - override | G37: £m
D38: =D36 & " overridden" -> APP28RR_W0006 overridden | E38: =E36 & " - post override" -> Diversions income - water NRSWA - post override | G38: £m | H38: =SUM(J38:U38) -> 2.305465195 | J38: =IF(AND($F$30 = 1, J37 <> ""), J37, J36) -> 0 | K38: =IF(AND($F$30 = 1, K37 <> ""), K37, K36) -> 0 | L38: =IF(AND($F$30 = 1, L37 <> ""), L37, L36) -> 0.461 | M38: =IF(AND($F$30 = 1, M37 <> ""), M37, M36) -> 0.461 | N38: =IF(AND($F$30 = 1, N37 <> ""), N37, N36) -> 0.461 | O38: =IF(AND($F$30 = 1, O37 <> ""), O37, O36) -> 0.4612325973 | P38: =IF(AND($F$30 = 1, P37 <> ""), P37, P36) -> 0.4612325973 | Q38: 0 | R38: 0 | S38: 0 | T38: 0 | U38: 0
D40: ='F_Inputs (combined)'!B38 -> APP28RR_W0007 | E40: ='F_Inputs (combined)'!C38 -> Diversions income - water Other non-s185 | G40: £m | H40: =SUM(J40:U40) -> 0 | L40: ='F_Inputs (combined)'!F38 -> 0 | M40: ='F_Inputs (combined)'!G38 -> 0 | N40: ='F_Inputs (combined)'!H38 -> 0 | O40: ='F_Inputs (combined)'!I38 -> 0 | P40: ='F_Inputs (combined)'!J38 -> 0 | Q40: ='F_Inputs (combined)'!K38 -> 0 | R40: ='F_Inputs (combined)'!L38 -> 0 | S40: ='F_Inputs (combined)'!M38 -> 0 | T40: ='F_Inputs (combined)'!N38 -> 0 | U40: ='F_Inputs (combined)'!O38 -> 0
E41: =E40 & " - override" -> Diversions income - water Other non-s185 - override | G41: £m
D42: =D40 & " overridden" -> APP28RR_W0007 overridden | E42: =E40 & " - post override" -> Diversions income - water Other non-s185 - post override | G42: £m | H42: =SUM(J42:U42) -> 0 | J42: =IF(AND($F$30 = 1, J41 <> ""), J41, J40) -> 0 | K42: =IF(AND($F$30 = 1, K41 <> ""), K41, K40) -> 0 | L42: 0 | M42: 0 | N42: 0 | O42: 0 | P42: 0 | Q42: =IF(AND($F$30 = 1, Q41 <> ""), Q41, Q40) -> 0 | R42: 0 | S42: 0 | T42: 0 | U42: 0
D44: ='F_Inputs (combined)'!B39 -> APP28RR_WW0005 | E44: ='F_Inputs (combined)'!C39 -> Diversions income - wastewater s185 | G44: £m | H44: =SUM(J44:U44) -> 0 | L44: ='F_Inputs (combined)'!F39 -> 0 | M44: ='F_Inputs (combined)'!G39 -> 0 | N44: ='F_Inputs (combined)'!H39 -> 0 | O44: ='F_Inputs (combined)'!I39 -> 0 | P44: ='F_Inputs (combined)'!J39 -> 0 | Q44: ='F_Inputs (combined)'!K39 -> 0 | R44: ='F_Inputs (combined)'!L39 -> 0 | S44: ='F_Inputs (combined)'!M39 -> 0 | T44: ='F_Inputs (combined)'!N39 -> 0 | U44: ='F_Inputs (combined)'!O39 -> 0
E45: =E44 & " - override" -> Diversions income - wastewater s185 - override | G45: £m
D46: =D44 & " overridden" -> APP28RR_WW0005 overridden | E46: =E44 & " - post override" -> Diversions income - wastewater s185 - post override | G46: £m | H46: =SUM(J46:U46) -> 0 | J46: =IF(AND($F$30 = 1, J45 <> ""), J45, J44) -> 0 | K46: =IF(AND($F$30 = 1, K45 <> ""), K45, K44) -> 0 | L46: =IF(AND($F$30 = 1, L45 <> ""), L45, L44) -> 0 | M46: =IF(AND($F$30 = 1, M45 <> ""), M45, M44) -> 0 | N46: =IF(AND($F$30 = 1, N45 <> ""), N45, N44) -> 0 | O46: =IF(AND($F$30 = 1, O45 <> ""), O45, O44) -> 0 | P46: =IF(AND($F$30 = 1, P45 <> ""), P45, P44) -> 0 | Q46: 0 | R46: 0 | S46: 0 | T46: 0 | U46: 0
D48: ='F_Inputs (combined)'!B40 -> APP28RR_WW0006 | E48: ='F_Inputs (combined)'!C40 -> Diversions income - wastewater NRSWA | G48: £m | H48: =SUM(J48:U48) -> 0 | L48: ='F_Inputs (combined)'!F40 -> 0 | M48: ='F_Inputs (combined)'!G40 -> 0 | N48: ='F_Inputs (combined)'!H40 -> 0 | O48: ='F_Inputs (combined)'!I40 -> 0 | P48: ='F_Inputs (combined)'!J40 -> 0 | Q48: ='F_Inputs (combined)'!K40 -> 0 | R48: ='F_Inputs (combined)'!L40 -> 0 | S48: ='F_Inputs (combined)'!M40 -> 0 | T48: ='F_Inputs (combined)'!N40 -> 0 | U48: ='F_Inputs (combined)'!O40 -> 0
E49: =E48 & " - override" -> Diversions income - wastewater NRSWA - override | G49: £m
D50: =D48 & " overridden" -> APP28RR_WW0006 overridden | E50: =E48 & " - post override" -> Diversions income - wastewater NRSWA - post override | G50: £m | H50: =SUM(J50:U50) -> 0 | J50: =IF(AND($F$30 = 1, J49 <> ""), J49, J48) -> 0 | K50: =IF(AND($F$30 = 1, K49 <> ""), K49, K48) -> 0 | L50: =IF(AND($F$30 = 1, L49 <> ""), L49, L48) -> 0 | M50: =IF(AND($F$30 = 1, M49 <> ""), M49, M48) -> 0 | N50: =IF(AND($F$30 = 1, N49 <> ""), N49, N48) -> 0 | O50: =IF(AND($F$30 = 1, O49 <> ""), O49, O48) -> 0 | P50: =IF(AND($F$30 = 1, P49 <> ""), P49, P48) -> 0 | Q50: 0 | R50: 0 | S50: 0 | T50: 0 | U50: 0
D52: ='F_Inputs (combined)'!B41 -> APP28RR_WW0007 | E52: ='F_Inputs (combined)'!C41 -> Diversions income - wastewater Other non-s185 | G52: £m | H52: =SUM(J52:U52) -> 0 | L52: ='F_Inputs (combined)'!F41 -> 0 | M52: ='F_Inputs (combined)'!G41 -> 0 | N52: ='F_Inputs (combined)'!H41 -> 0 | O52: ='F_Inputs (combined)'!I41 -> 0 | P52: ='F_Inputs (combined)'!J41 -> 0 | Q52: ='F_Inputs (combined)'!K41 -> 0 | R52: ='F_Inputs (combined)'!L41 -> 0 | S52: ='F_Inputs (combined)'!M41 -> 0 | T52: ='F_Inputs (combined)'!N41 -> 0 | U52: ='F_Inputs (combined)'!O41 -> 0
E53: =E52 & " - override" -> Diversions income - wastewater Other non-s185 - override | G53: £m
D54: =D52 & " overridden" -> APP28RR_WW0007 overridden | E54: =E52 & " - post override" -> Diversions income - wastewater Other non-s185 - post override | G54: £m | H54: =SUM(J54:U54) -> 0 | J54: =IF(AND($F$30 = 1, J53 <> ""), J53, J52) -> 0 | K54: =IF(AND($F$30 = 1, K53 <> ""), K53, K52) -> 0 | L54: 0 | M54: 0 | N54: 0 | O54: 0 | P54: 0 | Q54: =IF(AND($F$30 = 1, Q53 <> ""), Q53, Q52) -> 0 | R54: 0 | S54: 0 | T54: 0 | U54: 0
B56: Other contributions
D58: ='F_Inputs (combined)'!B$5 -> BA1086PC | E58: ='F_Inputs (combined)'!C$5 -> Grants and contributions received ~ wholesale water service - Other contributions (price control) | G58: £m | H58: =SUM(J58:U58) -> 0 | L58: ='F_Inputs (combined)'!F$5 -> 0 | M58: ='F_Inputs (combined)'!G$5 -> 0 | N58: ='F_Inputs (combined)'!H$5 -> 0 | O58: ='F_Inputs (combined)'!I$5 -> 0 | P58: ='F_Inputs (combined)'!J$5 -> 0 | Q58: ='F_Inputs (combined)'!K$5 -> 0 | R58: ='F_Inputs (combined)'!L$5 -> 0 | S58: ='F_Inputs (combined)'!M$5 -> 0 | T58: ='F_Inputs (combined)'!N$5 -> 0 | U58: ='F_Inputs (combined)'!O$5 -> 0
E59: ="G&C received - water - other contributions (price control) - override" -> G&C received - water - other contributions (price control) - override | G59: £m
D60: =D58 & " overridden" -> BA1086PC overridden | E60: ="G&C received - water - other contributions (price control) - post-override" -> G&C received - water - other contributions (price control) - post-override | G60: £m | H60: =SUM(J60:U60) -> 0 | J60: =IF(AND($F$30 = 1, J59 <> ""), J59, J58) -> 0 | K60: 0 | L60: 0 | M60: 0 | N60: 0 | O60: 0 | P60: 0 | Q60: =IF(AND($F$30 = 1, Q59 <> ""), Q59, Q58) -> 0 | R60: 0 | S60: 0 | T60: 0 | U60: 0
D62: ='F_Inputs (combined)'!B$6 -> BA1086NPC | E62: ='F_Inputs (combined)'!C$6 -> Grants and contributions received ~ wholesale water service - Other contributions (non-price control) | G62: £m | H62: =SUM(J62:U62) -> 13.61948965 | L62: ='F_Inputs (combined)'!F$6 -> 4.466892155 | M62: ='F_Inputs (combined)'!G$6 -> 3.899892155 | N62: ='F_Inputs (combined)'!H$6 -> 3.89887448 | O62: ='F_Inputs (combined)'!I$6 -> 0.6769154301 | P62: ='F_Inputs (combined)'!J$6 -> 0.6769154301 | Q62: ='F_Inputs (combined)'!K$6 -> 0 | R62: ='F_Inputs (combined)'!L$6 -> 0 | S62: ='F_Inputs (combined)'!M$6 -> 0 | T62: ='F_Inputs (combined)'!N$6 -> 0 | U62: ='F_Inputs (combined)'!O$6 -> 0
E63: ="G&C received - water - other contributions (non-price control) - override" -> G&C received - water - other contributions (non-price control) - override | G63: £m
D64: =D62 & " overridden" -> BA1086NPC overridden | E64: ="G&C received - water - other contributions (non-price control) - post-override" -> G&C received - water - other contributions (non-price control) - post-override | G64: £m | H64: =SUM(J64:U64) -> 13.61948965 | J64: =IF(AND($F$30 = 1, J63 <> ""), J63, J62) -> 0 | K64: 0 | L64: 4.466892155 | M64: 3.899892155 | N64: 3.89887448 | O64: 0.6769154301 | P64: 0.6769154301 | Q64: =IF(AND($F$30 = 1, Q63 <> ""), Q63, Q62) -> 0 | R64: 0 | S64: 0 | T64: 0 | U64: 0
D66: ='F_Inputs (combined)'!B$7 -> BA2086PC | E66: ='F_Inputs (combined)'!C$7 -> Grants and contributions received ~ wholesale wastewater service - Other contributions (price control) | G66: £m | H66: =SUM(J66:U66) -> 0 | L66: ='F_Inputs (combined)'!F$7 -> 0 | M66: ='F_Inputs (combined)'!G$7 -> 0 | N66: ='F_Inputs (combined)'!H$7 -> 0 | O66: ='F_Inputs (combined)'!I$7 -> 0 | P66: ='F_Inputs (combined)'!J$7 -> 0 | Q66: ='F_Inputs (combined)'!K$7 -> 0 | R66: ='F_Inputs (combined)'!L$7 -> 0 | S66: ='F_Inputs (combined)'!M$7 -> 0 | T66: ='F_Inputs (combined)'!N$7 -> 0 | U66: ='F_Inputs (combined)'!O$7 -> 0
E67: ="G&C received - wastewater - other contributions (price control) - override" -> G&C received - wastewater - other contributions (price control) - override | G67: £m
D68: =D66 & " overridden" -> BA2086PC overridden | E68: ="G&C received - wastewater - other contributions (price control) - post-override" -> G&C received - wastewater - other contributions (price control) - post-override | G68: £m | H68: =SUM(J68:U68) -> 0 | J68: =IF(AND($F$30 = 1, J67 <> ""), J67, J66) -> 0 | K68: =IF(AND($F$30 = 1, K67 <> ""), K67, K66) -> 0 | L68: 0 | M68: 0 | N68: 0 | O68: 0 | P68: 0 | Q68: =IF(AND($F$30 = 1, Q67 <> ""), Q67, Q66) -> 0 | R68: 0 | S68: 0 | T68: 0 | U68: 0
D70: ='F_Inputs (combined)'!B$8 -> BA2086NPC | E70: ='F_Inputs (combined)'!C$8 -> Grants and contributions received ~ wholesale wastewater service - Other contributions (non-price control) | G70: £m | H70: =SUM(J70:U70) -> 0 | L70: ='F_Inputs (combined)'!F$8 -> 0 | M70: ='F_Inputs (combined)'!G$8 -> 0 | N70: ='F_Inputs (combined)'!H$8 -> 0 | O70: ='F_Inputs (combined)'!I$8 -> 0 | P70: ='F_Inputs (combined)'!J$8 -> 0 | Q70: ='F_Inputs (combined)'!K$8 -> 0 | R70: ='F_Inputs (combined)'!L$8 -> 0 | S70: ='F_Inputs (combined)'!M$8 -> 0 | T70: ='F_Inputs (combined)'!N$8 -> 0 | U70: ='F_Inputs (combined)'!O$8 -> 0
E71: ="G&C received - wastewater - other contributions (non-price control) - override" -> G&C received - wastewater - other contributions (non-price control) - override | G71: £m
D72: =D70 & " overridden" -> BA2086NPC overridden | E72: ="G&C received - wastewater - other contributions (non-price control) - post-override" -> G&C received - wastewater - other contributions (non-price control) - post-override | G72: £m | H72: =SUM(J72:U72) -> 0 | J72: =IF(AND($F$30 = 1, J71 <> ""), J71, J70) -> 0 | K72: =IF(AND($F$30 = 1, K71 <> ""), K71, K70) -> 0 | L72: 0 | M72: 0 | N72: 0 | O72: 0 | P72: 0 | Q72: =IF(AND($F$30 = 1, Q71 <> ""), Q71, Q70) -> 0 | R72: 0 | S72: 0 | T72: 0 | U72: 0
B74: These overrides enable the model calculations to be replaced
C75: Ofwat view of grants and contributions received for opex and capex split between price control and non price control
E76: Ofwat view of G&C for capex - water network - price control (override) | G76: £m | H76: =SUM(J76:U76) -> 0
E77: Ofwat view of G&C for capex - water network - non price control (override) | G77: £m | H77: =SUM(J77:U77) -> 0
E78: Ofwat view of G&C for opex - water network - price control (override) | G78: £m | H78: =SUM(J78:U78) -> 0
E79: Ofwat view of G&C for opex - water network - non price control (override) | G79: £m | H79: =SUM(J79:U79) -> 0
E81: Ofwat view of G&C for capex - water resources - price control (override) | G81: £m | H81: =SUM(J81:U81) -> 0
E82: Ofwat view of G&C for capex - water resources - non price control (override) | G82: £m | H82: =SUM(J82:U82) -> 0
E83: Ofwat view of G&C for opex - water resources - price control (override) | G83: £m | H83: =SUM(J83:U83) -> 0
E84: Ofwat view of G&C for opex - water resources - non price control (override) | G84: £m | H84: =SUM(J84:U84) -> 0
E86: Ofwat view of G&C for capex - wastewater - price control (override) | G86: £m | H86: =SUM(J86:U86) -> 0
E87: Ofwat view of G&C for capex - wastewater - non price control (override) | G87: £m | H87: =SUM(J87:U87) -> 0
E88: Ofwat view of G&C for opex - wastewater - price control (override) | G88: £m | H88: =SUM(J88:U88) -> 0
E89: Ofwat view of G&C for opex - wastewater - non price control (override) | G89: £m | H89: =SUM(J89:U89) -> 0
B91: These overrides are applied after all other calculations are completed
C92: One-off contributions to be applied in addition to the calculated amounts
E93: One-off contribution to capex - water network - price control | G93: £m | H93: =SUM(J93:U93) -> 10.5 | L93: 3.5 | M93: 3.5 | N93: 3.5
E94: One-off contribution to capex - water network - non price control | G94: £m | H94: =SUM(J94:U94) -> 0
E95: One-off contribution to opex - water network - price control | G95: £m | H95: =SUM(J95:U95) -> 0
E96: One-off contribution to opex - water network - non price control | G96: £m | H96: =SUM(J96:U96) -> 0
E98: One-off contribution to capex - water resources - price control | G98: £m | H98: =SUM(J98:U98) -> 0
E99: One-off contribution to capex - water resources - non price control | G99: £m | H99: =SUM(J99:U99) -> 0
E100: One-off contribution to opex - water resources - price control | G100: £m | H100: =SUM(J100:U100) -> 0
E101: One-off contribution to opex - water resources - non price control | G101: £m | H101: =SUM(J101:U101) -> 0
E103: One-off contribution to capex - wastewater - price control | G103: £m | H103: =SUM(J103:U103) -> 0
E104: One-off contribution to capex - wastewater - non price control | G104: £m | H104: =SUM(J104:U104) -> 0
E105: One-off contribution to opex - wastewater - price control | G105: £m | H105: =SUM(J105:U105) -> 0
E106: One-off contribution to opex - wastewater - non price control | G106: £m | H106: =SUM(J106:U106) -> 0
E108: Overrides applied | F108: =COUNT(J76:XFD106,J33:U33,J37:U37,J63:U63,J45:U45,J49:U49,J71:U71, J41:U41,J59:U59,J67:U67) -> 3 | G108: flag
A110: End of sheet

Sheet InpActive
A1: =RIGHT(CELL("filename", $A$1), LEN(CELL("filename", $A$1)) - SEARCH("]", CELL("filename", $A$1))) -> InpActive | F1: =IF(InpOverride!$F$108 > 0, "Overrides", "No Overrides") -> Overrides
E2: =Time!E$25 -> Model period ending | F2: =Check!$F$2 -> 1 | G2: Checks/Alerts | J2: =Time!J$25 -> 2019-03-31 | K2: =Time!K$25 -> 2020-03-31 | L2: =Time!L$25 -> 2021-03-31 | M2: =Time!M$25 -> 2022-03-31 | N2: =Time!N$25 -> 2023-03-31 | O2: =Time!O$25 -> 2024-03-31 | P2: =Time!P$25 -> 2025-03-31 | Q2: =Time!Q$25 -> 2026-03-31 | R2: =Time!R$25 -> 2027-03-31 | S2: =Time!S$25 -> 2028-03-31 | T2: =Time!T$25 -> 2029-03-31 | U2: =Time!U$25 -> 2030-03-31
E3: =Time!E$104 -> Timeline label | F3: =Check!$F$3 -> 30 | G3: Track chgs | J3: =Time!J$104 -> Pre-Fcst | K3: =Time!K$104 -> Pre-Fcst | L3: =Time!L$104 -> Forecast | M3: =Time!M$104 -> Forecast | N3: =Time!N$104 -> Forecast | O3: =Time!O$104 -> Forecast | P3: =Time!P$104 -> Forecast | Q3: =Time!Q$104 -> Post-Fcst | R3: =Time!R$104 -> Post-Fcst | S3: =Time!S$104 -> Post-Fcst | T3: =Time!T$104 -> Post-Fcst | U3: =Time!U$104 -> Post-Fcst
E4: =Time!E$127 -> Financial year ending | J4: =Time!J$127 -> 2019 | K4: =Time!K$127 -> 2020 | L4: =Time!L$127 -> 2021 | M4: =Time!M$127 -> 2022 | N4: =Time!N$127 -> 2023 | O4: =Time!O$127 -> 2024 | P4: =Time!P$127 -> 2025 | Q4: =Time!Q$127 -> 2026 | R4: =Time!R$127 -> 2027 | S4: =Time!S$127 -> 2028 | T4: =Time!T$127 -> 2029 | U4: =Time!U$127 -> 2030
D5: Input references | E5: =Time!E$10 -> Model column counter | F5: Constant | G5: Unit | H5: Total | J5: =Time!J$10 -> 1 | K5: =Time!K$10 -> 2 | L5: =Time!L$10 -> 3 | M5: =Time!M$10 -> 4 | N5: =Time!N$10 -> 5 | O5: =Time!O$10 -> 6 | P5: =Time!P$10 -> 7 | Q5: =Time!Q$10 -> 8 | R5: =Time!R$10 -> 9 | S5: =Time!S$10 -> 10 | T5: =Time!T$10 -> 11 | U5: =Time!U$10 -> 12 | W5: Input type (Real / Nominal)
A8: TIME
B10: Timeline setup
C12: Timeline start dates
E13: 1st model column start date | F13: 2018-04-01 | G13: date | H13: Date should be the first date of the financial year
C15: Financial year inputs
E16: First modelling column financial year# | F16: 2019 | G16: year # | H16: Financial model start year
E17: Financial year end month number | F17: 3 | G17: month # | H17: Month of financial year end for financial model
C19: Timeline labels
E20: Pre - forecast period | F20: Pre-Fcst | G20: label
E21: Forecast period | F21: Forecast | G21: label
E22: Post - forecast period | F22: Post-Fcst | G22: label
B24: Project dates
E26: Base financial year | F26: 2017-18 | G26: year
E27: AMP duration | F27: 5 | G27: years
E28: Forecast start date | F28: 2020-04-01 | G28: date
E29: Forecast duration | F29: 10 | G29: years
E30: AMP duration (text) | F30: =YEAR(F28) + 1 & "-" & TEXT(DATE(YEAR(F28) + F27, 1, 1), "yy") -> 2021-25 | G30: years #
E31: Forecast duration (text) | F31: =YEAR(F28) + 1 & "-" & TEXT(DATE(YEAR(F28) + F29, 1, 1), "yy") -> 2021-30 | G31: years #
A34: NON CHANGEABLE MODEL TECHNICAL INPUTS
E36: Months per model period | F36: 12 | G36: months
E38: Months in a year | F38: 12 | G38: months
E40: Days in a year | F40: 365 | G40: days
E42: Thousands in a million | F42: 1000 | G42: thousand
E44: Units in a million | F44: 1000000 | G44: unit
B46: Model tolerance
E48: Model check tolerance level | F48: 1e-06 | G48: tolerance
A52: OTHER MODEL INPUTS
E54: Diversions costs - water - NRSWA; unrecoverable assumption | F54: 0.18 | G54: %
E56: Diversions costs - wastewater - NRSWA; unrecoverable assumption | F56: 0.18 | G56: %
A58: Business Plan Data Inputs and Developer Services Data Request
B60: Developer Services Data Request - Resubmitted App28
D61: ='F_Inputs (combined)'!B56 -> APP28RR_W00036 | E61: ='F_Inputs (combined)'!C56 -> App 28 data (£m) Infrastructure charge receipts (s146) | G61: £m | H61: =SUM(J61:U61) -> -7.558158331 | L61: ='F_Inputs (combined)'!F56 -> -2.051731722 | M61: ='F_Inputs (combined)'!G56 -> -1.234475556 | N61: ='F_Inputs (combined)'!H56 -> -0.6785387203 | O61: ='F_Inputs (combined)'!I56 -> -1.820371914 | P61: ='F_Inputs (combined)'!J56 -> -1.773040418 | Q61: ='F_Inputs (combined)'!K56 -> 0 | R61: ='F_Inputs (combined)'!L56 -> 0 | S61: ='F_Inputs (combined)'!M56 -> 0 | T61: ='F_Inputs (combined)'!N56 -> 0 | U61: ='F_Inputs (combined)'!O56 -> 0
D62: ='F_Inputs (combined)'!B57 -> APP28RR_W00037 | E62: ='F_Inputs (combined)'!C57 -> App 28 data (£m) Requisitioned mains (s43, s55 & s56) | G62: £m | H62: 16.54969398 | L62: ='F_Inputs (combined)'!F57 -> 3.321937588 | M62: ='F_Inputs (combined)'!G57 -> 3.316121934 | N62: ='F_Inputs (combined)'!H57 -> 3.302045643 | O62: ='F_Inputs (combined)'!I57 -> 3.306907471 | P62: ='F_Inputs (combined)'!J57 -> 3.302681346 | Q62: ='F_Inputs (combined)'!K57 -> 0 | R62: ='F_Inputs (combined)'!L57 -> 0 | S62: ='F_Inputs (combined)'!M57 -> 0 | T62: ='F_Inputs (combined)'!N57 -> 0 | U62: ='F_Inputs (combined)'!O57 -> 0
D63: ='F_Inputs (combined)'!B58 -> APP28RR_W00038 | E63: ='F_Inputs (combined)'!C58 -> App 28 data (£m) Total value of income offset allowances | G63: £m | H63: 18.06063613 | L63: ='F_Inputs (combined)'!F58 -> 3.612149602 | M63: ='F_Inputs (combined)'!G58 -> 3.611873234 | N63: ='F_Inputs (combined)'!H58 -> 3.6121702 | O63: ='F_Inputs (combined)'!I58 -> 3.612237457 | P63: ='F_Inputs (combined)'!J58 -> 3.61220564 | Q63: ='F_Inputs (combined)'!K58 -> 0 | R63: ='F_Inputs (combined)'!L58 -> 0 | S63: ='F_Inputs (combined)'!M58 -> 0 | T63: ='F_Inputs (combined)'!N58 -> 0 | U63: ='F_Inputs (combined)'!O58 -> 0
D64: ='F_Inputs (combined)'!B59 -> APP28RR_WW00036 | E64: ='F_Inputs (combined)'!C59 -> App 28 data (£m) Infrastructure charge receipts (s146) | G64: £m | H64: 0 | L64: ='F_Inputs (combined)'!F59 -> 0 | M64: ='F_Inputs (combined)'!G59 -> 0 | N64: ='F_Inputs (combined)'!H59 -> 0 | O64: ='F_Inputs (combined)'!I59 -> 0 | P64: ='F_Inputs (combined)'!J59 -> 0 | Q64: ='F_Inputs (combined)'!K59 -> 0 | R64: ='F_Inputs (combined)'!L59 -> 0 | S64: ='F_Inputs (combined)'!M59 -> 0 | T64: ='F_Inputs (combined)'!N59 -> 0 | U64: ='F_Inputs (combined)'!O59 -> 0
D65: ='F_Inputs (combined)'!B60 -> APP28RR_WW00037 | E65: ='F_Inputs (combined)'!C60 -> App 28 data (£m) Requisitioned sewers (s100) | G65: £m | H65: 0 | L65: ='F_Inputs (combined)'!F60 -> 0 | M65: ='F_Inputs (combined)'!G60 -> 0 | N65: ='F_Inputs (combined)'!H60 -> 0 | O65: ='F_Inputs (combined)'!I60 -> 0 | P65: ='F_Inputs (combined)'!J60 -> 0 | Q65: ='F_Inputs (combined)'!K60 -> 0 | R65: ='F_Inputs (combined)'!L60 -> 0 | S65: ='F_Inputs (combined)'!M60 -> 0 | T65: ='F_Inputs (combined)'!N60 -> 0 | U65: ='F_Inputs (combined)'!O60 -> 0
D66: ='F_Inputs (combined)'!B61 -> APP28RR_WW00038 | E66: ='F_Inputs (combined)'!C61 -> App 28 data (£m) Total value of income offset allowances | G66: £m | H66: 0 | L66: ='F_Inputs (combined)'!F61 -> 0 | M66: ='F_Inputs (combined)'!G61 -> 0 | N66: ='F_Inputs (combined)'!H61 -> 0 | O66: ='F_Inputs (combined)'!I61 -> 0 | P66: ='F_Inputs (combined)'!J61 -> 0 | Q66: ='F_Inputs (combined)'!K61 -> 0 | R66: ='F_Inputs (combined)'!L61 -> 0 | S66: ='F_Inputs (combined)'!M61 -> 0 | T66: ='F_Inputs (combined)'!N61 -> 0 | U66: ='F_Inputs (combined)'!O61 -> 0
B68: Developer Services Data Request - Diversions Expenditure
D69: ='F_Inputs (combined)'!B43 -> APP28RR_W0002 | E69: ='F_Inputs (combined)'!C43 -> Diversions expenditure - water NRSWA | G69: £m | H69: =SUM(J69:U69) -> 2.624822561 | L69: ='F_Inputs (combined)'!F43 -> 0.5077858751 | M69: ='F_Inputs (combined)'!G43 -> 0.5077858751 | N69: ='F_Inputs (combined)'!H43 -> 0.5189246959 | O69: ='F_Inputs (combined)'!I43 -> 0.5451630575 | P69: ='F_Inputs (combined)'!J43 -> 0.5451630575 | Q69: ='F_Inputs (combined)'!K43 -> 0 | R69: ='F_Inputs (combined)'!L43 -> 0 | S69: ='F_Inputs (combined)'!M43 -> 0 | T69: ='F_Inputs (combined)'!N43 -> 0 | U69: ='F_Inputs (combined)'!O43 -> 0
D70: ='F_Inputs (combined)'!B44 -> APP28RR_W0003 | E70: ='F_Inputs (combined)'!C44 -> Diversions expenditure - water Other non-s185 | G70: £m | H70: 0 | L70: ='F_Inputs (combined)'!F44 -> 0 | M70: ='F_Inputs (combined)'!G44 -> 0 | N70: ='F_Inputs (combined)'!H44 -> 0 | O70: ='F_Inputs (combined)'!I44 -> 0 | P70: ='F_Inputs (combined)'!J44 -> 0 | Q70: ='F_Inputs (combined)'!K44 -> 0 | R70: ='F_Inputs (combined)'!L44 -> 0 | S70: ='F_Inputs (combined)'!M44 -> 0 | T70: ='F_Inputs (combined)'!N44 -> 0 | U70: ='F_Inputs (combined)'!O44 -> 0
D71: ='F_Inputs (combined)'!B46 -> APP28RR_WW0002 | E71: ='F_Inputs (combined)'!C46 -> Diversions expenditure - wastewater NRSWA | G71: £m | H71: 0 | L71: ='F_Inputs (combined)'!F46 -> 0 | M71: ='F_Inputs (combined)'!G46 -> 0 | N71: ='F_Inputs (combined)'!H46 -> 0 | O71: ='F_Inputs (combined)'!I46 -> 0 | P71: ='F_Inputs (combined)'!J46 -> 0 | Q71: ='F_Inputs (combined)'!K46 -> 0 | R71: ='F_Inputs (combined)'!L46 -> 0 | S71: ='F_Inputs (combined)'!M46 -> 0 | T71: ='F_Inputs (combined)'!N46 -> 0 | U71: ='F_Inputs (combined)'!O46 -> 0
D72: ='F_Inputs (combined)'!B47 -> APP28RR_WW0003 | E72: ='F_Inputs (combined)'!C47 -> Diversions expenditure - wastewater Other non-s185 | G72: £m | H72: 0 | L72: ='F_Inputs (combined)'!F47 -> 0 | M72: ='F_Inputs (combined)'!G47 -> 0 | N72: ='F_Inputs (combined)'!H47 -> 0 | O72: ='F_Inputs (combined)'!I47 -> 0 | P72: ='F_Inputs (combined)'!J47 -> 0 | Q72: ='F_Inputs (combined)'!K47 -> 0 | R72: ='F_Inputs (combined)'!L47 -> 0 | S72: ='F_Inputs (combined)'!M47 -> 0 | T72: ='F_Inputs (combined)'!N47 -> 0 | U72: ='F_Inputs (combined)'!O47 -> 0
B74: Developer Services Data Request - Diversions Income
D75: ='F_Inputs (combined)'!B36 -> APP28RR_W0005 | E75: ='F_Inputs (combined)'!C36 -> Diversions income - water s185 | G75: £m | H75: =SUM(J75:U75) -> 2.255838275 | L75: ='F_Inputs (combined)'!F36 -> 0.451 | M75: ='F_Inputs (combined)'!G36 -> 0.451 | N75: ='F_Inputs (combined)'!H36 -> 0.451 | O75: ='F_Inputs (combined)'!I36 -> 0.4514191377 | P75: ='F_Inputs (combined)'!J36 -> 0.4514191377 | Q75: ='F_Inputs (combined)'!K36 -> 0 | R75: ='F_Inputs (combined)'!L36 -> 0 | S75: ='F_Inputs (combined)'!M36 -> 0 | T75: ='F_Inputs (combined)'!N36 -> 0 | U75: ='F_Inputs (combined)'!O36 -> 0
D76: ='F_Inputs (combined)'!B37 -> APP28RR_W0006 | E76: ='F_Inputs (combined)'!C37 -> Diversions income - water NRSWA | G76: £m | H76: 2.305465195 | L76: ='F_Inputs (combined)'!F37 -> 0.461 | M76: ='F_Inputs (combined)'!G37 -> 0.461 | N76: ='F_Inputs (combined)'!H37 -> 0.461 | O76: ='F_Inputs (combined)'!I37 -> 0.4612325973 | P76: ='F_Inputs (combined)'!J37 -> 0.4612325973 | Q76: ='F_Inputs (combined)'!K37 -> 0 | R76: ='F_Inputs (combined)'!L37 -> 0 | S76: ='F_Inputs (combined)'!M37 -> 0 | T76: ='F_Inputs (combined)'!N37 -> 0 | U76: ='F_Inputs (combined)'!O37 -> 0
D77: ='F_Inputs (combined)'!B38 -> APP28RR_W0007 | E77: ='F_Inputs (combined)'!C38 -> Diversions income - water Other non-s185 | G77: £m | H77: 0 | L77: ='F_Inputs (combined)'!F38 -> 0 | M77: ='F_Inputs (combined)'!G38 -> 0 | N77: ='F_Inputs (combined)'!H38 -> 0 | O77: ='F_Inputs (combined)'!I38 -> 0 | P77: ='F_Inputs (combined)'!J38 -> 0 | Q77: ='F_Inputs (combined)'!K38 -> 0 | R77: ='F_Inputs (combined)'!L38 -> 0 | S77: ='F_Inputs (combined)'!M38 -> 0 | T77: ='F_Inputs (combined)'!N38 -> 0 | U77: ='F_Inputs (combined)'!O38 -> 0
D78: ='F_Inputs (combined)'!B39 -> APP28RR_WW0005 | E78: ='F_Inputs (combined)'!C39 -> Diversions income - wastewater s185 | G78: £m | H78: 0 | L78: ='F_Inputs (combined)'!F39 -> 0 | M78: ='F_Inputs (combined)'!G39 -> 0 | N78: ='F_Inputs (combined)'!H39 -> 0 | O78: ='F_Inputs (combined)'!I39 -> 0 | P78: ='F_Inputs (combined)'!J39 -> 0 | Q78: ='F_Inputs (combined)'!K39 -> 0 | R78: ='F_Inputs (combined)'!L39 -> 0 | S78: ='F_Inputs (combined)'!M39 -> 0 | T78: ='F_Inputs (combined)'!N39 -> 0 | U78: ='F_Inputs (combined)'!O39 -> 0
D79: ='F_Inputs (combined)'!B40 -> APP28RR_WW0006 | E79: ='F_Inputs (combined)'!C40 -> Diversions income - wastewater NRSWA | G79: £m | H79: 0 | L79: ='F_Inputs (combined)'!F40 -> 0 | M79: ='F_Inputs (combined)'!G40 -> 0 | N79: ='F_Inputs (combined)'!H40 -> 0 | O79: ='F_Inputs (combined)'!I40 -> 0 | P79: ='F_Inputs (combined)'!J40 -> 0 | Q79: ='F_Inputs (combined)'!K40 -> 0 | R79: ='F_Inputs (combined)'!L40 -> 0 | S79: ='F_Inputs (combined)'!M40 -> 0 | T79: ='F_Inputs (combined)'!N40 -> 0 | U79: ='F_Inputs (combined)'!O40 -> 0
D80: ='F_Inputs (combined)'!B41 -> APP28RR_WW0007 | E80: ='F_Inputs (combined)'!C41 -> Diversions income - wastewater Other non-s185 | G80: £m | H80: 0 | L80: ='F_Inputs (combined)'!F41 -> 0 | M80: ='F_Inputs (combined)'!G41 -> 0 | N80: ='F_Inputs (combined)'!H41 -> 0 | O80: ='F_Inputs (combined)'!I41 -> 0 | P80: ='F_Inputs (combined)'!J41 -> 0 | Q80: ='F_Inputs (combined)'!K41 -> 0 | R80: ='F_Inputs (combined)'!L41 -> 0 | S80: ='F_Inputs (combined)'!M41 -> 0 | T80: ='F_Inputs (combined)'!N41 -> 0 | U80: ='F_Inputs (combined)'!O41 -> 0
B82: Developer Services Data Request - Properties volume data
D83: ='F_Inputs (combined)'!B48 -> APP28RR_W00018 | E83: ='F_Inputs (combined)'!C48 -> Properties volume data - water New properties (residential) | G83: number | H83: =SUM(J83:U83) -> 29304 | L83: ='F_Inputs (combined)'!F48 -> 5890 | M83: ='F_Inputs (combined)'!G48 -> 5873 | N83: ='F_Inputs (combined)'!H48 -> 5857 | O83: ='F_Inputs (combined)'!I48 -> 5847 | P83: ='F_Inputs (combined)'!J48 -> 5837 | Q83: ='F_Inputs (combined)'!K48 -> 0 | R83: ='F_Inputs (combined)'!L48 -> 0 | S83: ='F_Inputs (combined)'!M48 -> 0 | T83: ='F_Inputs (combined)'!N48 -> 0 | U83: ='F_Inputs (combined)'!O48 -> 0
D84: ='F_Inputs (combined)'!B49 -> APP28RR_W00019 | E84: ='F_Inputs (combined)'!C49 -> Properties volume data - water New properties (business) | G84: number | H84: =SUM(J84:U84) -> 1642 | L84: ='F_Inputs (combined)'!F49 -> 300 | M84: ='F_Inputs (combined)'!G49 -> 317 | N84: ='F_Inputs (combined)'!H49 -> 332 | O84: ='F_Inputs (combined)'!I49 -> 342 | P84: ='F_Inputs (combined)'!J49 -> 351 | Q84: ='F_Inputs (combined)'!K49 -> 0 | R84: ='F_Inputs (combined)'!L49 -> 0 | S84: ='F_Inputs (combined)'!M49 -> 0 | T84: ='F_Inputs (combined)'!N49 -> 0 | U84: ='F_Inputs (combined)'!O49 -> 0
D85: ='F_Inputs (combined)'!B50 -> APP28RR_W00021 | E85: ='F_Inputs (combined)'!C50 -> Properties volume data - water New properties on NAV sites (residential) | G85: number | H85: 0 | L85: ='F_Inputs (combined)'!F50 -> 0 | M85: ='F_Inputs (combined)'!G50 -> 0 | N85: ='F_Inputs (combined)'!H50 -> 0 | O85: ='F_Inputs (combined)'!I50 -> 0 | P85: ='F_Inputs (combined)'!J50 -> 0 | Q85: ='F_Inputs (combined)'!K50 -> 0 | R85: ='F_Inputs (combined)'!L50 -> 0 | S85: ='F_Inputs (combined)'!M50 -> 0 | T85: ='F_Inputs (combined)'!N50 -> 0 | U85: ='F_Inputs (combined)'!O50 -> 0
D86: ='F_Inputs (combined)'!B51 -> APP28RR_W00022 | E86: ='F_Inputs (combined)'!C51 -> Properties volume data - water New properties on NAV sites (business) | G86: number | H86: =SUM(J86:U86) -> 0 | L86: ='F_Inputs (combined)'!F51 -> 0 | M86: ='F_Inputs (combined)'!G51 -> 0 | N86: ='F_Inputs (combined)'!H51 -> 0 | O86: ='F_Inputs (combined)'!I51 -> 0 | P86: ='F_Inputs (combined)'!J51 -> 0 | Q86: ='F_Inputs (combined)'!K51 -> 0 | R86: ='F_Inputs (combined)'!L51 -> 0 | S86: ='F_Inputs (combined)'!M51 -> 0 | T86: ='F_Inputs (combined)'!N51 -> 0 | U86: ='F_Inputs (combined)'!O51 -> 0
D87: ='F_Inputs (combined)'!B52 -> APP28RR_WW00018 | E87: ='F_Inputs (combined)'!C52 -> Properties volume data - wastewater New properties (residential) | G87: number | H87: 0 | L87: ='F_Inputs (combined)'!F52 -> 0 | M87: ='F_Inputs (combined)'!G52 -> 0 | N87: ='F_Inputs (combined)'!H52 -> 0 | O87: ='F_Inputs (combined)'!I52 -> 0 | P87: ='F_Inputs (combined)'!J52 -> 0 | Q87: ='F_Inputs (combined)'!K52 -> 0 | R87: ='F_Inputs (combined)'!L52 -> 0 | S87: ='F_Inputs (combined)'!M52 -> 0 | T87: ='F_Inputs (combined)'!N52 -> 0 | U87: ='F_Inputs (combined)'!O52 -> 0
D88: ='F_Inputs (combined)'!B53 -> APP28RR_WW00019 | E88: ='F_Inputs (combined)'!C53 -> Properties volume data - wastewater New properties (business) | G88: number | H88: 0 | L88: ='F_Inputs (combined)'!F53 -> 0 | M88: ='F_Inputs (combined)'!G53 -> 0 | N88: ='F_Inputs (combined)'!H53 -> 0 | O88: ='F_Inputs (combined)'!I53 -> 0 | P88: ='F_Inputs (combined)'!J53 -> 0 | Q88: ='F_Inputs (combined)'!K53 -> 0 | R88: ='F_Inputs (combined)'!L53 -> 0 | S88: ='F_Inputs (combined)'!M53 -> 0 | T88: ='F_Inputs (combined)'!N53 -> 0 | U88: ='F_Inputs (combined)'!O53 -> 0
D89: ='F_Inputs (combined)'!B54 -> APP28RR_WW00021 | E89: ='F_Inputs (combined)'!C54 -> Properties volume data - wastewater New properties on NAV sites (residential) | G89: number | H89: 0 | L89: ='F_Inputs (combined)'!F54 -> 0 | M89: ='F_Inputs (combined)'!G54 -> 0 | N89: ='F_Inputs (combined)'!H54 -> 0 | O89: ='F_Inputs (combined)'!I54 -> 0 | P89: ='F_Inputs (combined)'!J54 -> 0 | Q89: ='F_Inputs (combined)'!K54 -> 0 | R89: ='F_Inputs (combined)'!L54 -> 0 | S89: ='F_Inputs (combined)'!M54 -> 0 | T89: ='F_Inputs (combined)'!N54 -> 0 | U89: ='F_Inputs (combined)'!O54 -> 0
D90: ='F_Inputs (combined)'!B55 -> APP28RR_WW00022 | E90: ='F_Inputs (combined)'!C55 -> Properties volume data - wastewater New properties on NAV sites (business) | G90: number | H90: =SUM(J90:U90) -> 0 | L90: ='F_Inputs (combined)'!F55 -> 0 | M90: ='F_Inputs (combined)'!G55 -> 0 | N90: ='F_Inputs (combined)'!H55 -> 0 | O90: ='F_Inputs (combined)'!I55 -> 0 | P90: ='F_Inputs (combined)'!J55 -> 0 | Q90: ='F_Inputs (combined)'!K55 -> 0 | R90: ='F_Inputs (combined)'!L55 -> 0 | S90: ='F_Inputs (combined)'!M55 -> 0 | T90: ='F_Inputs (combined)'!N55 -> 0 | U90: ='F_Inputs (combined)'!O55 -> 0
B92: Grants & Contributions - Water (App28)
D93: ='F_Inputs (combined)'!B$9 -> BC11271IN | E93: ='F_Inputs (combined)'!C$9 -> Connection charges (s45) | G93: £m | H93: =SUM(J93:U93) -> 17.05110479 | L93: ='F_Inputs (combined)'!F$9 -> 3.42258328 | M93: ='F_Inputs (combined)'!G$9 -> 3.416591427 | N93: ='F_Inputs (combined)'!H$9 -> 3.402088663 | O93: ='F_Inputs (combined)'!I$9 -> 3.407097791 | P93: ='F_Inputs (combined)'!J$9 -> 3.402743626 | Q93: ='F_Inputs (combined)'!K$9 -> 0 | R93: ='F_Inputs (combined)'!L$9 -> 0 | S93: ='F_Inputs (combined)'!M$9 -> 0 | T93: ='F_Inputs (combined)'!N$9 -> 0 | U93: ='F_Inputs (combined)'!O$9 -> 0
D94: ='F_Inputs (combined)'!B$10 -> APP280036 | E94: ='F_Inputs (combined)'!C$10 -> Activity forecasts ~ wholesale water service - Total number of new residential connections | G94: 000's | H94: 38.80893273 | L94: ='F_Inputs (combined)'!F$10 -> 8.502704482 | M94: ='F_Inputs (combined)'!G$10 -> 8.031368253 | N94: ='F_Inputs (combined)'!H$10 -> 7.64668554 | O94: ='F_Inputs (combined)'!I$10 -> 7.413547899 | P94: ='F_Inputs (combined)'!J$10 -> 7.214626559 | Q94: ='F_Inputs (combined)'!K$10 -> 0 | R94: ='F_Inputs (combined)'!L$10 -> 0 | S94: ='F_Inputs (combined)'!M$10 -> 0 | T94: ='F_Inputs (combined)'!N$10 -> 0 | U94: ='F_Inputs (combined)'!O$10 -> 0
D95: ='F_Inputs (combined)'!B$11 -> APP280037 | E95: ='F_Inputs (combined)'!C$11 -> Activity forecasts ~ wholesale water service - Total number of new business connections | G95: 000's | H95: =SUM(J95:U95) -> 2.240054611 | L95: ='F_Inputs (combined)'!F$11 -> 0.4480109222 | M95: ='F_Inputs (combined)'!G$11 -> 0.4480109222 | N95: ='F_Inputs (combined)'!H$11 -> 0.4480109222 | O95: ='F_Inputs (combined)'!I$11 -> 0.4480109222 | P95: ='F_Inputs (combined)'!J$11 -> 0.4480109222 | Q95: ='F_Inputs (combined)'!K$11 -> 0 | R95: ='F_Inputs (combined)'!L$11 -> 0 | S95: ='F_Inputs (combined)'!M$11 -> 0 | T95: ='F_Inputs (combined)'!N$11 -> 0 | U95: ='F_Inputs (combined)'!O$11 -> 0
D96: =InpOverride!D$34 -> APP28RR_W0005 overridden | E96: =InpOverride!E$34 -> Diversions income - water s185 - post override | F96: =InpOverride!F$34 -> 0 | G96: =InpOverride!G$34 -> £m | H96: =InpOverride!H$34 -> 2.255838275 | I96: =InpOverride!I$34 -> 0 | J96: =InpOverride!J$34 -> 0 | K96: =InpOverride!K$34 -> 0 | L96: =InpOverride!L$34 -> 0.451 | M96: =InpOverride!M$34 -> 0.451 | N96: =InpOverride!N$34 -> 0.451 | O96: =InpOverride!O$34 -> 0.4514191377 | P96: =InpOverride!P$34 -> 0.4514191377 | Q96: =InpOverride!Q$34 -> 0 | R96: =InpOverride!R$34 -> 0 | S96: =InpOverride!S$34 -> 0 | T96: =InpOverride!T$34 -> 0 | U96: =InpOverride!U$34 -> 0
D97: =InpOverride!D$38 -> APP28RR_W0006 overridden | E97: =InpOverride!E$38 -> Diversions income - water NRSWA - post override | F97: =InpOverride!F$38 -> 0 | G97: =InpOverride!G$38 -> £m | H97: =InpOverride!H$38 -> 2.305465195 | I97: =InpOverride!I$38 -> 0 | J97: =InpOverride!J$38 -> 0 | K97: =InpOverride!K$38 -> 0 | L97: =InpOverride!L$38 -> 0.461 | M97: =InpOverride!M$38 -> 0.461 | N97: =InpOverride!N$38 -> 0.461 | O97: =InpOverride!O$38 -> 0.4612325973 | P97: =InpOverride!P$38 -> 0.4612325973 | Q97: =InpOverride!Q$38 -> 0 | R97: =InpOverride!R$38 -> 0 | S97: =InpOverride!S$38 -> 0 | T97: =InpOverride!T$38 -> 0 | U97: =InpOverride!U$38 -> 0
D98: =InpOverride!D$42 -> APP28RR_W0007 overridden | E98: =InpOverride!E$42 -> Diversions income - water Other non-s185 - post override | F98: =InpOverride!F$42 -> 0 | G98: =InpOverride!G$42 -> £m | H98: =InpOverride!H$42 -> 0 | I98: =InpOverride!I$42 -> 0 | J98: =InpOverride!J$42 -> 0 | K98: =InpOverride!K$42 -> 0 | L98: =InpOverride!L$42 -> 0 | M98: =InpOverride!M$42 -> 0 | N98: =InpOverride!N$42 -> 0 | O98: =InpOverride!O$42 -> 0 | P98: =InpOverride!P$42 -> 0 | Q98: =InpOverride!Q$42 -> 0 | R98: =InpOverride!R$42 -> 0 | S98: =InpOverride!S$42 -> 0 | T98: =InpOverride!T$42 -> 0 | U98: =InpOverride!U$42 -> 0
D99: =InpOverride!D$60 -> BA1086PC overridden | E99: =InpOverride!E$60 -> G&C received - water - other contributions (price control) - post-override | F99: =InpOverride!F$60 -> 0 | G99: =InpOverride!G$60 -> £m | H99: =InpOverride!H$60 -> 0 | I99: =InpOverride!I$60 -> 0 | J99: =InpOverride!J$60 -> 0 | K99: =InpOverride!K$60 -> 0 | L99: =InpOverride!L$60 -> 0 | M99: =InpOverride!M$60 -> 0 | N99: =InpOverride!N$60 -> 0 | O99: =InpOverride!O$60 -> 0 | P99: =InpOverride!P$60 -> 0 | Q99: =InpOverride!Q$60 -> 0 | R99: =InpOverride!R$60 -> 0 | S99: =InpOverride!S$60 -> 0 | T99: =InpOverride!T$60 -> 0 | U99: =InpOverride!U$60 -> 0
D100: =InpOverride!D64 -> BA1086NPC overridden | E100: =InpOverride!E64 -> G&C received - water - other contributions (non-price control) - post-override | F100: =InpOverride!F64 -> 0 | G100: =InpOverride!G64 -> £m | H100: =InpOverride!H64 -> 13.61948965 | I100: =InpOverride!I64 -> 0 | J100: =InpOverride!J64 -> 0 | K100: =InpOverride!K64 -> 0 | L100: =InpOverride!L64 -> 4.466892155 | M100: =InpOverride!M64 -> 3.899892155 | N100: =InpOverride!N64 -> 3.89887448 | O100: =InpOverride!O64 -> 0.6769154301 | P100: =InpOverride!P64 -> 0.6769154301 | Q100: =InpOverride!Q64 -> 0 | R100: =InpOverride!R64 -> 0 | S100: =InpOverride!S64 -> 0 | T100: =InpOverride!T64 -> 0 | U100: =InpOverride!U64 -> 0
B102: Grants & Contributions - Wastewater (App28)
D103: ='F_Inputs (combined)'!B$12 -> APP280038 | E103: ='F_Inputs (combined)'!C$12 -> Activity forecasts ~ wholesale wastewater service - Residential properties connected during the year | G103: 000's | H103: =SUM(J103:U103) -> 0 | L103: ='F_Inputs (combined)'!F$12 -> 0 | M103: ='F_Inputs (combined)'!G$12 -> 0 | N103: ='F_Inputs (combined)'!H$12 -> 0 | O103: ='F_Inputs (combined)'!I$12 -> 0 | P103: ='F_Inputs (combined)'!J$12 -> 0 | Q103: ='F_Inputs (combined)'!K$12 -> 0 | R103: ='F_Inputs (combined)'!L$12 -> 0 | S103: ='F_Inputs (combined)'!M$12 -> 0 | T103: ='F_Inputs (combined)'!N$12 -> 0 | U103: ='F_Inputs (combined)'!O$12 -> 0
D104: ='F_Inputs (combined)'!B$13 -> APP280039 | E104: ='F_Inputs (combined)'!C$13 -> Activity forecasts ~ wholesale wastewater service - Business properties connected during the year | G104: £m | H104: 0 | L104: ='F_Inputs (combined)'!F$13 -> 0 | M104: ='F_Inputs (combined)'!G$13 -> 0 | N104: ='F_Inputs (combined)'!H$13 -> 0 | O104: ='F_Inputs (combined)'!I$13 -> 0 | P104: ='F_Inputs (combined)'!J$13 -> 0 | Q104: ='F_Inputs (combined)'!K$13 -> 0 | R104: ='F_Inputs (combined)'!L$13 -> 0 | S104: ='F_Inputs (combined)'!M$13 -> 0 | T104: ='F_Inputs (combined)'!N$13 -> 0 | U104: ='F_Inputs (combined)'!O$13 -> 0
D105: =InpOverride!D$46 -> APP28RR_WW0005 overridden | E105: =InpOverride!E$46 -> Diversions income - wastewater s185 - post override | F105: =InpOverride!F$46 -> 0 | G105: =InpOverride!G$46 -> £m | H105: =InpOverride!H$46 -> 0 | I105: =InpOverride!I$46 -> 0 | J105: =InpOverride!J$46 -> 0 | K105: =InpOverride!K$46 -> 0 | L105: =InpOverride!L$46 -> 0 | M105: =InpOverride!M$46 -> 0 | N105: =InpOverride!N$46 -> 0 | O105: =InpOverride!O$46 -> 0 | P105: =InpOverride!P$46 -> 0 | Q105: =InpOverride!Q$46 -> 0 | R105: =InpOverride!R$46 -> 0 | S105: =InpOverride!S$46 -> 0 | T105: =InpOverride!T$46 -> 0 | U105: =InpOverride!U$46 -> 0
D106: =InpOverride!D$50 -> APP28RR_WW0006 overridden | E106: =InpOverride!E$50 -> Diversions income - wastewater NRSWA - post override | F106: =InpOverride!F$50 -> 0 | G106: =InpOverride!G$50 -> £m | H106: =InpOverride!H$50 -> 0 | I106: =InpOverride!I$50 -> 0 | J106: =InpOverride!J$50 -> 0 | K106: =InpOverride!K$50 -> 0 | L106: =InpOverride!L$50 -> 0 | M106: =InpOverride!M$50 -> 0 | N106: =InpOverride!N$50 -> 0 | O106: =InpOverride!O$50 -> 0 | P106: =InpOverride!P$50 -> 0 | Q106: =InpOverride!Q$50 -> 0 | R106: =InpOverride!R$50 -> 0 | S106: =InpOverride!S$50 -> 0 | T106: =InpOverride!T$50 -> 0 | U106: =InpOverride!U$50 -> 0
D107: =InpOverride!D54 -> APP28RR_WW0007 overridden | E107: =InpOverride!E54 -> Diversions income - wastewater Other non-s185 - post override | F107: =InpOverride!F54 -> 0 | G107: =InpOverride!G54 -> £m | H107: =InpOverride!H54 -> 0 | I107: =InpOverride!I54 -> 0 | J107: =InpOverride!J54 -> 0 | K107: =InpOverride!K54 -> 0 | L107: =InpOverride!L54 -> 0 | M107: =InpOverride!M54 -> 0 | N107: =InpOverride!N54 -> 0 | O107: =InpOverride!O54 -> 0 | P107: =InpOverride!P54 -> 0 | Q107: =InpOverride!Q54 -> 0 | R107: =InpOverride!R54 -> 0 | S107: =InpOverride!S54 -> 0 | T107: =InpOverride!T54 -> 0 | U107: =InpOverride!U54 -> 0
D108: =InpOverride!D68 -> BA2086PC overridden | E108: =InpOverride!E68 -> G&C received - wastewater - other contributions (price control) - post-override | F108: =InpOverride!F68 -> 0 | G108: =InpOverride!G68 -> £m | H108: =InpOverride!H68 -> 0 | I108: =InpOverride!I68 -> 0 | J108: =InpOverride!J68 -> 0 | K108: =InpOverride!K68 -> 0 | L108: =InpOverride!L68 -> 0 | M108: =InpOverride!M68 -> 0 | N108: =InpOverride!N68 -> 0 | O108: =InpOverride!O68 -> 0 | P108: =InpOverride!P68 -> 0 | Q108: =InpOverride!Q68 -> 0 | R108: =InpOverride!R68 -> 0 | S108: =InpOverride!S68 -> 0 | T108: =InpOverride!T68 -> 0 | U108: =InpOverride!U68 -> 0
D109: =InpOverride!D72 -> BA2086NPC overridden | E109: =InpOverride!E72 -> G&C received - wastewater - other contributions (non-price control) - post-override | F109: =InpOverride!F72 -> 0 | G109: =InpOverride!G72 -> £m | H109: =InpOverride!H72 -> 0 | I109: =InpOverride!I72 -> 0 | J109: =InpOverride!J72 -> 0 | K109: =InpOverride!K72 -> 0 | L109: =InpOverride!L72 -> 0 | M109: =InpOverride!M72 -> 0 | N109: =InpOverride!N72 -> 0 | O109: =InpOverride!O72 -> 0 | P109: =InpOverride!P72 -> 0 | Q109: =InpOverride!Q72 -> 0 | R109: =InpOverride!R72 -> 0 | S109: =InpOverride!S72 -> 0 | T109: =InpOverride!T72 -> 0 | U109: =InpOverride!U72 -> 0
B111: Grants & Contributions - Water Network (Wn3)
D112: ='F_Inputs (combined)'!B$18 -> A19052WN | E112: ='F_Inputs (combined)'!C$18 -> Water network operating expenditure grants and contributions (price control) | G112: £m | H112: =SUM(J112:U112) -> 2.255838275 | L112: ='F_Inputs (combined)'!F$18 -> 0.451 | M112: ='F_Inputs (combined)'!G$18 -> 0.451 | N112: ='F_Inputs (combined)'!H$18 -> 0.451 | O112: ='F_Inputs (combined)'!I$18 -> 0.4514191377 | P112: ='F_Inputs (combined)'!J$18 -> 0.4514191377 | Q112: ='F_Inputs (combined)'!K$18 -> 0 | R112: ='F_Inputs (combined)'!L$18 -> 0 | S112: ='F_Inputs (combined)'!M$18 -> 0 | T112: ='F_Inputs (combined)'!N$18 -> 0 | U112: ='F_Inputs (combined)'!O$18 -> 0
D113: ='F_Inputs (combined)'!B$19 -> A19053WN | E113: ='F_Inputs (combined)'!C$19 -> Water network capital expenditure grants and contributions (price control) | G113: £m | H113: 26.04264044 | L113: ='F_Inputs (combined)'!F$19 -> 4.692789146 | M113: ='F_Inputs (combined)'!G$19 -> 5.498237805 | N113: ='F_Inputs (combined)'!H$19 -> 6.025595586 | O113: ='F_Inputs (combined)'!I$19 -> 4.893633347 | P113: ='F_Inputs (combined)'!J$19 -> 4.932384555 | Q113: ='F_Inputs (combined)'!K$19 -> 0 | R113: ='F_Inputs (combined)'!L$19 -> 0 | S113: ='F_Inputs (combined)'!M$19 -> 0 | T113: ='F_Inputs (combined)'!N$19 -> 0 | U113: ='F_Inputs (combined)'!O$19 -> 0
D114: ='F_Inputs (combined)'!B$20 -> A19054WN | E114: ='F_Inputs (combined)'!C$20 -> Water network operating expenditure grants and contributions (non-price control) | G114: £m | H114: 2.305 | L114: ='F_Inputs (combined)'!F$20 -> 0.461 | M114: ='F_Inputs (combined)'!G$20 -> 0.461 | N114: ='F_Inputs (combined)'!H$20 -> 0.461 | O114: ='F_Inputs (combined)'!I$20 -> 0.461 | P114: ='F_Inputs (combined)'!J$20 -> 0.461 | Q114: ='F_Inputs (combined)'!K$20 -> 0 | R114: ='F_Inputs (combined)'!L$20 -> 0 | S114: ='F_Inputs (combined)'!M$20 -> 0 | T114: ='F_Inputs (combined)'!N$20 -> 0 | U114: ='F_Inputs (combined)'!O$20 -> 0
D115: ='F_Inputs (combined)'!B$21 -> A19055WN | E115: ='F_Inputs (combined)'!C$21 -> Water network capital expenditure grants and contributions (non-price control) | G115: £m | H115: 10.74748965 | L115: ='F_Inputs (combined)'!F$21 -> 3.438892155 | M115: ='F_Inputs (combined)'!G$21 -> 3.438892155 | N115: ='F_Inputs (combined)'!H$21 -> 3.43787448 | O115: ='F_Inputs (combined)'!I$21 -> 0.2159154301 | P115: ='F_Inputs (combined)'!J$21 -> 0.2159154301 | Q115: ='F_Inputs (combined)'!K$21 -> 0 | R115: ='F_Inputs (combined)'!L$21 -> 0 | S115: ='F_Inputs (combined)'!M$21 -> 0 | T115: ='F_Inputs (combined)'!N$21 -> 0 | U115: ='F_Inputs (combined)'!O$21 -> 0
B117: Grants & Contributions - Water Resources (Wr3)
D118: ='F_Inputs (combined)'!B$14 -> A19048WR | E118: ='F_Inputs (combined)'!C$14 -> Water resources operating expenditure grants and contributions (price control) | G118: £m | H118: =SUM(J118:U118) -> 0 | L118: ='F_Inputs (combined)'!F$14 -> 0 | M118: ='F_Inputs (combined)'!G$14 -> 0 | N118: ='F_Inputs (combined)'!H$14 -> 0 | O118: ='F_Inputs (combined)'!I$14 -> 0 | P118: ='F_Inputs (combined)'!J$14 -> 0 | Q118: ='F_Inputs (combined)'!K$14 -> 0 | R118: ='F_Inputs (combined)'!L$14 -> 0 | S118: ='F_Inputs (combined)'!M$14 -> 0 | T118: ='F_Inputs (combined)'!N$14 -> 0 | U118: ='F_Inputs (combined)'!O$14 -> 0
D119: ='F_Inputs (combined)'!B$15 -> A19049WR | E119: ='F_Inputs (combined)'!C$15 -> Water resources capital expenditure grants and contributions (price control) | G119: £m | H119: 0 | L119: ='F_Inputs (combined)'!F$15 -> 0 | M119: ='F_Inputs (combined)'!G$15 -> 0 | N119: ='F_Inputs (combined)'!H$15 -> 0 | O119: ='F_Inputs (combined)'!I$15 -> 0 | P119: ='F_Inputs (combined)'!J$15 -> 0 | Q119: ='F_Inputs (combined)'!K$15 -> 0 | R119: ='F_Inputs (combined)'!L$15 -> 0 | S119: ='F_Inputs (combined)'!M$15 -> 0 | T119: ='F_Inputs (combined)'!N$15 -> 0 | U119: ='F_Inputs (combined)'!O$15 -> 0
D120: ='F_Inputs (combined)'!B$16 -> A19052WR | E120: ='F_Inputs (combined)'!C$16 -> Water resources operating expenditure grants and contributions (non-price control) | G120: £m | H120: 0 | L120: ='F_Inputs (combined)'!F$16 -> 0 | M120: ='F_Inputs (combined)'!G$16 -> 0 | N120: ='F_Inputs (combined)'!H$16 -> 0 | O120: ='F_Inputs (combined)'!I$16 -> 0 | P120: ='F_Inputs (combined)'!J$16 -> 0 | Q120: ='F_Inputs (combined)'!K$16 -> 0 | R120: ='F_Inputs (combined)'!L$16 -> 0 | S120: ='F_Inputs (combined)'!M$16 -> 0 | T120: ='F_Inputs (combined)'!N$16 -> 0 | U120: ='F_Inputs (combined)'!O$16 -> 0
D121: ='F_Inputs (combined)'!B$17 -> A19053WR | E121: ='F_Inputs (combined)'!C$17 -> Water resources capital expenditure grants and contributions (non-price control) | G121: £m | H121: 0.567 | L121: ='F_Inputs (combined)'!F$17 -> 0.567 | M121: ='F_Inputs (combined)'!G$17 -> 0 | N121: ='F_Inputs (combined)'!H$17 -> 0 | O121: ='F_Inputs (combined)'!I$17 -> 0 | P121: ='F_Inputs (combined)'!J$17 -> 0 | Q121: ='F_Inputs (combined)'!K$17 -> 0 | R121: ='F_Inputs (combined)'!L$17 -> 0 | S121: ='F_Inputs (combined)'!M$17 -> 0 | T121: ='F_Inputs (combined)'!N$17 -> 0 | U121: ='F_Inputs (combined)'!O$17 -> 0
B123: Grants & Contributions - Wastewater (WWn5)
D124: ='F_Inputs (combined)'!B$22 -> A19052WWN | E124: ='F_Inputs (combined)'!C$22 -> Wastewater network operating expenditure grants and contributions (price control) | G124: £m | H124: =SUM(J124:U124) -> 0 | L124: ='F_Inputs (combined)'!F$22 -> 0 | M124: ='F_Inputs (combined)'!G$22 -> 0 | N124: ='F_Inputs (combined)'!H$22 -> 0 | O124: ='F_Inputs (combined)'!I$22 -> 0 | P124: ='F_Inputs (combined)'!J$22 -> 0 | Q124: ='F_Inputs (combined)'!K$22 -> 0 | R124: ='F_Inputs (combined)'!L$22 -> 0 | S124: ='F_Inputs (combined)'!M$22 -> 0 | T124: ='F_Inputs (combined)'!N$22 -> 0 | U124: ='F_Inputs (combined)'!O$22 -> 0
D125: ='F_Inputs (combined)'!B$23 -> A19053WWN | E125: ='F_Inputs (combined)'!C$23 -> Wastewater network capital expenditure grants and contributions (price control) | G125: £m | H125: 0 | L125: ='F_Inputs (combined)'!F$23 -> 0 | M125: ='F_Inputs (combined)'!G$23 -> 0 | N125: ='F_Inputs (combined)'!H$23 -> 0 | O125: ='F_Inputs (combined)'!I$23 -> 0 | P125: ='F_Inputs (combined)'!J$23 -> 0 | Q125: ='F_Inputs (combined)'!K$23 -> 0 | R125: ='F_Inputs (combined)'!L$23 -> 0 | S125: ='F_Inputs (combined)'!M$23 -> 0 | T125: ='F_Inputs (combined)'!N$23 -> 0 | U125: ='F_Inputs (combined)'!O$23 -> 0
D126: ='F_Inputs (combined)'!B$24 -> A19054WWN | E126: ='F_Inputs (combined)'!C$24 -> Wastewater network operating expenditure grants and contributions (non-price control) | G126: £m | H126: 0 | L126: ='F_Inputs (combined)'!F$24 -> 0 | M126: ='F_Inputs (combined)'!G$24 -> 0 | N126: ='F_Inputs (combined)'!H$24 -> 0 | O126: ='F_Inputs (combined)'!I$24 -> 0 | P126: ='F_Inputs (combined)'!J$24 -> 0 | Q126: ='F_Inputs (combined)'!K$24 -> 0 | R126: ='F_Inputs (combined)'!L$24 -> 0 | S126: ='F_Inputs (combined)'!M$24 -> 0 | T126: ='F_Inputs (combined)'!N$24 -> 0 | U126: ='F_Inputs (combined)'!O$24 -> 0
D127: ='F_Inputs (combined)'!B$25 -> A19055WWN | E127: ='F_Inputs (combined)'!C$25 -> Wastewater network capital expenditure grants and contributions (non-price control) | G127: £m | H127: 0 | L127: ='F_Inputs (combined)'!F$25 -> 0 | M127: ='F_Inputs (combined)'!G$25 -> 0 | N127: ='F_Inputs (combined)'!H$25 -> 0 | O127: ='F_Inputs (combined)'!I$25 -> 0 | P127: ='F_Inputs (combined)'!J$25 -> 0 | Q127: ='F_Inputs (combined)'!K$25 -> 0 | R127: ='F_Inputs (combined)'!L$25 -> 0 | S127: ='F_Inputs (combined)'!M$25 -> 0 | T127: ='F_Inputs (combined)'!N$25 -> 0 | U127: ='F_Inputs (combined)'!O$25 -> 0
A130: Ofwat Inputs and Overrides
B132: Ofwat view of grants and contributions received for opex and capex split between price control and non price control
E133: =InpOverride!E$76 -> Ofwat view of G&C for capex - water network - price control (override) | F133: =InpOverride!F$76 -> 0 | G133: =InpOverride!G$76 -> £m | H133: =InpOverride!H$76 -> 0 | I133: =InpOverride!I$76 -> 0 | J133: =InpOverride!J$76 -> 0 | K133: =InpOverride!K$76 -> 0 | L133: =InpOverride!L$76 -> 0 | M133: =InpOverride!M$76 -> 0 | N133: =InpOverride!N$76 -> 0 | O133: =InpOverride!O$76 -> 0 | P133: =InpOverride!P$76 -> 0 | Q133: =InpOverride!Q$76 -> 0 | R133: =InpOverride!R$76 -> 0 | S133: =InpOverride!S$76 -> 0 | T133: =InpOverride!T$76 -> 0 | U133: =InpOverride!U$76 -> 0
E134: =InpOverride!E$77 -> Ofwat view of G&C for capex - water network - non price control (override) | F134: =InpOverride!F$77 -> 0 | G134: =InpOverride!G$77 -> £m | H134: =InpOverride!H$77 -> 0 | I134: =InpOverride!I$77 -> 0 | J134: =InpOverride!J$77 -> 0 | K134: =InpOverride!K$77 -> 0 | L134: =InpOverride!L$77 -> 0 | M134: =InpOverride!M$77 -> 0 | N134: =InpOverride!N$77 -> 0 | O134: =InpOverride!O$77 -> 0 | P134: =InpOverride!P$77 -> 0 | Q134: =InpOverride!Q$77 -> 0 | R134: =InpOverride!R$77 -> 0 | S134: =InpOverride!S$77 -> 0 | T134: =InpOverride!T$77 -> 0 | U134: =InpOverride!U$77 -> 0
E135: =InpOverride!E$78 -> Ofwat view of G&C for opex - water network - price control (override) | F135: =InpOverride!F$78 -> 0 | G135: =InpOverride!G$78 -> £m | H135: =InpOverride!H$78 -> 0 | I135: =InpOverride!I$78 -> 0 | J135: =InpOverride!J$78 -> 0 | K135: =InpOverride!K$78 -> 0 | L135: =InpOverride!L$78 -> 0 | M135: =InpOverride!M$78 -> 0 | N135: =InpOverride!N$78 -> 0 | O135: =InpOverride!O$78 -> 0 | P135: =InpOverride!P$78 -> 0 | Q135: =InpOverride!Q$78 -> 0 | R135: =InpOverride!R$78 -> 0 | S135: =InpOverride!S$78 -> 0 | T135: =InpOverride!T$78 -> 0 | U135: =InpOverride!U$78 -> 0
E136: =InpOverride!E$79 -> Ofwat view of G&C for opex - water network - non price control (override) | F136: =InpOverride!F$79 -> 0 | G136: =InpOverride!G$79 -> £m | H136: =InpOverride!H$79 -> 0 | I136: =InpOverride!I$79 -> 0 | J136: =InpOverride!J$79 -> 0 | K136: =InpOverride!K$79 -> 0 | L136: =InpOverride!L$79 -> 0 | M136: =InpOverride!M$79 -> 0 | N136: =InpOverride!N$79 -> 0 | O136: =InpOverride!O$79 -> 0 | P136: =InpOverride!P$79 -> 0 | Q136: =InpOverride!Q$79 -> 0 | R136: =InpOverride!R$79 -> 0 | S136: =InpOverride!S$79 -> 0 | T136: =InpOverride!T$79 -> 0 | U136: =InpOverride!U$79 -> 0
E138: =InpOverride!E$81 -> Ofwat view of G&C for capex - water resources - price control (override) | F138: =InpOverride!F$81 -> 0 | G138: =InpOverride!G$81 -> £m | H138: =InpOverride!H$81 -> 0 | I138: =InpOverride!I$81 -> 0 | J138: =InpOverride!J$81 -> 0 | K138: =InpOverride!K$81 -> 0 | L138: =InpOverride!L$81 -> 0 | M138: =InpOverride!M$81 -> 0 | N138: =InpOverride!N$81 -> 0 | O138: =InpOverride!O$81 -> 0 | P138: =InpOverride!P$81 -> 0 | Q138: =InpOverride!Q$81 -> 0 | R138: =InpOverride!R$81 -> 0 | S138: =InpOverride!S$81 -> 0 | T138: =InpOverride!T$81 -> 0 | U138: =InpOverride!U$81 -> 0
E139: =InpOverride!E$82 -> Ofwat view of G&C for capex - water resources - non price control (override) | F139: =InpOverride!F$82 -> 0 | G139: =InpOverride!G$82 -> £m | H139: =InpOverride!H$82 -> 0 | I139: =InpOverride!I$82 -> 0 | J139: =InpOverride!J$82 -> 0 | K139: =InpOverride!K$82 -> 0 | L139: =InpOverride!L$82 -> 0 | M139: =InpOverride!M$82 -> 0 | N139: =InpOverride!N$82 -> 0 | O139: =InpOverride!O$82 -> 0 | P139: =InpOverride!P$82 -> 0 | Q139: =InpOverride!Q$82 -> 0 | R139: =InpOverride!R$82 -> 0 | S139: =InpOverride!S$82 -> 0 | T139: =InpOverride!T$82 -> 0 | U139: =InpOverride!U$82 -> 0
E140: =InpOverride!E$83 -> Ofwat view of G&C for opex - water resources - price control (override) | F140: =InpOverride!F$83 -> 0 | G140: =InpOverride!G$83 -> £m | H140: =InpOverride!H$83 -> 0 | I140: =InpOverride!I$83 -> 0 | J140: =InpOverride!J$83 -> 0 | K140: =InpOverride!K$83 -> 0 | L140: =InpOverride!L$83 -> 0 | M140: =InpOverride!M$83 -> 0 | N140: =InpOverride!N$83 -> 0 | O140: =InpOverride!O$83 -> 0 | P140: =InpOverride!P$83 -> 0 | Q140: =InpOverride!Q$83 -> 0 | R140: =InpOverride!R$83 -> 0 | S140: =InpOverride!S$83 -> 0 | T140: =InpOverride!T$83 -> 0 | U140: =InpOverride!U$83 -> 0
E141: =InpOverride!E$84 -> Ofwat view of G&C for opex - water resources - non price control (override) | F141: =InpOverride!F$84 -> 0 | G141: =InpOverride!G$84 -> £m | H141: =InpOverride!H$84 -> 0 | I141: =InpOverride!I$84 -> 0 | J141: =InpOverride!J$84 -> 0 | K141: =InpOverride!K$84 -> 0 | L141: =InpOverride!L$84 -> 0 | M141: =InpOverride!M$84 -> 0 | N141: =InpOverride!N$84 -> 0 | O141: =InpOverride!O$84 -> 0 | P141: =InpOverride!P$84 -> 0 | Q141: =InpOverride!Q$84 -> 0 | R141: =InpOverride!R$84 -> 0 | S141: =InpOverride!S$84 -> 0 | T141: =InpOverride!T$84 -> 0 | U141: =InpOverride!U$84 -> 0
E143: =InpOverride!E$86 -> Ofwat view of G&C for capex - wastewater - price control (override) | F143: =InpOverride!F$86 -> 0 | G143: =InpOverride!G$86 -> £m | H143: =InpOverride!H$86 -> 0 | I143: =InpOverride!I$86 -> 0 | J143: =InpOverride!J$86 -> 0 | K143: =InpOverride!K$86 -> 0 | L143: =InpOverride!L$86 -> 0 | M143: =InpOverride!M$86 -> 0 | N143: =InpOverride!N$86 -> 0 | O143: =InpOverride!O$86 -> 0 | P143: =InpOverride!P$86 -> 0 | Q143: =InpOverride!Q$86 -> 0 | R143: =InpOverride!R$86 -> 0 | S143: =InpOverride!S$86 -> 0 | T143: =InpOverride!T$86 -> 0 | U143: =InpOverride!U$86 -> 0
E144: =InpOverride!E$87 -> Ofwat view of G&C for capex - wastewater - non price control (override) | F144: =InpOverride!F$87 -> 0 | G144: =InpOverride!G$87 -> £m | H144: =InpOverride!H$87 -> 0 | I144: =InpOverride!I$87 -> 0 | J144: =InpOverride!J$87 -> 0 | K144: =InpOverride!K$87 -> 0 | L144: =InpOverride!L$87 -> 0 | M144: =InpOverride!M$87 -> 0 | N144: =InpOverride!N$87 -> 0 | O144: =InpOverride!O$87 -> 0 | P144: =InpOverride!P$87 -> 0 | Q144: =InpOverride!Q$87 -> 0 | R144: =InpOverride!R$87 -> 0 | S144: =InpOverride!S$87 -> 0 | T144: =InpOverride!T$87 -> 0 | U144: =InpOverride!U$87 -> 0
E145: =InpOverride!E$88 -> Ofwat view of G&C for opex - wastewater - price control (override) | F145: =InpOverride!F$88 -> 0 | G145: =InpOverride!G$88 -> £m | H145: =InpOverride!H$88 -> 0 | I145: =InpOverride!I$88 -> 0 | J145: =InpOverride!J$88 -> 0 | K145: =InpOverride!K$88 -> 0 | L145: =InpOverride!L$88 -> 0 | M145: =InpOverride!M$88 -> 0 | N145: =InpOverride!N$88 -> 0 | O145: =InpOverride!O$88 -> 0 | P145: =InpOverride!P$88 -> 0 | Q145: =InpOverride!Q$88 -> 0 | R145: =InpOverride!R$88 -> 0 | S145: =InpOverride!S$88 -> 0 | T145: =InpOverride!T$88 -> 0 | U145: =InpOverride!U$88 -> 0
E146: =InpOverride!E$89 -> Ofwat view of G&C for opex - wastewater - non price control (override) | F146: =InpOverride!F$89 -> 0 | G146: =InpOverride!G$89 -> £m | H146: =InpOverride!H$89 -> 0 | I146: =InpOverride!I$89 -> 0 | J146: =InpOverride!J$89 -> 0 | K146: =InpOverride!K$89 -> 0 | L146: =InpOverride!L$89 -> 0 | M146: =InpOverride!M$89 -> 0 | N146: =InpOverride!N$89 -> 0 | O146: =InpOverride!O$89 -> 0 | P146: =InpOverride!P$89 -> 0 | Q146: =InpOverride!Q$89 -> 0 | R146: =InpOverride!R$89 -> 0 | S146: =InpOverride!S$89 -> 0 | T146: =InpOverride!T$89 -> 0 | U146: =InpOverride!U$89 -> 0
B148: OFWAT efficiency challenge
D149: =InpOverride!D$13 -> PR19GC0040 overridden | E149: =InpOverride!E$13 -> Wastewater efficiency challenge - (post override) | F149: =InpOverride!F$13 -> 0 | G149: =InpOverride!G$13 -> %
D150: =InpOverride!D$17 -> PR19GC0044 overridden | E150: =InpOverride!E$17 -> Water efficiency challenge - (post override) | F150: =InpOverride!F$17 -> 0.04621504436 | G150: =InpOverride!G$17 -> %
D151: =InpOverride!D21 -> PR19GC0050 overridden | E151: =InpOverride!E21 -> Water efficiency challenge excluding scope challenge - (post override) | F151: =InpOverride!F21 -> 0.02106610799 | G151: =InpOverride!G21 -> %
D152: =InpOverride!D25 -> PR19GC0049 overridden | E152: =InpOverride!E25 -> Wastewater efficiency challenge excluding scope challenge - (post override) | F152: =InpOverride!F25 -> 0 | G152: =InpOverride!G25 -> %
B154: One-off contributions to be applied in addition to the calculated amounts
E155: =InpOverride!E93 -> One-off contribution to capex - water network - price control | F155: =InpOverride!F93 -> 0 | G155: =InpOverride!G93 -> £m | H155: =InpOverride!H93 -> 10.5 | I155: =InpOverride!I93 -> 0 | J155: =InpOverride!J93 -> 0 | K155: =InpOverride!K93 -> 0 | L155: =InpOverride!L93 -> 3.5 | M155: =InpOverride!M93 -> 3.5 | N155: =InpOverride!N93 -> 3.5 | O155: =InpOverride!O93 -> 0 | P155: =InpOverride!P93 -> 0 | Q155: =InpOverride!Q93 -> 0 | R155: =InpOverride!R93 -> 0 | S155: =InpOverride!S93 -> 0 | T155: =InpOverride!T93 -> 0 | U155: =InpOverride!U93 -> 0
E156: =InpOverride!E94 -> One-off contribution to capex - water network - non price control | F156: =InpOverride!F94 -> 0 | G156: =InpOverride!G94 -> £m | H156: =InpOverride!H94 -> 0 | I156: =InpOverride!I94 -> 0 | J156: =InpOverride!J94 -> 0 | K156: =InpOverride!K94 -> 0 | L156: =InpOverride!L94 -> 0 | M156: =InpOverride!M94 -> 0 | N156: =InpOverride!N94 -> 0 | O156: =InpOverride!O94 -> 0 | P156: =InpOverride!P94 -> 0 | Q156: =InpOverride!Q94 -> 0 | R156: =InpOverride!R94 -> 0 | S156: =InpOverride!S94 -> 0 | T156: =InpOverride!T94 -> 0 | U156: =InpOverride!U94 -> 0
E157: =InpOverride!E95 -> One-off contribution to opex - water network - price control | F157: =InpOverride!F95 -> 0 | G157: =InpOverride!G95 -> £m | H157: =InpOverride!H95 -> 0 | I157: =InpOverride!I95 -> 0 | J157: =InpOverride!J95 -> 0 | K157: =InpOverride!K95 -> 0 | L157: =InpOverride!L95 -> 0 | M157: =InpOverride!M95 -> 0 | N157: =InpOverride!N95 -> 0 | O157: =InpOverride!O95 -> 0 | P157: =InpOverride!P95 -> 0 | Q157: =InpOverride!Q95 -> 0 | R157: =InpOverride!R95 -> 0 | S157: =InpOverride!S95 -> 0 | T157: =InpOverride!T95 -> 0 | U157: =InpOverride!U95 -> 0
E158: =InpOverride!E96 -> One-off contribution to opex - water network - non price control | F158: =InpOverride!F96 -> 0 | G158: =InpOverride!G96 -> £m | H158: =InpOverride!H96 -> 0 | I158: =InpOverride!I96 -> 0 | J158: =InpOverride!J96 -> 0 | K158: =InpOverride!K96 -> 0 | L158: =InpOverride!L96 -> 0 | M158: =InpOverride!M96 -> 0 | N158: =InpOverride!N96 -> 0 | O158: =InpOverride!O96 -> 0 | P158: =InpOverride!P96 -> 0 | Q158: =InpOverride!Q96 -> 0 | R158: =InpOverride!R96 -> 0 | S158: =InpOverride!S96 -> 0 | T158: =InpOverride!T96 -> 0 | U158: =InpOverride!U96 -> 0
E160: =InpOverride!E98 -> One-off contribution to capex - water resources - price control | F160: =InpOverride!F98 -> 0 | G160: =InpOverride!G98 -> £m | H160: =InpOverride!H98 -> 0 | I160: =InpOverride!I98 -> 0 | J160: =InpOverride!J98 -> 0 | K160: =InpOverride!K98 -> 0 | L160: =InpOverride!L98 -> 0 | M160: =InpOverride!M98 -> 0 | N160: =InpOverride!N98 -> 0 | O160: =InpOverride!O98 -> 0 | P160: =InpOverride!P98 -> 0 | Q160: =InpOverride!Q98 -> 0 | R160: =InpOverride!R98 -> 0 | S160: =InpOverride!S98 -> 0 | T160: =InpOverride!T98 -> 0 | U160: =InpOverride!U98 -> 0
E161: =InpOverride!E99 -> One-off contribution to capex - water resources - non price control | F161: =InpOverride!F99 -> 0 | G161: =InpOverride!G99 -> £m | H161: =InpOverride!H99 -> 0 | I161: =InpOverride!I99 -> 0 | J161: =InpOverride!J99 -> 0 | K161: =InpOverride!K99 -> 0 | L161: =InpOverride!L99 -> 0 | M161: =InpOverride!M99 -> 0 | N161: =InpOverride!N99 -> 0 | O161: =InpOverride!O99 -> 0 | P161: =InpOverride!P99 -> 0 | Q161: =InpOverride!Q99 -> 0 | R161: =InpOverride!R99 -> 0 | S161: =InpOverride!S99 -> 0 | T161: =InpOverride!T99 -> 0 | U161: =InpOverride!U99 -> 0
E162: =InpOverride!E100 -> One-off contribution to opex - water resources - price control | F162: =InpOverride!F100 -> 0 | G162: =InpOverride!G100 -> £m | H162: =InpOverride!H100 -> 0 | I162: =InpOverride!I100 -> 0 | J162: =InpOverride!J100 -> 0 | K162: =InpOverride!K100 -> 0 | L162: =InpOverride!L100 -> 0 | M162: =InpOverride!M100 -> 0 | N162: =InpOverride!N100 -> 0 | O162: =InpOverride!O100 -> 0 | P162: =InpOverride!P100 -> 0 | Q162: =InpOverride!Q100 -> 0 | R162: =InpOverride!R100 -> 0 | S162: =InpOverride!S100 -> 0 | T162: =InpOverride!T100 -> 0 | U162: =InpOverride!U100 -> 0
E163: =InpOverride!E101 -> One-off contribution to opex - water resources - non price control | F163: =InpOverride!F101 -> 0 | G163: =InpOverride!G101 -> £m | H163: =InpOverride!H101 -> 0 | I163: =InpOverride!I101 -> 0 | J163: =InpOverride!J101 -> 0 | K163: =InpOverride!K101 -> 0 | L163: =InpOverride!L101 -> 0 | M163: =InpOverride!M101 -> 0 | N163: =InpOverride!N101 -> 0 | O163: =InpOverride!O101 -> 0 | P163: =InpOverride!P101 -> 0 | Q163: =InpOverride!Q101 -> 0 | R163: =InpOverride!R101 -> 0 | S163: =InpOverride!S101 -> 0 | T163: =InpOverride!T101 -> 0 | U163: =InpOverride!U101 -> 0
E165: =InpOverride!E103 -> One-off contribution to capex - wastewater - price control | F165: =InpOverride!F103 -> 0 | G165: =InpOverride!G103 -> £m | H165: =InpOverride!H103 -> 0 | I165: =InpOverride!I103 -> 0 | J165: =InpOverride!J103 -> 0 | K165: =InpOverride!K103 -> 0 | L165: =InpOverride!L103 -> 0 | M165: =InpOverride!M103 -> 0 | N165: =InpOverride!N103 -> 0 | O165: =InpOverride!O103 -> 0 | P165: =InpOverride!P103 -> 0 | Q165: =InpOverride!Q103 -> 0 | R165: =InpOverride!R103 -> 0 | S165: =InpOverride!S103 -> 0 | T165: =InpOverride!T103 -> 0 | U165: =InpOverride!U103 -> 0
E166: =InpOverride!E104 -> One-off contribution to capex - wastewater - non price control | F166: =InpOverride!F104 -> 0 | G166: =InpOverride!G104 -> £m | H166: =InpOverride!H104 -> 0 | I166: =InpOverride!I104 -> 0 | J166: =InpOverride!J104 -> 0 | K166: =InpOverride!K104 -> 0 | L166: =InpOverride!L104 -> 0 | M166: =InpOverride!M104 -> 0 | N166: =InpOverride!N104 -> 0 | O166: =InpOverride!O104 -> 0 | P166: =InpOverride!P104 -> 0 | Q166: =InpOverride!Q104 -> 0 | R166: =InpOverride!R104 -> 0 | S166: =InpOverride!S104 -> 0 | T166: =InpOverride!T104 -> 0 | U166: =InpOverride!U104 -> 0
E167: =InpOverride!E105 -> One-off contribution to opex - wastewater - price control | F167: =InpOverride!F105 -> 0 | G167: =InpOverride!G105 -> £m | H167: =InpOverride!H105 -> 0 | I167: =InpOverride!I105 -> 0 | J167: =InpOverride!J105 -> 0 | K167: =InpOverride!K105 -> 0 | L167: =InpOverride!L105 -> 0 | M167: =InpOverride!M105 -> 0 | N167: =InpOverride!N105 -> 0 | O167: =InpOverride!O105 -> 0 | P167: =InpOverride!P105 -> 0 | Q167: =InpOverride!Q105 -> 0 | R167: =InpOverride!R105 -> 0 | S167: =InpOverride!S105 -> 0 | T167: =InpOverride!T105 -> 0 | U167: =InpOverride!U105 -> 0
E168: =InpOverride!E106 -> One-off contribution to opex - wastewater - non price control | F168: =InpOverride!F106 -> 0 | G168: =InpOverride!G106 -> £m | H168: =InpOverride!H106 -> 0 | I168: =InpOverride!I106 -> 0 | J168: =InpOverride!J106 -> 0 | K168: =InpOverride!K106 -> 0 | L168: =InpOverride!L106 -> 0 | M168: =InpOverride!M106 -> 0 | N168: =InpOverride!N106 -> 0 | O168: =InpOverride!O106 -> 0 | P168: =InpOverride!P106 -> 0 | Q168: =InpOverride!Q106 -> 0 | R168: =InpOverride!R106 -> 0 | S168: =InpOverride!S106 -> 0 | T168: =InpOverride!T106 -> 0 | U168: =InpOverride!U106 -> 0
A172: End of sheet

Sheet Time
A1: =RIGHT(CELL("FILENAME", $A$1), LEN(CELL("FILENAME", $A$1)) - SEARCH("]", CELL("FILENAME", $A$1))) -> Time | F1: =IF(InpOverride!$F$108 > 0, "Overrides", "No Overrides") -> Overrides
E2: =Time!E$25 -> Model period ending | F2: =Check!$F$2 -> 1 | G2: Checks/Alerts | J2: =Time!J$25 -> 2019-03-31 | K2: =Time!K$25 -> 2020-03-31 | L2: =Time!L$25 -> 2021-03-31 | M2: =Time!M$25 -> 2022-03-31 | N2: =Time!N$25 -> 2023-03-31 | O2: =Time!O$25 -> 2024-03-31 | P2: =Time!P$25 -> 2025-03-31 | Q2: =Time!Q$25 -> 2026-03-31 | R2: =Time!R$25 -> 2027-03-31 | S2: =Time!S$25 -> 2028-03-31 | T2: =Time!T$25 -> 2029-03-31 | U2: =Time!U$25 -> 2030-03-31
E3: =Time!E$104 -> Timeline label | F3: =Check!$F$3 -> 30 | G3: Track chgs | J3: =Time!J$104 -> Pre-Fcst | K3: =Time!K$104 -> Pre-Fcst | L3: =Time!L$104 -> Forecast | M3: =Time!M$104 -> Forecast | N3: =Time!N$104 -> Forecast | O3: =Time!O$104 -> Forecast | P3: =Time!P$104 -> Forecast | Q3: =Time!Q$104 -> Post-Fcst | R3: =Time!R$104 -> Post-Fcst | S3: =Time!S$104 -> Post-Fcst | T3: =Time!T$104 -> Post-Fcst | U3: =Time!U$104 -> Post-Fcst
E4: =Time!E$127 -> Financial year ending | J4: =Time!J$127 -> 2019 | K4: =Time!K$127 -> 2020 | L4: =Time!L$127 -> 2021 | M4: =Time!M$127 -> 2022 | N4: =Time!N$127 -> 2023 | O4: =Time!O$127 -> 2024 | P4: =Time!P$127 -> 2025 | Q4: =Time!Q$127 -> 2026 | R4: =Time!R$127 -> 2027 | S4: =Time!S$127 -> 2028 | T4: =Time!T$127 -> 2029 | U4: =Time!U$127 -> 2030
E5: =Time!E$10 -> Model column counter | F5: Constant | G5: Unit | H5: Total | J5: =Time!J$10 -> 1 | K5: =Time!K$10 -> 2 | L5: =Time!L$10 -> 3 | M5: =Time!M$10 -> 4 | N5: =Time!N$10 -> 5 | O5: =Time!O$10 -> 6 | P5: =Time!P$10 -> 7 | Q5: =Time!Q$10 -> 8 | R5: =Time!R$10 -> 9 | S5: =Time!S$10 -> 10 | T5: =Time!T$10 -> 11 | U5: =Time!U$10 -> 12
A7: MODEL PERIOD
B9: Model column counter
E10: Model column counter | G10: counter | J10: =I10 + 1 -> 1 | K10: 2 | L10: 3 | M10: 4 | N10: 5 | O10: 6 | P10: 7 | Q10: 8 | R10: 9 | S10: =R10 + 1 -> 10 | T10: =S10 + 1 -> 11 | U10: =T10 + 1 -> 12
E11: Model column total | F11: =MAX(J10:U10) -> 12 | G11: columns
E13: =E$10 -> Model column counter | F13: 0 | G13: counter | H13: 0 | I13: 0 | J13: 1 | K13: 2 | L13: 3 | M13: 4 | N13: 5 | O13: 6 | P13: 7 | Q13: 8 | R13: 9 | S13: 10 | T13: 11 | U13: 12
E14: 1st model column flag | G14: flag | H14: =SUM(J14:U14) -> 1 | J14: =IF(J13 = 1, 1, 0) -> 1 | K14: 0 | L14: 0 | M14: 0 | N14: 0 | O14: 0 | P14: 0 | Q14: 0 | R14: 0 | S14: =IF(S13 = 1, 1, 0) -> 0 | T14: =IF(T13 = 1, 1, 0) -> 0 | U14: =IF(U13 = 1, 1, 0) -> 0
B16: Model period beginning
E17: =InpActive!E$13 -> 1st model column start date | F17: =InpActive!F$13 -> 2018-04-01 | G17: =InpActive!G$13 -> date
E18: =InpActive!E$36 -> Months per model period | F18: =InpActive!F$36 -> 12 | G18: =InpActive!G$36 -> months
E19: =E$14 -> 1st model column flag | F19: 0 | G19: flag | H19: 1 | I19: 0 | J19: 1 | K19: 0 | L19: 0 | M19: 0 | N19: 0 | O19: 0 | P19: 0 | Q19: 0 | R19: 0 | S19: 0 | T19: 0 | U19: 0
E20: Model period beginning | G20: date | J20: =IF(J19 = 1, $F17, DATE(YEAR(I20), MONTH(I20) + $F18, DAY(1))) -> 2018-04-01 | K20: 2019-04-01 | L20: 2020-04-01 | M20: 2021-04-01 | N20: 2022-04-01 | O20: 2023-04-01 | P20: 2024-04-01 | Q20: 2025-04-01 | R20: 2026-04-01 | S20: =IF(S19 = 1, $F17, DATE(YEAR(R20), MONTH(R20) + $F18, DAY(1))) -> 2027-04-01 | T20: =IF(T19 = 1, $F17, DATE(YEAR(S20), MONTH(S20) + $F18, DAY(1))) -> 2028-04-01 | U20: =IF(U19 = 1, $F17, DATE(YEAR(T20), MONTH(T20) + $F18, DAY(1))) -> 2029-04-01
B22: Model period ending
E23: =InpActive!E$36 -> Months per model period | F23: =InpActive!F$36 -> 12 | G23: =InpActive!G$36 -> months
E24: =E$20 -> Model period beginning | F24: 00:00:00 | G24: date | H24: 00:00:00 | I24: 00:00:00 | J24: 2018-04-01 | K24: 2019-04-01 | L24: 2020-04-01 | M24: 2021-04-01 | N24: 2022-04-01 | O24: 2023-04-01 | P24: 2024-04-01 | Q24: 2025-04-01 | R24: 2026-04-01 | S24: 2027-04-01 | T24: 2028-04-01 | U24: 2029-04-01
E25: Model period ending | G25: date | J25: =DATE(YEAR(J24), MONTH(J24) + $F23, DAY(J24) - 1) -> 2019-03-31 | K25: 2020-03-31 | L25: 2021-03-31 | M25: 2022-03-31 | N25: 2023-03-31 | O25: 2024-03-31 | P25: 2025-03-31 | Q25: 2026-03-31 | R25: 2027-03-31 | S25: =DATE(YEAR(S24), MONTH(S24) + $F23, DAY(S24) - 1) -> 2028-03-31 | T25: =DATE(YEAR(T24), MONTH(T24) + $F23, DAY(T24) - 1) -> 2029-03-31 | U25: =DATE(YEAR(U24), MONTH(U24) + $F23, DAY(U24) - 1) -> 2030-03-31
E27: =E$25 -> Model period ending | F27: 00:00:00 | G27: date | H27: 00:00:00 | I27: 00:00:00 | J27: 2019-03-31 | K27: 2020-03-31 | L27: 2021-03-31 | M27: 2022-03-31 | N27: 2023-03-31 | O27: 2024-03-31 | P27: 2025-03-31 | Q27: 2026-03-31 | R27: 2027-03-31 | S27: 2028-03-31 | T27: 2029-03-31 | U27: 2030-03-31
E28: =E$20 -> Model period beginning | F28: 00:00:00 | G28: date | H28: 00:00:00 | I28: 00:00:00 | J28: 2018-04-01 | K28: 2019-04-01 | L28: 2020-04-01 | M28: 2021-04-01 | N28: 2022-04-01 | O28: 2023-04-01 | P28: 2024-04-01 | Q28: 2025-04-01 | R28: 2026-04-01 | S28: 2027-04-01 | T28: 2028-04-01 | U28: 2029-04-01
E29: Days in a year | G29: days | J29: =J27 - J28 + 1 -> 365 | K29: =K27 - K28 + 1 -> 366 | L29: 365 | M29: 365 | N29: 365 | O29: 366 | P29: 365 | Q29: 365 | R29: 365 | S29: 366 | T29: 365 | U29: 365
A32: FORECAST PERIOD
B34: Forecast start period flag
E35: =InpActive!E$28 -> Forecast start date | F35: =InpActive!F$28 -> 2020-04-01 | G35: =InpActive!G$28 -> date
E36: =E$20 -> Model period beginning | F36: 00:00:00 | G36: date | H36: 00:00:00 | I36: 00:00:00 | J36: 2018-04-01 | K36: 2019-04-01 | L36: 2020-04-01 | M36: 2021-04-01 | N36: 2022-04-01 | O36: 2023-04-01 | P36: 2024-04-01 | Q36: 2025-04-01 | R36: 2026-04-01 | S36: 2027-04-01 | T36: 2028-04-01 | U36: 2029-04-01
E37: =E$25 -> Model period ending | F37: 00:00:00 | G37: date | H37: 00:00:00 | I37: 00:00:00 | J37: 2019-03-31 | K37: 2020-03-31 | L37: 2021-03-31 | M37: 2022-03-31 | N37: 2023-03-31 | O37: 2024-03-31 | P37: 2025-03-31 | Q37: 2026-03-31 | R37: 2027-03-31 | S37: 2028-03-31 | T37: 2029-03-31 | U37: 2030-03-31
E38: Forecast start period flag | G38: flag | H38: =SUM(J38:U38) -> 1 | J38: =IF(AND($F35 >= J36, $F35 <= J37), 1, 0) -> 0 | K38: =IF(AND($F35 >= K36, $F35 <= K37), 1, 0) -> 0 | L38: 1 | M38: 0 | N38: 0 | O38: 0 | P38: 0 | Q38: 0 | R38: 0 | S38: =IF(AND($F35 >= S36, $F35 <= S37), 1, 0) -> 0 | T38: =IF(AND($F35 >= T36, $F35 <= T37), 1, 0) -> 0 | U38: =IF(AND($F35 >= U36, $F35 <= U37), 1, 0) -> 0
B40: Forecast end period flag
E41: =InpActive!E$28 -> Forecast start date | F41: =InpActive!F$28 -> 2020-04-01 | G41: =InpActive!G$28 -> date
E42: =InpActive!E$29 -> Forecast duration | F42: =InpActive!F$29 -> 10 | G42: =InpActive!G$29 -> years
E43: Forecast end date | F43: =DATE(YEAR(F41) + F42, MONTH(F41), DAY(F41) - 1) -> 2030-03-31 | G43: date
E45: =E$43 -> Forecast end date | F45: =F$43 -> 2030-03-31 | G45: =G$43 -> date
E46: =E$20 -> Model period beginning | F46: 00:00:00 | G46: date | H46: 00:00:00 | I46: 00:00:00 | J46: 2018-04-01 | K46: 2019-04-01 | L46: 2020-04-01 | M46: 2021-04-01 | N46: 2022-04-01 | O46: 2023-04-01 | P46: 2024-04-01 | Q46: 2025-04-01 | R46: 2026-04-01 | S46: 2027-04-01 | T46: 2028-04-01 | U46: 2029-04-01
E47: =E$25 -> Model period ending | F47: 00:00:00 | G47: date | H47: 00:00:00 | I47: 00:00:00 | J47: 2019-03-31 | K47: 2020-03-31 | L47: 2021-03-31 | M47: 2022-03-31 | N47: 2023-03-31 | O47: 2024-03-31 | P47: 2025-03-31 | Q47: 2026-03-31 | R47: 2027-03-31 | S47: 2028-03-31 | T47: 2029-03-31 | U47: 2030-03-31
E48: Forecast end period flag | G48: flag | H48: =SUM(J48:U48) -> 1 | J48: =IF(AND($F45 >= J46, $F45 <= J47), 1, 0) -> 0 | K48: 0 | L48: 0 | M48: 0 | N48: 0 | O48: 0 | P48: 0 | Q48: 0 | R48: 0 | S48: 0 | T48: 0 | U48: 1
B50: Forecast period flag
E51: =E$38 -> Forecast start period flag | F51: =F$38 -> 0 | G51: flag | H51: 1 | I51: 0 | J51: 0 | K51: 0 | L51: 1 | M51: 0 | N51: 0 | O51: 0 | P51: 0 | Q51: 0 | R51: 0 | S51: 0 | T51: 0 | U51: 0
E52: =E$48 -> Forecast end period flag | F52: =F$48 -> 0 | G52: flag | H52: 1 | I52: 0 | J52: 0 | K52: 0 | L52: 0 | M52: 0 | N52: 0 | O52: 0 | P52: 0 | Q52: 0 | R52: 0 | S52: 0 | T52: 0 | U52: 1
E53: Forecast period flag | G53: flag | H53: =SUM(J53:U53) -> 10 | J53: =J51 + I53 - I52 -> 0 | K53: =K51 + J53 - J52 -> 0 | L53: 1 | M53: 1 | N53: 1 | O53: 1 | P53: 1 | Q53: 1 | R53: 1 | S53: =S51 + R53 - R52 -> 1 | T53: =T51 + S53 - S52 -> 1 | U53: =U51 + T53 - T52 -> 1
E54: Total number of forecast periods | F54: =SUM(J53:U53) -> 10 | G54: periods
B56: Pre-forecast period flag
E57: =E$14 -> 1st model column flag | F57: =F$14 -> 0 | G57: flag | H57: 1 | I57: 0 | J57: 1 | K57: 0 | L57: 0 | M57: 0 | N57: 0 | O57: 0 | P57: 0 | Q57: 0 | R57: 0 | S57: 0 | T57: 0 | U57: 0
E58: =E$38 -> Forecast start period flag | F58: =F$38 -> 0 | G58: flag | H58: 1 | I58: 0 | J58: 0 | K58: 0 | L58: 1 | M58: 0 | N58: 0 | O58: 0 | P58: 0 | Q58: 0 | R58: 0 | S58: 0 | T58: 0 | U58: 0
E59: Pre-forecast period flag | G59: flag | H59: =SUM(J59:U59) -> 2 | J59: =J57 + I59 - J58 -> 1 | K59: =K57 + J59 - K58 -> 1 | L59: 0 | M59: 0 | N59: 0 | O59: 0 | P59: 0 | Q59: 0 | R59: 0 | S59: =S57 + R59 - S58 -> 0 | T59: =T57 + S59 - T58 -> 0 | U59: =U57 + T59 - U58 -> 0
E60: Pre-forecast period flag - total | F60: =SUM(J59:U59) -> 2 | G60: periods
E62: =E$38 -> Forecast start period flag | F62: =F$38 -> 0 | G62: flag | H62: 1 | I62: 0 | J62: 0 | K62: 0 | L62: 1 | M62: 0 | N62: 0 | O62: 0 | P62: 0 | Q62: 0 | R62: 0 | S62: 0 | T62: 0 | U62: 0
E63: Last pre-forecast period flag | G63: flag | H63: =SUM(J63:U63) -> 1 | J63: =K62 -> 0 | K63: =L62 -> 1 | L63: 0 | M63: 0 | N63: 0 | O63: 0 | P63: 0 | Q63: 0 | R63: 0 | S63: =T62 -> 0 | T63: =U62 -> 0 | U63: =V62 -> 0
B65: First post-forecast period flag
E66: =E$48 -> Forecast end period flag | F66: =F$48 -> 0 | G66: flag | H66: 1 | I66: 0 | J66: 0 | K66: 0 | L66: 0 | M66: 0 | N66: 0 | O66: 0 | P66: 0 | Q66: 0 | R66: 0 | S66: 0 | T66: 0 | U66: 1
E67: First post-forecast period flag | G67: flag | H67: =SUM(J67:U67) -> 0 | J67: =I66 -> 0 | K67: =J66 -> 0 | L67: 0 | M67: 0 | N67: 0 | O67: 0 | P67: 0 | Q67: 0 | R67: 0 | S67: =R66 -> 0 | T67: =S66 -> 0 | U67: =T66 -> 0
B69: Post-forecast period flag
E70: =E$67 -> First post-forecast period flag | F70: 0 | G70: flag | H70: 0 | I70: 0 | J70: 0 | K70: 0 | L70: 0 | M70: 0 | N70: 0 | O70: 0 | P70: 0 | Q70: 0 | R70: 0 | S70: 0 | T70: 0 | U70: 0
E71: Post-forecast period flag | G71: flag | H71: =SUM(J71:U71) -> 0 | J71: =J70 + I71 -> 0 | K71: =K70 + J71 -> 0 | L71: 0 | M71: 0 | N71: 0 | O71: 0 | P71: 0 | Q71: 0 | R71: 0 | S71: =S70 + R71 -> 0 | T71: =T70 + S71 -> 0 | U71: =U70 + T71 -> 0
E72: Post-forecast period - total | F72: =SUM(J71:U71) -> 0 | G72: periods
B74: Model period flag
E75: =E$53 -> Forecast period flag | F75: =F$53 -> 0 | G75: flag | H75: 10 | I75: 0 | J75: 0 | K75: 0 | L75: 1 | M75: 1 | N75: 1 | O75: 1 | P75: 1 | Q75: 1 | R75: 1 | S75: 1 | T75: 1 | U75: 1
E76: =E$59 -> Pre-forecast period flag | F76: =F$59 -> 0 | G76: flag | H76: 2 | I76: 0 | J76: 1 | K76: 1 | L76: 0 | M76: 0 | N76: 0 | O76: 0 | P76: 0 | Q76: 0 | R76: 0 | S76: 0 | T76: 0 | U76: 0
E77: Model period flag | G77: flag | H77: =SUM(J77:U77) -> 12 | J77: =MAX(J75:J76) -> 1 | K77: =MAX(K75:K76) -> 1 | L77: 1 | M77: 1 | N77: 1 | O77: 1 | P77: 1 | Q77: 1 | R77: 1 | S77: 1 | T77: 1 | U77: 1
B79: Forecast year
E80: =E$127 -> Financial year ending | F80: =F$127 -> 0 | G80: year # | H80: 0 | I80: 0 | J80: 2019 | K80: 2020 | L80: 2021 | M80: 2022 | N80: 2023 | O80: 2024 | P80: 2025 | Q80: 2026 | R80: 2027 | S80: 2028 | T80: 2029 | U80: 2030
E81: =E$38 -> Forecast start period flag | F81: =F$38 -> 0 | G81: flag | H81: 1 | I81: 0 | J81: 0 | K81: 0 | L81: 1 | M81: 0 | N81: 0 | O81: 0 | P81: 0 | Q81: 0 | R81: 0 | S81: 0 | T81: 0 | U81: 0
E82: Forecast year 1 | F82: =SUMPRODUCT(J81:U81, J80:U80) -> 2021 | G82: year #
E84: =E$82 -> Forecast year 1 | F84: =F$82 -> 2021 | G84: =G$82 -> year #
E85: Forecast year 2 | F85: =F$84 + COUNT(F$84:F84) -> 2022 | G85: year #
E86: Forecast year 3 | F86: =F$84 + COUNT(F$84:F85) -> 2023 | G86: year #
E87: Forecast year 4 | F87: =F$84 + COUNT(F$84:F86) -> 2024 | G87: year #
E88: Forecast year 5 | F88: =F$84 + COUNT(F$84:F87) -> 2025 | G88: year #
A91: MODEL TIMELINE
B94: Timeline label
E95: =E$14 -> 1st model column flag | F95: 0 | G95: flag | H95: 1 | I95: 0 | J95: 1 | K95: 0 | L95: 0 | M95: 0 | N95: 0 | O95: 0 | P95: 0 | Q95: 0 | R95: 0 | S95: 0 | T95: 0 | U95: 0
E96: =E$38 -> Forecast start period flag | F96: =F$38 -> 0 | G96: flag | H96: 1 | I96: 0 | J96: 0 | K96: 0 | L96: 1 | M96: 0 | N96: 0 | O96: 0 | P96: 0 | Q96: 0 | R96: 0 | S96: 0 | T96: 0 | U96: 0
E97: =E$67 -> First post-forecast period flag | F97: 0 | G97: flag | H97: 0 | I97: 0 | J97: 0 | K97: 0 | L97: 0 | M97: 0 | N97: 0 | O97: 0 | P97: 0 | Q97: 0 | R97: 0 | S97: 0 | T97: 0 | U97: 0
E98: Timeline label counter | G98: counter | J98: =I98 + SUM(J95:J97) -> 1 | K98: 1 | L98: 2 | M98: 2 | N98: 2 | O98: 2 | P98: 2 | Q98: 3 | R98: 3 | S98: =R98 + SUM(S95:S97) -> 3 | T98: =S98 + SUM(T95:T97) -> 3 | U98: =T98 + SUM(U95:U97) -> 3
E100: =InpActive!E$20 -> Pre - forecast period | F100: =InpActive!F$20 -> Pre-Fcst | G100: =InpActive!G$20 -> label
E101: =InpActive!E$21 -> Forecast period | F101: =InpActive!F$21 -> Forecast | G101: =InpActive!G$21 -> label
E102: =InpActive!E$22 -> Post - forecast period | F102: =InpActive!F$22 -> Post-Fcst | G102: =InpActive!G$22 -> label
E103: =E$98 -> Timeline label counter | F103: 0 | G103: counter | H103: 0 | I103: 0 | J103: 1 | K103: 1 | L103: 2 | M103: 2 | N103: 2 | O103: 2 | P103: 2 | Q103: 3 | R103: 3 | S103: 3 | T103: 3 | U103: 3
E104: Timeline label | G104: label | J104: =INDEX($F100:$F102, J103) -> Pre-Fcst | K104: Pre-Fcst | L104: Forecast | M104: Forecast | N104: Forecast | O104: Forecast | P104: Forecast | Q104: =INDEX($F100:$F102, Q103) -> Post-Fcst | R104: Post-Fcst | S104: =INDEX($F100:$F102, S103) -> Post-Fcst | T104: =INDEX($F100:$F102, T103) -> Post-Fcst | U104: =INDEX($F100:$F102, U103) -> Post-Fcst
B106: Modelling period check
E107: =E$59 -> Pre-forecast period flag | F107: =F$59 -> 0 | G107: flag | H107: 2 | I107: 0 | J107: 1 | K107: 1 | L107: 0 | M107: 0 | N107: 0 | O107: 0 | P107: 0 | Q107: 0 | R107: 0 | S107: 0 | T107: 0 | U107: 0
E108: =E$53 -> Forecast period flag | F108: =F$53 -> 0 | G108: flag | H108: 10 | I108: 0 | J108: 0 | K108: 0 | L108: 1 | M108: 1 | N108: 1 | O108: 1 | P108: 1 | Q108: 1 | R108: 1 | S108: 1 | T108: 1 | U108: 1
E109: =E$71 -> Post-forecast period flag | F109: 0 | G109: flag | H109: 0 | I109: 0 | J109: 0 | K109: 0 | L109: 0 | M109: 0 | N109: 0 | O109: 0 | P109: 0 | Q109: 0 | R109: 0 | S109: 0 | T109: 0 | U109: 0
E110: No. of overlapping in flags | G110: # | H110: =SUM(J110:U110) -> 0 | J110: =MAX(0, SUM(J107:J109) - 1) -> 0 | K110: 0 | L110: 0 | M110: 0 | N110: 0 | O110: 0 | P110: 0 | Q110: 0 | R110: 0 | S110: =MAX(0, SUM(S107:S109) - 1) -> 0 | T110: =MAX(0, SUM(T107:T109) - 1) -> 0 | U110: =MAX(0, SUM(U107:U109) - 1) -> 0
E111: Overlapping in periods - total | F111: =SUM(J110:U110) -> 0 | G111: periods
E113: =E$11 -> Model column total | F113: =F$11 -> 12 | G113: =G$11 -> columns
E114: =E$111 -> Overlapping in periods - total | F114: =F$111 -> 0 | G114: =G$111 -> periods
E115: =E$60 -> Pre-forecast period flag - total | F115: =F$60 -> 2 | G115: =G$60 -> periods
E116: =E$54 -> Total number of forecast periods | F116: =F$54 -> 10 | G116: =G$54 -> periods
E117: =E$72 -> Post-forecast period - total | F117: =F$72 -> 0 | G117: =G$72 -> periods
E118: Modelling period check | F118: =IF(SUM(F113:F114) - SUM(F115:F117) <> 0, 1, 0) -> 0 | G118: check
A121: FINANCIAL YEAR
E123: =InpActive!E$16 -> First modelling column financial year# | F123: =InpActive!F$16 -> 2019 | G123: =InpActive!G$16 -> year #
E124: =InpActive!E$17 -> Financial year end month number | F124: =InpActive!F$17 -> 3 | G124: =InpActive!G$17 -> month #
E125: =E$25 -> Model period ending | F125: 00:00:00 | G125: date | H125: 00:00:00 | I125: 00:00:00 | J125: 2019-03-31 | K125: 2020-03-31 | L125: 2021-03-31 | M125: 2022-03-31 | N125: 2023-03-31 | O125: 2024-03-31 | P125: 2025-03-31 | Q125: 2026-03-31 | R125: 2027-03-31 | S125: 2028-03-31 | T125: 2029-03-31 | U125: 2030-03-31
E126: =E$14 -> 1st model column flag | F126: 0 | G126: flag | H126: 1 | I126: 0 | J126: 1 | K126: 0 | L126: 0 | M126: 0 | N126: 0 | O126: 0 | P126: 0 | Q126: 0 | R126: 0 | S126: 0 | T126: 0 | U126: 0
E127: Financial year ending | G127: year # | J127: =IF(J126 = 1, $F123, IF(J125 > (DATE(I127, $F124 + 1, 1) - 1), I127 + 1, I127)) -> 2019 | K127: 2020 | L127: 2021 | M127: 2022 | N127: 2023 | O127: 2024 | P127: 2025 | Q127: 2026 | R127: 2027 | S127: =IF(S126 = 1, $F123, IF(S125 > (DATE(R127, $F124 + 1, 1) - 1), R127 + 1, R127)) -> 2028 | T127: =IF(T126 = 1, $F123, IF(T125 > (DATE(S127, $F124 + 1, 1) - 1), S127 + 1, S127)) -> 2029 | U127: =IF(U126 = 1, $F123, IF(U125 > (DATE(T127, $F124 + 1, 1) - 1), T127 + 1, T127)) -> 2030
A130: End of sheet

Sheet Calcs >>

Sheet G&C Water
A1: =RIGHT(CELL("filename", $A$1), LEN(CELL("filename", $A$1)) - SEARCH("]", CELL("filename", $A$1))) -> G&C Water | F1: =IF(InpOverride!$F$108 > 0, "Overrides", "No Overrides") -> Overrides
E2: =Time!E2 -> Model period ending | F2: =Check!$F$2 -> 1 | G2: Checks/Alerts | J2: =Time!J$25 -> 2019-03-31 | K2: =Time!K$25 -> 2020-03-31 | L2: =Time!L$25 -> 2021-03-31 | M2: =Time!M$25 -> 2022-03-31 | N2: =Time!N$25 -> 2023-03-31 | O2: =Time!O$25 -> 2024-03-31 | P2: =Time!P$25 -> 2025-03-31 | Q2: =Time!Q$25 -> 2026-03-31 | R2: =Time!R$25 -> 2027-03-31 | S2: =Time!S$25 -> 2028-03-31 | T2: =Time!T$25 -> 2029-03-31 | U2: =Time!U$25 -> 2030-03-31
E3: =Time!E3 -> Timeline label | F3: =Check!$F$3 -> 30 | G3: Track chgs | J3: =Time!J$104 -> Pre-Fcst | K3: =Time!K$104 -> Pre-Fcst | L3: =Time!L$104 -> Forecast | M3: =Time!M$104 -> Forecast | N3: =Time!N$104 -> Forecast | O3: =Time!O$104 -> Forecast | P3: =Time!P$104 -> Forecast | Q3: =Time!Q$104 -> Post-Fcst | R3: =Time!R$104 -> Post-Fcst | S3: =Time!S$104 -> Post-Fcst | T3: =Time!T$104 -> Post-Fcst | U3: =Time!U$104 -> Post-Fcst
E4: =Time!E4 -> Financial year ending | J4: =Time!J$127 -> 2019 | K4: =Time!K$127 -> 2020 | L4: =Time!L$127 -> 2021 | M4: =Time!M$127 -> 2022 | N4: =Time!N$127 -> 2023 | O4: =Time!O$127 -> 2024 | P4: =Time!P$127 -> 2025 | Q4: =Time!Q$127 -> 2026 | R4: =Time!R$127 -> 2027 | S4: =Time!S$127 -> 2028 | T4: =Time!T$127 -> 2029 | U4: =Time!U$127 -> 2030
E5: =Time!E5 -> Model column counter | F5: Constant | G5: Unit | H5: Total | J5: =Time!J$10 -> 1 | K5: =Time!K$10 -> 2 | L5: =Time!L$10 -> 3 | M5: =Time!M$10 -> 4 | N5: =Time!N$10 -> 5 | O5: =Time!O$10 -> 6 | P5: =Time!P$10 -> 7 | Q5: =Time!Q$10 -> 8 | R5: =Time!R$10 -> 9 | S5: =Time!S$10 -> 10 | T5: =Time!T$10 -> 11 | U5: =Time!U$10 -> 12
A7: WATER GRANTS & CONTRIBUTIONS FEEDER CALCULATION
A9: Calculate the Unit Rate - water
B10: Calculate the unit rate: income / connections * efficiency challenge
C12: Company View of income from developer services
D13: =InpActive!D$93 -> BC11271IN | E13: =InpActive!E$93 -> Connection charges (s45) | F13: =InpActive!F$93 -> 0 | G13: =InpActive!G$93 -> £m | H13: =InpActive!H$93 -> 17.05110479 | I13: =InpActive!I$93 -> 0 | J13: =InpActive!J$93 -> 0 | K13: =InpActive!K$93 -> 0 | L13: =InpActive!L$93 -> 3.42258328 | M13: =InpActive!M$93 -> 3.416591427 | N13: =InpActive!N$93 -> 3.402088663 | O13: =InpActive!O$93 -> 3.407097791 | P13: =InpActive!P$93 -> 3.402743626 | Q13: =InpActive!Q$93 -> 0 | R13: =InpActive!R$93 -> 0 | S13: =InpActive!S$93 -> 0 | T13: =InpActive!T$93 -> 0 | U13: =InpActive!U$93 -> 0
D14: =InpActive!D$75 -> APP28RR_W0005 | E14: =InpActive!E$75 -> Diversions income - water s185 | F14: =InpActive!F$75 -> 0 | G14: =InpActive!G$75 -> £m | H14: =InpActive!H$75 -> 2.255838275 | I14: =InpActive!I$75 -> 0 | J14: =InpActive!J$75 -> 0 | K14: =InpActive!K$75 -> 0 | L14: =InpActive!L$75 -> 0.451 | M14: =InpActive!M$75 -> 0.451 | N14: =InpActive!N$75 -> 0.451 | O14: =InpActive!O$75 -> 0.4514191377 | P14: =InpActive!P$75 -> 0.4514191377 | Q14: =InpActive!Q$75 -> 0 | R14: =InpActive!R$75 -> 0 | S14: =InpActive!S$75 -> 0 | T14: =InpActive!T$75 -> 0 | U14: =InpActive!U$75 -> 0
D15: =InpActive!D$61 -> APP28RR_W00036 | E15: =InpActive!E$61 -> App 28 data (£m) Infrastructure charge receipts (s146) | F15: =InpActive!F$61 -> 0 | G15: =InpActive!G$61 -> £m | H15: =InpActive!H$61 -> -7.558158331 | I15: =InpActive!I$61 -> 0 | J15: =InpActive!J$61 -> 0 | K15: =InpActive!K$61 -> 0 | L15: =InpActive!L$61 -> -2.051731722 | M15: =InpActive!M$61 -> -1.234475556 | N15: =InpActive!N$61 -> -0.6785387203 | O15: =InpActive!O$61 -> -1.820371914 | P15: =InpActive!P$61 -> -1.773040418 | Q15: =InpActive!Q$61 -> 0 | R15: =InpActive!R$61 -> 0 | S15: =InpActive!S$61 -> 0 | T15: =InpActive!T$61 -> 0 | U15: =InpActive!U$61 -> 0
D16: =InpActive!D$62 -> APP28RR_W00037 | E16: =InpActive!E$62 -> App 28 data (£m) Requisitioned mains (s43, s55 & s56) | F16: =InpActive!F$62 -> 0 | G16: =InpActive!G$62 -> £m | H16: =InpActive!H$62 -> 16.54969398 | I16: =InpActive!I$62 -> 0 | J16: =InpActive!J$62 -> 0 | K16: =InpActive!K$62 -> 0 | L16: =InpActive!L$62 -> 3.321937588 | M16: =InpActive!M$62 -> 3.316121934 | N16: =InpActive!N$62 -> 3.302045643 | O16: =InpActive!O$62 -> 3.306907471 | P16: =InpActive!P$62 -> 3.302681346 | Q16: =InpActive!Q$62 -> 0 | R16: =InpActive!R$62 -> 0 | S16: =InpActive!S$62 -> 0 | T16: =InpActive!T$62 -> 0 | U16: =InpActive!U$62 -> 0
D17: =InpActive!D$63 -> APP28RR_W00038 | E17: =InpActive!E$63 -> App 28 data (£m) Total value of income offset allowances | F17: =InpActive!F$63 -> 0 | G17: =InpActive!G$63 -> £m | H17: =InpActive!H$63 -> 18.06063613 | I17: =InpActive!I$63 -> 0 | J17: =InpActive!J$63 -> 0 | K17: =InpActive!K$63 -> 0 | L17: =InpActive!L$63 -> 3.612149602 | M17: =InpActive!M$63 -> 3.611873234 | N17: =InpActive!N$63 -> 3.6121702 | O17: =InpActive!O$63 -> 3.612237457 | P17: =InpActive!P$63 -> 3.61220564 | Q17: =InpActive!Q$63 -> 0 | R17: =InpActive!R$63 -> 0 | S17: =InpActive!S$63 -> 0 | T17: =InpActive!T$63 -> 0 | U17: =InpActive!U$63 -> 0
D18: =InpActive!D$99 -> BA1086PC overridden | E18: =InpActive!E$99 -> G&C received - water - other contributions (price control) - post-override | F18: =InpActive!F$99 -> 0 | G18: =InpActive!G$99 -> £m | H18: =InpActive!H$99 -> 0 | I18: =InpActive!I$99 -> 0 | J18: =InpActive!J$99 -> 0 | K18: =InpActive!K$99 -> 0 | L18: =InpActive!L$99 -> 0 | M18: =InpActive!M$99 -> 0 | N18: =InpActive!N$99 -> 0 | O18: =InpActive!O$99 -> 0 | P18: =InpActive!P$99 -> 0 | Q18: =InpActive!Q$99 -> 0 | R18: =InpActive!R$99 -> 0 | S18: =InpActive!S$99 -> 0 | T18: =InpActive!T$99 -> 0 | U18: =InpActive!U$99 -> 0
E19: Total Grants & Contributions - price control - water - 2017/18 FYA CPIH deflated | G19: £m | H19: =SUM(J19:U19) -> 46.35911485 | J19: =SUM(J13:J18) -> 0 | K19: =SUM(K13:K18) -> 0 | L19: 8.755938749 | M19: 9.56111104 | N19: 10.08876579 | O19: 8.957289942 | P19: 8.996009332 | Q19: 0 | R19: 0 | S19: 0 | T19: 0 | U19: 0
C21: Company View of new connections - from developer services data request
D22: =InpActive!D$83 -> APP28RR_W00018 | E22: =InpActive!E$83 -> Properties volume data - water New properties (residential) | F22: =InpActive!F$83 -> 0 | G22: =InpActive!G$83 -> number | H22: =InpActive!H$83 -> 29304 | I22: =InpActive!I$83 -> 0 | J22: =InpActive!J$83 -> 0 | K22: =InpActive!K$83 -> 0 | L22: =InpActive!L$83 -> 5890 | M22: =InpActive!M$83 -> 5873 | N22: =InpActive!N$83 -> 5857 | O22: =InpActive!O$83 -> 5847 | P22: =InpActive!P$83 -> 5837 | Q22: =InpActive!Q$83 -> 0 | R22: =InpActive!R$83 -> 0 | S22: =InpActive!S$83 -> 0 | T22: =InpActive!T$83 -> 0 | U22: =InpActive!U$83 -> 0
D23: =InpActive!D$84 -> APP28RR_W00019 | E23: =InpActive!E$84 -> Properties volume data - water New properties (business) | F23: =InpActive!F$84 -> 0 | G23: =InpActive!G$84 -> number | H23: =InpActive!H$84 -> 1642 | I23: =InpActive!I$84 -> 0 | J23: =InpActive!J$84 -> 0 | K23: =InpActive!K$84 -> 0 | L23: =InpActive!L$84 -> 300 | M23: =InpActive!M$84 -> 317 | N23: =InpActive!N$84 -> 332 | O23: =InpActive!O$84 -> 342 | P23: =InpActive!P$84 -> 351 | Q23: =InpActive!Q$84 -> 0 | R23: =InpActive!R$84 -> 0 | S23: =InpActive!S$84 -> 0 | T23: =InpActive!T$84 -> 0 | U23: =InpActive!U$84 -> 0
D24: =InpActive!D$85 -> APP28RR_W00021 | E24: =InpActive!E$85 -> Properties volume data - water New properties on NAV sites (residential) | F24: =InpActive!F$85 -> 0 | G24: =InpActive!G$85 -> number | H24: =InpActive!H$85 -> 0 | I24: =InpActive!I$85 -> 0 | J24: =InpActive!J$85 -> 0 | K24: =InpActive!K$85 -> 0 | L24: =InpActive!L$85 -> 0 | M24: =InpActive!M$85 -> 0 | N24: =InpActive!N$85 -> 0 | O24: =InpActive!O$85 -> 0 | P24: =InpActive!P$85 -> 0 | Q24: =InpActive!Q$85 -> 0 | R24: =InpActive!R$85 -> 0 | S24: =InpActive!S$85 -> 0 | T24: =InpActive!T$85 -> 0 | U24: =InpActive!U$85 -> 0
D25: =InpActive!D86 -> APP28RR_W00022 | E25: =InpActive!E86 -> Properties volume data - water New properties on NAV sites (business) | F25: =InpActive!F86 -> 0 | G25: =InpActive!G86 -> number | H25: =InpActive!H86 -> 0 | I25: =InpActive!I86 -> 0 | J25: =InpActive!J86 -> 0 | K25: =InpActive!K86 -> 0 | L25: =InpActive!L86 -> 0 | M25: =InpActive!M86 -> 0 | N25: =InpActive!N86 -> 0 | O25: =InpActive!O86 -> 0 | P25: =InpActive!P86 -> 0 | Q25: =InpActive!Q86 -> 0 | R25: =InpActive!R86 -> 0 | S25: =InpActive!S86 -> 0 | T25: =InpActive!T86 -> 0 | U25: =InpActive!U86 -> 0
E26: New connections - from developer services data request | G26: number | H26: =SUM(J26:U26) -> 30946 | J26: =SUM(J22:J25) -> 0 | K26: =SUM(K22:K25) -> 0 | L26: 6190 | M26: 6190 | N26: 6189 | O26: 6189 | P26: 6188 | Q26: 0 | R26: 0 | S26: 0 | T26: 0 | U26: 0
E28: =InpActive!E$44 -> Units in a million | F28: =InpActive!F$44 -> 1000000 | G28: =InpActive!G$44 -> unit
E29: =E$19 -> Total Grants & Contributions - price control - water - 2017/18 FYA CPIH deflated | F29: 0 | G29: £m | H29: 46.35911485 | I29: 0 | J29: 0 | K29: 0 | L29: 8.755938749 | M29: 9.56111104 | N29: 10.08876579 | O29: 8.957289942 | P29: 8.996009332 | Q29: 0 | R29: 0 | S29: 0 | T29: 0 | U29: 0
E30: =E$26 -> New connections - from developer services data request | F30: 0 | G30: number | H30: 30946 | I30: 0 | J30: 0 | K30: 0 | L30: 6190 | M30: 6190 | N30: 6189 | O30: 6189 | P30: 6188 | Q30: 0 | R30: 0 | S30: 0 | T30: 0 | U30: 0
D31: =InpActive!D151 -> PR19GC0050 overridden | E31: =InpActive!E151 -> Water efficiency challenge excluding scope challenge - (post override) | F31: =InpActive!F151 -> 0.02106610799 | G31: =InpActive!G151 -> %
E32: Unit rate - water | F32: 0 | G32: £/connection | J32: =IF(J30 = 0, 0, (J29 / J30) * (1 - $F$31) * $F$28) -> 0 | K32: 0 | L32: =IF(L30 = 0, 0, (L29 / L30) * (1 - $F$31) * $F$28) -> 1384.73105 | M32: =IF(M30 = 0, 0, (M29 / M30) * (1 - $F$31) * $F$28) -> 1512.067147 | N32: 1595.772299 | O32: 1416.803151 | P32: 1423.157471 | Q32: 0 | R32: 0 | S32: 0 | T32: 0 | U32: 0
E33: =E32 & " - 5 year average" -> Unit rate - water - 5 year average | F33: =AVERAGE(L32:P32) -> 1466.506224 | G33: =G32 -> £/connection
A36: Grants & Contributions - price control
B37: Take the company view of G&C and reduce by the OFWAT efficiency challenge
D38: =InpActive!D$63 -> APP28RR_W00038 | E38: =InpActive!E$63 -> App 28 data (£m) Total value of income offset allowances | F38: =InpActive!F$63 -> 0 | G38: =InpActive!G$63 -> £m | H38: =InpActive!H$63 -> 18.06063613 | I38: =InpActive!I$63 -> 0 | J38: =InpActive!J$63 -> 0 | K38: =InpActive!K$63 -> 0 | L38: =InpActive!L$63 -> 3.612149602 | M38: =InpActive!M$63 -> 3.611873234 | N38: =InpActive!N$63 -> 3.6121702 | O38: =InpActive!O$63 -> 3.612237457 | P38: =InpActive!P$63 -> 3.61220564 | Q38: =InpActive!Q$63 -> 0 | R38: =InpActive!R$63 -> 0 | S38: =InpActive!S$63 -> 0 | T38: =InpActive!T$63 -> 0 | U38: =InpActive!U$63 -> 0
E39: =E$19 -> Total Grants & Contributions - price control - water - 2017/18 FYA CPIH deflated | F39: =F$19 -> 0 | G39: £m | H39: 46.35911485 | I39: 0 | J39: 0 | K39: 0 | L39: 8.755938749 | M39: 9.56111104 | N39: 10.08876579 | O39: 8.957289942 | P39: 8.996009332 | Q39: 0 | R39: 0 | S39: 0 | T39: 0 | U39: 0
E40: Total Grants & Contributions - price control - water - including income offset | G40: £m | H40: =SUM(L40:P40) -> 46.35911485 | J40: =J39 -> 0 | K40: =K39 -> 0 | L40: =L39 -> 8.755938749 | M40: 9.56111104 | N40: 10.08876579 | O40: 8.957289942 | P40: 8.996009332 | Q40: 0 | R40: 0 | S40: 0 | T40: 0 | U40: 0
E42: =E40 -> Total Grants & Contributions - price control - water - including income offset | F42: =F40 -> 0 | G42: £m | H42: 46.35911485 | I42: 0 | J42: 0 | K42: 0 | L42: 8.755938749 | M42: 9.56111104 | N42: 10.08876579 | O42: 8.957289942 | P42: 8.996009332 | Q42: 0 | R42: 0 | S42: 0 | T42: 0 | U42: 0
E43: =InpActive!E$150 -> Water efficiency challenge - (post override) | F43: =InpActive!F$150 -> 0.04621504436 | G43: =InpActive!G$150 -> %
E44: Ofwat view of Grants & Contributions - price control - water | G44: £m | H44: =SUM(J44:U44) -> 44.2166263 | J44: =IF(J42 = 0, 0, J42 * (1 - $F$43)) -> 0 | K44: =IF(K42 = 0, 0, K42 * (1 - $F$43)) -> 0 | L44: =IF(L42 = 0, 0, L42 * (1 - $F$43)) -> 8.351282651 | M44: 9.119243869 | N44: 9.622513028 | O44: 8.54332839 | P44: 8.580258362 | Q44: 0 | R44: 0 | S44: 0 | T44: 0 | U44: 0
A47: Grants & Contributions - non price control
D48: NRSWA
B49: Calculate the implied recovery rate (for information only)
D50: =InpActive!D$76 -> APP28RR_W0006 | E50: =InpActive!E$76 -> Diversions income - water NRSWA | F50: =InpActive!F$76 -> 0 | G50: =InpActive!G$76 -> £m | H50: =InpActive!H$76 -> 2.305465195 | I50: =InpActive!I$76 -> 0 | J50: =InpActive!J$76 -> 0 | K50: =InpActive!K$76 -> 0 | L50: =InpActive!L$76 -> 0.461 | M50: =InpActive!M$76 -> 0.461 | N50: =InpActive!N$76 -> 0.461 | O50: =InpActive!O$76 -> 0.4612325973 | P50: =InpActive!P$76 -> 0.4612325973 | Q50: =InpActive!Q$76 -> 0 | R50: =InpActive!R$76 -> 0 | S50: =InpActive!S$76 -> 0 | T50: =InpActive!T$76 -> 0 | U50: =InpActive!U$76 -> 0
D51: =InpActive!D$69 -> APP28RR_W0002 | E51: =InpActive!E$69 -> Diversions expenditure - water NRSWA | F51: =InpActive!F$69 -> 0 | G51: =InpActive!G$69 -> £m | H51: =InpActive!H$69 -> 2.624822561 | I51: =InpActive!I$69 -> 0 | J51: =InpActive!J$69 -> 0 | K51: =InpActive!K$69 -> 0 | L51: =InpActive!L$69 -> 0.5077858751 | M51: =InpActive!M$69 -> 0.5077858751 | N51: =InpActive!N$69 -> 0.5189246959 | O51: =InpActive!O$69 -> 0.5451630575 | P51: =InpActive!P$69 -> 0.5451630575 | Q51: =InpActive!Q$69 -> 0 | R51: =InpActive!R$69 -> 0 | S51: =InpActive!S$69 -> 0 | T51: =InpActive!T$69 -> 0 | U51: =InpActive!U$69 -> 0
E52: Diversions costs recovered - water - NRSWA | G52: % | J52: =IF(J51 = 0, 0, J50 / J51) -> 0 | K52: =IF(K51 = 0, 0, K50 / K51) -> 0 | L52: =IF(L51 = 0, 0, L50 / L51) -> 0.9078629844 | M52: =IF(M51 = 0, 0, M50 / M51) -> 0.9078629844 | N52: 0.8883755266 | O52: 0.8460452169 | P52: 0.8460452169 | Q52: =IF(Q51 = 0, 0, Q50 / Q51) -> 0 | R52: =IF(R51 = 0, 0, R50 / R51) -> 0 | S52: =IF(S51 = 0, 0, S50 / S51) -> 0 | T52: =IF(T51 = 0, 0, T50 / T51) -> 0 | U52: =IF(U51 = 0, 0, U50 / U51) -> 0
B54: Calculate Ofwat's view of NRSWA diversions within the allowed range
E55: =InpActive!E$54 -> Diversions costs - water - NRSWA; unrecoverable assumption | F55: =InpActive!F$54 -> 0.18 | G55: =InpActive!G$54 -> %
D56: =InpActive!D$69 -> APP28RR_W0002 | E56: =InpActive!E$69 -> Diversions expenditure - water NRSWA | F56: =InpActive!F$69 -> 0 | G56: =InpActive!G$69 -> £m | H56: =InpActive!H$69 -> 2.624822561 | I56: =InpActive!I$69 -> 0 | J56: =InpActive!J$69 -> 0 | K56: =InpActive!K$69 -> 0 | L56: =InpActive!L$69 -> 0.5077858751 | M56: =InpActive!M$69 -> 0.5077858751 | N56: =InpActive!N$69 -> 0.5189246959 | O56: =InpActive!O$69 -> 0.5451630575 | P56: =InpActive!P$69 -> 0.5451630575 | Q56: =InpActive!Q$69 -> 0 | R56: =InpActive!R$69 -> 0 | S56: =InpActive!S$69 -> 0 | T56: =InpActive!T$69 -> 0 | U56: =InpActive!U$69 -> 0
E57: Ofwat view; Diversions income - water - NRSWA; minimum level | G57: £m | H57: =SUM(J57:U57) -> 2.1523545 | J57: =J56 * (1 - $F$55) -> 0 | K57: 0 | L57: =L56 * (1 - $F$55) -> 0.4163844176 | M57: =M56 * (1 - $F$55) -> 0.4163844176 | N57: 0.4255182507 | O57: 0.4470337072 | P57: 0.4470337072 | Q57: 0 | R57: 0 | S57: 0 | T57: 0 | U57: 0
E58: Ofwat view; Diversions income - water - NRSWA; maximum level | G58: £m | H58: =SUM(J58:U58) -> 2.624822561 | J58: =J56 -> 0 | K58: =K56 -> 0 | L58: 0.5077858751 | M58: 0.5077858751 | N58: 0.5189246959 | O58: 0.5451630575 | P58: 0.5451630575 | Q58: 0 | R58: 0 | S58: 0 | T58: =T56 -> 0 | U58: 0
E60: =E57 -> Ofwat view; Diversions income - water - NRSWA; minimum level | F60: =F57 -> 0 | G60: £m | H60: 2.1523545 | I60: 0 | J60: 0 | K60: 0 | L60: 0.4163844176 | M60: 0.4163844176 | N60: 0.4255182507 | O60: 0.4470337072 | P60: 0.4470337072 | Q60: 0 | R60: 0 | S60: 0 | T60: 0 | U60: 0
E61: =E58 -> Ofwat view; Diversions income - water - NRSWA; maximum level | F61: =F58 -> 0 | G61: £m | H61: 2.624822561 | I61: 0 | J61: 0 | K61: 0 | L61: 0.5077858751 | M61: 0.5077858751 | N61: 0.5189246959 | O61: 0.5451630575 | P61: 0.5451630575 | Q61: 0 | R61: 0 | S61: 0 | T61: 0 | U61: 0
D62: =InpActive!D$76 -> APP28RR_W0006 | E62: =InpActive!E$76 -> Diversions income - water NRSWA | F62: =InpActive!F$76 -> 0 | G62: =InpActive!G$76 -> £m | H62: =InpActive!H$76 -> 2.305465195 | I62: =InpActive!I$76 -> 0 | J62: =InpActive!J$76 -> 0 | K62: =InpActive!K$76 -> 0 | L62: =InpActive!L$76 -> 0.461 | M62: =InpActive!M$76 -> 0.461 | N62: =InpActive!N$76 -> 0.461 | O62: =InpActive!O$76 -> 0.4612325973 | P62: =InpActive!P$76 -> 0.4612325973 | Q62: =InpActive!Q$76 -> 0 | R62: =InpActive!R$76 -> 0 | S62: =InpActive!S$76 -> 0 | T62: =InpActive!T$76 -> 0 | U62: =InpActive!U$76 -> 0
E63: Ofwat view of Diversions income - water - NRSWA | G63: =InpActive!G$100 -> £m | H63: =SUM(J63:U63) -> 2.305465195 | J63: =IF(J62 < J60, J60, IF(J62 > J61, J61, J62)) -> 0 | K63: =IF(K62 < K60, K60, IF(K62 > K61, K61, K62)) -> 0 | L63: =IF(L62 < L60, L60, IF(L62 > L61, L61, L62)) -> 0.461 | M63: 0.461 | N63: 0.461 | O63: 0.4612325973 | P63: 0.4612325973 | Q63: 0 | R63: 0 | S63: 0 | T63: 0 | U63: 0
B65: Calculate the remaining unrecovered NRSWA diversions (to be used in cost sharing)
E66: =E63 -> Ofwat view of Diversions income - water - NRSWA | F66: =F63 -> 0 | G66: £m | H66: 2.305465195 | I66: 0 | J66: 0 | K66: 0 | L66: 0.461 | M66: 0.461 | N66: 0.461 | O66: 0.4612325973 | P66: 0.4612325973 | Q66: 0 | R66: 0 | S66: 0 | T66: 0 | U66: 0
D67: =InpActive!D$69 -> APP28RR_W0002 | E67: =InpActive!E$69 -> Diversions expenditure - water NRSWA | F67: =InpActive!F$69 -> 0 | G67: =InpActive!G$69 -> £m | H67: =InpActive!H$69 -> 2.624822561 | I67: =InpActive!I$69 -> 0 | J67: =InpActive!J$69 -> 0 | K67: =InpActive!K$69 -> 0 | L67: =InpActive!L$69 -> 0.5077858751 | M67: =InpActive!M$69 -> 0.5077858751 | N67: =InpActive!N$69 -> 0.5189246959 | O67: =InpActive!O$69 -> 0.5451630575 | P67: =InpActive!P$69 -> 0.5451630575 | Q67: =InpActive!Q$69 -> 0 | R67: =InpActive!R$69 -> 0 | S67: =InpActive!S$69 -> 0 | T67: =InpActive!T$69 -> 0 | U67: =InpActive!U$69 -> 0
E68: Ofwat view of Diversions costs unrecovered - water - NRSWA | G68: =InpActive!G$100 -> £m | H68: =SUM(J68:U68) -> 0.3193573667 | J68: =J67 - J66 -> 0 | K68: =K67 - K66 -> 0 | L68: 0.04678587511 | M68: 0.04678587511 | N68: 0.05792469592 | O68: 0.08393046026 | P68: 0.08393046026 | Q68: 0 | R68: 0 | S68: 0 | T68: 0 | U68: 0
D70: Other non-s185
B71: Put income = 100% of costs
D72: =InpActive!D$70 -> APP28RR_W0003 | E72: =InpActive!E$70 -> Diversions expenditure - water Other non-s185 | F72: =InpActive!F$70 -> 0 | G72: =InpActive!G$70 -> £m | H72: =InpActive!H$70 -> 0 | I72: =InpActive!I$70 -> 0 | J72: =InpActive!J$70 -> 0 | K72: =InpActive!K$70 -> 0 | L72: =InpActive!L$70 -> 0 | M72: =InpActive!M$70 -> 0 | N72: =InpActive!N$70 -> 0 | O72: =InpActive!O$70 -> 0 | P72: =InpActive!P$70 -> 0 | Q72: =InpActive!Q$70 -> 0 | R72: =InpActive!R$70 -> 0 | S72: =InpActive!S$70 -> 0 | T72: =InpActive!T$70 -> 0 | U72: =InpActive!U$70 -> 0
E73: Ofwat view of Diversions income - water - Other non-s185 | G73: =InpActive!G$100 -> £m | H73: =SUM( J73:U73) -> 0 | J73: =J72 -> 0 | K73: =K72 -> 0 | L73: 0 | M73: 0 | N73: 0 | O73: 0 | P73: 0 | Q73: 0 | R73: 0 | S73: 0 | T73: 0 | U73: 0
E75: =E63 -> Ofwat view of Diversions income - water - NRSWA | F75: =F63 -> 0 | G75: £m | H75: 2.305465195 | I75: 0 | J75: 0 | K75: 0 | L75: 0.461 | M75: 0.461 | N75: 0.461 | O75: 0.4612325973 | P75: 0.4612325973 | Q75: 0 | R75: 0 | S75: 0 | T75: 0 | U75: 0
E76: =E73 -> Ofwat view of Diversions income - water - Other non-s185 | F76: =F73 -> 0 | G76: £m | H76: 0 | I76: 0 | J76: 0 | K76: 0 | L76: 0 | M76: 0 | N76: 0 | O76: 0 | P76: 0 | Q76: 0 | R76: 0 | S76: 0 | T76: 0 | U76: 0
E77: Ofwat view of non price control Diversions income - water | F77: 0 | G77: £m | H77: =SUM(J77:U77) -> 2.305465195 | J77: =SUM(J75:J76) -> 0 | K77: 0 | L77: =SUM(L75:L76) -> 0.461 | M77: 0.461 | N77: 0.461 | O77: 0.4612325973 | P77: 0.4612325973 | Q77: 0 | R77: 0 | S77: 0 | T77: 0 | U77: 0
A80: Grants and contributions apportionment by opex/capex split
B81: Calculate the apportionment between opex and capex using the company's view from Wr3 and Wn3
C83: Price control
E84: =InpActive!E$112 -> Water network operating expenditure grants and contributions (price control) | F84: =InpActive!F$112 -> 0 | G84: =InpActive!G$112 -> £m | H84: =InpActive!H$112 -> 2.255838275 | I84: =InpActive!I$112 -> 0 | J84: =InpActive!J$112 -> 0 | K84: =InpActive!K$112 -> 0 | L84: =InpActive!L$112 -> 0.451 | M84: =InpActive!M$112 -> 0.451 | N84: =InpActive!N$112 -> 0.451 | O84: =InpActive!O$112 -> 0.4514191377 | P84: =InpActive!P$112 -> 0.4514191377 | Q84: =InpActive!Q$112 -> 0 | R84: =InpActive!R$112 -> 0 | S84: =InpActive!S$112 -> 0 | T84: =InpActive!T$112 -> 0 | U84: =InpActive!U$112 -> 0
E85: =InpActive!E$113 -> Water network capital expenditure grants and contributions (price control) | F85: =InpActive!F$113 -> 0 | G85: =InpActive!G$113 -> £m | H85: =InpActive!H$113 -> 26.04264044 | I85: =InpActive!I$113 -> 0 | J85: =InpActive!J$113 -> 0 | K85: =InpActive!K$113 -> 0 | L85: =InpActive!L$113 -> 4.692789146 | M85: =InpActive!M$113 -> 5.498237805 | N85: =InpActive!N$113 -> 6.025595586 | O85: =InpActive!O$113 -> 4.893633347 | P85: =InpActive!P$113 -> 4.932384555 | Q85: =InpActive!Q$113 -> 0 | R85: =InpActive!R$113 -> 0 | S85: =InpActive!S$113 -> 0 | T85: =InpActive!T$113 -> 0 | U85: =InpActive!U$113 -> 0
E86: =InpActive!E$118 -> Water resources operating expenditure grants and contributions (price control) | F86: =InpActive!F$118 -> 0 | G86: =InpActive!G$118 -> £m | H86: =InpActive!H$118 -> 0 | I86: =InpActive!I$118 -> 0 | J86: =InpActive!J$118 -> 0 | K86: =InpActive!K$118 -> 0 | L86: =InpActive!L$118 -> 0 | M86: =InpActive!M$118 -> 0 | N86: =InpActive!N$118 -> 0 | O86: =InpActive!O$118 -> 0 | P86: =InpActive!P$118 -> 0 | Q86: =InpActive!Q$118 -> 0 | R86: =InpActive!R$118 -> 0 | S86: =InpActive!S$118 -> 0 | T86: =InpActive!T$118 -> 0 | U86: =InpActive!U$118 -> 0
E87: =InpActive!E$119 -> Water resources capital expenditure grants and contributions (price control) | F87: =InpActive!F$119 -> 0 | G87: =InpActive!G$119 -> £m | H87: =InpActive!H$119 -> 0 | I87: =InpActive!I$119 -> 0 | J87: =InpActive!J$119 -> 0 | K87: =InpActive!K$119 -> 0 | L87: =InpActive!L$119 -> 0 | M87: =InpActive!M$119 -> 0 | N87: =InpActive!N$119 -> 0 | O87: =InpActive!O$119 -> 0 | P87: =InpActive!P$119 -> 0 | Q87: =InpActive!Q$119 -> 0 | R87: =InpActive!R$119 -> 0 | S87: =InpActive!S$119 -> 0 | T87: =InpActive!T$119 -> 0 | U87: =InpActive!U$119 -> 0
E88: G&C apportionment water network opex - price control - 2017/18 FYA CPIH deflated | G88: % | J88: =IF( SUM(J84:J87) = 0, 0, J84 / SUM(J84:J87)) -> 0 | K88: =IF( SUM(K84:K87) = 0, 0, K84 / SUM(K84:K87)) -> 0 | L88: 0.08767855508 | M88: 0.07580803033 | N88: 0.06963534993 | O88: 0.08445551077 | P88: 0.08384762215 | Q88: 0 | R88: 0 | S88: 0 | T88: 0 | U88: 0
E89: G&C apportionment water network capex - price control - 2017/18 FYA CPIH deflated | G89: % | J89: =IF( SUM(J84:J87) = 0, 0, J85 / SUM(J84:J87)) -> 0 | K89: =IF( SUM(K84:K87) = 0, 0, K85 / SUM(K84:K87)) -> 0 | L89: 0.9123214449 | M89: 0.9241919697 | N89: 0.9303646501 | O89: 0.9155444892 | P89: 0.9161523778 | Q89: 0 | R89: 0 | S89: 0 | T89: 0 | U89: 0
E90: G&C apportionment water resources opex - price control - 2017/18 FYA CPIH deflated | G90: % | J90: =IF( SUM(J84:J87) = 0, 0, J86 / SUM(J84:J87)) -> 0 | K90: =IF( SUM(K84:K87) = 0, 0, K86 / SUM(K84:K87)) -> 0 | L90: 0 | M90: 0 | N90: 0 | O90: 0 | P90: 0 | Q90: 0 | R90: 0 | S90: 0 | T90: 0 | U90: 0
E91: G&C apportionment water resources capex - price control - 2017/18 FYA CPIH deflated | G91: % | J91: =IF( SUM(J84:J87) = 0, 0, J87 / SUM(J84:J87)) -> 0 | K91: =IF( SUM(K84:K87) = 0, 0, K87 / SUM(K84:K87)) -> 0 | L91: 0 | M91: 0 | N91: 0 | O91: 0 | P91: 0 | Q91: 0 | R91: 0 | S91: 0 | T91: 0 | U91: 0
E93: =E$44 -> Ofwat view of Grants & Contributions - price control - water | F93: =F$44 -> 0 | G93: £m | H93: 44.2166263 | I93: 0 | J93: 0 | K93: 0 | L93: 8.351282651 | M93: 9.119243869 | N93: 9.622513028 | O93: 8.54332839 | P93: 8.580258362 | Q93: 0 | R93: 0 | S93: 0 | T93: 0 | U93: 0
E94: =E$88 -> G&C apportionment water network opex - price control - 2017/18 FYA CPIH deflated | F94: =F$88 -> 0 | G94: % | H94: 0 | I94: 0 | J94: 0 | K94: 0 | L94: 0.08767855508 | M94: 0.07580803033 | N94: 0.06963534993 | O94: 0.08445551077 | P94: 0.08384762215 | Q94: 0 | R94: 0 | S94: 0 | T94: 0 | U94: 0
E95: =E$89 -> G&C apportionment water network capex - price control - 2017/18 FYA CPIH deflated | F95: 0 | G95: % | H95: 0 | I95: 0 | J95: =J$89 -> 0 | K95: 0 | L95: 0.9123214449 | M95: 0.9241919697 | N95: 0.9303646501 | O95: 0.9155444892 | P95: 0.9161523778 | Q95: 0 | R95: 0 | S95: 0 | T95: 0 | U95: 0
E96: =E$90 -> G&C apportionment water resources opex - price control - 2017/18 FYA CPIH deflated | F96: =F$90 -> 0 | G96: % | H96: 0 | I96: 0 | J96: 0 | K96: 0 | L96: 0 | M96: 0 | N96: 0 | O96: 0 | P96: 0 | Q96: 0 | R96: 0 | S96: 0 | T96: 0 | U96: 0
E97: =E$91 -> G&C apportionment water resources capex - price control - 2017/18 FYA CPIH deflated | F97: 0 | G97: % | H97: 0 | I97: 0 | J97: 0 | K97: 0 | L97: 0 | M97: 0 | N97: 0 | O97: 0 | P97: 0 | Q97: 0 | R97: 0 | S97: 0 | T97: 0 | U97: 0
E98: =InpActive!E$135 -> Ofwat view of G&C for opex - water network - price control (override) | F98: =InpActive!F$135 -> 0 | G98: =InpActive!G$135 -> £m | H98: =InpActive!H$135 -> 0 | I98: =InpActive!I$135 -> 0 | J98: =InpActive!J$135 -> 0 | K98: =InpActive!K$135 -> 0 | L98: =InpActive!L$135 -> 0 | M98: =InpActive!M$135 -> 0 | N98: =InpActive!N$135 -> 0 | O98: =InpActive!O$135 -> 0 | P98: =InpActive!P$135 -> 0 | Q98: =InpActive!Q$135 -> 0 | R98: =InpActive!R$135 -> 0 | S98: =InpActive!S$135 -> 0 | T98: =InpActive!T$135 -> 0 | U98: =InpActive!U$135 -> 0
E99: Ofwat view of G&C for opex - water network - price control (post-override) | G99: £m | H99: =SUM(J99:U99) -> 3.534572798 | J99: =IF(J98 = 0, J94 * J$93, J98) -> 0 | K99: 0 | L99: 0.7322283959 | M99: 0.6913119158 | N99: 0.6700670619 | O99: 0.7215311629 | P99: 0.7194342611 | Q99: 0 | R99: 0 | S99: 0 | T99: 0 | U99: 0
E100: =InpActive!E$133 -> Ofwat view of G&C for capex - water network - price control (override) | F100: =InpActive!F$133 -> 0 | G100: =InpActive!G$133 -> £m | H100: =InpActive!H$133 -> 0 | I100: =InpActive!I$133 -> 0 | J100: =InpActive!J$133 -> 0 | K100: =InpActive!K$133 -> 0 | L100: =InpActive!L$133 -> 0 | M100: =InpActive!M$133 -> 0 | N100: =InpActive!N$133 -> 0 | O100: =InpActive!O$133 -> 0 | P100: =InpActive!P$133 -> 0 | Q100: =InpActive!Q$133 -> 0 | R100: =InpActive!R$133 -> 0 | S100: =InpActive!S$133 -> 0 | T100: =InpActive!T$133 -> 0 | U100: =InpActive!U$133 -> 0
E101: Ofwat view of G&C for capex - water network - price control (post-override) | G101: £m | H101: =SUM(J101:U101) -> 40.6820535 | J101: =IF(J100 = 0, J95 * J$93, J100) -> 0 | K101: 0 | L101: 7.619054255 | M101: 8.427931953 | N101: 8.952445966 | O101: 7.821797227 | P101: 7.860824101 | Q101: 0 | R101: 0 | S101: 0 | T101: 0 | U101: 0
E102: =InpActive!E$140 -> Ofwat view of G&C for opex - water resources - price control (override) | F102: =InpActive!F$140 -> 0 | G102: =InpActive!G$140 -> £m | H102: =InpActive!H$140 -> 0 | I102: =InpActive!I$140 -> 0 | J102: =InpActive!J$140 -> 0 | K102: =InpActive!K$140 -> 0 | L102: =InpActive!L$140 -> 0 | M102: =InpActive!M$140 -> 0 | N102: =InpActive!N$140 -> 0 | O102: =InpActive!O$140 -> 0 | P102: =InpActive!P$140 -> 0 | Q102: =InpActive!Q$140 -> 0 | R102: =InpActive!R$140 -> 0 | S102: =InpActive!S$140 -> 0 | T102: =InpActive!T$140 -> 0 | U102: =InpActive!U$140 -> 0
E103: Ofwat view of G&C for opex - water resources - price control (post-override) | G103: £m | H103: =SUM(J103:U103) -> 0 | J103: =IF(J102 = 0, J96 * J$93, J102) -> 0 | K103: 0 | L103: 0 | M103: 0 | N103: 0 | O103: 0 | P103: 0 | Q103: 0 | R103: 0 | S103: 0 | T103: 0 | U103: 0
E104: =InpActive!E$138 -> Ofwat view of G&C for capex - water resources - price control (override) | F104: =InpActive!F$138 -> 0 | G104: =InpActive!G$138 -> £m | H104: =InpActive!H$138 -> 0 | I104: =InpActive!I$138 -> 0 | J104: =InpActive!J$138 -> 0 | K104: =InpActive!K$138 -> 0 | L104: =InpActive!L$138 -> 0 | M104: =InpActive!M$138 -> 0 | N104: =InpActive!N$138 -> 0 | O104: =InpActive!O$138 -> 0 | P104: =InpActive!P$138 -> 0 | Q104: =InpActive!Q$138 -> 0 | R104: =InpActive!R$138 -> 0 | S104: =InpActive!S$138 -> 0 | T104: =InpActive!T$138 -> 0 | U104: =InpActive!U$138 -> 0
E105: Ofwat view of G&C for capex - water resources - price control (post-override) | G105: £m | H105: =SUM(J105:U105) -> 0 | J105: =IF(J104 = 0, J97 * J$93, J104) -> 0 | K105: 0 | L105: 0 | M105: 0 | N105: 0 | O105: 0 | P105: 0 | Q105: 0 | R105: 0 | S105: 0 | T105: 0 | U105: 0
C107: Non price control
B108: Apportion other non price control contributions using PRICE CONTROL proportions
B110: Calculate non price control income in excess of OFWAT allowance for diversions - will be zero unless there are grants forecast in line 28 App 28 which are in excess of those already calculated for non pc diversions.
D111: =InpActive!D$100 -> BA1086NPC overridden | E111: =InpActive!E$100 -> G&C received - water - other contributions (non-price control) - post-override | F111: =InpActive!F$100 -> 0 | G111: =InpActive!G$100 -> £m | H111: =InpActive!H$100 -> 13.61948965 | I111: =InpActive!I$100 -> 0 | J111: =InpActive!J$100 -> 0 | K111: =InpActive!K$100 -> 0 | L111: =InpActive!L$100 -> 4.466892155 | M111: =InpActive!M$100 -> 3.899892155 | N111: =InpActive!N$100 -> 3.89887448 | O111: =InpActive!O$100 -> 0.6769154301 | P111: =InpActive!P$100 -> 0.6769154301 | Q111: =InpActive!Q$100 -> 0 | R111: =InpActive!R$100 -> 0 | S111: =InpActive!S$100 -> 0 | T111: =InpActive!T$100 -> 0 | U111: =InpActive!U$100 -> 0
E112: =E77 -> Ofwat view of non price control Diversions income - water | F112: =F77 -> 0 | G112: £m | H112: 2.305465195 | I112: 0 | J112: 0 | K112: 0 | L112: 0.461 | M112: 0.461 | N112: 0.461 | O112: 0.4612325973 | P112: 0.4612325973 | Q112: 0 | R112: 0 | S112: 0 | T112: 0 | U112: 0
E113: Non price control G&C income forecast in excess of OFWAT allowance for non pc diversions - water | F113: 0 | G113: £m | H113: =SUM(L113:P113) -> 11.31402446 | J113: =IF($H$111 < $H$112, 0, J111 - J112) -> 0 | K113: =IF($H$111 < $H$112, 0, K111 - K112) -> 0 | L113: 4.005892155 | M113: =IF($H$111 < $H$112, 0, M111 - M112) -> 3.438892155 | N113: 3.43787448 | O113: =IF($H$111 < $H$112, 0, O111 - O112) -> 0.2156828328 | P113: =IF($H$111 < $H$112, 0, P111 - P112) -> 0.2156828328 | Q113: 0 | R113: 0 | S113: 0 | T113: 0 | U113: 0
E115: =E113 -> Non price control G&C income forecast in excess of OFWAT allowance for non pc diversions - water | F115: =F113 -> 0 | G115: £m | H115: 11.31402446 | I115: 0 | J115: 0 | K115: 0 | L115: 4.005892155 | M115: 3.438892155 | N115: 3.43787448 | O115: 0.2156828328 | P115: 0.2156828328 | Q115: 0 | R115: 0 | S115: 0 | T115: 0 | U115: 0
E116: =E$88 -> G&C apportionment water network opex - price control - 2017/18 FYA CPIH deflated | F116: =F$88 -> 0 | G116: % | H116: 0 | I116: 0 | J116: 0 | K116: 0 | L116: 0.08767855508 | M116: 0.07580803033 | N116: 0.06963534993 | O116: 0.08445551077 | P116: 0.08384762215 | Q116: 0 | R116: 0 | S116: 0 | T116: 0 | U116: 0
E117: =E$89 -> G&C apportionment water network capex - price control - 2017/18 FYA CPIH deflated | F117: =F$89 -> 0 | G117: % | H117: 0 | I117: 0 | J117: 0 | K117: 0 | L117: 0.9123214449 | M117: 0.9241919697 | N117: 0.9303646501 | O117: 0.9155444892 | P117: 0.9161523778 | Q117: 0 | R117: 0 | S117: 0 | T117: 0 | U117: 0
E118: =E$90 -> G&C apportionment water resources opex - price control - 2017/18 FYA CPIH deflated | F118: =F$90 -> 0 | G118: % | H118: 0 | I118: 0 | J118: 0 | K118: 0 | L118: 0 | M118: 0 | N118: 0 | O118: 0 | P118: 0 | Q118: 0 | R118: 0 | S118: 0 | T118: 0 | U118: 0
E119: =E$91 -> G&C apportionment water resources capex - price control - 2017/18 FYA CPIH deflated | F119: =F$91 -> 0 | G119: % | H119: 0 | I119: 0 | J119: 0 | K119: 0 | L119: 0 | M119: 0 | N119: 0 | O119: 0 | P119: 0 | Q119: 0 | R119: 0 | S119: 0 | T119: 0 | U119: 0
E120: =InpActive!E$136 -> Ofwat view of G&C for opex - water network - non price control (override) | F120: =InpActive!F$136 -> 0 | G120: =InpActive!G$136 -> £m | H120: =InpActive!H$136 -> 0 | I120: =InpActive!I$136 -> 0 | J120: =InpActive!J$136 -> 0 | K120: =InpActive!K$136 -> 0 | L120: =InpActive!L$136 -> 0 | M120: =InpActive!M$136 -> 0 | N120: =InpActive!N$136 -> 0 | O120: =InpActive!O$136 -> 0 | P120: =InpActive!P$136 -> 0 | Q120: =InpActive!Q$136 -> 0 | R120: =InpActive!R$136 -> 0 | S120: =InpActive!S$136 -> 0 | T120: =InpActive!T$136 -> 0 | U120: =InpActive!U$136 -> 0
E121: Ofwat view of other G&C for opex - water network - non price control (post-override) | G121: £m | H121: =SUM(J121:U121) -> 0.8876241657 | J121: =IF(J120 = 0, J$115 * J116, J120) -> 0 | K121: =IF(K120 = 0, K$115 * K116, K120) -> 0 | L121: 0.351230836 | M121: 0.2606956408 | N121: 0.2393975925 | O121: 0.01821560381 | P121: 0.01808449267 | Q121: 0 | R121: 0 | S121: 0 | T121: 0 | U121: 0
E122: =InpActive!E$134 -> Ofwat view of G&C for capex - water network - non price control (override) | F122: =InpActive!F$134 -> 0 | G122: =InpActive!G$134 -> £m | H122: =InpActive!H$134 -> 0 | I122: =InpActive!I$134 -> 0 | J122: =InpActive!J$134 -> 0 | K122: =InpActive!K$134 -> 0 | L122: =InpActive!L$134 -> 0 | M122: =InpActive!M$134 -> 0 | N122: =InpActive!N$134 -> 0 | O122: =InpActive!O$134 -> 0 | P122: =InpActive!P$134 -> 0 | Q122: =InpActive!Q$134 -> 0 | R122: =InpActive!R$134 -> 0 | S122: =InpActive!S$134 -> 0 | T122: =InpActive!T$134 -> 0 | U122: =InpActive!U$134 -> 0
E123: Ofwat view of G&C for capex - water network - non price control (post-override) | G123: £m | H123: =SUM(J123:U123) -> 10.42640029 | J123: =IF(J122 = 0, J$115 * J117, J122) -> 0 | K123: =IF(K122 = 0, K$115 * K117, K122) -> 0 | L123: 3.654661319 | M123: 3.178196514 | N123: 3.198476888 | O123: 0.197467229 | P123: 0.1975983402 | Q123: 0 | R123: 0 | S123: 0 | T123: 0 | U123: 0
E124: =InpActive!E$141 -> Ofwat view of G&C for opex - water resources - non price control (override) | F124: =InpActive!F$141 -> 0 | G124: =InpActive!G$141 -> £m | H124: =InpActive!H$141 -> 0 | I124: =InpActive!I$141 -> 0 | J124: =InpActive!J$141 -> 0 | K124: =InpActive!K$141 -> 0 | L124: =InpActive!L$141 -> 0 | M124: =InpActive!M$141 -> 0 | N124: =InpActive!N$141 -> 0 | O124: =InpActive!O$141 -> 0 | P124: =InpActive!P$141 -> 0 | Q124: =InpActive!Q$141 -> 0 | R124: =InpActive!R$141 -> 0 | S124: =InpActive!S$141 -> 0 | T124: =InpActive!T$141 -> 0 | U124: =InpActive!U$141 -> 0
E125: Ofwat view of G&C for opex - water resources - non price control (post-override) | G125: £m | H125: =SUM(J125:U125) -> 0 | J125: =IF(J124 = 0, J$115 * J118, J124) -> 0 | K125: =IF(K124 = 0, K$115 * K118, K124) -> 0 | L125: 0 | M125: 0 | N125: 0 | O125: 0 | P125: 0 | Q125: 0 | R125: 0 | S125: 0 | T125: 0 | U125: 0
E126: =InpActive!E$139 -> Ofwat view of G&C for capex - water resources - non price control (override) | F126: =InpActive!F$139 -> 0 | G126: =InpActive!G$139 -> £m | H126: =InpActive!H$139 -> 0 | I126: =InpActive!I$139 -> 0 | J126: =InpActive!J$139 -> 0 | K126: =InpActive!K$139 -> 0 | L126: =InpActive!L$139 -> 0 | M126: =InpActive!M$139 -> 0 | N126: =InpActive!N$139 -> 0 | O126: =InpActive!O$139 -> 0 | P126: =InpActive!P$139 -> 0 | Q126: =InpActive!Q$139 -> 0 | R126: =InpActive!R$139 -> 0 | S126: =InpActive!S$139 -> 0 | T126: =InpActive!T$139 -> 0 | U126: =InpActive!U$139 -> 0
E127: Ofwat view of G&C for capex - water resources - non price control (post-override) | G127: £m | H127: =SUM(J127:U127) -> 0 | J127: =IF(J126 = 0, J$115 * J119, J126) -> 0 | K127: =IF(K126 = 0, K$115 * K119, K126) -> 0 | L127: 0 | M127: 0 | N127: 0 | O127: 0 | P127: 0 | Q127: 0 | R127: 0 | S127: 0 | T127: 0 | U127: 0
B129: Assume non price control diversions income is Water network opex and add the calculated proportion of other contributions
E130: =E77 -> Ofwat view of non price control Diversions income - water | F130: =F77 -> 0 | G130: £m | H130: 2.305465195 | I130: 0 | J130: 0 | K130: 0 | L130: 0.461 | M130: 0.461 | N130: 0.461 | O130: 0.4612325973 | P130: 0.4612325973 | Q130: 0 | R130: 0 | S130: 0 | T130: 0 | U130: 0
E131: =E121 -> Ofwat view of other G&C for opex - water network - non price control (post-override) | F131: =F121 -> 0 | G131: £m | H131: 0.8876241657 | I131: 0 | J131: 0 | K131: 0 | L131: 0.351230836 | M131: 0.2606956408 | N131: 0.2393975925 | O131: 0.01821560381 | P131: 0.01808449267 | Q131: 0 | R131: 0 | S131: 0 | T131: 0 | U131: 0
E132: Ofwat view of G&C for opex - water network - non price control (post-override) | G132: £m | H132: =SUM(J132:U132) -> 3.19308936 | I132: =I131 -> 0 | J132: =SUM(J130:J131) -> 0 | K132: =SUM(K130:K131) -> 0 | L132: 0.812230836 | M132: 0.7216956408 | N132: 0.7003975925 | O132: 0.4794482011 | P132: 0.4793170899 | Q132: 0 | R132: 0 | S132: 0 | T132: 0 | U132: 0
A135: Check on data sources for new connections - water
B136: Compare the new connections data in the developer services data request with that in App28 of the business plans
C137: Company View of new connections - from Business Plan
E138: =InpActive!E$42 -> Thousands in a million | F138: =InpActive!F$42 -> 1000 | G138: =InpActive!G$42 -> thousand
D139: =InpActive!D$94 -> APP280036 | E139: =InpActive!E$94 -> Activity forecasts ~ wholesale water service - Total number of new residential connections | F139: =InpActive!F$94 -> 0 | G139: =InpActive!G$94 -> 000's | H139: =InpActive!H$94 -> 38.80893273 | I139: =InpActive!I$94 -> 0 | J139: =InpActive!J$94 -> 0 | K139: =InpActive!K$94 -> 0 | L139: =InpActive!L$94 -> 8.502704482 | M139: =InpActive!M$94 -> 8.031368253 | N139: =InpActive!N$94 -> 7.64668554 | O139: =InpActive!O$94 -> 7.413547899 | P139: =InpActive!P$94 -> 7.214626559 | Q139: =InpActive!Q$94 -> 0 | R139: =InpActive!R$94 -> 0 | S139: =InpActive!S$94 -> 0 | T139: =InpActive!T$94 -> 0 | U139: =InpActive!U$94 -> 0
D140: =InpActive!D$95 -> APP280037 | E140: =InpActive!E$95 -> Activity forecasts ~ wholesale water service - Total number of new business connections | F140: =InpActive!F$95 -> 0 | G140: =InpActive!G$95 -> 000's | H140: =InpActive!H$95 -> 2.240054611 | I140: =InpActive!I$95 -> 0 | J140: =InpActive!J$95 -> 0 | K140: =InpActive!K$95 -> 0 | L140: =InpActive!L$95 -> 0.4480109222 | M140: =InpActive!M$95 -> 0.4480109222 | N140: =InpActive!N$95 -> 0.4480109222 | O140: =InpActive!O$95 -> 0.4480109222 | P140: =InpActive!P$95 -> 0.4480109222 | Q140: =InpActive!Q$95 -> 0 | R140: =InpActive!R$95 -> 0 | S140: =InpActive!S$95 -> 0 | T140: =InpActive!T$95 -> 0 | U140: =InpActive!U$95 -> 0
E141: New connections - from Business Plan | G141: number | H141: =SUM(J141:U141) -> 41048.98735 | J141: =SUM(J139:J140) * $F$138 -> 0 | K141: 0 | L141: 8950.715405 | M141: 8479.379175 | N141: 8094.696462 | O141: 7861.558822 | P141: 7662.637482 | Q141: 0 | R141: 0 | S141: 0 | T141: 0 | U141: 0
E143: =E$26 -> New connections - from developer services data request | F143: 0 | G143: number | H143: 30946 | I143: 0 | J143: 0 | K143: 0 | L143: 6190 | M143: 6190 | N143: 6189 | O143: 6189 | P143: 6188 | Q143: 0 | R143: 0 | S143: 0 | T143: 0 | U143: 0
E144: =E$141 -> New connections - from Business Plan | F144: 0 | G144: number | H144: 41048.98735 | I144: 0 | J144: 0 | K144: 0 | L144: 8950.715405 | M144: 8479.379175 | N144: 8094.696462 | O144: 7861.558822 | P144: 7662.637482 | Q144: 0 | R144: 0 | S144: 0 | T144: 0 | U144: 0
E145: Check resubmitted 'new connections' against Business Plan App28 - water | F145: =IF( SUM(L145:P145) > 0, 1, 0) -> 1 | G145: alert | J145: =IF( ABS(J143 - J144) > CHK_TOL, 1, 0) -> 0 | K145: 0 | L145: 1 | M145: 1 | N145: 1 | O145: 1 | P145: 1 | Q145: 0 | R145: 0 | S145: 0 | T145: 0 | U145: 0
A147: WATER GRANTS & CONTRIBUTIONS net of income offset (for use in financial modelling)
A149: Grants & Contributions - price control
B150: Take the company view of G&C and reduce by the OFWAT efficiency challenge
D151: =InpActive!D$63 -> APP28RR_W00038 | E151: =InpActive!E$63 -> App 28 data (£m) Total value of income offset allowances | F151: =InpActive!F$63 -> 0 | G151: =InpActive!G$63 -> £m | H151: =InpActive!H$63 -> 18.06063613 | I151: =InpActive!I$63 -> 0 | J151: =InpActive!J$63 -> 0 | K151: =InpActive!K$63 -> 0 | L151: =InpActive!L$63 -> 3.612149602 | M151: =InpActive!M$63 -> 3.611873234 | N151: =InpActive!N$63 -> 3.6121702 | O151: =InpActive!O$63 -> 3.612237457 | P151: =InpActive!P$63 -> 3.61220564 | Q151: =InpActive!Q$63 -> 0 | R151: =InpActive!R$63 -> 0 | S151: =InpActive!S$63 -> 0 | T151: =InpActive!T$63 -> 0 | U151: =InpActive!U$63 -> 0
E152: =E$19 -> Total Grants & Contributions - price control - water - 2017/18 FYA CPIH deflated | F152: =F$19 -> 0 | G152: £m | H152: 46.35911485 | I152: 0 | J152: 0 | K152: 0 | L152: 8.755938749 | M152: 9.56111104 | N152: 10.08876579 | O152: 8.957289942 | P152: 8.996009332 | Q152: 0 | R152: 0 | S152: 0 | T152: 0 | U152: 0
E153: Total Grants & Contributions - price control - water - net of income offset | G153: £m | H153: =SUM(L153:P153) -> 28.29847871 | J153: =J152 - J151 -> 0 | K153: =K152 - K151 -> 0 | L153: 5.143789146 | M153: 5.949237805 | N153: 6.476595586 | O153: 5.345052485 | P153: 5.383803692 | Q153: 0 | R153: 0 | S153: 0 | T153: 0 | U153: 0
E155: =E153 -> Total Grants & Contributions - price control - water - net of income offset | F155: =F153 -> 0 | G155: £m | H155: 28.29847871 | I155: 0 | J155: 0 | K155: 0 | L155: 5.143789146 | M155: 5.949237805 | N155: 6.476595586 | O155: 5.345052485 | P155: 5.383803692 | Q155: 0 | R155: 0 | S155: 0 | T155: 0 | U155: 0
E156: =InpActive!E$150 -> Water efficiency challenge - (post override) | F156: =InpActive!F$150 -> 0.04621504436 | G156: =InpActive!G$150 -> %
E157: Ofwat view of Grants & Contributions net of income offset - price control - water | G157: £m | H157: =SUM(J157:U157) -> 26.99066327 | J157: =IF(J155 = 0, 0, J155 * (1 - $F$43)) -> 0 | K157: =IF(K155 = 0, 0, K155 * (1 - $F$43)) -> 0 | L157: =IF(L155 = 0, 0, L155 * (1 - $F$43)) -> 4.906068703 | M157: =IF(M155 = 0, 0, M155 * (1 - $F$43)) -> 5.674293516 | N157: 6.177279434 | O157: 5.098030647 | P157: 5.134990966 | Q157: 0 | R157: 0 | S157: 0 | T157: 0 | U157: 0
E159: =E$157 -> Ofwat view of Grants & Contributions net of income offset - price control - water | F159: =F$157 -> 0 | G159: £m | H159: 26.99066327 | I159: 0 | J159: 0 | K159: 0 | L159: =L$157 -> 4.906068703 | M159: 5.674293516 | N159: 6.177279434 | O159: 5.098030647 | P159: 5.134990966 | Q159: 0 | R159: 0 | S159: 0 | T159: 0 | U159: 0
E160: =E$88 -> G&C apportionment water network opex - price control - 2017/18 FYA CPIH deflated | F160: =F$88 -> 0 | G160: % | H160: 0 | I160: 0 | J160: 0 | K160: 0 | L160: 0.08767855508 | M160: 0.07580803033 | N160: 0.06963534993 | O160: 0.08445551077 | P160: 0.08384762215 | Q160: 0 | R160: 0 | S160: 0 | T160: 0 | U160: 0
E161: =E$89 -> G&C apportionment water network capex - price control - 2017/18 FYA CPIH deflated | F161: 0 | G161: % | H161: 0 | I161: 0 | J161: =J$89 -> 0 | K161: 0 | L161: 0.9123214449 | M161: 0.9241919697 | N161: 0.9303646501 | O161: 0.9155444892 | P161: 0.9161523778 | Q161: 0 | R161: 0 | S161: 0 | T161: 0 | U161: 0
E162: =E$90 -> G&C apportionment water resources opex - price control - 2017/18 FYA CPIH deflated | F162: =F$90 -> 0 | G162: % | H162: 0 | I162: 0 | J162: 0 | K162: 0 | L162: 0 | M162: 0 | N162: 0 | O162: 0 | P162: 0 | Q162: 0 | R162: 0 | S162: 0 | T162: 0 | U162: 0
E163: =E$91 -> G&C apportionment water resources capex - price control - 2017/18 FYA CPIH deflated | F163: 0 | G163: % | H163: 0 | I163: 0 | J163: 0 | K163: 0 | L163: 0 | M163: 0 | N163: 0 | O163: 0 | P163: 0 | Q163: 0 | R163: 0 | S163: 0 | T163: 0 | U163: 0
E164: =InpActive!E$135 -> Ofwat view of G&C for opex - water network - price control (override) | F164: =InpActive!F$135 -> 0 | G164: =InpActive!G$135 -> £m | H164: =InpActive!H$135 -> 0 | I164: =InpActive!I$135 -> 0 | J164: =InpActive!J$135 -> 0 | K164: =InpActive!K$135 -> 0 | L164: =InpActive!L$135 -> 0 | M164: =InpActive!M$135 -> 0 | N164: =InpActive!N$135 -> 0 | O164: =InpActive!O$135 -> 0 | P164: =InpActive!P$135 -> 0 | Q164: =InpActive!Q$135 -> 0 | R164: =InpActive!R$135 -> 0 | S164: =InpActive!S$135 -> 0 | T164: =InpActive!T$135 -> 0 | U164: =InpActive!U$135 -> 0
E165: Ofwat view of G&C for opex net of income offset - water network - price control (post-override) | G165: £m | H165: =SUM(J165:U165) -> 2.15158461 | J165: =IF(J164 = 0, J160 * J$159, J164) -> 0 | K165: 0 | L165: 0.430157015 | M165: 0.430157015 | N165: 0.430157015 | O165: 0.4305567823 | P165: 0.4305567823 | Q165: 0 | R165: 0 | S165: 0 | T165: 0 | U165: 0
E166: =InpActive!E$133 -> Ofwat view of G&C for capex - water network - price control (override) | F166: =InpActive!F$133 -> 0 | G166: =InpActive!G$133 -> £m | H166: =InpActive!H$133 -> 0 | I166: =InpActive!I$133 -> 0 | J166: =InpActive!J$133 -> 0 | K166: =InpActive!K$133 -> 0 | L166: =InpActive!L$133 -> 0 | M166: =InpActive!M$133 -> 0 | N166: =InpActive!N$133 -> 0 | O166: =InpActive!O$133 -> 0 | P166: =InpActive!P$133 -> 0 | Q166: =InpActive!Q$133 -> 0 | R166: =InpActive!R$133 -> 0 | S166: =InpActive!S$133 -> 0 | T166: =InpActive!T$133 -> 0 | U166: =InpActive!U$133 -> 0
E167: Ofwat view of G&C for capex net of income offset - water network - price control (post-override) | G167: £m | H167: =SUM(J167:U167) -> 24.83907866 | J167: =IF(J166 = 0, J161 * J$159, J166) -> 0 | K167: 0 | L167: 4.475911688 | M167: 5.244136501 | N167: 5.747122419 | O167: 4.667473865 | P167: 4.704434184 | Q167: 0 | R167: 0 | S167: 0 | T167: 0 | U167: 0
E168: =InpActive!E$140 -> Ofwat view of G&C for opex - water resources - price control (override) | F168: =InpActive!F$140 -> 0 | G168: =InpActive!G$140 -> £m | H168: =InpActive!H$140 -> 0 | I168: =InpActive!I$140 -> 0 | J168: =InpActive!J$140 -> 0 | K168: =InpActive!K$140 -> 0 | L168: =InpActive!L$140 -> 0 | M168: =InpActive!M$140 -> 0 | N168: =InpActive!N$140 -> 0 | O168: =InpActive!O$140 -> 0 | P168: =InpActive!P$140 -> 0 | Q168: =InpActive!Q$140 -> 0 | R168: =InpActive!R$140 -> 0 | S168: =InpActive!S$140 -> 0 | T168: =InpActive!T$140 -> 0 | U168: =InpActive!U$140 -> 0
E169: Ofwat view of G&C for opex net of income offset - water resources - price control (post-override) | G169: £m | H169: =SUM(J169:U169) -> 0 | J169: =IF(J168 = 0, J162 * J$159, J168) -> 0 | K169: 0 | L169: 0 | M169: 0 | N169: 0 | O169: 0 | P169: 0 | Q169: 0 | R169: 0 | S169: 0 | T169: 0 | U169: 0
E170: =InpActive!E$138 -> Ofwat view of G&C for capex - water resources - price control (override) | F170: =InpActive!F$138 -> 0 | G170: =InpActive!G$138 -> £m | H170: =InpActive!H$138 -> 0 | I170: =InpActive!I$138 -> 0 | J170: =InpActive!J$138 -> 0 | K170: =InpActive!K$138 -> 0 | L170: =InpActive!L$138 -> 0 | M170: =InpActive!M$138 -> 0 | N170: =InpActive!N$138 -> 0 | O170: =InpActive!O$138 -> 0 | P170: =InpActive!P$138 -> 0 | Q170: =InpActive!Q$138 -> 0 | R170: =InpActive!R$138 -> 0 | S170: =InpActive!S$138 -> 0 | T170: =InpActive!T$138 -> 0 | U170: =InpActive!U$138 -> 0
E171: Ofwat view of G&C for capex net of income offset - water resources - price control (post-override) | G171: £m | H171: =SUM(J171:U171) -> 0 | J171: =IF(J170 = 0, J163 * J$159, J170) -> 0 | K171: 0 | L171: 0 | M171: 0 | N171: 0 | O171: 0 | P171: 0 | Q171: 0 | R171: 0 | S171: 0 | T171: 0 | U171: 0
A174: End of sheet

Sheet G&C Wastewater
A1: =RIGHT(CELL("filename", $A$1), LEN(CELL("filename", $A$1)) - SEARCH("]", CELL("filename", $A$1))) -> G&C Wastewater | F1: =IF(InpOverride!$F$108 > 0, "Overrides", "No Overrides") -> Overrides
E2: =Time!E2 -> Model period ending | F2: =Check!$F$2 -> 1 | G2: Checks/Alerts | J2: =Time!J$25 -> 2019-03-31 | K2: =Time!K$25 -> 2020-03-31 | L2: =Time!L$25 -> 2021-03-31 | M2: =Time!M$25 -> 2022-03-31 | N2: =Time!N$25 -> 2023-03-31 | O2: =Time!O$25 -> 2024-03-31 | P2: =Time!P$25 -> 2025-03-31 | Q2: =Time!Q$25 -> 2026-03-31 | R2: =Time!R$25 -> 2027-03-31 | S2: =Time!S$25 -> 2028-03-31 | T2: =Time!T$25 -> 2029-03-31 | U2: =Time!U$25 -> 2030-03-31
E3: =Time!E3 -> Timeline label | F3: =Check!$F$3 -> 30 | G3: Track chgs | J3: =Time!J$104 -> Pre-Fcst | K3: =Time!K$104 -> Pre-Fcst | L3: =Time!L$104 -> Forecast | M3: =Time!M$104 -> Forecast | N3: =Time!N$104 -> Forecast | O3: =Time!O$104 -> Forecast | P3: =Time!P$104 -> Forecast | Q3: =Time!Q$104 -> Post-Fcst | R3: =Time!R$104 -> Post-Fcst | S3: =Time!S$104 -> Post-Fcst | T3: =Time!T$104 -> Post-Fcst | U3: =Time!U$104 -> Post-Fcst
E4: =Time!E4 -> Financial year ending | J4: =Time!J$127 -> 2019 | K4: =Time!K$127 -> 2020 | L4: =Time!L$127 -> 2021 | M4: =Time!M$127 -> 2022 | N4: =Time!N$127 -> 2023 | O4: =Time!O$127 -> 2024 | P4: =Time!P$127 -> 2025 | Q4: =Time!Q$127 -> 2026 | R4: =Time!R$127 -> 2027 | S4: =Time!S$127 -> 2028 | T4: =Time!T$127 -> 2029 | U4: =Time!U$127 -> 2030
E5: =Time!E5 -> Model column counter | F5: Constant | G5: Unit | H5: Total | J5: =Time!J$10 -> 1 | K5: =Time!K$10 -> 2 | L5: =Time!L$10 -> 3 | M5: =Time!M$10 -> 4 | N5: =Time!N$10 -> 5 | O5: =Time!O$10 -> 6 | P5: =Time!P$10 -> 7 | Q5: =Time!Q$10 -> 8 | R5: =Time!R$10 -> 9 | S5: =Time!S$10 -> 10 | T5: =Time!T$10 -> 11 | U5: =Time!U$10 -> 12
A7: WASTEWATER GRANTS & CONTRIBUTIONS FEEDER CALCULATION
A9: Calculate the Unit Rate - wastewater
B10: Calculate the unit rate: income / connections * efficiency challenge
C12: Company View of income from developer services
D13: =InpActive!D$78 -> APP28RR_WW0005 | E13: =InpActive!E$78 -> Diversions income - wastewater s185 | F13: =InpActive!F$78 -> 0 | G13: =InpActive!G$78 -> £m | H13: =InpActive!H$78 -> 0 | I13: =InpActive!I$78 -> 0 | J13: =InpActive!J$78 -> 0 | K13: =InpActive!K$78 -> 0 | L13: =InpActive!L$78 -> 0 | M13: =InpActive!M$78 -> 0 | N13: =InpActive!N$78 -> 0 | O13: =InpActive!O$78 -> 0 | P13: =InpActive!P$78 -> 0 | Q13: =InpActive!Q$78 -> 0 | R13: =InpActive!R$78 -> 0 | S13: =InpActive!S$78 -> 0 | T13: =InpActive!T$78 -> 0 | U13: =InpActive!U$78 -> 0
D14: =InpActive!D$64 -> APP28RR_WW00036 | E14: =InpActive!E$64 -> App 28 data (£m) Infrastructure charge receipts (s146) | F14: =InpActive!F$64 -> 0 | G14: =InpActive!G$64 -> £m | H14: =InpActive!H$64 -> 0 | I14: =InpActive!I$64 -> 0 | J14: =InpActive!J$64 -> 0 | K14: =InpActive!K$64 -> 0 | L14: =InpActive!L$64 -> 0 | M14: =InpActive!M$64 -> 0 | N14: =InpActive!N$64 -> 0 | O14: =InpActive!O$64 -> 0 | P14: =InpActive!P$64 -> 0 | Q14: =InpActive!Q$64 -> 0 | R14: =InpActive!R$64 -> 0 | S14: =InpActive!S$64 -> 0 | T14: =InpActive!T$64 -> 0 | U14: =InpActive!U$64 -> 0
D15: =InpActive!D$65 -> APP28RR_WW00037 | E15: =InpActive!E$65 -> App 28 data (£m) Requisitioned sewers (s100) | F15: =InpActive!F$65 -> 0 | G15: =InpActive!G$65 -> £m | H15: =InpActive!H$65 -> 0 | I15: =InpActive!I$65 -> 0 | J15: =InpActive!J$65 -> 0 | K15: =InpActive!K$65 -> 0 | L15: =InpActive!L$65 -> 0 | M15: =InpActive!M$65 -> 0 | N15: =InpActive!N$65 -> 0 | O15: =InpActive!O$65 -> 0 | P15: =InpActive!P$65 -> 0 | Q15: =InpActive!Q$65 -> 0 | R15: =InpActive!R$65 -> 0 | S15: =InpActive!S$65 -> 0 | T15: =InpActive!T$65 -> 0 | U15: =InpActive!U$65 -> 0
D16: =InpActive!D$66 -> APP28RR_WW00038 | E16: =InpActive!E$66 -> App 28 data (£m) Total value of income offset allowances | F16: =InpActive!F$66 -> 0 | G16: =InpActive!G$66 -> £m | H16: =InpActive!H$66 -> 0 | I16: =InpActive!I$66 -> 0 | J16: =InpActive!J$66 -> 0 | K16: =InpActive!K$66 -> 0 | L16: =InpActive!L$66 -> 0 | M16: =InpActive!M$66 -> 0 | N16: =InpActive!N$66 -> 0 | O16: =InpActive!O$66 -> 0 | P16: =InpActive!P$66 -> 0 | Q16: =InpActive!Q$66 -> 0 | R16: =InpActive!R$66 -> 0 | S16: =InpActive!S$66 -> 0 | T16: =InpActive!T$66 -> 0 | U16: =InpActive!U$66 -> 0
D17: =InpActive!D$108 -> BA2086PC overridden | E17: =InpActive!E$108 -> G&C received - wastewater - other contributions (price control) - post-override | F17: =InpActive!F$108 -> 0 | G17: =InpActive!G$108 -> £m | H17: =InpActive!H$108 -> 0 | I17: =InpActive!I$108 -> 0 | J17: =InpActive!J$108 -> 0 | K17: =InpActive!K$108 -> 0 | L17: =InpActive!L$108 -> 0 | M17: =InpActive!M$108 -> 0 | N17: =InpActive!N$108 -> 0 | O17: =InpActive!O$108 -> 0 | P17: =InpActive!P$108 -> 0 | Q17: =InpActive!Q$108 -> 0 | R17: =InpActive!R$108 -> 0 | S17: =InpActive!S$108 -> 0 | T17: =InpActive!T$108 -> 0 | U17: =InpActive!U$108 -> 0
E18: Total Grants & Contributions - price control - wastewater - 2017/18 FYA CPIH deflated | G18: £m | H18: =SUM(J18:U18) -> 0 | J18: =SUM(J13:J17) -> 0 | K18: 0 | L18: 0 | M18: 0 | N18: 0 | O18: 0 | P18: 0 | Q18: 0 | R18: 0 | S18: 0 | T18: 0 | U18: 0
C21: Company View of new connections - from developer services data request
D22: =InpActive!D$87 -> APP28RR_WW00018 | E22: =InpActive!E$87 -> Properties volume data - wastewater New properties (residential) | F22: =InpActive!F$87 -> 0 | G22: =InpActive!G$87 -> number | H22: =InpActive!H$87 -> 0 | I22: =InpActive!I$87 -> 0 | J22: =InpActive!J$87 -> 0 | K22: =InpActive!K$87 -> 0 | L22: =InpActive!L$87 -> 0 | M22: =InpActive!M$87 -> 0 | N22: =InpActive!N$87 -> 0 | O22: =InpActive!O$87 -> 0 | P22: =InpActive!P$87 -> 0 | Q22: =InpActive!Q$87 -> 0 | R22: =InpActive!R$87 -> 0 | S22: =InpActive!S$87 -> 0 | T22: =InpActive!T$87 -> 0 | U22: =InpActive!U$87 -> 0
D23: =InpActive!D$88 -> APP28RR_WW00019 | E23: =InpActive!E$88 -> Properties volume data - wastewater New properties (business) | F23: =InpActive!F$88 -> 0 | G23: =InpActive!G$88 -> number | H23: =InpActive!H$88 -> 0 | I23: =InpActive!I$88 -> 0 | J23: =InpActive!J$88 -> 0 | K23: =InpActive!K$88 -> 0 | L23: =InpActive!L$88 -> 0 | M23: =InpActive!M$88 -> 0 | N23: =InpActive!N$88 -> 0 | O23: =InpActive!O$88 -> 0 | P23: =InpActive!P$88 -> 0 | Q23: =InpActive!Q$88 -> 0 | R23: =InpActive!R$88 -> 0 | S23: =InpActive!S$88 -> 0 | T23: =InpActive!T$88 -> 0 | U23: =InpActive!U$88 -> 0
D24: =InpActive!D$89 -> APP28RR_WW00021 | E24: =InpActive!E$89 -> Properties volume data - wastewater New properties on NAV sites (residential) | F24: =InpActive!F$89 -> 0 | G24: =InpActive!G$89 -> number | H24: =InpActive!H$89 -> 0 | I24: =InpActive!I$89 -> 0 | J24: =InpActive!J$89 -> 0 | K24: =InpActive!K$89 -> 0 | L24: =InpActive!L$89 -> 0 | M24: =InpActive!M$89 -> 0 | N24: =InpActive!N$89 -> 0 | O24: =InpActive!O$89 -> 0 | P24: =InpActive!P$89 -> 0 | Q24: =InpActive!Q$89 -> 0 | R24: =InpActive!R$89 -> 0 | S24: =InpActive!S$89 -> 0 | T24: =InpActive!T$89 -> 0 | U24: =InpActive!U$89 -> 0
D25: =InpActive!D$90 -> APP28RR_WW00022 | E25: =InpActive!E$90 -> Properties volume data - wastewater New properties on NAV sites (business) | F25: =InpActive!F$90 -> 0 | G25: =InpActive!G$90 -> number | H25: =InpActive!H$90 -> 0 | I25: =InpActive!I$90 -> 0 | J25: =InpActive!J$90 -> 0 | K25: =InpActive!K$90 -> 0 | L25: =InpActive!L$90 -> 0 | M25: =InpActive!M$90 -> 0 | N25: =InpActive!N$90 -> 0 | O25: =InpActive!O$90 -> 0 | P25: =InpActive!P$90 -> 0 | Q25: =InpActive!Q$90 -> 0 | R25: =InpActive!R$90 -> 0 | S25: =InpActive!S$90 -> 0 | T25: =InpActive!T$90 -> 0 | U25: =InpActive!U$90 -> 0
E26: New connections - from developer services data request | G26: number | H26: =SUM(J26:U26) -> 0 | J26: =SUM(J22:J25) -> 0 | K26: =SUM(K22:K25) -> 0 | L26: 0 | M26: 0 | N26: 0 | O26: 0 | P26: 0 | Q26: 0 | R26: 0 | S26: 0 | T26: 0 | U26: 0
E28: =InpActive!E$44 -> Units in a million | F28: =InpActive!F$44 -> 1000000 | G28: =InpActive!G$44 -> unit
E29: =E$18 -> Total Grants & Contributions - price control - wastewater - 2017/18 FYA CPIH deflated | F29: 0 | G29: £m | H29: 0 | I29: 0 | J29: 0 | K29: 0 | L29: 0 | M29: 0 | N29: 0 | O29: 0 | P29: 0 | Q29: 0 | R29: 0 | S29: 0 | T29: 0 | U29: 0
E30: =E$26 -> New connections - from developer services data request | F30: 0 | G30: number | H30: 0 | I30: 0 | J30: 0 | K30: 0 | L30: 0 | M30: 0 | N30: 0 | O30: 0 | P30: 0 | Q30: 0 | R30: 0 | S30: 0 | T30: 0 | U30: 0
E31: =InpActive!E$152 -> Wastewater efficiency challenge excluding scope challenge - (post override) | F31: =InpActive!F$152 -> 0 | G31: =InpActive!G$152 -> %
E32: Unit rate - wastewater | F32: 0 | G32: £/connection | J32: =IF(J30 = 0, 0, (J29 / J30) * (1 - $F$31)) * $F$28 -> 0 | K32: =IF(K30 = 0, 0, (K29 / K30) * (1 - $F$31)) * $F$28 -> 0 | L32: =IF(L30 = 0, 0, (L29 / L30) * (1 - $F$31)) * $F$28 -> 0 | M32: 0 | N32: 0 | O32: 0 | P32: 0 | Q32: 0 | R32: 0 | S32: 0 | T32: 0 | U32: 0
E33: =E32 & " - 5 year average" -> Unit rate - wastewater - 5 year average | F33: =AVERAGE(L32:P32) -> 0 | G33: =G32 -> £/connection
A36: Grants & Contributions - price control
B37: Take the company view of G&C and reduce by the OFWAT efficiency challenge
D38: =InpActive!D$66 -> APP28RR_WW00038 | E38: =InpActive!E$66 -> App 28 data (£m) Total value of income offset allowances | F38: =InpActive!F$66 -> 0 | G38: =InpActive!G$66 -> £m | H38: =InpActive!H$66 -> 0 | I38: =InpActive!I$66 -> 0 | J38: =InpActive!J$66 -> 0 | K38: =InpActive!K$66 -> 0 | L38: =InpActive!L$66 -> 0 | M38: =InpActive!M$66 -> 0 | N38: =InpActive!N$66 -> 0 | O38: =InpActive!O$66 -> 0 | P38: =InpActive!P$66 -> 0 | Q38: =InpActive!Q$66 -> 0 | R38: =InpActive!R$66 -> 0 | S38: =InpActive!S$66 -> 0 | T38: =InpActive!T$66 -> 0 | U38: =InpActive!U$66 -> 0
E39: =E18 -> Total Grants & Contributions - price control - wastewater - 2017/18 FYA CPIH deflated | F39: =F18 -> 0 | G39: £m | H39: 0 | I39: 0 | J39: 0 | K39: 0 | L39: 0 | M39: 0 | N39: 0 | O39: 0 | P39: 0 | Q39: 0 | R39: 0 | S39: 0 | T39: 0 | U39: 0
E40: Total Grants & Contributions - price control - wastewater - including income offset | G40: £m | H40: =SUM(L40:P40) -> 0 | J40: =J39 -> 0 | K40: =K39 -> 0 | L40: 0 | M40: 0 | N40: 0 | O40: 0 | P40: 0 | Q40: 0 | R40: 0 | S40: 0 | T40: 0 | U40: 0
E42: =E40 -> Total Grants & Contributions - price control - wastewater - including income offset | F42: =F40 -> 0 | G42: £m | H42: 0 | I42: 0 | J42: 0 | K42: 0 | L42: 0 | M42: 0 | N42: 0 | O42: 0 | P42: 0 | Q42: 0 | R42: 0 | S42: 0 | T42: 0 | U42: 0
E43: =InpActive!E$149 -> Wastewater efficiency challenge - (post override) | F43: =InpActive!F$149 -> 0 | G43: =InpActive!G$149 -> %
E44: Ofwat view of Grants & Contributions - price control - wastewater | G44: £m | H44: =SUM(J44:U44) -> 0 | J44: =IF(J42 = 0, 0, J42 * (1 - $F$43)) -> 0 | K44: 0 | L44: =IF(L42 = 0, 0, L42 * (1 - $F$43)) -> 0 | M44: 0 | N44: 0 | O44: 0 | P44: 0 | Q44: 0 | R44: 0 | S44: 0 | T44: 0 | U44: 0
A47: Grants & Contributions - non price control
D48: NRSWA
B49: Calculate the implied recovery rate (for information only)
D50: =InpActive!D$79 -> APP28RR_WW0006 | E50: =InpActive!E$79 -> Diversions income - wastewater NRSWA | F50: =InpActive!F$79 -> 0 | G50: =InpActive!G$79 -> £m | H50: =InpActive!H$79 -> 0 | I50: =InpActive!I$79 -> 0 | J50: =InpActive!J$79 -> 0 | K50: =InpActive!K$79 -> 0 | L50: =InpActive!L$79 -> 0 | M50: =InpActive!M$79 -> 0 | N50: =InpActive!N$79 -> 0 | O50: =InpActive!O$79 -> 0 | P50: =InpActive!P$79 -> 0 | Q50: =InpActive!Q$79 -> 0 | R50: =InpActive!R$79 -> 0 | S50: =InpActive!S$79 -> 0 | T50: =InpActive!T$79 -> 0 | U50: =InpActive!U$79 -> 0
D51: =InpActive!D$71 -> APP28RR_WW0002 | E51: =InpActive!E$71 -> Diversions expenditure - wastewater NRSWA | F51: =InpActive!F$71 -> 0 | G51: =InpActive!G$71 -> £m | H51: =InpActive!H$71 -> 0 | I51: =InpActive!I$71 -> 0 | J51: =InpActive!J$71 -> 0 | K51: =InpActive!K$71 -> 0 | L51: =InpActive!L$71 -> 0 | M51: =InpActive!M$71 -> 0 | N51: =InpActive!N$71 -> 0 | O51: =InpActive!O$71 -> 0 | P51: =InpActive!P$71 -> 0 | Q51: =InpActive!Q$71 -> 0 | R51: =InpActive!R$71 -> 0 | S51: =InpActive!S$71 -> 0 | T51: =InpActive!T$71 -> 0 | U51: =InpActive!U$71 -> 0
E52: Diversions costs recovered - wastewater - NRSWA | G52: % | J52: =IF(J51 = 0, 0, J50 / J51) -> 0 | K52: =IF(K51 = 0, 0, K50 / K51) -> 0 | L52: =IF(L51 = 0, 0, L50 / L51) -> 0 | M52: =IF(M51 = 0, 0, M50 / M51) -> 0 | N52: 0 | O52: 0 | P52: 0 | Q52: =IF(Q51 = 0, 0, Q50 / Q51) -> 0 | R52: =IF(R51 = 0, 0, R50 / R51) -> 0 | S52: 0 | T52: 0 | U52: 0
B54: Calculate Ofwat's view of NRSWA diversions within the allowed range
E55: =InpActive!E$56 -> Diversions costs - wastewater - NRSWA; unrecoverable assumption | F55: =InpActive!F$56 -> 0.18 | G55: =InpActive!G$56 -> %
D56: =InpActive!D$71 -> APP28RR_WW0002 | E56: =InpActive!E$71 -> Diversions expenditure - wastewater NRSWA | F56: =InpActive!F$71 -> 0 | G56: =InpActive!G$71 -> £m | H56: =InpActive!H$71 -> 0 | I56: =InpActive!I$71 -> 0 | J56: =InpActive!J$71 -> 0 | K56: =InpActive!K$71 -> 0 | L56: =InpActive!L$71 -> 0 | M56: =InpActive!M$71 -> 0 | N56: =InpActive!N$71 -> 0 | O56: =InpActive!O$71 -> 0 | P56: =InpActive!P$71 -> 0 | Q56: =InpActive!Q$71 -> 0 | R56: =InpActive!R$71 -> 0 | S56: =InpActive!S$71 -> 0 | T56: =InpActive!T$71 -> 0 | U56: =InpActive!U$71 -> 0
E57: Ofwat view; Diversions income - wastewater - NRSWA; minimum level | G57: £m | H57: =SUM(J57:U57) -> 0 | J57: =J56 * (1 - $F$55) -> 0 | K57: =K56 * (1 - $F$55) -> 0 | L57: 0 | M57: 0 | N57: 0 | O57: 0 | P57: 0 | Q57: 0 | R57: 0 | S57: 0 | T57: 0 | U57: 0
E58: Ofwat view; Diversions income - wastewater - NRSWA; maximum level | G58: £m | H58: =SUM(J58:U58) -> 0 | J58: =J56 -> 0 | K58: =K56 -> 0 | L58: 0 | M58: 0 | N58: 0 | O58: 0 | P58: 0 | Q58: 0 | R58: 0 | S58: 0 | T58: =T56 -> 0 | U58: 0
E60: =E57 -> Ofwat view; Diversions income - wastewater - NRSWA; minimum level | F60: =F57 -> 0 | G60: £m | H60: 0 | I60: 0 | J60: 0 | K60: 0 | L60: 0 | M60: 0 | N60: 0 | O60: 0 | P60: 0 | Q60: 0 | R60: 0 | S60: 0 | T60: 0 | U60: 0
E61: =E58 -> Ofwat view; Diversions income - wastewater - NRSWA; maximum level | F61: 0 | G61: £m | H61: 0 | I61: 0 | J61: 0 | K61: 0 | L61: 0 | M61: 0 | N61: 0 | O61: 0 | P61: 0 | Q61: 0 | R61: 0 | S61: 0 | T61: 0 | U61: 0
D62: =InpActive!D$79 -> APP28RR_WW0006 | E62: =InpActive!E$79 -> Diversions income - wastewater NRSWA | F62: =InpActive!F$79 -> 0 | G62: =InpActive!G$79 -> £m | H62: =InpActive!H$79 -> 0 | I62: =InpActive!I$79 -> 0 | J62: =InpActive!J$79 -> 0 | K62: =InpActive!K$79 -> 0 | L62: =InpActive!L$79 -> 0 | M62: =InpActive!M$79 -> 0 | N62: =InpActive!N$79 -> 0 | O62: =InpActive!O$79 -> 0 | P62: =InpActive!P$79 -> 0 | Q62: =InpActive!Q$79 -> 0 | R62: =InpActive!R$79 -> 0 | S62: =InpActive!S$79 -> 0 | T62: =InpActive!T$79 -> 0 | U62: =InpActive!U$79 -> 0
E63: Ofwat view of Diversions income - wastewater - NRSWA | G63: =InpActive!G$100 -> £m | H63: =SUM(J63:U63) -> 0 | J63: =IF(J62 < J60, J60, IF(J62 > J61, J61, J62)) -> 0 | K63: =IF(K62 < K60, K60, IF(K62 > K61, K61, K62)) -> 0 | L63: =IF(L62 < L60, L60, IF(L62 > L61, L61, L62)) -> 0 | M63: 0 | N63: 0 | O63: 0 | P63: 0 | Q63: 0 | R63: 0 | S63: 0 | T63: 0 | U63: 0
B65: Calculate the remaining unrecovered NRSWA diversions (to be used in cost sharing)
E66: =E63 -> Ofwat view of Diversions income - wastewater - NRSWA | F66: =F63 -> 0 | G66: £m | H66: 0 | I66: 0 | J66: 0 | K66: 0 | L66: 0 | M66: 0 | N66: 0 | O66: 0 | P66: 0 | Q66: 0 | R66: 0 | S66: 0 | T66: 0 | U66: 0
D67: =InpActive!D$71 -> APP28RR_WW0002 | E67: =InpActive!E$71 -> Diversions expenditure - wastewater NRSWA | F67: =InpActive!F$71 -> 0 | G67: =InpActive!G$71 -> £m | H67: =InpActive!H$71 -> 0 | I67: =InpActive!I$71 -> 0 | J67: =InpActive!J$71 -> 0 | K67: =InpActive!K$71 -> 0 | L67: =InpActive!L$71 -> 0 | M67: =InpActive!M$71 -> 0 | N67: =InpActive!N$71 -> 0 | O67: =InpActive!O$71 -> 0 | P67: =InpActive!P$71 -> 0 | Q67: =InpActive!Q$71 -> 0 | R67: =InpActive!R$71 -> 0 | S67: =InpActive!S$71 -> 0 | T67: =InpActive!T$71 -> 0 | U67: =InpActive!U$71 -> 0
E68: Ofwat view of Diversions costs unrecovered - wastewater - NRSWA | G68: =InpActive!G$100 -> £m | H68: =SUM(J68:U68) -> 0 | J68: =J67 - J66 -> 0 | K68: =K67 - K66 -> 0 | L68: 0 | M68: 0 | N68: 0 | O68: 0 | P68: 0 | Q68: 0 | R68: 0 | S68: 0 | T68: 0 | U68: 0
D70: Other non-s185
B71: Put income = 100% of costs
D72: =InpActive!D$72 -> APP28RR_WW0003 | E72: =InpActive!E$72 -> Diversions expenditure - wastewater Other non-s185 | F72: =InpActive!F$72 -> 0 | G72: =InpActive!G$72 -> £m | H72: =InpActive!H$72 -> 0 | I72: =InpActive!I$72 -> 0 | J72: =InpActive!J$72 -> 0 | K72: =InpActive!K$72 -> 0 | L72: =InpActive!L$72 -> 0 | M72: =InpActive!M$72 -> 0 | N72: =InpActive!N$72 -> 0 | O72: =InpActive!O$72 -> 0 | P72: =InpActive!P$72 -> 0 | Q72: =InpActive!Q$72 -> 0 | R72: =InpActive!R$72 -> 0 | S72: =InpActive!S$72 -> 0 | T72: =InpActive!T$72 -> 0 | U72: =InpActive!U$72 -> 0
E73: Ofwat view of Diversions income - wastewater - Other non-s185 | G73: =InpActive!G$100 -> £m | H73: =SUM( J73:U73) -> 0 | J73: =J72 -> 0 | K73: =K72 -> 0 | L73: 0 | M73: 0 | N73: 0 | O73: 0 | P73: 0 | Q73: 0 | R73: 0 | S73: 0 | T73: 0 | U73: 0
E75: =E63 -> Ofwat view of Diversions income - wastewater - NRSWA | F75: =F63 -> 0 | G75: £m | H75: 0 | I75: 0 | J75: 0 | K75: 0 | L75: 0 | M75: 0 | N75: 0 | O75: 0 | P75: 0 | Q75: 0 | R75: 0 | S75: 0 | T75: 0 | U75: 0
E76: =E73 -> Ofwat view of Diversions income - wastewater - Other non-s185 | F76: =F73 -> 0 | G76: £m | H76: 0 | I76: 0 | J76: 0 | K76: 0 | L76: 0 | M76: 0 | N76: 0 | O76: 0 | P76: 0 | Q76: 0 | R76: 0 | S76: 0 | T76: 0 | U76: 0
E77: Ofwat view of non price control Diversions income - wastewater | F77: 0 | G77: £m | H77: =SUM(J77:U77) -> 0 | J77: =SUM(J75:J76) -> 0 | K77: 0 | L77: 0 | M77: =SUM(M75:M76) -> 0 | N77: 0 | O77: 0 | P77: 0 | Q77: 0 | R77: 0 | S77: 0 | T77: 0 | U77: 0
A80: Grants and contributions apportionment by opex/capex split
B81: Calculate the apportionment between opex and capex using the company's view from WWn5
C83: Price control
E84: =InpActive!E$124 -> Wastewater network operating expenditure grants and contributions (price control) | F84: =InpActive!F$124 -> 0 | G84: =InpActive!G$124 -> £m | H84: =InpActive!H$124 -> 0 | I84: =InpActive!I$124 -> 0 | J84: =InpActive!J$124 -> 0 | K84: =InpActive!K$124 -> 0 | L84: =InpActive!L$124 -> 0 | M84: =InpActive!M$124 -> 0 | N84: =InpActive!N$124 -> 0 | O84: =InpActive!O$124 -> 0 | P84: =InpActive!P$124 -> 0 | Q84: =InpActive!Q$124 -> 0 | R84: =InpActive!R$124 -> 0 | S84: =InpActive!S$124 -> 0 | T84: =InpActive!T$124 -> 0 | U84: =InpActive!U$124 -> 0
E85: =InpActive!E$125 -> Wastewater network capital expenditure grants and contributions (price control) | F85: =InpActive!F$125 -> 0 | G85: =InpActive!G$125 -> £m | H85: =InpActive!H$125 -> 0 | I85: =InpActive!I$125 -> 0 | J85: =InpActive!J$125 -> 0 | K85: =InpActive!K$125 -> 0 | L85: =InpActive!L$125 -> 0 | M85: =InpActive!M$125 -> 0 | N85: =InpActive!N$125 -> 0 | O85: =InpActive!O$125 -> 0 | P85: =InpActive!P$125 -> 0 | Q85: =InpActive!Q$125 -> 0 | R85: =InpActive!R$125 -> 0 | S85: =InpActive!S$125 -> 0 | T85: =InpActive!T$125 -> 0 | U85: =InpActive!U$125 -> 0
E86: G&C apportionment wastewater network opex - price control - 2017/18 FYA CPIH deflated | G86: % | J86: =IF( SUM(J84:J85) = 0, 0, J84 / SUM(J84:J85)) -> 0 | K86: =IF( SUM(K84:K85) = 0, 0, K84 / SUM(K84:K85)) -> 0 | L86: 0 | M86: 0 | N86: 0 | O86: 0 | P86: 0 | Q86: 0 | R86: 0 | S86: 0 | T86: 0 | U86: 0
E87: G&C apportionment wastewater network capex - price control - 2017/18 FYA CPIH deflated | G87: % | J87: =IF( SUM(J84:J85) = 0, 0, J85 / SUM(J84:J85)) -> 0 | K87: =IF( SUM(K84:K85) = 0, 0, K85 / SUM(K84:K85)) -> 0 | L87: 0 | M87: 0 | N87: 0 | O87: 0 | P87: 0 | Q87: 0 | R87: 0 | S87: 0 | T87: 0 | U87: 0
E89: =E44 -> Ofwat view of Grants & Contributions - price control - wastewater | F89: =F44 -> 0 | G89: £m | H89: 0 | I89: 0 | J89: 0 | K89: 0 | L89: 0 | M89: 0 | N89: 0 | O89: 0 | P89: 0 | Q89: 0 | R89: 0 | S89: 0 | T89: 0 | U89: 0
E90: =E$86 -> G&C apportionment wastewater network opex - price control - 2017/18 FYA CPIH deflated | F90: =F$86 -> 0 | G90: % | H90: 0 | I90: 0 | J90: 0 | K90: 0 | L90: 0 | M90: 0 | N90: 0 | O90: 0 | P90: 0 | Q90: 0 | R90: 0 | S90: 0 | T90: 0 | U90: 0
E91: =E$87 -> G&C apportionment wastewater network capex - price control - 2017/18 FYA CPIH deflated | F91: 0 | G91: % | H91: 0 | I91: 0 | J91: 0 | K91: 0 | L91: 0 | M91: 0 | N91: 0 | O91: 0 | P91: 0 | Q91: 0 | R91: 0 | S91: 0 | T91: 0 | U91: 0
E92: =InpActive!E$145 -> Ofwat view of G&C for opex - wastewater - price control (override) | F92: =InpActive!F$145 -> 0 | G92: =InpActive!G$145 -> £m | H92: =InpActive!H$145 -> 0 | I92: =InpActive!I$145 -> 0 | J92: =InpActive!J$145 -> 0 | K92: =InpActive!K$145 -> 0 | L92: =InpActive!L$145 -> 0 | M92: =InpActive!M$145 -> 0 | N92: =InpActive!N$145 -> 0 | O92: =InpActive!O$145 -> 0 | P92: =InpActive!P$145 -> 0 | Q92: =InpActive!Q$145 -> 0 | R92: =InpActive!R$145 -> 0 | S92: =InpActive!S$145 -> 0 | T92: =InpActive!T$145 -> 0 | U92: =InpActive!U$145 -> 0
E93: Ofwat view of G&C for opex - wastewater network - price control (post-override) | G93: £m | H93: =SUM(J93:U93) -> 0 | J93: =IF(J92 = 0, J90 * J$89, J92) -> 0 | K93: 0 | L93: 0 | M93: 0 | N93: 0 | O93: 0 | P93: 0 | Q93: 0 | R93: 0 | S93: 0 | T93: 0 | U93: 0
E94: =InpActive!E$143 -> Ofwat view of G&C for capex - wastewater - price control (override) | F94: =InpActive!F$143 -> 0 | G94: =InpActive!G$143 -> £m | H94: =InpActive!H$143 -> 0 | I94: =InpActive!I$143 -> 0 | J94: =InpActive!J$143 -> 0 | K94: =InpActive!K$143 -> 0 | L94: =InpActive!L$143 -> 0 | M94: =InpActive!M$143 -> 0 | N94: =InpActive!N$143 -> 0 | O94: =InpActive!O$143 -> 0 | P94: =InpActive!P$143 -> 0 | Q94: =InpActive!Q$143 -> 0 | R94: =InpActive!R$143 -> 0 | S94: =InpActive!S$143 -> 0 | T94: =InpActive!T$143 -> 0 | U94: =InpActive!U$143 -> 0
E95: Ofwat view of G&C for capex - wastewater network - price control (post-override) | G95: £m | H95: =SUM(J95:U95) -> 0 | J95: =IF(J94 = 0, J91 * J$89, J94) -> 0 | K95: 0 | L95: 0 | M95: 0 | N95: 0 | O95: 0 | P95: 0 | Q95: 0 | R95: 0 | S95: 0 | T95: 0 | U95: 0
C97: Non price control
B98: Apportion other non price control contributions using PRICE CONTROL proportions
B100: Calculate non price control income in excess of OFWAT allowance for diversions - will be zero unless there are grants forecast in line 28 App 28 which are in excess of those already calculated for non pc diversions.
D101: =InpActive!D$109 -> BA2086NPC overridden | E101: =InpActive!E$109 -> G&C received - wastewater - other contributions (non-price control) - post-override | F101: =InpActive!F$109 -> 0 | G101: =InpActive!G$109 -> £m | H101: =InpActive!H$109 -> 0 | I101: =InpActive!I$109 -> 0 | J101: =InpActive!J$109 -> 0 | K101: =InpActive!K$109 -> 0 | L101: =InpActive!L$109 -> 0 | M101: =InpActive!M$109 -> 0 | N101: =InpActive!N$109 -> 0 | O101: =InpActive!O$109 -> 0 | P101: =InpActive!P$109 -> 0 | Q101: =InpActive!Q$109 -> 0 | R101: =InpActive!R$109 -> 0 | S101: =InpActive!S$109 -> 0 | T101: =InpActive!T$109 -> 0 | U101: =InpActive!U$109 -> 0
E102: =E77 -> Ofwat view of non price control Diversions income - wastewater | F102: =F77 -> 0 | G102: £m | H102: 0 | I102: 0 | J102: 0 | K102: 0 | L102: 0 | M102: 0 | N102: 0 | O102: 0 | P102: 0 | Q102: 0 | R102: 0 | S102: 0 | T102: 0 | U102: 0
E103: Non price control G&C income forecast in excess of OFWAT allowance for non pc diversions - wastewater | F103: 0 | G103: £m | H103: =SUM(L103:P103) -> 0 | J103: =IF($H$101 < $H$102, 0, J101 - J102) -> 0 | K103: =IF($H$101 < $H$102, 0, K101 - K102) -> 0 | L103: =IF($H$101 < $H$102, 0, L101 - L102) -> 0 | M103: =IF($H$101 < $H$102, 0, M101 - M102) -> 0 | N103: =IF($H$101 < $H$102, 0, N101 - N102) -> 0 | O103: 0 | P103: =IF($H$101 < $H$102, 0, P101 - P102) -> 0 | Q103: 0 | R103: =IF($H$101 < $H$102, 0, R101 - R102) -> 0 | S103: 0 | T103: 0 | U103: 0
E105: =E103 -> Non price control G&C income forecast in excess of OFWAT allowance for non pc diversions - wastewater | F105: =F103 -> 0 | G105: £m | H105: 0 | I105: 0 | J105: 0 | K105: 0 | L105: 0 | M105: 0 | N105: 0 | O105: 0 | P105: 0 | Q105: 0 | R105: 0 | S105: 0 | T105: 0 | U105: 0
E106: =E86 -> G&C apportionment wastewater network opex - price control - 2017/18 FYA CPIH deflated | F106: 0 | G106: % | H106: 0 | I106: 0 | J106: 0 | K106: 0 | L106: 0 | M106: 0 | N106: 0 | O106: 0 | P106: 0 | Q106: 0 | R106: 0 | S106: 0 | T106: 0 | U106: 0
E107: =E87 -> G&C apportionment wastewater network capex - price control - 2017/18 FYA CPIH deflated | F107: 0 | G107: % | H107: 0 | I107: 0 | J107: 0 | K107: 0 | L107: 0 | M107: 0 | N107: 0 | O107: 0 | P107: 0 | Q107: 0 | R107: 0 | S107: 0 | T107: 0 | U107: 0
E108: =InpActive!E$146 -> Ofwat view of G&C for opex - wastewater - non price control (override) | F108: =InpActive!F$146 -> 0 | G108: =InpActive!G$146 -> £m | H108: =InpActive!H$146 -> 0 | I108: =InpActive!I$146 -> 0 | J108: =InpActive!J$146 -> 0 | K108: =InpActive!K$146 -> 0 | L108: =InpActive!L$146 -> 0 | M108: =InpActive!M$146 -> 0 | N108: =InpActive!N$146 -> 0 | O108: =InpActive!O$146 -> 0 | P108: =InpActive!P$146 -> 0 | Q108: =InpActive!Q$146 -> 0 | R108: =InpActive!R$146 -> 0 | S108: =InpActive!S$146 -> 0 | T108: =InpActive!T$146 -> 0 | U108: =InpActive!U$146 -> 0
E109: Ofwat view of other G&C for opex - wastewater network - non price control (post-override) | G109: £m | H109: =SUM(J109:U109) -> 0 | J109: =IF(J108 = 0, J106 * J$105, J108) -> 0 | K109: =IF(K108 = 0, K106 * K$105, K108) -> 0 | L109: 0 | M109: 0 | N109: 0 | O109: 0 | P109: 0 | Q109: 0 | R109: 0 | S109: 0 | T109: 0 | U109: 0
E110: =InpActive!E$144 -> Ofwat view of G&C for capex - wastewater - non price control (override) | F110: =InpActive!F$144 -> 0 | G110: =InpActive!G$144 -> £m | H110: =InpActive!H$144 -> 0 | I110: =InpActive!I$144 -> 0 | J110: =InpActive!J$144 -> 0 | K110: =InpActive!K$144 -> 0 | L110: =InpActive!L$144 -> 0 | M110: =InpActive!M$144 -> 0 | N110: =InpActive!N$144 -> 0 | O110: =InpActive!O$144 -> 0 | P110: =InpActive!P$144 -> 0 | Q110: =InpActive!Q$144 -> 0 | R110: =InpActive!R$144 -> 0 | S110: =InpActive!S$144 -> 0 | T110: =InpActive!T$144 -> 0 | U110: =InpActive!U$144 -> 0
E111: Ofwat view of G&C for capex - wastewater network - non price control (post-override) | G111: £m | H111: =SUM(J111:U111) -> 0 | J111: =IF(J110 = 0, J107 * J$105, J110) -> 0 | K111: =IF(K110 = 0, K107 * K$105, K110) -> 0 | L111: 0 | M111: 0 | N111: 0 | O111: 0 | P111: 0 | Q111: 0 | R111: 0 | S111: 0 | T111: 0 | U111: 0
B113: Assume non price control diversions income is opex and add the calculated proportion of other contributions
E114: =E77 -> Ofwat view of non price control Diversions income - wastewater | F114: 0 | G114: £m | H114: 0 | I114: 0 | J114: 0 | K114: 0 | L114: 0 | M114: 0 | N114: 0 | O114: 0 | P114: 0 | Q114: 0 | R114: 0 | S114: 0 | T114: 0 | U114: 0
E115: =E109 -> Ofwat view of other G&C for opex - wastewater network - non price control (post-override) | F115: =F109 -> 0 | G115: £m | H115: 0 | I115: 0 | J115: 0 | K115: 0 | L115: 0 | M115: 0 | N115: 0 | O115: 0 | P115: 0 | Q115: 0 | R115: 0 | S115: 0 | T115: 0 | U115: 0
E116: =E115 -> Ofwat view of other G&C for opex - wastewater network - non price control (post-override) | F116: =F115 -> 0 | G116: £m | H116: =SUM(J116:U116) -> 0 | I116: 0 | J116: =SUM(J114:J115) -> 0 | K116: =SUM(K114:K115) -> 0 | L116: 0 | M116: 0 | N116: 0 | O116: 0 | P116: 0 | Q116: 0 | R116: 0 | S116: 0 | T116: 0 | U116: 0
A119: Check on data sources for new connections - wastewater
B120: Compare the new connections data in the developer services data request with that in App28 of the business plans
C121: Company View of new connections - from Business Plan
E122: =InpActive!E$42 -> Thousands in a million | F122: =InpActive!F$42 -> 1000 | G122: =InpActive!G$42 -> thousand
D123: =InpActive!D$103 -> APP280038 | E123: =InpActive!E$103 -> Activity forecasts ~ wholesale wastewater service - Residential properties connected during the year | F123: =InpActive!F$103 -> 0 | G123: =InpActive!G$103 -> 000's | H123: =InpActive!H$103 -> 0 | I123: =InpActive!I$103 -> 0 | J123: =InpActive!J$103 -> 0 | K123: =InpActive!K$103 -> 0 | L123: =InpActive!L$103 -> 0 | M123: =InpActive!M$103 -> 0 | N123: =InpActive!N$103 -> 0 | O123: =InpActive!O$103 -> 0 | P123: =InpActive!P$103 -> 0 | Q123: =InpActive!Q$103 -> 0 | R123: =InpActive!R$103 -> 0 | S123: =InpActive!S$103 -> 0 | T123: =InpActive!T$103 -> 0 | U123: =InpActive!U$103 -> 0
D124: =InpActive!D$104 -> APP280039 | E124: =InpActive!E$104 -> Activity forecasts ~ wholesale wastewater service - Business properties connected during the year | F124: =InpActive!F$104 -> 0 | G124: =InpActive!G$104 -> £m | H124: =InpActive!H$104 -> 0 | I124: =InpActive!I$104 -> 0 | J124: =InpActive!J$104 -> 0 | K124: =InpActive!K$104 -> 0 | L124: =InpActive!L$104 -> 0 | M124: =InpActive!M$104 -> 0 | N124: =InpActive!N$104 -> 0 | O124: =InpActive!O$104 -> 0 | P124: =InpActive!P$104 -> 0 | Q124: =InpActive!Q$104 -> 0 | R124: =InpActive!R$104 -> 0 | S124: =InpActive!S$104 -> 0 | T124: =InpActive!T$104 -> 0 | U124: =InpActive!U$104 -> 0
E125: New connections - from Business Plan | G125: number | H125: =SUM(J125:U125) -> 0 | J125: =SUM(J123:J124) * $F$122 -> 0 | K125: 0 | L125: 0 | M125: 0 | N125: 0 | O125: 0 | P125: 0 | Q125: 0 | R125: 0 | S125: 0 | T125: 0 | U125: 0
E127: =E$26 -> New connections - from developer services data request | F127: 0 | G127: number | H127: 0 | I127: 0 | J127: 0 | K127: 0 | L127: 0 | M127: 0 | N127: 0 | O127: 0 | P127: 0 | Q127: 0 | R127: 0 | S127: 0 | T127: 0 | U127: 0
E128: =E$125 -> New connections - from Business Plan | F128: 0 | G128: number | H128: 0 | I128: 0 | J128: 0 | K128: 0 | L128: 0 | M128: 0 | N128: 0 | O128: 0 | P128: 0 | Q128: 0 | R128: 0 | S128: 0 | T128: 0 | U128: 0
E129: Check resubmitted 'new connections' against Business Plan App28 - wastewater | F129: =IF( SUM(L129:P129) > 0, 1, 0) -> 0 | G129: alert | J129: =IF( ABS(J127 - J128) > CHK_TOL, 1, 0) -> 0 | K129: 0 | L129: 0 | M129: 0 | N129: 0 | O129: 0 | P129: 0 | Q129: 0 | R129: 0 | S129: 0 | T129: 0 | U129: 0
A131: WASTEWATER GRANTS & CONTRIBUTIONS net of income offset (for use in financial modelling)
A133: Grants & Contributions - price control
B134: Take the company view of G&C and reduce by the OFWAT efficiency challenge
D135: =InpActive!D$66 -> APP28RR_WW00038 | E135: =InpActive!E$66 -> App 28 data (£m) Total value of income offset allowances | F135: =InpActive!F$66 -> 0 | G135: =InpActive!G$66 -> £m | H135: =InpActive!H$66 -> 0 | I135: =InpActive!I$66 -> 0 | J135: =InpActive!J$66 -> 0 | K135: =InpActive!K$66 -> 0 | L135: =InpActive!L$66 -> 0 | M135: =InpActive!M$66 -> 0 | N135: =InpActive!N$66 -> 0 | O135: =InpActive!O$66 -> 0 | P135: =InpActive!P$66 -> 0 | Q135: =InpActive!Q$66 -> 0 | R135: =InpActive!R$66 -> 0 | S135: =InpActive!S$66 -> 0 | T135: =InpActive!T$66 -> 0 | U135: =InpActive!U$66 -> 0
E136: =E18 -> Total Grants & Contributions - price control - wastewater - 2017/18 FYA CPIH deflated | F136: =F18 -> 0 | G136: £m | H136: 0 | I136: 0 | J136: 0 | K136: 0 | L136: 0 | M136: 0 | N136: 0 | O136: 0 | P136: 0 | Q136: 0 | R136: 0 | S136: 0 | T136: 0 | U136: 0
E137: Total Grants & Contributions - price control - wastewater - net of income offset | G137: £m | H137: =SUM(L137:P137) -> 0 | J137: =J136 - J135 -> 0 | K137: =K136 - K135 -> 0 | L137: 0 | M137: 0 | N137: 0 | O137: 0 | P137: 0 | Q137: 0 | R137: 0 | S137: 0 | T137: 0 | U137: 0
E139: =E137 -> Total Grants & Contributions - price control - wastewater - net of income offset | F139: =F137 -> 0 | G139: £m | H139: 0 | I139: 0 | J139: 0 | K139: 0 | L139: 0 | M139: 0 | N139: 0 | O139: 0 | P139: 0 | Q139: 0 | R139: 0 | S139: 0 | T139: 0 | U139: 0
E140: =InpActive!E$149 -> Wastewater efficiency challenge - (post override) | F140: =InpActive!F$149 -> 0 | G140: =InpActive!G$149 -> %
E141: Ofwat view of Grants & Contributions - price control - wastewater | G141: £m | H141: =SUM(J141:U141) -> 0 | J141: =IF(J139 = 0, 0, J139 * (1 - $F$43)) -> 0 | K141: 0 | L141: =IF(L139 = 0, 0, L139 * (1 - $F$43)) -> 0 | M141: =IF(M139 = 0, 0, M139 * (1 - $F$43)) -> 0 | N141: 0 | O141: 0 | P141: 0 | Q141: 0 | R141: 0 | S141: 0 | T141: 0 | U141: 0
E143: =E141 -> Ofwat view of Grants & Contributions - price control - wastewater | F143: =F141 -> 0 | G143: £m | H143: 0 | I143: 0 | J143: 0 | K143: 0 | L143: 0 | M143: 0 | N143: 0 | O143: 0 | P143: 0 | Q143: 0 | R143: 0 | S143: 0 | T143: 0 | U143: 0
E144: =E$86 -> G&C apportionment wastewater network opex - price control - 2017/18 FYA CPIH deflated | F144: =F$86 -> 0 | G144: % | H144: 0 | I144: 0 | J144: 0 | K144: 0 | L144: 0 | M144: 0 | N144: 0 | O144: 0 | P144: 0 | Q144: 0 | R144: 0 | S144: 0 | T144: 0 | U144: 0
E145: =E$87 -> G&C apportionment wastewater network capex - price control - 2017/18 FYA CPIH deflated | F145: 0 | G145: % | H145: 0 | I145: 0 | J145: 0 | K145: 0 | L145: 0 | M145: 0 | N145: 0 | O145: 0 | P145: 0 | Q145: 0 | R145: 0 | S145: 0 | T145: 0 | U145: 0
E146: =InpActive!E$145 -> Ofwat view of G&C for opex - wastewater - price control (override) | F146: =InpActive!F$145 -> 0 | G146: =InpActive!G$145 -> £m | H146: =InpActive!H$145 -> 0 | I146: =InpActive!I$145 -> 0 | J146: =InpActive!J$145 -> 0 | K146: =InpActive!K$145 -> 0 | L146: =InpActive!L$145 -> 0 | M146: =InpActive!M$145 -> 0 | N146: =InpActive!N$145 -> 0 | O146: =InpActive!O$145 -> 0 | P146: =InpActive!P$145 -> 0 | Q146: =InpActive!Q$145 -> 0 | R146: =InpActive!R$145 -> 0 | S146: =InpActive!S$145 -> 0 | T146: =InpActive!T$145 -> 0 | U146: =InpActive!U$145 -> 0
E147: Ofwat view of G&C for opex net of income offset - wastewater network - price control (post-override) | G147: £m | H147: =SUM(J147:U147) -> 0 | J147: =IF(J146 = 0, J144 * J$143, J146) -> 0 | K147: =IF(K146 = 0, K144 * K$143, K146) -> 0 | L147: =IF(L146 = 0, L144 * L$143, L146) -> 0 | M147: 0 | N147: 0 | O147: 0 | P147: 0 | Q147: 0 | R147: 0 | S147: 0 | T147: 0 | U147: 0
E148: =InpActive!E$143 -> Ofwat view of G&C for capex - wastewater - price control (override) | F148: =InpActive!F$143 -> 0 | G148: =InpActive!G$143 -> £m | H148: =InpActive!H$143 -> 0 | I148: =InpActive!I$143 -> 0 | J148: =InpActive!J$143 -> 0 | K148: =InpActive!K$143 -> 0 | L148: =InpActive!L$143 -> 0 | M148: =InpActive!M$143 -> 0 | N148: =InpActive!N$143 -> 0 | O148: =InpActive!O$143 -> 0 | P148: =InpActive!P$143 -> 0 | Q148: =InpActive!Q$143 -> 0 | R148: =InpActive!R$143 -> 0 | S148: =InpActive!S$143 -> 0 | T148: =InpActive!T$143 -> 0 | U148: =InpActive!U$143 -> 0
E149: Ofwat view of G&C for capex net of income offset - wastewater network - price control (post-override) | G149: £m | H149: =SUM(J149:U149) -> 0 | J149: =IF(J148 = 0, J145 * J$143, J148) -> 0 | K149: =IF(K148 = 0, K145 * K$143, K148) -> 0 | L149: 0 | M149: 0 | N149: 0 | O149: 0 | P149: 0 | Q149: 0 | R149: 0 | S149: 0 | T149: 0 | U149: 0
A152: End of sheet

Sheet Outputs >>

Sheet G&C outputs
A1: =RIGHT(CELL("filename", $A$1), LEN(CELL("filename", $A$1)) - SEARCH("]", CELL("filename", $A$1))) -> G&C outputs | F1: =IF(InpOverride!$F$108 > 0, "Overrides", "No Overrides") -> Overrides
E2: =Time!E2 -> Model period ending | F2: =Check!$F$2 -> 1 | G2: Checks/Alerts | J2: =Time!J$25 -> 2019-03-31 | K2: =Time!K$25 -> 2020-03-31 | L2: =Time!L$25 -> 2021-03-31 | M2: =Time!M$25 -> 2022-03-31 | N2: =Time!N$25 -> 2023-03-31 | O2: =Time!O$25 -> 2024-03-31 | P2: =Time!P$25 -> 2025-03-31 | Q2: =Time!Q$25 -> 2026-03-31 | R2: =Time!R$25 -> 2027-03-31 | S2: =Time!S$25 -> 2028-03-31 | T2: =Time!T$25 -> 2029-03-31 | U2: =Time!U$25 -> 2030-03-31
E3: =Time!E3 -> Timeline label | F3: =Check!$F$3 -> 30 | G3: Track chgs | J3: =Time!J$104 -> Pre-Fcst | K3: =Time!K$104 -> Pre-Fcst | L3: =Time!L$104 -> Forecast | M3: =Time!M$104 -> Forecast | N3: =Time!N$104 -> Forecast | O3: =Time!O$104 -> Forecast | P3: =Time!P$104 -> Forecast | Q3: =Time!Q$104 -> Post-Fcst | R3: =Time!R$104 -> Post-Fcst | S3: =Time!S$104 -> Post-Fcst | T3: =Time!T$104 -> Post-Fcst | U3: =Time!U$104 -> Post-Fcst
E4: =Time!E4 -> Financial year ending | J4: =Time!J$127 -> 2019 | K4: =Time!K$127 -> 2020 | L4: =Time!L$127 -> 2021 | M4: =Time!M$127 -> 2022 | N4: =Time!N$127 -> 2023 | O4: =Time!O$127 -> 2024 | P4: =Time!P$127 -> 2025 | Q4: =Time!Q$127 -> 2026 | R4: =Time!R$127 -> 2027 | S4: =Time!S$127 -> 2028 | T4: =Time!T$127 -> 2029 | U4: =Time!U$127 -> 2030
E5: =Time!E5 -> Model column counter | F5: Constant | G5: Unit | H5: Total | J5: =Time!J$10 -> 1 | K5: =Time!K$10 -> 2 | L5: =Time!L$10 -> 3 | M5: =Time!M$10 -> 4 | N5: =Time!N$10 -> 5 | O5: =Time!O$10 -> 6 | P5: =Time!P$10 -> 7 | Q5: =Time!Q$10 -> 8 | R5: =Time!R$10 -> 9 | S5: =Time!S$10 -> 10 | T5: =Time!T$10 -> 11 | U5: =Time!U$10 -> 12
A7: GRANTS & CONTRIBUTIONS FEEDER OUTPUTS
C9: Water Network
E10: ='G&C Water'!E101 -> Ofwat view of G&C for capex - water network - price control (post-override) | F10: ='G&C Water'!F101 -> 0 | G10: ='G&C Water'!G101 -> £m | H10: ='G&C Water'!H101 -> 40.6820535 | I10: ='G&C Water'!I101 -> 0 | J10: ='G&C Water'!J101 -> 0 | K10: ='G&C Water'!K101 -> 0 | L10: ='G&C Water'!L101 -> 7.619054255 | M10: ='G&C Water'!M101 -> 8.427931953 | N10: ='G&C Water'!N101 -> 8.952445966 | O10: ='G&C Water'!O101 -> 7.821797227 | P10: ='G&C Water'!P101 -> 7.860824101 | Q10: ='G&C Water'!Q101 -> 0 | R10: ='G&C Water'!R101 -> 0 | S10: ='G&C Water'!S101 -> 0 | T10: ='G&C Water'!T101 -> 0 | U10: ='G&C Water'!U101 -> 0
D11: plus | E11: =InpActive!E$155 -> One-off contribution to capex - water network - price control | F11: =InpActive!F$155 -> 0 | G11: =InpActive!G$155 -> £m | H11: =InpActive!H$155 -> 10.5 | I11: =InpActive!I$155 -> 0 | J11: =InpActive!J$155 -> 0 | K11: =InpActive!K$155 -> 0 | L11: =InpActive!L$155 -> 3.5 | M11: =InpActive!M$155 -> 3.5 | N11: =InpActive!N$155 -> 3.5 | O11: =InpActive!O$155 -> 0 | P11: =InpActive!P$155 -> 0 | Q11: =InpActive!Q$155 -> 0 | R11: =InpActive!R$155 -> 0 | S11: =InpActive!S$155 -> 0 | T11: =InpActive!T$155 -> 0 | U11: =InpActive!U$155 -> 0
E12: WN - Grants and contributions - capital expenditure - price control - real | G12: £m | H12: =SUM(J12:U12) -> 51.1820535 | J12: =J10 + J11 -> 0 | K12: =K10 + K11 -> 0 | L12: 11.11905426 | M12: 11.92793195 | N12: 12.45244597 | O12: 7.821797227 | P12: 7.860824101 | Q12: 0 | R12: 0 | S12: 0 | T12: 0 | U12: 0
E14: ='G&C Water'!E99 -> Ofwat view of G&C for opex - water network - price control (post-override) | F14: ='G&C Water'!F99 -> 0 | G14: ='G&C Water'!G99 -> £m | H14: ='G&C Water'!H99 -> 3.534572798 | I14: ='G&C Water'!I99 -> 0 | J14: ='G&C Water'!J99 -> 0 | K14: ='G&C Water'!K99 -> 0 | L14: ='G&C Water'!L99 -> 0.7322283959 | M14: ='G&C Water'!M99 -> 0.6913119158 | N14: ='G&C Water'!N99 -> 0.6700670619 | O14: ='G&C Water'!O99 -> 0.7215311629 | P14: ='G&C Water'!P99 -> 0.7194342611 | Q14: ='G&C Water'!Q99 -> 0 | R14: ='G&C Water'!R99 -> 0 | S14: ='G&C Water'!S99 -> 0 | T14: ='G&C Water'!T99 -> 0 | U14: ='G&C Water'!U99 -> 0
D15: plus | E15: =InpActive!E$157 -> One-off contribution to opex - water network - price control | F15: =InpActive!F$157 -> 0 | G15: =InpActive!G$157 -> £m | H15: =InpActive!H$157 -> 0 | I15: =InpActive!I$157 -> 0 | J15: =InpActive!J$157 -> 0 | K15: =InpActive!K$157 -> 0 | L15: =InpActive!L$157 -> 0 | M15: =InpActive!M$157 -> 0 | N15: =InpActive!N$157 -> 0 | O15: =InpActive!O$157 -> 0 | P15: =InpActive!P$157 -> 0 | Q15: =InpActive!Q$157 -> 0 | R15: =InpActive!R$157 -> 0 | S15: =InpActive!S$157 -> 0 | T15: =InpActive!T$157 -> 0 | U15: =InpActive!U$157 -> 0
E16: WN - Grants and contributions - operational expenditure - price control - real | G16: £m | H16: =SUM(J16:U16) -> 3.534572798 | J16: =J14 + J15 -> 0 | K16: =K14 + K15 -> 0 | L16: =L14 + L15 -> 0.7322283959 | M16: =M14 + M15 -> 0.6913119158 | N16: =N14 + N15 -> 0.6700670619 | O16: =O14 + O15 -> 0.7215311629 | P16: =P14 + P15 -> 0.7194342611 | Q16: =Q14 + Q15 -> 0 | R16: =R14 + R15 -> 0 | S16: =S14 + S15 -> 0 | T16: =T14 + T15 -> 0 | U16: =U14 + U15 -> 0
E18: ='G&C Water'!E123 -> Ofwat view of G&C for capex - water network - non price control (post-override) | F18: ='G&C Water'!F123 -> 0 | G18: ='G&C Water'!G123 -> £m | H18: ='G&C Water'!H123 -> 10.42640029 | I18: ='G&C Water'!I123 -> 0 | J18: ='G&C Water'!J123 -> 0 | K18: ='G&C Water'!K123 -> 0 | L18: ='G&C Water'!L123 -> 3.654661319 | M18: ='G&C Water'!M123 -> 3.178196514 | N18: ='G&C Water'!N123 -> 3.198476888 | O18: ='G&C Water'!O123 -> 0.197467229 | P18: ='G&C Water'!P123 -> 0.1975983402 | Q18: ='G&C Water'!Q123 -> 0 | R18: ='G&C Water'!R123 -> 0 | S18: ='G&C Water'!S123 -> 0 | T18: ='G&C Water'!T123 -> 0 | U18: ='G&C Water'!U123 -> 0
D19: plus | E19: =InpActive!E$156 -> One-off contribution to capex - water network - non price control | F19: =InpActive!F$156 -> 0 | G19: =InpActive!G$156 -> £m | H19: =InpActive!H$156 -> 0 | I19: =InpActive!I$156 -> 0 | J19: =InpActive!J$156 -> 0 | K19: =InpActive!K$156 -> 0 | L19: =InpActive!L$156 -> 0 | M19: =InpActive!M$156 -> 0 | N19: =InpActive!N$156 -> 0 | O19: =InpActive!O$156 -> 0 | P19: =InpActive!P$156 -> 0 | Q19: =InpActive!Q$156 -> 0 | R19: =InpActive!R$156 -> 0 | S19: =InpActive!S$156 -> 0 | T19: =InpActive!T$156 -> 0 | U19: =InpActive!U$156 -> 0
E20: WN - Grants and contributions - capital expenditure - non price control - real | G20: £m | H20: =SUM(J20:U20) -> 10.42640029 | J20: =J18 + J19 -> 0 | K20: =K18 + K19 -> 0 | L20: =L18 + L19 -> 3.654661319 | M20: =M18 + M19 -> 3.178196514 | N20: =N18 + N19 -> 3.198476888 | O20: =O18 + O19 -> 0.197467229 | P20: =P18 + P19 -> 0.1975983402 | Q20: =Q18 + Q19 -> 0 | R20: =R18 + R19 -> 0 | S20: =S18 + S19 -> 0 | T20: =T18 + T19 -> 0 | U20: =U18 + U19 -> 0
E22: ='G&C Water'!E132 -> Ofwat view of G&C for opex - water network - non price control (post-override) | F22: ='G&C Water'!F132 -> 0 | G22: ='G&C Water'!G132 -> £m | H22: ='G&C Water'!H132 -> 3.19308936 | I22: ='G&C Water'!I132 -> 0 | J22: ='G&C Water'!J132 -> 0 | K22: ='G&C Water'!K132 -> 0 | L22: ='G&C Water'!L132 -> 0.812230836 | M22: ='G&C Water'!M132 -> 0.7216956408 | N22: ='G&C Water'!N132 -> 0.7003975925 | O22: ='G&C Water'!O132 -> 0.4794482011 | P22: ='G&C Water'!P132 -> 0.4793170899 | Q22: ='G&C Water'!Q132 -> 0 | R22: ='G&C Water'!R132 -> 0 | S22: ='G&C Water'!S132 -> 0 | T22: ='G&C Water'!T132 -> 0 | U22: ='G&C Water'!U132 -> 0
D23: plus | E23: =InpActive!E$158 -> One-off contribution to opex - water network - non price control | F23: =InpActive!F$158 -> 0 | G23: =InpActive!G$158 -> £m | H23: =InpActive!H$158 -> 0 | I23: =InpActive!I$158 -> 0 | J23: =InpActive!J$158 -> 0 | K23: =InpActive!K$158 -> 0 | L23: =InpActive!L$158 -> 0 | M23: =InpActive!M$158 -> 0 | N23: =InpActive!N$158 -> 0 | O23: =InpActive!O$158 -> 0 | P23: =InpActive!P$158 -> 0 | Q23: =InpActive!Q$158 -> 0 | R23: =InpActive!R$158 -> 0 | S23: =InpActive!S$158 -> 0 | T23: =InpActive!T$158 -> 0 | U23: =InpActive!U$158 -> 0
E24: WN - Grants and contributions - operational expenditure - non price control - real | G24: £m | H24: =SUM(J24:U24) -> 3.19308936 | J24: =J22 + J23 -> 0 | K24: =K22 + K23 -> 0 | L24: =L22 + L23 -> 0.812230836 | M24: =M22 + M23 -> 0.7216956408 | N24: =N22 + N23 -> 0.7003975925 | O24: =O22 + O23 -> 0.4794482011 | P24: =P22 + P23 -> 0.4793170899 | Q24: =Q22 + Q23 -> 0 | R24: =R22 + R23 -> 0 | S24: =S22 + S23 -> 0 | T24: =T22 + T23 -> 0 | U24: =U22 + U23 -> 0
C26: Water Resources
E27: ='G&C Water'!E105 -> Ofwat view of G&C for capex - water resources - price control (post-override) | F27: ='G&C Water'!F105 -> 0 | G27: ='G&C Water'!G105 -> £m | H27: ='G&C Water'!H105 -> 0 | I27: ='G&C Water'!I105 -> 0 | J27: ='G&C Water'!J105 -> 0 | K27: ='G&C Water'!K105 -> 0 | L27: ='G&C Water'!L105 -> 0 | M27: ='G&C Water'!M105 -> 0 | N27: ='G&C Water'!N105 -> 0 | O27: ='G&C Water'!O105 -> 0 | P27: ='G&C Water'!P105 -> 0 | Q27: ='G&C Water'!Q105 -> 0 | R27: ='G&C Water'!R105 -> 0 | S27: ='G&C Water'!S105 -> 0 | T27: ='G&C Water'!T105 -> 0 | U27: ='G&C Water'!U105 -> 0
D28: plus | E28: =InpActive!E$160 -> One-off contribution to capex - water resources - price control | F28: =InpActive!F$160 -> 0 | G28: =InpActive!G$160 -> £m | H28: =InpActive!H$160 -> 0 | I28: =InpActive!I$160 -> 0 | J28: =InpActive!J$160 -> 0 | K28: =InpActive!K$160 -> 0 | L28: =InpActive!L$160 -> 0 | M28: =InpActive!M$160 -> 0 | N28: =InpActive!N$160 -> 0 | O28: =InpActive!O$160 -> 0 | P28: =InpActive!P$160 -> 0 | Q28: =InpActive!Q$160 -> 0 | R28: =InpActive!R$160 -> 0 | S28: =InpActive!S$160 -> 0 | T28: =InpActive!T$160 -> 0 | U28: =InpActive!U$160 -> 0
E29: WR - Grants and contributions - capital expenditure - price control - real | G29: £m | H29: =SUM(J29:U29) -> 0 | J29: =J27 + J28 -> 0 | K29: 0 | L29: 0 | M29: 0 | N29: 0 | O29: 0 | P29: 0 | Q29: 0 | R29: 0 | S29: 0 | T29: 0 | U29: 0
E31: ='G&C Water'!E103 -> Ofwat view of G&C for opex - water resources - price control (post-override) | F31: ='G&C Water'!F103 -> 0 | G31: ='G&C Water'!G103 -> £m | H31: ='G&C Water'!H103 -> 0 | I31: ='G&C Water'!I103 -> 0 | J31: ='G&C Water'!J103 -> 0 | K31: ='G&C Water'!K103 -> 0 | L31: ='G&C Water'!L103 -> 0 | M31: ='G&C Water'!M103 -> 0 | N31: ='G&C Water'!N103 -> 0 | O31: ='G&C Water'!O103 -> 0 | P31: ='G&C Water'!P103 -> 0 | Q31: ='G&C Water'!Q103 -> 0 | R31: ='G&C Water'!R103 -> 0 | S31: ='G&C Water'!S103 -> 0 | T31: ='G&C Water'!T103 -> 0 | U31: ='G&C Water'!U103 -> 0
D32: plus | E32: =InpActive!E$162 -> One-off contribution to opex - water resources - price control | F32: =InpActive!F$162 -> 0 | G32: =InpActive!G$162 -> £m | H32: =InpActive!H$162 -> 0 | I32: =InpActive!I$162 -> 0 | J32: =InpActive!J$162 -> 0 | K32: =InpActive!K$162 -> 0 | L32: =InpActive!L$162 -> 0 | M32: =InpActive!M$162 -> 0 | N32: =InpActive!N$162 -> 0 | O32: =InpActive!O$162 -> 0 | P32: =InpActive!P$162 -> 0 | Q32: =InpActive!Q$162 -> 0 | R32: =InpActive!R$162 -> 0 | S32: =InpActive!S$162 -> 0 | T32: =InpActive!T$162 -> 0 | U32: =InpActive!U$162 -> 0
E33: WR - Grants and contributions - operational expenditure - price control - real | G33: £m | H33: =SUM(J33:U33) -> 0 | J33: =J31 + J32 -> 0 | K33: =K31 + K32 -> 0 | L33: =L31 + L32 -> 0 | M33: =M31 + M32 -> 0 | N33: =N31 + N32 -> 0 | O33: =O31 + O32 -> 0 | P33: =P31 + P32 -> 0 | Q33: =Q31 + Q32 -> 0 | R33: =R31 + R32 -> 0 | S33: =S31 + S32 -> 0 | T33: =T31 + T32 -> 0 | U33: =U31 + U32 -> 0
E35: ='G&C Water'!E127 -> Ofwat view of G&C for capex - water resources - non price control (post-override) | F35: ='G&C Water'!F127 -> 0 | G35: ='G&C Water'!G127 -> £m | H35: ='G&C Water'!H127 -> 0 | I35: ='G&C Water'!I127 -> 0 | J35: ='G&C Water'!J127 -> 0 | K35: ='G&C Water'!K127 -> 0 | L35: ='G&C Water'!L127 -> 0 | M35: ='G&C Water'!M127 -> 0 | N35: ='G&C Water'!N127 -> 0 | O35: ='G&C Water'!O127 -> 0 | P35: ='G&C Water'!P127 -> 0 | Q35: ='G&C Water'!Q127 -> 0 | R35: ='G&C Water'!R127 -> 0 | S35: ='G&C Water'!S127 -> 0 | T35: ='G&C Water'!T127 -> 0 | U35: ='G&C Water'!U127 -> 0
D36: plus | E36: =InpActive!E$161 -> One-off contribution to capex - water resources - non price control | F36: =InpActive!F$161 -> 0 | G36: =InpActive!G$161 -> £m | H36: =InpActive!H$161 -> 0 | I36: =InpActive!I$161 -> 0 | J36: =InpActive!J$161 -> 0 | K36: =InpActive!K$161 -> 0 | L36: =InpActive!L$161 -> 0 | M36: =InpActive!M$161 -> 0 | N36: =InpActive!N$161 -> 0 | O36: =InpActive!O$161 -> 0 | P36: =InpActive!P$161 -> 0 | Q36: =InpActive!Q$161 -> 0 | R36: =InpActive!R$161 -> 0 | S36: =InpActive!S$161 -> 0 | T36: =InpActive!T$161 -> 0 | U36: =InpActive!U$161 -> 0
E37: WR - Grants and contributions - capital expenditure - non price control - real | G37: £m | H37: =SUM(J37:U37) -> 0 | J37: =J35 + J36 -> 0 | K37: =K35 + K36 -> 0 | L37: =L35 + L36 -> 0 | M37: =M35 + M36 -> 0 | N37: =N35 + N36 -> 0 | O37: =O35 + O36 -> 0 | P37: =P35 + P36 -> 0 | Q37: =Q35 + Q36 -> 0 | R37: =R35 + R36 -> 0 | S37: =S35 + S36 -> 0 | T37: =T35 + T36 -> 0 | U37: =U35 + U36 -> 0
E39: ='G&C Water'!E125 -> Ofwat view of G&C for opex - water resources - non price control (post-override) | F39: ='G&C Water'!F125 -> 0 | G39: ='G&C Water'!G125 -> £m | H39: ='G&C Water'!H125 -> 0 | I39: ='G&C Water'!I125 -> 0 | J39: ='G&C Water'!J125 -> 0 | K39: ='G&C Water'!K125 -> 0 | L39: ='G&C Water'!L125 -> 0 | M39: ='G&C Water'!M125 -> 0 | N39: ='G&C Water'!N125 -> 0 | O39: ='G&C Water'!O125 -> 0 | P39: ='G&C Water'!P125 -> 0 | Q39: ='G&C Water'!Q125 -> 0 | R39: ='G&C Water'!R125 -> 0 | S39: ='G&C Water'!S125 -> 0 | T39: ='G&C Water'!T125 -> 0 | U39: ='G&C Water'!U125 -> 0
D40: plus | E40: =InpActive!E$163 -> One-off contribution to opex - water resources - non price control | F40: =InpActive!F$163 -> 0 | G40: =InpActive!G$163 -> £m | H40: =InpActive!H$163 -> 0 | I40: =InpActive!I$163 -> 0 | J40: =InpActive!J$163 -> 0 | K40: =InpActive!K$163 -> 0 | L40: =InpActive!L$163 -> 0 | M40: =InpActive!M$163 -> 0 | N40: =InpActive!N$163 -> 0 | O40: =InpActive!O$163 -> 0 | P40: =InpActive!P$163 -> 0 | Q40: =InpActive!Q$163 -> 0 | R40: =InpActive!R$163 -> 0 | S40: =InpActive!S$163 -> 0 | T40: =InpActive!T$163 -> 0 | U40: =InpActive!U$163 -> 0
E41: WR - Grants and contributions - operational expenditure - non price control - real | G41: £m | H41: =SUM(J41:U41) -> 0 | J41: =J39 + J40 -> 0 | K41: =K39 + K40 -> 0 | L41: =L39 + L40 -> 0 | M41: =M39 + M40 -> 0 | N41: =N39 + N40 -> 0 | O41: =O39 + O40 -> 0 | P41: =P39 + P40 -> 0 | Q41: =Q39 + Q40 -> 0 | R41: =R39 + R40 -> 0 | S41: =S39 + S40 -> 0 | T41: =T39 + T40 -> 0 | U41: =U39 + U40 -> 0
C43: Wastewater
E44: ='G&C Wastewater'!E95 -> Ofwat view of G&C for capex - wastewater network - price control (post-override) | F44: ='G&C Wastewater'!F95 -> 0 | G44: ='G&C Wastewater'!G95 -> £m | H44: ='G&C Wastewater'!H95 -> 0 | I44: ='G&C Wastewater'!I95 -> 0 | J44: ='G&C Wastewater'!J95 -> 0 | K44: ='G&C Wastewater'!K95 -> 0 | L44: ='G&C Wastewater'!L95 -> 0 | M44: ='G&C Wastewater'!M95 -> 0 | N44: ='G&C Wastewater'!N95 -> 0 | O44: ='G&C Wastewater'!O95 -> 0 | P44: ='G&C Wastewater'!P95 -> 0 | Q44: ='G&C Wastewater'!Q95 -> 0 | R44: ='G&C Wastewater'!R95 -> 0 | S44: ='G&C Wastewater'!S95 -> 0 | T44: ='G&C Wastewater'!T95 -> 0 | U44: ='G&C Wastewater'!U95 -> 0
D45: plus | E45: =InpActive!E$165 -> One-off contribution to capex - wastewater - price control | F45: =InpActive!F$165 -> 0 | G45: =InpActive!G$165 -> £m | H45: =InpActive!H$165 -> 0 | I45: =InpActive!I$165 -> 0 | J45: =InpActive!J$165 -> 0 | K45: =InpActive!K$165 -> 0 | L45: =InpActive!L$165 -> 0 | M45: =InpActive!M$165 -> 0 | N45: =InpActive!N$165 -> 0 | O45: =InpActive!O$165 -> 0 | P45: =InpActive!P$165 -> 0 | Q45: =InpActive!Q$165 -> 0 | R45: =InpActive!R$165 -> 0 | S45: =InpActive!S$165 -> 0 | T45: =InpActive!T$165 -> 0 | U45: =InpActive!U$165 -> 0
E46: WWN - Grants and contributions - capital expenditure - price control - real | G46: £m | H46: =SUM(J46:U46) -> 0 | J46: =J44 + J45 -> 0 | K46: =K44 + K45 -> 0 | L46: =L44 + L45 -> 0 | M46: =M44 + M45 -> 0 | N46: =N44 + N45 -> 0 | O46: =O44 + O45 -> 0 | P46: =P44 + P45 -> 0 | Q46: =Q44 + Q45 -> 0 | R46: =R44 + R45 -> 0 | S46: =S44 + S45 -> 0 | T46: =T44 + T45 -> 0 | U46: =U44 + U45 -> 0
E48: ='G&C Wastewater'!E93 -> Ofwat view of G&C for opex - wastewater network - price control (post-override) | F48: ='G&C Wastewater'!F93 -> 0 | G48: ='G&C Wastewater'!G93 -> £m | H48: ='G&C Wastewater'!H93 -> 0 | I48: ='G&C Wastewater'!I93 -> 0 | J48: ='G&C Wastewater'!J93 -> 0 | K48: ='G&C Wastewater'!K93 -> 0 | L48: ='G&C Wastewater'!L93 -> 0 | M48: ='G&C Wastewater'!M93 -> 0 | N48: ='G&C Wastewater'!N93 -> 0 | O48: ='G&C Wastewater'!O93 -> 0 | P48: ='G&C Wastewater'!P93 -> 0 | Q48: ='G&C Wastewater'!Q93 -> 0 | R48: ='G&C Wastewater'!R93 -> 0 | S48: ='G&C Wastewater'!S93 -> 0 | T48: ='G&C Wastewater'!T93 -> 0 | U48: ='G&C Wastewater'!U93 -> 0
D49: plus | E49: =InpActive!E$167 -> One-off contribution to opex - wastewater - price control | F49: =InpActive!F$167 -> 0 | G49: =InpActive!G$167 -> £m | H49: =InpActive!H$167 -> 0 | I49: =InpActive!I$167 -> 0 | J49: =InpActive!J$167 -> 0 | K49: =InpActive!K$167 -> 0 | L49: =InpActive!L$167 -> 0 | M49: =InpActive!M$167 -> 0 | N49: =InpActive!N$167 -> 0 | O49: =InpActive!O$167 -> 0 | P49: =InpActive!P$167 -> 0 | Q49: =InpActive!Q$167 -> 0 | R49: =InpActive!R$167 -> 0 | S49: =InpActive!S$167 -> 0 | T49: =InpActive!T$167 -> 0 | U49: =InpActive!U$167 -> 0
E50: WWN - Grants and contributions - operational expenditure - price control - real | G50: £m | H50: =SUM(J50:U50) -> 0 | J50: =J48 + J49 -> 0 | K50: =K48 + K49 -> 0 | L50: =L48 + L49 -> 0 | M50: =M48 + M49 -> 0 | N50: =N48 + N49 -> 0 | O50: =O48 + O49 -> 0 | P50: =P48 + P49 -> 0 | Q50: =Q48 + Q49 -> 0 | R50: =R48 + R49 -> 0 | S50: =S48 + S49 -> 0 | T50: =T48 + T49 -> 0 | U50: =U48 + U49 -> 0
E52: ='G&C Wastewater'!E111 -> Ofwat view of G&C for capex - wastewater network - non price control (post-override) | F52: ='G&C Wastewater'!F111 -> 0 | G52: ='G&C Wastewater'!G111 -> £m | H52: ='G&C Wastewater'!H111 -> 0 | I52: ='G&C Wastewater'!I111 -> 0 | J52: ='G&C Wastewater'!J111 -> 0 | K52: ='G&C Wastewater'!K111 -> 0 | L52: ='G&C Wastewater'!L111 -> 0 | M52: ='G&C Wastewater'!M111 -> 0 | N52: ='G&C Wastewater'!N111 -> 0 | O52: ='G&C Wastewater'!O111 -> 0 | P52: ='G&C Wastewater'!P111 -> 0 | Q52: ='G&C Wastewater'!Q111 -> 0 | R52: ='G&C Wastewater'!R111 -> 0 | S52: ='G&C Wastewater'!S111 -> 0 | T52: ='G&C Wastewater'!T111 -> 0 | U52: ='G&C Wastewater'!U111 -> 0
D53: plus | E53: =InpActive!E$166 -> One-off contribution to capex - wastewater - non price control | F53: =InpActive!F$166 -> 0 | G53: =InpActive!G$166 -> £m | H53: =InpActive!H$166 -> 0 | I53: =InpActive!I$166 -> 0 | J53: =InpActive!J$166 -> 0 | K53: =InpActive!K$166 -> 0 | L53: =InpActive!L$166 -> 0 | M53: =InpActive!M$166 -> 0 | N53: =InpActive!N$166 -> 0 | O53: =InpActive!O$166 -> 0 | P53: =InpActive!P$166 -> 0 | Q53: =InpActive!Q$166 -> 0 | R53: =InpActive!R$166 -> 0 | S53: =InpActive!S$166 -> 0 | T53: =InpActive!T$166 -> 0 | U53: =InpActive!U$166 -> 0
E54: WWN - Grants and contributions - capital expenditure - non price control - real | G54: £m | H54: =SUM(J54:U54) -> 0 | J54: =J52 + J53 -> 0 | K54: =K52 + K53 -> 0 | L54: =L52 + L53 -> 0 | M54: =M52 + M53 -> 0 | N54: =N52 + N53 -> 0 | O54: =O52 + O53 -> 0 | P54: =P52 + P53 -> 0 | Q54: =Q52 + Q53 -> 0 | R54: =R52 + R53 -> 0 | S54: =S52 + S53 -> 0 | T54: =T52 + T53 -> 0 | U54: =U52 + U53 -> 0
E56: ='G&C Wastewater'!E116 -> Ofwat view of other G&C for opex - wastewater network - non price control (post-override) | F56: ='G&C Wastewater'!F116 -> 0 | G56: ='G&C Wastewater'!G116 -> £m | H56: ='G&C Wastewater'!H116 -> 0 | I56: ='G&C Wastewater'!I116 -> 0 | J56: ='G&C Wastewater'!J116 -> 0 | K56: ='G&C Wastewater'!K116 -> 0 | L56: ='G&C Wastewater'!L116 -> 0 | M56: ='G&C Wastewater'!M116 -> 0 | N56: ='G&C Wastewater'!N116 -> 0 | O56: ='G&C Wastewater'!O116 -> 0 | P56: ='G&C Wastewater'!P116 -> 0 | Q56: ='G&C Wastewater'!Q116 -> 0 | R56: ='G&C Wastewater'!R116 -> 0 | S56: ='G&C Wastewater'!S116 -> 0 | T56: ='G&C Wastewater'!T116 -> 0 | U56: ='G&C Wastewater'!U116 -> 0
D57: plus | E57: =InpActive!E$168 -> One-off contribution to opex - wastewater - non price control | F57: =InpActive!F$168 -> 0 | G57: =InpActive!G$168 -> £m | H57: =InpActive!H$168 -> 0 | I57: =InpActive!I$168 -> 0 | J57: =InpActive!J$168 -> 0 | K57: =InpActive!K$168 -> 0 | L57: =InpActive!L$168 -> 0 | M57: =InpActive!M$168 -> 0 | N57: =InpActive!N$168 -> 0 | O57: =InpActive!O$168 -> 0 | P57: =InpActive!P$168 -> 0 | Q57: =InpActive!Q$168 -> 0 | R57: =InpActive!R$168 -> 0 | S57: =InpActive!S$168 -> 0 | T57: =InpActive!T$168 -> 0 | U57: =InpActive!U$168 -> 0
E58: WWN - Grants and contributions - operational expenditure - non price control - real | G58: £m | H58: =SUM(J58:U58) -> 0 | J58: =J56 + J57 -> 0 | K58: =K56 + K57 -> 0 | L58: =L56 + L57 -> 0 | M58: =M56 + M57 -> 0 | N58: =N56 + N57 -> 0 | O58: =O56 + O57 -> 0 | P58: =P56 + P57 -> 0 | Q58: =Q56 + Q57 -> 0 | R58: =R56 + R57 -> 0 | S58: =S56 + S57 -> 0 | T58: =T56 + T57 -> 0 | U58: =U56 + U57 -> 0
A60: For information - COMPANY VIEW
A62: Company view of G&C (for comparison with values calculated above)
D63: ='F_Inputs (combined)'!B$19 -> A19053WN | E63: ='F_Inputs (combined)'!C$19 -> Water network capital expenditure grants and contributions (price control) | F63: ='F_Inputs (combined)'!D$19 -> £m | L63: ='F_Inputs (combined)'!F$19 -> 4.692789146 | M63: ='F_Inputs (combined)'!G$19 -> 5.498237805 | N63: ='F_Inputs (combined)'!H$19 -> 6.025595586 | O63: ='F_Inputs (combined)'!I$19 -> 4.893633347 | P63: ='F_Inputs (combined)'!J$19 -> 4.932384555
D64: ='F_Inputs (combined)'!B$18 -> A19052WN | E64: ='F_Inputs (combined)'!C$18 -> Water network operating expenditure grants and contributions (price control) | F64: ='F_Inputs (combined)'!D$18 -> £m | L64: ='F_Inputs (combined)'!F$18 -> 0.451 | M64: ='F_Inputs (combined)'!G$18 -> 0.451 | N64: ='F_Inputs (combined)'!H$18 -> 0.451 | O64: ='F_Inputs (combined)'!I$18 -> 0.4514191377 | P64: ='F_Inputs (combined)'!J$18 -> 0.4514191377
D65: ='F_Inputs (combined)'!B$21 -> A19055WN | E65: ='F_Inputs (combined)'!C$21 -> Water network capital expenditure grants and contributions (non-price control) | F65: ='F_Inputs (combined)'!D$21 -> £m | L65: ='F_Inputs (combined)'!F$21 -> 3.438892155 | M65: ='F_Inputs (combined)'!G$21 -> 3.438892155 | N65: ='F_Inputs (combined)'!H$21 -> 3.43787448 | O65: ='F_Inputs (combined)'!I$21 -> 0.2159154301 | P65: ='F_Inputs (combined)'!J$21 -> 0.2159154301
D66: ='F_Inputs (combined)'!B$20 -> A19054WN | E66: ='F_Inputs (combined)'!C$20 -> Water network operating expenditure grants and contributions (non-price control) | F66: ='F_Inputs (combined)'!D$20 -> £m | L66: ='F_Inputs (combined)'!F$20 -> 0.461 | M66: ='F_Inputs (combined)'!G$20 -> 0.461 | N66: ='F_Inputs (combined)'!H$20 -> 0.461 | O66: ='F_Inputs (combined)'!I$20 -> 0.461 | P66: ='F_Inputs (combined)'!J$20 -> 0.461
D68: ='F_Inputs (combined)'!B$15 -> A19049WR | E68: ='F_Inputs (combined)'!C$15 -> Water resources capital expenditure grants and contributions (price control) | F68: ='F_Inputs (combined)'!D$15 -> £m | L68: ='F_Inputs (combined)'!F$15 -> 0 | M68: ='F_Inputs (combined)'!G$15 -> 0 | N68: ='F_Inputs (combined)'!H$15 -> 0 | O68: ='F_Inputs (combined)'!I$15 -> 0 | P68: ='F_Inputs (combined)'!J$15 -> 0
D69: ='F_Inputs (combined)'!B$14 -> A19048WR | E69: ='F_Inputs (combined)'!C$14 -> Water resources operating expenditure grants and contributions (price control) | F69: ='F_Inputs (combined)'!D$14 -> £m | L69: ='F_Inputs (combined)'!F$14 -> 0 | M69: ='F_Inputs (combined)'!G$14 -> 0 | N69: ='F_Inputs (combined)'!H$14 -> 0 | O69: ='F_Inputs (combined)'!I$14 -> 0 | P69: ='F_Inputs (combined)'!J$14 -> 0
D70: ='F_Inputs (combined)'!B$17 -> A19053WR | E70: ='F_Inputs (combined)'!C$17 -> Water resources capital expenditure grants and contributions (non-price control) | F70: ='F_Inputs (combined)'!D$17 -> £m | L70: ='F_Inputs (combined)'!F$17 -> 0.567 | M70: ='F_Inputs (combined)'!G$17 -> 0 | N70: ='F_Inputs (combined)'!H$17 -> 0 | O70: ='F_Inputs (combined)'!I$17 -> 0 | P70: ='F_Inputs (combined)'!J$17 -> 0
D71: ='F_Inputs (combined)'!B$16 -> A19052WR | E71: ='F_Inputs (combined)'!C$16 -> Water resources operating expenditure grants and contributions (non-price control) | F71: ='F_Inputs (combined)'!D$16 -> £m | L71: ='F_Inputs (combined)'!F$16 -> 0 | M71: ='F_Inputs (combined)'!G$16 -> 0 | N71: ='F_Inputs (combined)'!H$16 -> 0 | O71: ='F_Inputs (combined)'!I$16 -> 0 | P71: ='F_Inputs (combined)'!J$16 -> 0
D73: ='F_Inputs (combined)'!B$23 -> A19053WWN | E73: ='F_Inputs (combined)'!C$23 -> Wastewater network capital expenditure grants and contributions (price control) | F73: ='F_Inputs (combined)'!D$23 -> £m | L73: ='F_Inputs (combined)'!F$23 -> 0 | M73: ='F_Inputs (combined)'!G$23 -> 0 | N73: ='F_Inputs (combined)'!H$23 -> 0 | O73: ='F_Inputs (combined)'!I$23 -> 0 | P73: ='F_Inputs (combined)'!J$23 -> 0
D74: ='F_Inputs (combined)'!B$22 -> A19052WWN | E74: ='F_Inputs (combined)'!C$22 -> Wastewater network operating expenditure grants and contributions (price control) | F74: ='F_Inputs (combined)'!D$22 -> £m | L74: ='F_Inputs (combined)'!F$22 -> 0 | M74: ='F_Inputs (combined)'!G$22 -> 0 | N74: ='F_Inputs (combined)'!H$22 -> 0 | O74: ='F_Inputs (combined)'!I$22 -> 0 | P74: ='F_Inputs (combined)'!J$22 -> 0
D75: ='F_Inputs (combined)'!B$25 -> A19055WWN | E75: ='F_Inputs (combined)'!C$25 -> Wastewater network capital expenditure grants and contributions (non-price control) | F75: ='F_Inputs (combined)'!D$25 -> £m | L75: ='F_Inputs (combined)'!F$25 -> 0 | M75: ='F_Inputs (combined)'!G$25 -> 0 | N75: ='F_Inputs (combined)'!H$25 -> 0 | O75: ='F_Inputs (combined)'!I$25 -> 0 | P75: ='F_Inputs (combined)'!J$25 -> 0
D76: ='F_Inputs (combined)'!B$24 -> A19054WWN | E76: ='F_Inputs (combined)'!C$24 -> Wastewater network operating expenditure grants and contributions (non-price control) | F76: ='F_Inputs (combined)'!D$24 -> £m | L76: ='F_Inputs (combined)'!F$24 -> 0 | M76: ='F_Inputs (combined)'!G$24 -> 0 | N76: ='F_Inputs (combined)'!H$24 -> 0 | O76: ='F_Inputs (combined)'!I$24 -> 0 | P76: ='F_Inputs (combined)'!J$24 -> 0
A78: OTHER OUTPUTS
A80: Efficiency Challenge
E81: =InpOverride!E$12 -> Wastewater efficiency challenge - override | F81: =InpOverride!F12 -> 0 | G81: =InpOverride!G12 -> %
E82: =InpOverride!E16 -> Water efficiency challenge - override | F82: =InpOverride!F16 -> 0 | G82: =InpOverride!G16 -> %
E84: Wastewater efficiency challenge - opex - override | F84: =F81 -> 0 | G84: =G81 -> %
E85: Wastewater efficiency challenge - capex - override | F85: =F81 -> 0 | G85: =G81 -> %
E86: Water efficiency challenge - opex - override | F86: =F$82 -> 0 | G86: =G$82 -> %
E87: Water efficiency challenge - capex - override | F87: =F$82 -> 0 | G87: %
A89: Unit rate
E90: ='G&C Water'!E32 -> Unit rate - water | F90: ='G&C Water'!F32 -> 0 | G90: ='G&C Water'!G32 -> £/connection | H90: ='G&C Water'!H32 -> 0 | I90: ='G&C Water'!I32 -> 0 | J90: ='G&C Water'!J32 -> 0 | K90: ='G&C Water'!K32 -> 0 | L90: ='G&C Water'!L32 -> 1384.73105 | M90: ='G&C Water'!M32 -> 1512.067147 | N90: ='G&C Water'!N32 -> 1595.772299 | O90: ='G&C Water'!O32 -> 1416.803151 | P90: ='G&C Water'!P32 -> 1423.157471 | Q90: ='G&C Water'!Q32 -> 0 | R90: ='G&C Water'!R32 -> 0 | S90: ='G&C Water'!S32 -> 0 | T90: ='G&C Water'!T32 -> 0 | U90: ='G&C Water'!U32 -> 0
E91: ='G&C Wastewater'!E32 -> Unit rate - wastewater | F91: ='G&C Wastewater'!F32 -> 0 | G91: ='G&C Wastewater'!G32 -> £/connection | H91: ='G&C Wastewater'!H32 -> 0 | I91: ='G&C Wastewater'!I32 -> 0 | J91: ='G&C Wastewater'!J32 -> 0 | K91: ='G&C Wastewater'!K32 -> 0 | L91: ='G&C Wastewater'!L32 -> 0 | M91: ='G&C Wastewater'!M32 -> 0 | N91: ='G&C Wastewater'!N32 -> 0 | O91: ='G&C Wastewater'!O32 -> 0 | P91: ='G&C Wastewater'!P32 -> 0 | Q91: ='G&C Wastewater'!Q32 -> 0 | R91: ='G&C Wastewater'!R32 -> 0 | S91: ='G&C Wastewater'!S32 -> 0 | T91: ='G&C Wastewater'!T32 -> 0 | U91: ='G&C Wastewater'!U32 -> 0
E92: Company-specific unit rate for developer services - water | F92: =F90 -> 0 | G92: =G90 -> £/connection | H92: 0 | I92: 0 | J92: 0 | K92: 0 | L92: 1384.73105 | M92: 1512.067147 | N92: 1595.772299 | O92: 1416.803151 | P92: 1423.157471 | Q92: 0 | R92: 0 | S92: 0 | T92: 0 | U92: 0
E93: Company-specific unit rate for developer services - wastewater | F93: =F91 -> 0 | G93: £/connection | H93: 0 | I93: 0 | J93: 0 | K93: 0 | L93: 0 | M93: 0 | N93: 0 | O93: 0 | P93: 0 | Q93: 0 | R93: 0 | S93: 0 | T93: 0 | U93: 0
A95: Non price control diversions
E96: ='G&C Water'!E68 -> Ofwat view of Diversions costs unrecovered - water - NRSWA | F96: ='G&C Water'!F68 -> 0 | G96: ='G&C Water'!G68 -> £m | H96: ='G&C Water'!H68 -> 0.3193573667 | I96: ='G&C Water'!I68 -> 0 | J96: ='G&C Water'!J68 -> 0 | K96: ='G&C Water'!K68 -> 0 | L96: ='G&C Water'!L68 -> 0.04678587511 | M96: ='G&C Water'!M68 -> 0.04678587511 | N96: ='G&C Water'!N68 -> 0.05792469592 | O96: ='G&C Water'!O68 -> 0.08393046026 | P96: ='G&C Water'!P68 -> 0.08393046026 | Q96: ='G&C Water'!Q68 -> 0 | R96: ='G&C Water'!R68 -> 0 | S96: ='G&C Water'!S68 -> 0 | T96: ='G&C Water'!T68 -> 0 | U96: ='G&C Water'!U68 -> 0
E97: ='G&C Water'!E$77 -> Ofwat view of non price control Diversions income - water | F97: ='G&C Water'!F$77 -> 0 | G97: ='G&C Water'!G$77 -> £m | H97: ='G&C Water'!H$77 -> 2.305465195 | I97: ='G&C Water'!I$77 -> 0 | J97: ='G&C Water'!J$77 -> 0 | K97: ='G&C Water'!K$77 -> 0 | L97: ='G&C Water'!L$77 -> 0.461 | M97: ='G&C Water'!M$77 -> 0.461 | N97: ='G&C Water'!N$77 -> 0.461 | O97: ='G&C Water'!O$77 -> 0.4612325973 | P97: ='G&C Water'!P$77 -> 0.4612325973 | Q97: ='G&C Water'!Q$77 -> 0 | R97: ='G&C Water'!R$77 -> 0 | S97: ='G&C Water'!S$77 -> 0 | T97: ='G&C Water'!T$77 -> 0 | U97: ='G&C Water'!U$77 -> 0
E98: ='G&C Water'!E$113 -> Non price control G&C income forecast in excess of OFWAT allowance for non pc diversions - water | F98: ='G&C Water'!F$113 -> 0 | G98: ='G&C Water'!G$113 -> £m | H98: ='G&C Water'!H$113 -> 11.31402446 | I98: ='G&C Water'!I$113 -> 0 | J98: ='G&C Water'!J$113 -> 0 | K98: ='G&C Water'!K$113 -> 0 | L98: ='G&C Water'!L$113 -> 4.005892155 | M98: ='G&C Water'!M$113 -> 3.438892155 | N98: ='G&C Water'!N$113 -> 3.43787448 | O98: ='G&C Water'!O$113 -> 0.2156828328 | P98: ='G&C Water'!P$113 -> 0.2156828328 | Q98: ='G&C Water'!Q$113 -> 0 | R98: ='G&C Water'!R$113 -> 0 | S98: ='G&C Water'!S$113 -> 0 | T98: ='G&C Water'!T$113 -> 0 | U98: ='G&C Water'!U$113 -> 0
E100: ='G&C Wastewater'!E68 -> Ofwat view of Diversions costs unrecovered - wastewater - NRSWA | F100: ='G&C Wastewater'!F68 -> 0 | G100: ='G&C Wastewater'!G68 -> £m | H100: ='G&C Wastewater'!H68 -> 0 | I100: ='G&C Wastewater'!I68 -> 0 | J100: ='G&C Wastewater'!J68 -> 0 | K100: ='G&C Wastewater'!K68 -> 0 | L100: ='G&C Wastewater'!L68 -> 0 | M100: ='G&C Wastewater'!M68 -> 0 | N100: ='G&C Wastewater'!N68 -> 0 | O100: ='G&C Wastewater'!O68 -> 0 | P100: ='G&C Wastewater'!P68 -> 0 | Q100: ='G&C Wastewater'!Q68 -> 0 | R100: ='G&C Wastewater'!R68 -> 0 | S100: ='G&C Wastewater'!S68 -> 0 | T100: ='G&C Wastewater'!T68 -> 0 | U100: ='G&C Wastewater'!U68 -> 0
E101: ='G&C Wastewater'!E77 -> Ofwat view of non price control Diversions income - wastewater | F101: ='G&C Wastewater'!F77 -> 0 | G101: ='G&C Wastewater'!G77 -> £m | H101: ='G&C Wastewater'!H77 -> 0 | I101: ='G&C Wastewater'!I77 -> 0 | J101: ='G&C Wastewater'!J77 -> 0 | K101: ='G&C Wastewater'!K77 -> 0 | L101: ='G&C Wastewater'!L77 -> 0 | M101: ='G&C Wastewater'!M77 -> 0 | N101: ='G&C Wastewater'!N77 -> 0 | O101: ='G&C Wastewater'!O77 -> 0 | P101: ='G&C Wastewater'!P77 -> 0 | Q101: ='G&C Wastewater'!Q77 -> 0 | R101: ='G&C Wastewater'!R77 -> 0 | S101: ='G&C Wastewater'!S77 -> 0 | T101: ='G&C Wastewater'!T77 -> 0 | U101: ='G&C Wastewater'!U77 -> 0
E102: ='G&C Wastewater'!E103 -> Non price control G&C income forecast in excess of OFWAT allowance for non pc diversions - wastewater | F102: ='G&C Wastewater'!F103 -> 0 | G102: ='G&C Wastewater'!G103 -> £m | H102: ='G&C Wastewater'!H103 -> 0 | I102: ='G&C Wastewater'!I103 -> 0 | J102: ='G&C Wastewater'!J103 -> 0 | K102: ='G&C Wastewater'!K103 -> 0 | L102: ='G&C Wastewater'!L103 -> 0 | M102: ='G&C Wastewater'!M103 -> 0 | N102: ='G&C Wastewater'!N103 -> 0 | O102: ='G&C Wastewater'!O103 -> 0 | P102: ='G&C Wastewater'!P103 -> 0 | Q102: ='G&C Wastewater'!Q103 -> 0 | R102: ='G&C Wastewater'!R103 -> 0 | S102: ='G&C Wastewater'!S103 -> 0 | T102: ='G&C Wastewater'!T103 -> 0 | U102: ='G&C Wastewater'!U103 -> 0
A104: GRANTS & CONTRIBUTIONS net of income offset (for use in financial modelling)
E106: ='G&C Water'!E$165 -> Ofwat view of G&C for opex net of income offset - water network - price control (post-override) | F106: ='G&C Water'!F$165 -> 0 | G106: ='G&C Water'!G$165 -> £m | H106: ='G&C Water'!H$165 -> 2.15158461 | I106: ='G&C Water'!I$165 -> 0 | J106: ='G&C Water'!J$165 -> 0 | K106: ='G&C Water'!K$165 -> 0 | L106: ='G&C Water'!L$165 -> 0.430157015 | M106: ='G&C Water'!M$165 -> 0.430157015 | N106: ='G&C Water'!N$165 -> 0.430157015 | O106: ='G&C Water'!O$165 -> 0.4305567823 | P106: ='G&C Water'!P$165 -> 0.4305567823 | Q106: ='G&C Water'!Q$165 -> 0 | R106: ='G&C Water'!R$165 -> 0 | S106: ='G&C Water'!S$165 -> 0 | T106: ='G&C Water'!T$165 -> 0 | U106: ='G&C Water'!U$165 -> 0
D107: plus | E107: =InpActive!E$157 -> One-off contribution to opex - water network - price control | F107: =InpActive!F$157 -> 0 | G107: =InpActive!G$157 -> £m | H107: =InpActive!H$157 -> 0 | I107: =InpActive!I$157 -> 0 | J107: =InpActive!J$157 -> 0 | K107: =InpActive!K$157 -> 0 | L107: =InpActive!L$157 -> 0 | M107: =InpActive!M$157 -> 0 | N107: =InpActive!N$157 -> 0 | O107: =InpActive!O$157 -> 0 | P107: =InpActive!P$157 -> 0 | Q107: =InpActive!Q$157 -> 0 | R107: =InpActive!R$157 -> 0 | S107: =InpActive!S$157 -> 0 | T107: =InpActive!T$157 -> 0 | U107: =InpActive!U$157 -> 0
E108: Ofwat view of G&C for opex net of income offset - water network - price control (post-override) | G108: £m | H108: =SUM(J108:U108) -> 2.15158461 | J108: =J106 + J107 -> 0 | K108: =K106 + K107 -> 0 | L108: 0.430157015 | M108: 0.430157015 | N108: 0.430157015 | O108: 0.4305567823 | P108: 0.4305567823 | Q108: 0 | R108: 0 | S108: 0 | T108: 0 | U108: 0
E110: ='G&C Water'!E$167 -> Ofwat view of G&C for capex net of income offset - water network - price control (post-override) | F110: ='G&C Water'!F$167 -> 0 | G110: ='G&C Water'!G$167 -> £m | H110: ='G&C Water'!H$167 -> 24.83907866 | I110: ='G&C Water'!I$167 -> 0 | J110: ='G&C Water'!J$167 -> 0 | K110: ='G&C Water'!K$167 -> 0 | L110: ='G&C Water'!L$167 -> 4.475911688 | M110: ='G&C Water'!M$167 -> 5.244136501 | N110: ='G&C Water'!N$167 -> 5.747122419 | O110: ='G&C Water'!O$167 -> 4.667473865 | P110: ='G&C Water'!P$167 -> 4.704434184 | Q110: ='G&C Water'!Q$167 -> 0 | R110: ='G&C Water'!R$167 -> 0 | S110: ='G&C Water'!S$167 -> 0 | T110: ='G&C Water'!T$167 -> 0 | U110: ='G&C Water'!U$167 -> 0
D111: plus | E111: =InpActive!E$155 -> One-off contribution to capex - water network - price control | F111: =InpActive!F$155 -> 0 | G111: =InpActive!G$155 -> £m | H111: =InpActive!H$155 -> 10.5 | I111: =InpActive!I$155 -> 0 | J111: =InpActive!J$155 -> 0 | K111: =InpActive!K$155 -> 0 | L111: =InpActive!L$155 -> 3.5 | M111: =InpActive!M$155 -> 3.5 | N111: =InpActive!N$155 -> 3.5 | O111: =InpActive!O$155 -> 0 | P111: =InpActive!P$155 -> 0 | Q111: =InpActive!Q$155 -> 0 | R111: =InpActive!R$155 -> 0 | S111: =InpActive!S$155 -> 0 | T111: =InpActive!T$155 -> 0 | U111: =InpActive!U$155 -> 0
E112: Ofwat view of G&C for capex net of income offset - water network - price control (post-override) | G112: £m | H112: =SUM(J112:U112) -> 35.33907866 | J112: =J110 + J111 -> 0 | K112: =K110 + K111 -> 0 | L112: 7.975911688 | M112: 8.744136501 | N112: 9.247122419 | O112: 4.667473865 | P112: 4.704434184 | Q112: 0 | R112: 0 | S112: 0 | T112: 0 | U112: 0
E114: ='G&C Water'!E$169 -> Ofwat view of G&C for opex net of income offset - water resources - price control (post-override) | F114: ='G&C Water'!F$169 -> 0 | G114: ='G&C Water'!G$169 -> £m | H114: ='G&C Water'!H$169 -> 0 | I114: ='G&C Water'!I$169 -> 0 | J114: ='G&C Water'!J$169 -> 0 | K114: ='G&C Water'!K$169 -> 0 | L114: ='G&C Water'!L$169 -> 0 | M114: ='G&C Water'!M$169 -> 0 | N114: ='G&C Water'!N$169 -> 0 | O114: ='G&C Water'!O$169 -> 0 | P114: ='G&C Water'!P$169 -> 0 | Q114: ='G&C Water'!Q$169 -> 0 | R114: ='G&C Water'!R$169 -> 0 | S114: ='G&C Water'!S$169 -> 0 | T114: ='G&C Water'!T$169 -> 0 | U114: ='G&C Water'!U$169 -> 0
D115: plus | E115: =InpActive!E$162 -> One-off contribution to opex - water resources - price control | F115: =InpActive!F$162 -> 0 | G115: =InpActive!G$162 -> £m | H115: =InpActive!H$162 -> 0 | I115: =InpActive!I$162 -> 0 | J115: =InpActive!J$162 -> 0 | K115: =InpActive!K$162 -> 0 | L115: =InpActive!L$162 -> 0 | M115: =InpActive!M$162 -> 0 | N115: =InpActive!N$162 -> 0 | O115: =InpActive!O$162 -> 0 | P115: =InpActive!P$162 -> 0 | Q115: =InpActive!Q$162 -> 0 | R115: =InpActive!R$162 -> 0 | S115: =InpActive!S$162 -> 0 | T115: =InpActive!T$162 -> 0 | U115: =InpActive!U$162 -> 0
E116: Ofwat view of G&C for opex net of income offset - water resources - price control (post-override) | G116: £m | H116: =SUM(J116:U116) -> 0 | J116: =J114 + J115 -> 0 | K116: =K114 + K115 -> 0 | L116: 0 | M116: 0 | N116: 0 | O116: 0 | P116: 0 | Q116: 0 | R116: 0 | S116: 0 | T116: 0 | U116: 0
E118: ='G&C Water'!E$171 -> Ofwat view of G&C for capex net of income offset - water resources - price control (post-override) | F118: ='G&C Water'!F$171 -> 0 | G118: ='G&C Water'!G$171 -> £m | H118: ='G&C Water'!H$171 -> 0 | I118: ='G&C Water'!I$171 -> 0 | J118: ='G&C Water'!J$171 -> 0 | K118: ='G&C Water'!K$171 -> 0 | L118: ='G&C Water'!L$171 -> 0 | M118: ='G&C Water'!M$171 -> 0 | N118: ='G&C Water'!N$171 -> 0 | O118: ='G&C Water'!O$171 -> 0 | P118: ='G&C Water'!P$171 -> 0 | Q118: ='G&C Water'!Q$171 -> 0 | R118: ='G&C Water'!R$171 -> 0 | S118: ='G&C Water'!S$171 -> 0 | T118: ='G&C Water'!T$171 -> 0 | U118: ='G&C Water'!U$171 -> 0
D119: plus | E119: =InpActive!E$160 -> One-off contribution to capex - water resources - price control | F119: =InpActive!F$160 -> 0 | G119: =InpActive!G$160 -> £m | H119: =InpActive!H$160 -> 0 | I119: =InpActive!I$160 -> 0 | J119: =InpActive!J$160 -> 0 | K119: =InpActive!K$160 -> 0 | L119: =InpActive!L$160 -> 0 | M119: =InpActive!M$160 -> 0 | N119: =InpActive!N$160 -> 0 | O119: =InpActive!O$160 -> 0 | P119: =InpActive!P$160 -> 0 | Q119: =InpActive!Q$160 -> 0 | R119: =InpActive!R$160 -> 0 | S119: =InpActive!S$160 -> 0 | T119: =InpActive!T$160 -> 0 | U119: =InpActive!U$160 -> 0
E120: Ofwat view of G&C for capex net of income offset - water resources - price control (post-override) | G120: £m | H120: =SUM(J120:U120) -> 0 | J120: =J118 + J119 -> 0 | K120: 0 | L120: 0 | M120: 0 | N120: 0 | O120: 0 | P120: 0 | Q120: 0 | R120: 0 | S120: 0 | T120: 0 | U120: 0
E122: ='G&C Wastewater'!E$147 -> Ofwat view of G&C for opex net of income offset - wastewater network - price control (post-override) | F122: ='G&C Wastewater'!F$147 -> 0 | G122: ='G&C Wastewater'!G$147 -> £m | H122: ='G&C Wastewater'!H$147 -> 0 | I122: ='G&C Wastewater'!I$147 -> 0 | J122: ='G&C Wastewater'!J$147 -> 0 | K122: ='G&C Wastewater'!K$147 -> 0 | L122: ='G&C Wastewater'!L$147 -> 0 | M122: ='G&C Wastewater'!M$147 -> 0 | N122: ='G&C Wastewater'!N$147 -> 0 | O122: ='G&C Wastewater'!O$147 -> 0 | P122: ='G&C Wastewater'!P$147 -> 0 | Q122: ='G&C Wastewater'!Q$147 -> 0 | R122: ='G&C Wastewater'!R$147 -> 0 | S122: ='G&C Wastewater'!S$147 -> 0 | T122: ='G&C Wastewater'!T$147 -> 0 | U122: ='G&C Wastewater'!U$147 -> 0
D123: plus | E123: =InpActive!E$167 -> One-off contribution to opex - wastewater - price control | F123: =InpActive!F$167 -> 0 | G123: =InpActive!G$167 -> £m | H123: =InpActive!H$167 -> 0 | I123: =InpActive!I$167 -> 0 | J123: =InpActive!J$167 -> 0 | K123: =InpActive!K$167 -> 0 | L123: =InpActive!L$167 -> 0 | M123: =InpActive!M$167 -> 0 | N123: =InpActive!N$167 -> 0 | O123: =InpActive!O$167 -> 0 | P123: =InpActive!P$167 -> 0 | Q123: =InpActive!Q$167 -> 0 | R123: =InpActive!R$167 -> 0 | S123: =InpActive!S$167 -> 0 | T123: =InpActive!T$167 -> 0 | U123: =InpActive!U$167 -> 0
E124: Ofwat view of G&C for opex net of income offset - wastewater network - price control (post-override) | G124: £m | H124: =SUM(J124:U124) -> 0 | J124: =J122 + J123 -> 0 | K124: =K122 + K123 -> 0 | L124: 0 | M124: 0 | N124: 0 | O124: 0 | P124: 0 | Q124: 0 | R124: 0 | S124: 0 | T124: 0 | U124: 0
E126: ='G&C Wastewater'!E$149 -> Ofwat view of G&C for capex net of income offset - wastewater network - price control (post-override) | F126: ='G&C Wastewater'!F$149 -> 0 | G126: ='G&C Wastewater'!G$149 -> £m | H126: ='G&C Wastewater'!H$149 -> 0 | I126: ='G&C Wastewater'!I$149 -> 0 | J126: ='G&C Wastewater'!J$149 -> 0 | K126: ='G&C Wastewater'!K$149 -> 0 | L126: ='G&C Wastewater'!L$149 -> 0 | M126: ='G&C Wastewater'!M$149 -> 0 | N126: ='G&C Wastewater'!N$149 -> 0 | O126: ='G&C Wastewater'!O$149 -> 0 | P126: ='G&C Wastewater'!P$149 -> 0 | Q126: ='G&C Wastewater'!Q$149 -> 0 | R126: ='G&C Wastewater'!R$149 -> 0 | S126: ='G&C Wastewater'!S$149 -> 0 | T126: ='G&C Wastewater'!T$149 -> 0 | U126: ='G&C Wastewater'!U$149 -> 0
D127: plus | E127: =InpActive!E$165 -> One-off contribution to capex - wastewater - price control | F127: =InpActive!F$165 -> 0 | G127: =InpActive!G$165 -> £m | H127: =InpActive!H$165 -> 0 | I127: =InpActive!I$165 -> 0 | J127: =InpActive!J$165 -> 0 | K127: =InpActive!K$165 -> 0 | L127: =InpActive!L$165 -> 0 | M127: =InpActive!M$165 -> 0 | N127: =InpActive!N$165 -> 0 | O127: =InpActive!O$165 -> 0 | P127: =InpActive!P$165 -> 0 | Q127: =InpActive!Q$165 -> 0 | R127: =InpActive!R$165 -> 0 | S127: =InpActive!S$165 -> 0 | T127: =InpActive!T$165 -> 0 | U127: =InpActive!U$165 -> 0
E128: Ofwat view of G&C for capex net of income offset - wastewater network - price control (post-override) | G128: £m | H128: =SUM(J128:U128) -> 0 | J128: =J126 + J127 -> 0 | K128: =K126 + K127 -> 0 | L128: 0 | M128: 0 | N128: 0 | O128: 0 | P128: 0 | Q128: 0 | R128: 0 | S128: 0 | T128: 0 | U128: 0
A130: End of sheet

Sheet F_Outputs
C1: PR19FM007_GC_WSXout
A2: Acronym | B2: Reference | C2: Item description | D2: Unit | E2: Model | F2: 2020-21 | G2: 2021-22 | H2: 2022-23 | I2: 2023-24 | J2: 2024-25
B4: PR19GC0001 | C4: ='G&C outputs'!$E$12 -> WN - Grants and contributions - capital expenditure - price control - real | D4: £m | E4: Price Review 2019 | F4: ='G&C outputs'!L12 -> 11.11905426 | G4: ='G&C outputs'!M12 -> 11.92793195 | H4: ='G&C outputs'!N12 -> 12.45244597 | I4: ='G&C outputs'!O12 -> 7.821797227 | J4: ='G&C outputs'!P12 -> 7.860824101
B5: PR19GC0002 | C5: ='G&C outputs'!$E$20 -> WN - Grants and contributions - capital expenditure - non price control - real | D5: £m | E5: Price Review 2019 | F5: ='G&C outputs'!L20 -> 3.654661319 | G5: ='G&C outputs'!M20 -> 3.178196514 | H5: ='G&C outputs'!N20 -> 3.198476888 | I5: ='G&C outputs'!O20 -> 0.197467229 | J5: ='G&C outputs'!P20 -> 0.1975983402
B6: PR19GC0003 | C6: ='G&C outputs'!$E$16 -> WN - Grants and contributions - operational expenditure - price control - real | D6: £m | E6: Price Review 2019 | F6: ='G&C outputs'!L16 -> 0.7322283959 | G6: ='G&C outputs'!M16 -> 0.6913119158 | H6: ='G&C outputs'!N16 -> 0.6700670619 | I6: ='G&C outputs'!O16 -> 0.7215311629 | J6: ='G&C outputs'!P16 -> 0.7194342611
B7: PR19GC0004 | C7: ='G&C outputs'!$E$24 -> WN - Grants and contributions - operational expenditure - non price control - real | D7: £m | E7: Price Review 2019 | F7: ='G&C outputs'!L24 -> 0.812230836 | G7: ='G&C outputs'!M24 -> 0.7216956408 | H7: ='G&C outputs'!N24 -> 0.7003975925 | I7: ='G&C outputs'!O24 -> 0.4794482011 | J7: ='G&C outputs'!P24 -> 0.4793170899
B8: PR19GC0005 | C8: ='G&C outputs'!$E$29 -> WR - Grants and contributions - capital expenditure - price control - real | D8: £m | E8: Price Review 2019 | F8: ='G&C outputs'!L29 -> 0 | G8: ='G&C outputs'!M29 -> 0 | H8: ='G&C outputs'!N29 -> 0 | I8: ='G&C outputs'!O29 -> 0 | J8: ='G&C outputs'!P29 -> 0
B9: PR19GC0006 | C9: ='G&C outputs'!$E$37 -> WR - Grants and contributions - capital expenditure - non price control - real | D9: £m | E9: Price Review 2019 | F9: ='G&C outputs'!L37 -> 0 | G9: ='G&C outputs'!M37 -> 0 | H9: ='G&C outputs'!N37 -> 0 | I9: ='G&C outputs'!O37 -> 0 | J9: ='G&C outputs'!P37 -> 0
B10: PR19GC0007 | C10: ='G&C outputs'!$E$33 -> WR - Grants and contributions - operational expenditure - price control - real | D10: £m | E10: Price Review 2019 | F10: ='G&C outputs'!L33 -> 0 | G10: ='G&C outputs'!M33 -> 0 | H10: ='G&C outputs'!N33 -> 0 | I10: ='G&C outputs'!O33 -> 0 | J10: ='G&C outputs'!P33 -> 0
B11: PR19GC0008 | C11: ='G&C outputs'!$E$41 -> WR - Grants and contributions - operational expenditure - non price control - real | D11: £m | E11: Price Review 2019 | F11: ='G&C outputs'!L41 -> 0 | G11: ='G&C outputs'!M41 -> 0 | H11: ='G&C outputs'!N41 -> 0 | I11: ='G&C outputs'!O41 -> 0 | J11: ='G&C outputs'!P41 -> 0
B12: PR19GC0009 | C12: ='G&C outputs'!$E$46 -> WWN - Grants and contributions - capital expenditure - price control - real | D12: £m | E12: Price Review 2019 | F12: ='G&C outputs'!L46 -> 0 | G12: ='G&C outputs'!M46 -> 0 | H12: ='G&C outputs'!N46 -> 0 | I12: ='G&C outputs'!O46 -> 0 | J12: ='G&C outputs'!P46 -> 0
B13: PR19GC0010 | C13: ='G&C outputs'!$E$54 -> WWN - Grants and contributions - capital expenditure - non price control - real | D13: £m | E13: Price Review 2019 | F13: ='G&C outputs'!L54 -> 0 | G13: ='G&C outputs'!M54 -> 0 | H13: ='G&C outputs'!N54 -> 0 | I13: ='G&C outputs'!O54 -> 0 | J13: ='G&C outputs'!P54 -> 0
B14: PR19GC0011 | C14: ='G&C outputs'!$E$50 -> WWN - Grants and contributions - operational expenditure - price control - real | D14: £m | E14: Price Review 2019 | F14: ='G&C outputs'!L50 -> 0 | G14: ='G&C outputs'!M50 -> 0 | H14: ='G&C outputs'!N50 -> 0 | I14: ='G&C outputs'!O50 -> 0 | J14: ='G&C outputs'!P50 -> 0
B15: PR19GC0012 | C15: ='G&C outputs'!$E$58 -> WWN - Grants and contributions - operational expenditure - non price control - real | D15: £m | E15: Price Review 2019 | F15: ='G&C outputs'!L58 -> 0 | G15: ='G&C outputs'!M58 -> 0 | H15: ='G&C outputs'!N58 -> 0 | I15: ='G&C outputs'!O58 -> 0 | J15: ='G&C outputs'!P58 -> 0
B16: PR19GC0024 | C16: =InpOverride!E76 -> Ofwat view of G&C for capex - water network - price control (override) | D16: £m | E16: Price Review 2019 | F16: =InpOverride!$L76 -> 0 | G16: =InpOverride!$M76 -> 0 | H16: =InpOverride!$N76 -> 0 | I16: =InpOverride!$O76 -> 0 | J16: =InpOverride!$P76 -> 0
B17: PR19GC0025 | C17: =InpOverride!E77 -> Ofwat view of G&C for capex - water network - non price control (override) | D17: £m | E17: Price Review 2019 | F17: =InpOverride!$L77 -> 0 | G17: =InpOverride!$M77 -> 0 | H17: =InpOverride!$N77 -> 0 | I17: =InpOverride!$O77 -> 0 | J17: =InpOverride!$P77 -> 0
B18: PR19GC0026 | C18: =InpOverride!E78 -> Ofwat view of G&C for opex - water network - price control (override) | D18: £m | E18: Price Review 2019 | F18: =InpOverride!$L78 -> 0 | G18: =InpOverride!$M78 -> 0 | H18: =InpOverride!$N78 -> 0 | I18: =InpOverride!$O78 -> 0 | J18: =InpOverride!$P78 -> 0
B19: PR19GC0027 | C19: =InpOverride!E79 -> Ofwat view of G&C for opex - water network - non price control (override) | D19: £m | E19: Price Review 2019 | F19: =InpOverride!$L79 -> 0 | G19: =InpOverride!$M79 -> 0 | H19: =InpOverride!$N79 -> 0 | I19: =InpOverride!$O79 -> 0 | J19: =InpOverride!$P79 -> 0
B20: PR19GC0028 | C20: =InpOverride!E81 -> Ofwat view of G&C for capex - water resources - price control (override) | D20: £m | E20: Price Review 2019 | F20: =InpOverride!$L81 -> 0 | G20: =InpOverride!$M81 -> 0 | H20: =InpOverride!$N81 -> 0 | I20: =InpOverride!$O81 -> 0 | J20: =InpOverride!$P81 -> 0
B21: PR19GC0029 | C21: =InpOverride!E82 -> Ofwat view of G&C for capex - water resources - non price control (override) | D21: £m | E21: Price Review 2019 | F21: =InpOverride!$L82 -> 0 | G21: =InpOverride!$M82 -> 0 | H21: =InpOverride!$N82 -> 0 | I21: =InpOverride!$O82 -> 0 | J21: =InpOverride!$P82 -> 0
B22: PR19GC0030 | C22: =InpOverride!E83 -> Ofwat view of G&C for opex - water resources - price control (override) | D22: £m | E22: Price Review 2019 | F22: =InpOverride!$L83 -> 0 | G22: =InpOverride!$M83 -> 0 | H22: =InpOverride!$N83 -> 0 | I22: =InpOverride!$O83 -> 0 | J22: =InpOverride!$P83 -> 0
B23: PR19GC0031 | C23: =InpOverride!E84 -> Ofwat view of G&C for opex - water resources - non price control (override) | D23: £m | E23: Price Review 2019 | F23: =InpOverride!$L84 -> 0 | G23: =InpOverride!$M84 -> 0 | H23: =InpOverride!$N84 -> 0 | I23: =InpOverride!$O84 -> 0 | J23: =InpOverride!$P84 -> 0
B24: PR19GC0032 | C24: =InpOverride!E86 -> Ofwat view of G&C for capex - wastewater - price control (override) | D24: £m | E24: Price Review 2019 | F24: =InpOverride!$L86 -> 0 | G24: =InpOverride!$M86 -> 0 | H24: =InpOverride!$N86 -> 0 | I24: =InpOverride!$O86 -> 0 | J24: =InpOverride!$P86 -> 0
B25: PR19GC0033 | C25: =InpOverride!E87 -> Ofwat view of G&C for capex - wastewater - non price control (override) | D25: £m | E25: Price Review 2019 | F25: =InpOverride!$L87 -> 0 | G25: =InpOverride!$M87 -> 0 | H25: =InpOverride!$N87 -> 0 | I25: =InpOverride!$O87 -> 0 | J25: =InpOverride!$P87 -> 0
B26: PR19GC0034 | C26: =InpOverride!E88 -> Ofwat view of G&C for opex - wastewater - price control (override) | D26: £m | E26: Price Review 2019 | F26: =InpOverride!$L88 -> 0 | G26: =InpOverride!$M88 -> 0 | H26: =InpOverride!$N88 -> 0 | I26: =InpOverride!$O88 -> 0 | J26: =InpOverride!$P88 -> 0
B27: PR19GC0035 | C27: =InpOverride!E89 -> Ofwat view of G&C for opex - wastewater - non price control (override) | D27: £m | E27: Price Review 2019 | F27: =InpOverride!$L89 -> 0 | G27: =InpOverride!$M89 -> 0 | H27: =InpOverride!$N89 -> 0 | I27: =InpOverride!$O89 -> 0 | J27: =InpOverride!$P89 -> 0
B28: PR19GC0041 | C28: ='G&C outputs'!E84 -> Wastewater efficiency challenge - opex - override | D28: % | E28: Price Review 2019 | F28: ='G&C outputs'!$F84 -> 0 | G28: ='G&C outputs'!$F84 -> 0 | H28: ='G&C outputs'!$F84 -> 0 | I28: ='G&C outputs'!$F84 -> 0 | J28: ='G&C outputs'!$F84 -> 0
B29: PR19GC0043 | C29: ='G&C outputs'!E85 -> Wastewater efficiency challenge - capex - override | D29: % | E29: Price Review 2019 | F29: ='G&C outputs'!$F85 -> 0 | G29: ='G&C outputs'!$F85 -> 0 | H29: ='G&C outputs'!$F85 -> 0 | I29: ='G&C outputs'!$F85 -> 0 | J29: ='G&C outputs'!$F85 -> 0
B30: PR19GC0045 | C30: ='G&C outputs'!E86 -> Water efficiency challenge - opex - override | D30: % | E30: Price Review 2019 | F30: ='G&C outputs'!$F86 -> 0 | G30: ='G&C outputs'!$F86 -> 0 | H30: ='G&C outputs'!$F86 -> 0 | I30: ='G&C outputs'!$F86 -> 0 | J30: ='G&C outputs'!$F86 -> 0
B31: PR19GC0047 | C31: ='G&C outputs'!E87 -> Water efficiency challenge - capex - override | D31: % | E31: Price Review 2019 | F31: ='G&C outputs'!$F87 -> 0 | G31: ='G&C outputs'!$F87 -> 0 | H31: ='G&C outputs'!$F87 -> 0 | I31: ='G&C outputs'!$F87 -> 0 | J31: ='G&C outputs'!$F87 -> 0
B32: PR19FM007_NRSWA_WOFWAT | C32: ='G&C outputs'!E96 -> Ofwat view of Diversions costs unrecovered - water - NRSWA | D32: £m | E32: Price Review 2019 | F32: ='G&C outputs'!L96 -> 0.04678587511 | G32: ='G&C outputs'!M96 -> 0.04678587511 | H32: ='G&C outputs'!N96 -> 0.05792469592 | I32: ='G&C outputs'!O96 -> 0.08393046026 | J32: ='G&C outputs'!P96 -> 0.08393046026
B33: PR19FM007_NRSWA_WWOFWAT | C33: ='G&C outputs'!E100 -> Ofwat view of Diversions costs unrecovered - wastewater - NRSWA | D33: £m | E33: Price Review 2019 | F33: ='G&C outputs'!L100 -> 0 | G33: ='G&C outputs'!M100 -> 0 | H33: ='G&C outputs'!N100 -> 0 | I33: ='G&C outputs'!O100 -> 0 | J33: ='G&C outputs'!P100 -> 0
B34: PR19FM007_CODEV_WOFWAT | C34: ='G&C outputs'!E92 -> Company-specific unit rate for developer services - water | D34: £ | E34: Price Review 2019 | F34: ='G&C outputs'!L92 -> 1384.73105 | G34: ='G&C outputs'!M92 -> 1512.067147 | H34: ='G&C outputs'!N92 -> 1595.772299 | I34: ='G&C outputs'!O92 -> 1416.803151 | J34: ='G&C outputs'!P92 -> 1423.157471
B35: PR19FM007_CODEV_WWOFWAT | C35: ='G&C outputs'!E93 -> Company-specific unit rate for developer services - wastewater | D35: £ | E35: Price Review 2019 | F35: ='G&C outputs'!L93 -> 0 | G35: ='G&C outputs'!M93 -> 0 | H35: ='G&C outputs'!N93 -> 0 | I35: ='G&C outputs'!O93 -> 0 | J35: ='G&C outputs'!P93 -> 0
B36: PR19GC0051 | C36: ='G&C outputs'!E97 -> Ofwat view of non price control Diversions income - water | D36: £m | E36: Price Review 2019 | F36: ='G&C outputs'!L97 -> 0.461 | G36: ='G&C outputs'!M97 -> 0.461 | H36: ='G&C outputs'!N97 -> 0.461 | I36: ='G&C outputs'!O97 -> 0.4612325973 | J36: ='G&C outputs'!P97 -> 0.4612325973
B37: PR19GC0052 | C37: ='G&C outputs'!E98 -> Non price control G&C income forecast in excess of OFWAT allowance for non pc diversions - water | D37: £m | E37: Price Review 2019 | F37: ='G&C outputs'!L98 -> 4.005892155 | G37: ='G&C outputs'!M98 -> 3.438892155 | H37: ='G&C outputs'!N98 -> 3.43787448 | I37: ='G&C outputs'!O98 -> 0.2156828328 | J37: ='G&C outputs'!P98 -> 0.2156828328
B38: PR19GC0053 | C38: ='G&C outputs'!E101 -> Ofwat view of non price control Diversions income - wastewater | D38: £m | E38: Price Review 2019 | F38: ='G&C outputs'!L101 -> 0 | G38: ='G&C outputs'!M101 -> 0 | H38: ='G&C outputs'!N101 -> 0 | I38: ='G&C outputs'!O101 -> 0 | J38: ='G&C outputs'!P101 -> 0
B39: PR19GC0054 | C39: ='G&C outputs'!E102 -> Non price control G&C income forecast in excess of OFWAT allowance for non pc diversions - wastewater | D39: £m | E39: Price Review 2019 | F39: ='G&C outputs'!L102 -> 0 | G39: ='G&C outputs'!M102 -> 0 | H39: ='G&C outputs'!N102 -> 0 | I39: ='G&C outputs'!O102 -> 0 | J39: ='G&C outputs'!P102 -> 0
B40: PR19GC0063 | C40: ='G&C outputs'!E108 -> Ofwat view of G&C for opex net of income offset - water network - price control (post-override) | D40: £m | E40: Price Review 2019 | F40: ='G&C outputs'!L108 -> 0.430157015 | G40: ='G&C outputs'!M108 -> 0.430157015 | H40: ='G&C outputs'!N108 -> 0.430157015 | I40: ='G&C outputs'!O108 -> 0.4305567823 | J40: ='G&C outputs'!P108 -> 0.4305567823
B41: PR19GC0061 | C41: ='G&C outputs'!E112 -> Ofwat view of G&C for capex net of income offset - water network - price control (post-override) | D41: £m | E41: Price Review 2019 | F41: ='G&C outputs'!L112 -> 7.975911688 | G41: ='G&C outputs'!M112 -> 8.744136501 | H41: ='G&C outputs'!N112 -> 9.247122419 | I41: ='G&C outputs'!O112 -> 4.667473865 | J41: ='G&C outputs'!P112 -> 4.704434184
B42: PR19GC0067 | C42: ='G&C outputs'!E116 -> Ofwat view of G&C for opex net of income offset - water resources - price control (post-override) | D42: £m | E42: Price Review 2019 | F42: ='G&C outputs'!L116 -> 0 | G42: ='G&C outputs'!M116 -> 0 | H42: ='G&C outputs'!N116 -> 0 | I42: ='G&C outputs'!O116 -> 0 | J42: ='G&C outputs'!P116 -> 0
B43: PR19GC0065 | C43: ='G&C outputs'!E120 -> Ofwat view of G&C for capex net of income offset - water resources - price control (post-override) | D43: £m | E43: Price Review 2019 | F43: ='G&C outputs'!L120 -> 0 | G43: ='G&C outputs'!M120 -> 0 | H43: ='G&C outputs'!N120 -> 0 | I43: ='G&C outputs'!O120 -> 0 | J43: ='G&C outputs'!P120 -> 0
B44: PR19GC0071 | C44: ='G&C outputs'!E124 -> Ofwat view of G&C for opex net of income offset - wastewater network - price control (post-override) | D44: £m | E44: Price Review 2019 | F44: ='G&C outputs'!L124 -> 0 | G44: ='G&C outputs'!M124 -> 0 | H44: ='G&C outputs'!N124 -> 0 | I44: ='G&C outputs'!O124 -> 0 | J44: ='G&C outputs'!P124 -> 0
B45: PR19GC0069 | C45: ='G&C outputs'!E128 -> Ofwat view of G&C for capex net of income offset - wastewater network - price control (post-override) | D45: £m | E45: Price Review 2019 | F45: ='G&C outputs'!L128 -> 0 | G45: ='G&C outputs'!M128 -> 0 | H45: ='G&C outputs'!N128 -> 0 | I45: ='G&C outputs'!O128 -> 0 | J45: ='G&C outputs'!P128 -> 0
B46: PR19GC0040_QA1 | C46: Grants and Contributions model date stamp | D46: text | E46: Price Review 2019 | F46: =CONCATENATE("[…]", TEXT(NOW(), "dd/mm/yyy hh:mm:ss")) -> […]10/12/2019 15:50:18 | G46: =CONCATENATE("[…]", TEXT(NOW(), "dd/mm/yyy hh:mm:ss")) -> […]10/12/2019 15:50:18 | H46: […]10/12/2019 15:50:18 | I46: […]10/12/2019 15:50:18 | J46: […]10/12/2019 15:50:18
B47: PR19GC0040_QA2 | C47: Grants and Contributions model time stamp | D47: text | E47: Price Review 2019 | F47: =CONCATENATE("[…]", TEXT(NOW(), "dd/mm/yyy hh:mm:ss")) -> […]10/12/2019 15:50:18 | G47: =CONCATENATE("[…]", TEXT(NOW(), "dd/mm/yyy hh:mm:ss")) -> […]10/12/2019 15:50:18 | H47: […]10/12/2019 15:50:18 | I47: […]10/12/2019 15:50:18 | J47: […]10/12/2019 15:50:18

Sheet Summary
A1: =RIGHT(CELL("filename", $A$1), LEN(CELL("filename", $A$1)) - SEARCH("]", CELL("filename", $A$1))) -> Summary | F1: =IF(InpOverride!$F$108 > 0, "Overrides", "No Overrides") -> Overrides
E2: =Time!E2 -> Model period ending | F2: =Check!$F$2 -> 1 | G2: Checks/Alerts | J2: =Time!J$25 -> 2019-03-31 | K2: =Time!K$25 -> 2020-03-31 | L2: =Time!L$25 -> 2021-03-31 | M2: =Time!M$25 -> 2022-03-31 | N2: =Time!N$25 -> 2023-03-31 | O2: =Time!O$25 -> 2024-03-31 | P2: =Time!P$25 -> 2025-03-31 | Q2: =Time!Q$25 -> 2026-03-31 | R2: =Time!R$25 -> 2027-03-31 | S2: =Time!S$25 -> 2028-03-31 | T2: =Time!T$25 -> 2029-03-31 | U2: =Time!U$25 -> 2030-03-31
E3: =Time!E3 -> Timeline label | F3: =Check!$F$3 -> 30 | G3: Track chgs | J3: =Time!J$104 -> Pre-Fcst | K3: =Time!K$104 -> Pre-Fcst | L3: =Time!L$104 -> Forecast | M3: =Time!M$104 -> Forecast | N3: =Time!N$104 -> Forecast | O3: =Time!O$104 -> Forecast | P3: =Time!P$104 -> Forecast | Q3: =Time!Q$104 -> Post-Fcst | R3: =Time!R$104 -> Post-Fcst | S3: =Time!S$104 -> Post-Fcst | T3: =Time!T$104 -> Post-Fcst | U3: =Time!U$104 -> Post-Fcst
E4: =Time!E4 -> Financial year ending | J4: =Time!J$127 -> 2019 | K4: =Time!K$127 -> 2020 | L4: =Time!L$127 -> 2021 | M4: =Time!M$127 -> 2022 | N4: =Time!N$127 -> 2023 | O4: =Time!O$127 -> 2024 | P4: =Time!P$127 -> 2025 | Q4: =Time!Q$127 -> 2026 | R4: =Time!R$127 -> 2027 | S4: =Time!S$127 -> 2028 | T4: =Time!T$127 -> 2029 | U4: =Time!U$127 -> 2030
E5: =Time!E5 -> Model column counter | F5: Constant | G5: Unit | H5: Total | J5: =Time!J$10 -> 1 | K5: =Time!K$10 -> 2 | L5: =Time!L$10 -> 3 | M5: =Time!M$10 -> 4 | N5: =Time!N$10 -> 5 | O5: =Time!O$10 -> 6 | P5: =Time!P$10 -> 7 | Q5: =Time!Q$10 -> 8 | R5: =Time!R$10 -> 9 | S5: =Time!S$10 -> 10 | T5: =Time!T$10 -> 11 | U5: =Time!U$10 -> 12
A7: GRANTS & CONTRIBUTIONS SUMMARY
E9: ='G&C outputs'!E$12 -> WN - Grants and contributions - capital expenditure - price control - real | F9: ='G&C outputs'!F$12 -> 0 | G9: ='G&C outputs'!G$12 -> £m | H9: ='G&C outputs'!H$12 -> 51.1820535 | I9: ='G&C outputs'!I$12 -> 0 | J9: ='G&C outputs'!J$12 -> 0 | K9: ='G&C outputs'!K$12 -> 0 | L9: ='G&C outputs'!L$12 -> 11.11905426 | M9: ='G&C outputs'!M$12 -> 11.92793195 | N9: ='G&C outputs'!N$12 -> 12.45244597 | O9: ='G&C outputs'!O$12 -> 7.821797227 | P9: ='G&C outputs'!P$12 -> 7.860824101 | Q9: ='G&C outputs'!Q$12 -> 0 | R9: ='G&C outputs'!R$12 -> 0 | S9: ='G&C outputs'!S$12 -> 0 | T9: ='G&C outputs'!T$12 -> 0 | U9: ='G&C outputs'!U$12 -> 0
E10: ='G&C outputs'!E$20 -> WN - Grants and contributions - capital expenditure - non price control - real | F10: ='G&C outputs'!F$20 -> 0 | G10: ='G&C outputs'!G$20 -> £m | H10: ='G&C outputs'!H$20 -> 10.42640029 | I10: ='G&C outputs'!I$20 -> 0 | J10: ='G&C outputs'!J$20 -> 0 | K10: ='G&C outputs'!K$20 -> 0 | L10: ='G&C outputs'!L$20 -> 3.654661319 | M10: ='G&C outputs'!M$20 -> 3.178196514 | N10: ='G&C outputs'!N$20 -> 3.198476888 | O10: ='G&C outputs'!O$20 -> 0.197467229 | P10: ='G&C outputs'!P$20 -> 0.1975983402 | Q10: ='G&C outputs'!Q$20 -> 0 | R10: ='G&C outputs'!R$20 -> 0 | S10: ='G&C outputs'!S$20 -> 0 | T10: ='G&C outputs'!T$20 -> 0 | U10: ='G&C outputs'!U$20 -> 0
E11: ='G&C outputs'!E$16 -> WN - Grants and contributions - operational expenditure - price control - real | F11: ='G&C outputs'!F$16 -> 0 | G11: ='G&C outputs'!G$16 -> £m | H11: ='G&C outputs'!H$16 -> 3.534572798 | I11: ='G&C outputs'!I$16 -> 0 | J11: ='G&C outputs'!J$16 -> 0 | K11: ='G&C outputs'!K$16 -> 0 | L11: ='G&C outputs'!L$16 -> 0.7322283959 | M11: ='G&C outputs'!M$16 -> 0.6913119158 | N11: ='G&C outputs'!N$16 -> 0.6700670619 | O11: ='G&C outputs'!O$16 -> 0.7215311629 | P11: ='G&C outputs'!P$16 -> 0.7194342611 | Q11: ='G&C outputs'!Q$16 -> 0 | R11: ='G&C outputs'!R$16 -> 0 | S11: ='G&C outputs'!S$16 -> 0 | T11: ='G&C outputs'!T$16 -> 0 | U11: ='G&C outputs'!U$16 -> 0
E12: ='G&C outputs'!E$24 -> WN - Grants and contributions - operational expenditure - non price control - real | F12: ='G&C outputs'!F$24 -> 0 | G12: ='G&C outputs'!G$24 -> £m | H12: ='G&C outputs'!H$24 -> 3.19308936 | I12: ='G&C outputs'!I$24 -> 0 | J12: ='G&C outputs'!J$24 -> 0 | K12: ='G&C outputs'!K$24 -> 0 | L12: ='G&C outputs'!L$24 -> 0.812230836 | M12: ='G&C outputs'!M$24 -> 0.7216956408 | N12: ='G&C outputs'!N$24 -> 0.7003975925 | O12: ='G&C outputs'!O$24 -> 0.4794482011 | P12: ='G&C outputs'!P$24 -> 0.4793170899 | Q12: ='G&C outputs'!Q$24 -> 0 | R12: ='G&C outputs'!R$24 -> 0 | S12: ='G&C outputs'!S$24 -> 0 | T12: ='G&C outputs'!T$24 -> 0 | U12: ='G&C outputs'!U$24 -> 0
E13: ='G&C outputs'!E$29 -> WR - Grants and contributions - capital expenditure - price control - real | F13: ='G&C outputs'!F$29 -> 0 | G13: ='G&C outputs'!G$29 -> £m | H13: ='G&C outputs'!H$29 -> 0 | I13: ='G&C outputs'!I$29 -> 0 | J13: ='G&C outputs'!J$29 -> 0 | K13: ='G&C outputs'!K$29 -> 0 | L13: ='G&C outputs'!L$29 -> 0 | M13: ='G&C outputs'!M$29 -> 0 | N13: ='G&C outputs'!N$29 -> 0 | O13: ='G&C outputs'!O$29 -> 0 | P13: ='G&C outputs'!P$29 -> 0 | Q13: ='G&C outputs'!Q$29 -> 0 | R13: ='G&C outputs'!R$29 -> 0 | S13: ='G&C outputs'!S$29 -> 0 | T13: ='G&C outputs'!T$29 -> 0 | U13: ='G&C outputs'!U$29 -> 0
E14: ='G&C outputs'!E$37 -> WR - Grants and contributions - capital expenditure - non price control - real | F14: ='G&C outputs'!F$37 -> 0 | G14: ='G&C outputs'!G$37 -> £m | H14: ='G&C outputs'!H$37 -> 0 | I14: ='G&C outputs'!I$37 -> 0 | J14: ='G&C outputs'!J$37 -> 0 | K14: ='G&C outputs'!K$37 -> 0 | L14: ='G&C outputs'!L$37 -> 0 | M14: ='G&C outputs'!M$37 -> 0 | N14: ='G&C outputs'!N$37 -> 0 | O14: ='G&C outputs'!O$37 -> 0 | P14: ='G&C outputs'!P$37 -> 0 | Q14: ='G&C outputs'!Q$37 -> 0 | R14: ='G&C outputs'!R$37 -> 0 | S14: ='G&C outputs'!S$37 -> 0 | T14: ='G&C outputs'!T$37 -> 0 | U14: ='G&C outputs'!U$37 -> 0
E15: ='G&C outputs'!E$33 -> WR - Grants and contributions - operational expenditure - price control - real | F15: ='G&C outputs'!F$33 -> 0 | G15: ='G&C outputs'!G$33 -> £m | H15: ='G&C outputs'!H$33 -> 0 | I15: ='G&C outputs'!I$33 -> 0 | J15: ='G&C outputs'!J$33 -> 0 | K15: ='G&C outputs'!K$33 -> 0 | L15: ='G&C outputs'!L$33 -> 0 | M15: ='G&C outputs'!M$33 -> 0 | N15: ='G&C outputs'!N$33 -> 0 | O15: ='G&C outputs'!O$33 -> 0 | P15: ='G&C outputs'!P$33 -> 0 | Q15: ='G&C outputs'!Q$33 -> 0 | R15: ='G&C outputs'!R$33 -> 0 | S15: ='G&C outputs'!S$33 -> 0 | T15: ='G&C outputs'!T$33 -> 0 | U15: ='G&C outputs'!U$33 -> 0
E16: ='G&C outputs'!E$41 -> WR - Grants and contributions - operational expenditure - non price control - real | F16: ='G&C outputs'!F$41 -> 0 | G16: ='G&C outputs'!G$41 -> £m | H16: ='G&C outputs'!H$41 -> 0 | I16: ='G&C outputs'!I$41 -> 0 | J16: ='G&C outputs'!J$41 -> 0 | K16: ='G&C outputs'!K$41 -> 0 | L16: ='G&C outputs'!L$41 -> 0 | M16: ='G&C outputs'!M$41 -> 0 | N16: ='G&C outputs'!N$41 -> 0 | O16: ='G&C outputs'!O$41 -> 0 | P16: ='G&C outputs'!P$41 -> 0 | Q16: ='G&C outputs'!Q$41 -> 0 | R16: ='G&C outputs'!R$41 -> 0 | S16: ='G&C outputs'!S$41 -> 0 | T16: ='G&C outputs'!T$41 -> 0 | U16: ='G&C outputs'!U$41 -> 0
E17: ='G&C outputs'!E$46 -> WWN - Grants and contributions - capital expenditure - price control - real | F17: ='G&C outputs'!F$46 -> 0 | G17: ='G&C outputs'!G$46 -> £m | H17: ='G&C outputs'!H$46 -> 0 | I17: ='G&C outputs'!I$46 -> 0 | J17: ='G&C outputs'!J$46 -> 0 | K17: ='G&C outputs'!K$46 -> 0 | L17: ='G&C outputs'!L$46 -> 0 | M17: ='G&C outputs'!M$46 -> 0 | N17: ='G&C outputs'!N$46 -> 0 | O17: ='G&C outputs'!O$46 -> 0 | P17: ='G&C outputs'!P$46 -> 0 | Q17: ='G&C outputs'!Q$46 -> 0 | R17: ='G&C outputs'!R$46 -> 0 | S17: ='G&C outputs'!S$46 -> 0 | T17: ='G&C outputs'!T$46 -> 0 | U17: ='G&C outputs'!U$46 -> 0
E18: ='G&C outputs'!E$54 -> WWN - Grants and contributions - capital expenditure - non price control - real | F18: ='G&C outputs'!F$54 -> 0 | G18: ='G&C outputs'!G$54 -> £m | H18: ='G&C outputs'!H$54 -> 0 | I18: ='G&C outputs'!I$54 -> 0 | J18: ='G&C outputs'!J$54 -> 0 | K18: ='G&C outputs'!K$54 -> 0 | L18: ='G&C outputs'!L$54 -> 0 | M18: ='G&C outputs'!M$54 -> 0 | N18: ='G&C outputs'!N$54 -> 0 | O18: ='G&C outputs'!O$54 -> 0 | P18: ='G&C outputs'!P$54 -> 0 | Q18: ='G&C outputs'!Q$54 -> 0 | R18: ='G&C outputs'!R$54 -> 0 | S18: ='G&C outputs'!S$54 -> 0 | T18: ='G&C outputs'!T$54 -> 0 | U18: ='G&C outputs'!U$54 -> 0
E19: ='G&C outputs'!E$50 -> WWN - Grants and contributions - operational expenditure - price control - real | F19: ='G&C outputs'!F$50 -> 0 | G19: ='G&C outputs'!G$50 -> £m | H19: ='G&C outputs'!H$50 -> 0 | I19: ='G&C outputs'!I$50 -> 0 | J19: ='G&C outputs'!J$50 -> 0 | K19: ='G&C outputs'!K$50 -> 0 | L19: ='G&C outputs'!L$50 -> 0 | M19: ='G&C outputs'!M$50 -> 0 | N19: ='G&C outputs'!N$50 -> 0 | O19: ='G&C outputs'!O$50 -> 0 | P19: ='G&C outputs'!P$50 -> 0 | Q19: ='G&C outputs'!Q$50 -> 0 | R19: ='G&C outputs'!R$50 -> 0 | S19: ='G&C outputs'!S$50 -> 0 | T19: ='G&C outputs'!T$50 -> 0 | U19: ='G&C outputs'!U$50 -> 0
E20: ='G&C outputs'!E$58 -> WWN - Grants and contributions - operational expenditure - non price control - real | F20: ='G&C outputs'!F$58 -> 0 | G20: ='G&C outputs'!G$58 -> £m | H20: ='G&C outputs'!H$58 -> 0 | I20: ='G&C outputs'!I$58 -> 0 | J20: ='G&C outputs'!J$58 -> 0 | K20: ='G&C outputs'!K$58 -> 0 | L20: ='G&C outputs'!L$58 -> 0 | M20: ='G&C outputs'!M$58 -> 0 | N20: ='G&C outputs'!N$58 -> 0 | O20: ='G&C outputs'!O$58 -> 0 | P20: ='G&C outputs'!P$58 -> 0 | Q20: ='G&C outputs'!Q$58 -> 0 | R20: ='G&C outputs'!R$58 -> 0 | S20: ='G&C outputs'!S$58 -> 0 | T20: ='G&C outputs'!T$58 -> 0 | U20: ='G&C outputs'!U$58 -> 0
K24: Total | L24: Price control | M24: Non price control
E25: =E9 -> WN - Grants and contributions - capital expenditure - price control - real | G25: £m | K25: =H9 -> 51.1820535 | L25: =H9 -> 51.1820535
E26: =E10 -> WN - Grants and contributions - capital expenditure - non price control - real | G26: £m | K26: =H10 -> 10.42640029 | M26: =H10 -> 10.42640029
E27: WN - Grants and contributions - operational expenditure - price control - real | G27: £m | K27: =H11 -> 3.534572798 | L27: =H11 -> 3.534572798
E28: WN - Grants and contributions - operational expenditure - non price control - real | G28: £m | K28: =H12 -> 3.19308936 | M28: =H12 -> 3.19308936
E29: Total - WN | G29: £m | K29: =SUM(K25:K28) -> 68.33611595 | L29: =SUM(L25:L28) -> 54.7166263 | M29: =SUM(M25:M28) -> 13.61948965
E31: =E13 -> WR - Grants and contributions - capital expenditure - price control - real | G31: £m | K31: =H13 -> 0 | L31: =H13 -> 0
E32: =E14 -> WR - Grants and contributions - capital expenditure - non price control - real | G32: £m | K32: =H14 -> 0 | M32: =H14 -> 0
E33: WR - Grants and contributions - operational expenditure - price control - real | G33: £m | K33: =H15 -> 0 | L33: =H15 -> 0
E34: WR - Grants and contributions - operational expenditure - non price control - real | G34: £m | K34: =H16 -> 0 | M34: =H16 -> 0
E35: Total - WR | G35: £m | K35: =SUM(K31:K34) -> 0 | L35: =SUM(L31:L34) -> 0 | M35: =SUM(M31:M34) -> 0
E37: =E17 -> WWN - Grants and contributions - capital expenditure - price control - real | G37: £m | K37: =H17 -> 0 | L37: =H17 -> 0
E38: =E18 -> WWN - Grants and contributions - capital expenditure - non price control - real | G38: £m | K38: =H18 -> 0 | M38: =H18 -> 0
E39: WWN - Grants and contributions - operational expenditure - price control - real | G39: £m | K39: 0 | L39: =H19 -> 0
E40: WWN - Grants and contributions - operational expenditure - non price control - real | G40: £m | K40: 0 | M40: =H20 -> 0
E41: Total - WWN | G41: £m | K41: =SUM(K37:K40) -> 0 | L41: =SUM(L37:L40) -> 0 | M41: =SUM(M37:M40) -> 0
E43: Total | G43: £m | K43: =SUM(K29,K35,K41) -> 68.33611595 | L43: =SUM(L29,L35,L41) -> 54.7166263 | M43: =SUM(M29,M35,M41) -> 13.61948965

Sheet QA >>

Sheet Track
A1: =RIGHT(CELL("filename", $A$1), LEN(CELL("filename", $A$1)) - SEARCH("]", CELL("filename", $A$1))) -> Track | F1: =IF(InpOverride!$F$108 > 0, "Overrides", "No Overrides") -> Overrides | M1: do not del col | O1: do not del col
F2: =Check!$F$2 -> 1 | G2: Checks/Alerts | J2: =SUM(J7:J123) -> 30
F3: =J2 -> 30 | G3: Track chgs
G5: Unit | J5: =MATCH($H$6, M6:O6, 0) -> 2 | K5: Difference | L5: Diff %
E6: Comparison column label | H6: Nil inputs | N6: Nil inputs
E7: [do not delete row]
A8: INPUTS
C10: Business Plan Table Inputs | J10: =IF(ABS(K10) > CHK_TOL, 1, 0) -> 0 | K10: =H10 - INDEX(M10:O10, $J$5) -> 0 | L10: =IF(ABS(K10) > CHK_TOL, IF(INDEX(M10:O10, $J$5) = 0, 0, H10 / INDEX(M10:O10, $J$5) - 1), 0) -> 0 | N10: 0
E11: =InpActive!E61 -> App 28 data (£m) Infrastructure charge receipts (s146) | F11: =InpActive!F61 -> 0 | G11: =InpActive!G61 -> £m | H11: =InpActive!H61 -> -7.558158331 | J11: 1 | K11: -7.558158331 | L11: 0 | N11: 0
E12: =InpActive!E62 -> App 28 data (£m) Requisitioned mains (s43, s55 & s56) | F12: =InpActive!F62 -> 0 | G12: =InpActive!G62 -> £m | H12: =InpActive!H62 -> 16.54969398 | J12: 1 | K12: 16.54969398 | L12: 0 | N12: 0
E13: =InpActive!E63 -> App 28 data (£m) Total value of income offset allowances | F13: =InpActive!F63 -> 0 | G13: =InpActive!G63 -> £m | H13: =InpActive!H63 -> 18.06063613 | J13: 1 | K13: 18.06063613 | L13: 0 | N13: 0
E14: =InpActive!E64 -> App 28 data (£m) Infrastructure charge receipts (s146) | F14: =InpActive!F64 -> 0 | G14: =InpActive!G64 -> £m | H14: =InpActive!H64 -> 0 | J14: 0 | K14: 0 | L14: 0 | N14: 0
E15: =InpActive!E65 -> App 28 data (£m) Requisitioned sewers (s100) | F15: =InpActive!F65 -> 0 | G15: =InpActive!G65 -> £m | H15: =InpActive!H65 -> 0 | J15: 0 | K15: 0 | L15: 0 | N15: 0
E16: =InpActive!E66 -> App 28 data (£m) Total value of income offset allowances | F16: =InpActive!F66 -> 0 | G16: =InpActive!G66 -> £m | H16: =InpActive!H66 -> 0 | J16: 0 | K16: 0 | L16: 0 | N16: 0
E17: =InpActive!E75 -> Diversions income - water s185 | F17: =InpActive!F75 -> 0 | G17: =InpActive!G75 -> £m | H17: =InpActive!H75 -> 2.255838275 | J17: =IF(ABS(K17) > CHK_TOL, 1, 0) -> 1 | K17: =H17 - INDEX(M17:O17, $J$5) -> 2.255838275 | L17: =IF(ABS(K17) > CHK_TOL, IF(INDEX(M17:O17, $J$5) = 0, 0, H17 / INDEX(M17:O17, $J$5) - 1), 0) -> 0 | N17: 0
E18: =InpActive!E76 -> Diversions income - water NRSWA | F18: =InpActive!F76 -> 0 | G18: =InpActive!G76 -> £m | H18: =InpActive!H76 -> 2.305465195 | J18: 1 | K18: 2.305465195 | L18: 0 | N18: 0
E19: =InpActive!E77 -> Diversions income - water Other non-s185 | F19: =InpActive!F77 -> 0 | G19: =InpActive!G77 -> £m | H19: =InpActive!H77 -> 0 | J19: 0 | K19: 0 | L19: 0 | N19: 0
E20: =InpActive!E78 -> Diversions income - wastewater s185 | F20: =InpActive!F78 -> 0 | G20: =InpActive!G78 -> £m | H20: =InpActive!H78 -> 0 | J20: 0 | K20: 0 | L20: 0 | N20: 0
E21: =InpActive!E79 -> Diversions income - wastewater NRSWA | F21: =InpActive!F79 -> 0 | G21: =InpActive!G79 -> £m | H21: =InpActive!H79 -> 0 | J21: 0 | K21: 0 | L21: 0 | N21: 0
E22: =InpActive!E80 -> Diversions income - wastewater Other non-s185 | F22: =InpActive!F80 -> 0 | G22: =InpActive!G80 -> £m | H22: =InpActive!H80 -> 0 | J22: 0 | K22: 0 | L22: 0 | N22: 0
E23: =InpActive!E83 -> Properties volume data - water New properties (residential) | F23: =InpActive!F83 -> 0 | G23: =InpActive!G83 -> number | H23: =InpActive!H83 -> 29304 | J23: 1 | K23: 29304 | L23: 0 | N23: 0
E24: =InpActive!E84 -> Properties volume data - water New properties (business) | F24: =InpActive!F84 -> 0 | G24: =InpActive!G84 -> number | H24: =InpActive!H84 -> 1642 | J24: 1 | K24: 1642 | L24: 0 | N24: 0
E25: =InpActive!E85 -> Properties volume data - water New properties on NAV sites (residential) | F25: =InpActive!F85 -> 0 | G25: =InpActive!G85 -> number | H25: =InpActive!H85 -> 0 | J25: =IF(ABS(K25) > CHK_TOL, 1, 0) -> 0 | K25: =H25 - INDEX(M25:O25, $J$5) -> 0 | L25: =IF(ABS(K25) > CHK_TOL, IF(INDEX(M25:O25, $J$5) = 0, 0, H25 / INDEX(M25:O25, $J$5) - 1), 0) -> 0 | N25: 0
E26: =InpActive!E86 -> Properties volume data - water New properties on NAV sites (business) | F26: =InpActive!F86 -> 0 | G26: =InpActive!G86 -> number | H26: =InpActive!H86 -> 0 | J26: =IF(ABS(K26) > CHK_TOL, 1, 0) -> 0 | K26: =H26 - INDEX(M26:O26, $J$5) -> 0 | L26: =IF(ABS(K26) > CHK_TOL, IF(INDEX(M26:O26, $J$5) = 0, 0, H26 / INDEX(M26:O26, $J$5) - 1), 0) -> 0 | N26: 0
E27: =InpActive!E87 -> Properties volume data - wastewater New properties (residential) | F27: =InpActive!F87 -> 0 | G27: =InpActive!G87 -> number | H27: =InpActive!H87 -> 0 | J27: 0 | K27: 0 | L27: 0 | N27: 0
E28: =InpActive!E88 -> Properties volume data - wastewater New properties (business) | F28: =InpActive!F88 -> 0 | G28: =InpActive!G88 -> number | H28: =InpActive!H88 -> 0 | J28: 0 | K28: 0 | L28: 0 | N28: 0
E29: =InpActive!E89 -> Properties volume data - wastewater New properties on NAV sites (residential) | F29: =InpActive!F89 -> 0 | G29: =InpActive!G89 -> number | H29: =InpActive!H89 -> 0 | J29: 0 | K29: 0 | L29: 0 | N29: 0
E30: =InpActive!E90 -> Properties volume data - wastewater New properties on NAV sites (business) | F30: =InpActive!F90 -> 0 | G30: =InpActive!G90 -> number | H30: =InpActive!H90 -> 0 | J30: =IF(ABS(K30) > CHK_TOL, 1, 0) -> 0 | K30: =H30 - INDEX(M30:O30, $J$5) -> 0 | L30: =IF(ABS(K30) > CHK_TOL, IF(INDEX(M30:O30, $J$5) = 0, 0, H30 / INDEX(M30:O30, $J$5) - 1), 0) -> 0 | N30: 0
E31: =InpActive!E94 -> Activity forecasts ~ wholesale water service - Total number of new residential connections | F31: =InpActive!F94 -> 0 | G31: =InpActive!G94 -> 000's | H31: =InpActive!H94 -> 38.80893273 | J31: 1 | K31: 38.80893273 | L31: 0 | N31: 0
E32: =InpActive!E95 -> Activity forecasts ~ wholesale water service - Total number of new business connections | F32: =InpActive!F95 -> 0 | G32: =InpActive!G95 -> 000's | H32: =InpActive!H95 -> 2.240054611 | J32: 1 | K32: 2.240054611 | L32: 0 | N32: 0
E33: =InpActive!E96 -> Diversions income - water s185 - post override | F33: =InpActive!F96 -> 0 | G33: =InpActive!G96 -> £m | H33: =InpActive!H96 -> 2.255838275 | J33: 1 | K33: 2.255838275 | L33: 0 | N33: 0
E34: =InpActive!E97 -> Diversions income - water NRSWA - post override | F34: =InpActive!F97 -> 0 | G34: =InpActive!G97 -> £m | H34: =InpActive!H97 -> 2.305465195 | J34: 1 | K34: 2.305465195 | L34: 0 | N34: 0
E35: =InpActive!E98 -> Diversions income - water Other non-s185 - post override | F35: =InpActive!F98 -> 0 | G35: =InpActive!G98 -> £m | H35: =InpActive!H98 -> 0 | J35: 0 | K35: 0 | L35: 0 | N35: 0
E36: =InpActive!E99 -> G&C received - water - other contributions (price control) - post-override | F36: =InpActive!F99 -> 0 | G36: =InpActive!G99 -> £m | H36: =InpActive!H99 -> 0 | J36: 0 | K36: 0 | L36: 0 | N36: 0
E37: =InpActive!E100 -> G&C received - water - other contributions (non-price control) - post-override | F37: =InpActive!F100 -> 0 | G37: =InpActive!G100 -> £m | H37: =InpActive!H100 -> 13.61948965 | J37: 1 | K37: 13.61948965 | L37: 0 | N37: 0
E38: =InpActive!E103 -> Activity forecasts ~ wholesale wastewater service - Residential properties connected during the year | F38: =InpActive!F103 -> 0 | G38: =InpActive!G103 -> 000's | H38: =InpActive!H103 -> 0 | J38: 0 | K38: 0 | L38: 0 | N38: 0
E39: =InpActive!E104 -> Activity forecasts ~ wholesale wastewater service - Business properties connected during the year | F39: =InpActive!F104 -> 0 | G39: =InpActive!G104 -> £m | H39: =InpActive!H104 -> 0 | J39: 0 | K39: 0 | L39: 0 | N39: 0
E40: =InpActive!E105 -> Diversions income - wastewater s185 - post override | F40: =InpActive!F105 -> 0 | G40: =InpActive!G105 -> £m | H40: =InpActive!H105 -> 0 | J40: 0 | K40: 0 | L40: 0 | N40: 0
E41: =InpActive!E106 -> Diversions income - wastewater NRSWA - post override | F41: =InpActive!F106 -> 0 | G41: =InpActive!G106 -> £m | H41: =InpActive!H106 -> 0 | J41: 0 | K41: 0 | L41: 0 | N41: 0
E42: =InpActive!E107 -> Diversions income - wastewater Other non-s185 - post override | F42: =InpActive!F107 -> 0 | G42: =InpActive!G107 -> £m | H42: =InpActive!H107 -> 0 | J42: 0 | K42: 0 | L42: 0 | N42: 0
E43: =InpActive!E108 -> G&C received - wastewater - other contributions (price control) - post-override | F43: =InpActive!F108 -> 0 | G43: =InpActive!G108 -> £m | H43: =InpActive!H108 -> 0 | J43: 0 | K43: 0 | L43: 0 | N43: 0
E44: =InpActive!E109 -> G&C received - wastewater - other contributions (non-price control) - post-override | F44: =InpActive!F109 -> 0 | G44: =InpActive!G109 -> £m | H44: =InpActive!H109 -> 0 | J44: 0 | K44: 0 | L44: 0 | N44: 0
E45: =InpActive!E112 -> Water network operating expenditure grants and contributions (price control) | F45: =InpActive!F112 -> 0 | G45: =InpActive!G112 -> £m | H45: =InpActive!H112 -> 2.255838275 | J45: 1 | K45: 2.255838275 | L45: 0 | N45: 0
E46: =InpActive!E113 -> Water network capital expenditure grants and contributions (price control) | F46: =InpActive!F113 -> 0 | G46: =InpActive!G113 -> £m | H46: =InpActive!H113 -> 26.04264044 | J46: 1 | K46: 26.04264044 | L46: 0 | N46: 0
E47: =InpActive!E114 -> Water network operating expenditure grants and contributions (non-price control) | F47: =InpActive!F114 -> 0 | G47: =InpActive!G114 -> £m | H47: =InpActive!H114 -> 2.305 | J47: 1 | K47: 2.305 | L47: 0 | N47: 0
E48: =InpActive!E115 -> Water network capital expenditure grants and contributions (non-price control) | F48: =InpActive!F115 -> 0 | G48: =InpActive!G115 -> £m | H48: =InpActive!H115 -> 10.74748965 | J48: 1 | K48: 10.74748965 | L48: 0 | N48: 0
E49: =InpActive!E118 -> Water resources operating expenditure grants and contributions (price control) | F49: =InpActive!F118 -> 0 | G49: =InpActive!G118 -> £m | H49: =InpActive!H118 -> 0 | J49: 0 | K49: 0 | L49: 0 | N49: 0
E50: =InpActive!E119 -> Water resources capital expenditure grants and contributions (price control) | F50: =InpActive!F119 -> 0 | G50: =InpActive!G119 -> £m | H50: =InpActive!H119 -> 0 | J50: 0 | K50: 0 | L50: 0 | N50: 0
E51: =InpActive!E120 -> Water resources operating expenditure grants and contributions (non-price control) | F51: =InpActive!F120 -> 0 | G51: =InpActive!G120 -> £m | H51: =InpActive!H120 -> 0 | J51: 0 | K51: 0 | L51: 0 | N51: 0
E52: =InpActive!E121 -> Water resources capital expenditure grants and contributions (non-price control) | F52: =InpActive!F121 -> 0 | G52: =InpActive!G121 -> £m | H52: =InpActive!H121 -> 0.567 | J52: 1 | K52: 0.567 | L52: 0 | N52: 0
E53: =InpActive!E124 -> Wastewater network operating expenditure grants and contributions (price control) | F53: =InpActive!F124 -> 0 | G53: =InpActive!G124 -> £m | H53: =InpActive!H124 -> 0 | J53: 0 | K53: 0 | L53: 0 | N53: 0
E54: =InpActive!E125 -> Wastewater network capital expenditure grants and contributions (price control) | F54: =InpActive!F125 -> 0 | G54: =InpActive!G125 -> £m | H54: =InpActive!H125 -> 0 | J54: 0 | K54: 0 | L54: 0 | N54: 0
E55: =InpActive!E126 -> Wastewater network operating expenditure grants and contributions (non-price control) | F55: =InpActive!F126 -> 0 | G55: =InpActive!G126 -> £m | H55: =InpActive!H126 -> 0 | J55: 0 | K55: 0 | L55: 0 | N55: 0
E56: =InpActive!E127 -> Wastewater network capital expenditure grants and contributions (non-price control) | F56: =InpActive!F127 -> 0 | G56: =InpActive!G127 -> £m | H56: =InpActive!H127 -> 0 | J56: 0 | K56: 0 | L56: 0 | N56: 0
C57: Overrides | J57: 0 | K57: 0 | L57: 0 | N57: 0
E58: =InpActive!E133 -> Ofwat view of G&C for capex - water network - price control (override) | F58: =InpActive!F133 -> 0 | G58: =InpActive!G133 -> £m | H58: =InpActive!H133 -> 0 | J58: 0 | K58: 0 | L58: 0 | N58: 0
E59: =InpActive!E134 -> Ofwat view of G&C for capex - water network - non price control (override) | F59: =InpActive!F134 -> 0 | G59: =InpActive!G134 -> £m | H59: =InpActive!H134 -> 0 | J59: 0 | K59: 0 | L59: 0 | N59: 0
E60: =InpActive!E135 -> Ofwat view of G&C for opex - water network - price control (override) | F60: =InpActive!F135 -> 0 | G60: =InpActive!G135 -> £m | H60: =InpActive!H135 -> 0 | J60: 0 | K60: 0 | L60: 0 | N60: 0
E61: =InpActive!E136 -> Ofwat view of G&C for opex - water network - non price control (override) | F61: =InpActive!F136 -> 0 | G61: =InpActive!G136 -> £m | H61: =InpActive!H136 -> 0 | J61: 0 | K61: 0 | L61: 0 | N61: 0
E62: =InpActive!E138 -> Ofwat view of G&C for capex - water resources - price control (override) | F62: =InpActive!F138 -> 0 | G62: =InpActive!G138 -> £m | H62: =InpActive!H138 -> 0 | J62: 0 | K62: 0 | L62: 0 | N62: 0
E63: =InpActive!E139 -> Ofwat view of G&C for capex - water resources - non price control (override) | F63: =InpActive!F139 -> 0 | G63: =InpActive!G139 -> £m | H63: =InpActive!H139 -> 0 | J63: 0 | K63: 0 | L63: 0 | N63: 0
E64: =InpActive!E140 -> Ofwat view of G&C for opex - water resources - price control (override) | F64: =InpActive!F140 -> 0 | G64: =InpActive!G140 -> £m | H64: =InpActive!H140 -> 0 | J64: 0 | K64: 0 | L64: 0 | N64: 0
E65: =InpActive!E141 -> Ofwat view of G&C for opex - water resources - non price control (override) | F65: =InpActive!F141 -> 0 | G65: =InpActive!G141 -> £m | H65: =InpActive!H141 -> 0 | J65: 0 | K65: =H65 - INDEX(M65:O65, $J$5) -> 0 | L65: 0 | N65: 0
E66: =InpActive!E143 -> Ofwat view of G&C for capex - wastewater - price control (override) | F66: =InpActive!F143 -> 0 | G66: =InpActive!G143 -> £m | H66: =InpActive!H143 -> 0 | J66: =IF(ABS(K66) > CHK_TOL, 1, 0) -> 0 | K66: =H66 - INDEX(M66:O66, $J$5) -> 0 | L66: =IF(ABS(K66) > CHK_TOL, IF(INDEX(M66:O66, $J$5) = 0, 0, H66 / INDEX(M66:O66, $J$5) - 1), 0) -> 0 | N66: 0
E67: =InpActive!E144 -> Ofwat view of G&C for capex - wastewater - non price control (override) | F67: =InpActive!F144 -> 0 | G67: =InpActive!G144 -> £m | H67: =InpActive!H144 -> 0 | J67: 0 | K67: 0 | L67: 0 | N67: 0
E68: =InpActive!E145 -> Ofwat view of G&C for opex - wastewater - price control (override) | F68: =InpActive!F145 -> 0 | G68: =InpActive!G145 -> £m | H68: =InpActive!H145 -> 0 | J68: 0 | K68: 0 | L68: 0 | N68: 0
E69: =InpActive!E146 -> Ofwat view of G&C for opex - wastewater - non price control (override) | F69: =InpActive!F146 -> 0 | G69: =InpActive!G146 -> £m | H69: =InpActive!H146 -> 0 | J69: 0 | K69: 0 | L69: 0 | N69: 0
E70: =InpActive!E149 -> Wastewater efficiency challenge - (post override) | F70: =InpActive!F149 -> 0 | G70: =InpActive!G149 -> % | H70: =F70 -> 0 | J70: 0 | K70: 0 | L70: 0 | N70: 0
E71: =InpActive!E150 -> Water efficiency challenge - (post override) | F71: =InpActive!F150 -> 0.04621504436 | G71: =InpActive!G150 -> % | H71: =F71 -> 0.04621504436 | J71: 1 | K71: 0.04621504436 | L71: 0 | N71: 0
E72: =InpActive!E155 -> One-off contribution to capex - water network - price control | F72: =InpActive!F155 -> 0 | G72: =InpActive!G155 -> £m | H72: =InpActive!H155 -> 10.5 | J72: 1 | K72: 10.5 | L72: 0 | N72: 0
E73: =InpActive!E156 -> One-off contribution to capex - water network - non price control | F73: =InpActive!F156 -> 0 | G73: =InpActive!G156 -> £m | H73: =InpActive!H156 -> 0 | J73: 0 | K73: 0 | L73: 0 | N73: 0
E74: =InpActive!E157 -> One-off contribution to opex - water network - price control | F74: =InpActive!F157 -> 0 | G74: =InpActive!G157 -> £m | H74: =InpActive!H157 -> 0 | J74: 0 | K74: 0 | L74: 0 | N74: 0
E75: =InpActive!E158 -> One-off contribution to opex - water network - non price control | F75: =InpActive!F158 -> 0 | G75: =InpActive!G158 -> £m | H75: =InpActive!H158 -> 0 | J75: 0 | K75: 0 | L75: 0 | N75: 0
E76: =InpActive!E160 -> One-off contribution to capex - water resources - price control | F76: =InpActive!F160 -> 0 | G76: =InpActive!G160 -> £m | H76: =InpActive!H160 -> 0 | J76: 0 | K76: 0 | L76: 0 | N76: 0
E77: =InpActive!E161 -> One-off contribution to capex - water resources - non price control | F77: =InpActive!F161 -> 0 | G77: =InpActive!G161 -> £m | H77: =InpActive!H161 -> 0 | J77: 0 | K77: 0 | L77: 0 | N77: 0
E78: =InpActive!E162 -> One-off contribution to opex - water resources - price control | F78: =InpActive!F162 -> 0 | G78: =InpActive!G162 -> £m | H78: =InpActive!H162 -> 0 | J78: 0 | K78: 0 | L78: 0 | N78: 0
E79: =InpActive!E163 -> One-off contribution to opex - water resources - non price control | F79: =InpActive!F163 -> 0 | G79: =InpActive!G163 -> £m | H79: =InpActive!H163 -> 0 | J79: 0 | K79: 0 | L79: 0 | N79: 0
E80: =InpActive!E165 -> One-off contribution to capex - wastewater - price control | F80: =InpActive!F165 -> 0 | G80: =InpActive!G165 -> £m | H80: =InpActive!H165 -> 0 | J80: 0 | K80: 0 | L80: 0 | N80: 0
E81: =InpActive!E166 -> One-off contribution to capex - wastewater - non price control | F81: =InpActive!F166 -> 0 | G81: =InpActive!G166 -> £m | H81: =InpActive!H166 -> 0 | J81: 0 | K81: 0 | L81: 0 | N81: 0
E82: =InpActive!E167 -> One-off contribution to opex - wastewater - price control | F82: =InpActive!F167 -> 0 | G82: =InpActive!G167 -> £m | H82: =InpActive!H167 -> 0 | J82: 0 | K82: 0 | L82: 0 | N82: 0
E83: =InpActive!E168 -> One-off contribution to opex - wastewater - non price control | F83: =InpActive!F168 -> 0 | G83: =InpActive!G168 -> £m | H83: =InpActive!H168 -> 0 | J83: 0 | K83: 0 | L83: 0 | N83: 0
C84: Water | J84: 0 | K84: 0 | L84: 0 | N84: 0
C85: Calculations | J85: 0 | K85: 0 | L85: 0 | N85: 0
E86: ='G&C Water'!E33 -> Unit rate - water - 5 year average | F86: ='G&C Water'!F33 -> 1466.506224 | G86: ='G&C Water'!G33 -> £/connection | H86: =F86 -> 1466.506224 | J86: 1 | K86: 1466.506224 | L86: 0 | N86: 0
E87: ='G&C Water'!E44 -> Ofwat view of Grants & Contributions - price control - water | F87: ='G&C Water'!F44 -> 0 | G87: ='G&C Water'!G44 -> £m | H87: ='G&C Water'!H44 -> 44.2166263 | J87: 1 | K87: 44.2166263 | L87: 0 | N87: 0
E88: ='G&C Water'!E115 -> Non price control G&C income forecast in excess of OFWAT allowance for non pc diversions - water | F88: ='G&C Water'!F115 -> 0 | G88: ='G&C Water'!G115 -> £m | H88: ='G&C Water'!H115 -> 11.31402446 | J88: 1 | K88: 11.31402446 | L88: 0 | N88: 0
E89: ='G&C Water'!E101 -> Ofwat view of G&C for capex - water network - price control (post-override) | F89: ='G&C Water'!F101 -> 0 | G89: ='G&C Water'!G101 -> £m | H89: ='G&C Water'!H101 -> 40.6820535 | J89: 1 | K89: 40.6820535 | L89: 0 | N89: 0
E90: ='G&C Water'!E99 -> Ofwat view of G&C for opex - water network - price control (post-override) | F90: ='G&C Water'!F99 -> 0 | G90: ='G&C Water'!G99 -> £m | H90: ='G&C Water'!H99 -> 3.534572798 | J90: =IF(ABS(K90) > CHK_TOL, 1, 0) -> 1 | K90: =H90 - INDEX(M90:O90, $J$5) -> 3.534572798 | L90: =IF(ABS(K90) > CHK_TOL, IF(INDEX(M90:O90, $J$5) = 0, 0, H90 / INDEX(M90:O90, $J$5) - 1), 0) -> 0 | N90: 0
E91: ='G&C Water'!E105 -> Ofwat view of G&C for capex - water resources - price control (post-override) | F91: ='G&C Water'!F105 -> 0 | G91: ='G&C Water'!G105 -> £m | H91: ='G&C Water'!H105 -> 0 | J91: 0 | K91: 0 | L91: 0 | N91: 0
E92: ='G&C Water'!E103 -> Ofwat view of G&C for opex - water resources - price control (post-override) | F92: ='G&C Water'!F103 -> 0 | G92: ='G&C Water'!G103 -> £m | H92: ='G&C Water'!H103 -> 0 | J92: 0 | K92: 0 | L92: 0 | N92: 0
E93: ='G&C Water'!E123 -> Ofwat view of G&C for capex - water network - non price control (post-override) | F93: ='G&C Water'!F123 -> 0 | G93: ='G&C Water'!G123 -> £m | H93: ='G&C Water'!H123 -> 10.42640029 | J93: 1 | K93: 10.42640029 | L93: 0 | N93: 0
E94: ='G&C Water'!E125 -> Ofwat view of G&C for opex - water resources - non price control (post-override) | F94: ='G&C Water'!F125 -> 0 | G94: ='G&C Water'!G125 -> £m | H94: ='G&C Water'!H125 -> 0 | J94: 0 | K94: 0 | L94: 0 | N94: 0
E95: ='G&C Water'!E127 -> Ofwat view of G&C for capex - water resources - non price control (post-override) | F95: ='G&C Water'!F127 -> 0 | G95: ='G&C Water'!G127 -> £m | H95: ='G&C Water'!H127 -> 0 | J95: 0 | K95: =H95 - INDEX(M95:O95, $J$5) -> 0 | L95: 0 | N95: 0
E96: ='G&C Water'!E132 -> Ofwat view of G&C for opex - water network - non price control (post-override) | F96: ='G&C Water'!F132 -> 0 | G96: ='G&C Water'!G132 -> £m | H96: ='G&C Water'!H132 -> 3.19308936 | J96: 1 | K96: 3.19308936 | L96: 0 | N96: 0
C97: Outputs | J97: 0 | K97: 0 | L97: 0 | N97: 0
E98: ='G&C outputs'!E12 -> WN - Grants and contributions - capital expenditure - price control - real | F98: ='G&C outputs'!F12 -> 0 | G98: ='G&C outputs'!G12 -> £m | H98: ='G&C outputs'!H12 -> 51.1820535 | J98: 1 | K98: 51.1820535 | L98: 0 | N98: 0
E99: ='G&C outputs'!E20 -> WN - Grants and contributions - capital expenditure - non price control - real | F99: ='G&C outputs'!F20 -> 0 | G99: ='G&C outputs'!G20 -> £m | H99: ='G&C outputs'!H20 -> 10.42640029 | J99: 1 | K99: =H99 - INDEX(M99:O99, $J$5) -> 10.42640029 | L99: 0 | N99: 0
E100: ='G&C outputs'!E16 -> WN - Grants and contributions - operational expenditure - price control - real | F100: ='G&C outputs'!F16 -> 0 | G100: ='G&C outputs'!G16 -> £m | H100: ='G&C outputs'!H16 -> 3.534572798 | J100: 1 | K100: 3.534572798 | L100: 0 | N100: 0
E101: ='G&C outputs'!E24 -> WN - Grants and contributions - operational expenditure - non price control - real | F101: ='G&C outputs'!F24 -> 0 | G101: ='G&C outputs'!G24 -> £m | H101: ='G&C outputs'!H24 -> 3.19308936 | J101: 1 | K101: 3.19308936 | L101: 0 | N101: 0
E102: ='G&C outputs'!E29 -> WR - Grants and contributions - capital expenditure - price control - real | F102: ='G&C outputs'!F29 -> 0 | G102: ='G&C outputs'!G29 -> £m | H102: ='G&C outputs'!H29 -> 0 | J102: 0 | K102: 0 | L102: 0 | N102: 0
E103: ='G&C outputs'!E37 -> WR - Grants and contributions - capital expenditure - non price control - real | F103: ='G&C outputs'!F37 -> 0 | G103: ='G&C outputs'!G37 -> £m | H103: ='G&C outputs'!H37 -> 0 | J103: 0 | K103: 0 | L103: 0 | N103: 0
E104: ='G&C outputs'!E33 -> WR - Grants and contributions - operational expenditure - price control - real | F104: ='G&C outputs'!F33 -> 0 | G104: ='G&C outputs'!G33 -> £m | H104: ='G&C outputs'!H33 -> 0 | J104: 0 | K104: 0 | L104: 0 | N104: 0
E105: ='G&C outputs'!E41 -> WR - Grants and contributions - operational expenditure - non price control - real | F105: ='G&C outputs'!F41 -> 0 | G105: ='G&C outputs'!G41 -> £m | H105: ='G&C outputs'!H41 -> 0 | J105: 0 | K105: 0 | L105: 0 | N105: 0
J106: 0 | K106: 0 | L106: 0 | N106: 0
C107: Wastewater | J107: 0 | K107: 0 | L107: 0 | N107: 0
C108: Calculations | J108: =IF(ABS(K108) > CHK_TOL, 1, 0) -> 0 | K108: =H108 - INDEX(M108:O108, $J$5) -> 0 | L108: =IF(ABS(K108) > CHK_TOL, IF(INDEX(M108:O108, $J$5) = 0, 0, H108 / INDEX(M108:O108, $J$5) - 1), 0) -> 0 | N108: 0
E109: ='G&C Wastewater'!E33 -> Unit rate - wastewater - 5 year average | F109: ='G&C Wastewater'!F33 -> 0 | G109: ='G&C Wastewater'!G33 -> £/connection | H109: =F109 -> 0 | J109: =IF(ABS(K109) > CHK_TOL, 1, 0) -> 0 | K109: =H109 - INDEX(M109:O109, $J$5) -> 0 | L109: =IF(ABS(K109) > CHK_TOL, IF(INDEX(M109:O109, $J$5) = 0, 0, H109 / INDEX(M109:O109, $J$5) - 1), 0) -> 0 | N109: 0
E110: ='G&C Wastewater'!E44 -> Ofwat view of Grants & Contributions - price control - wastewater | F110: ='G&C Wastewater'!F44 -> 0 | G110: ='G&C Wastewater'!G44 -> £m | H110: ='G&C Wastewater'!H44 -> 0 | J110: 0 | K110: 0 | L110: 0 | N110: 0
E111: ='G&C Wastewater'!E116 -> Ofwat view of other G&C for opex - wastewater network - non price control (post-override) | F111: ='G&C Wastewater'!F116 -> 0 | G111: ='G&C Wastewater'!G116 -> £m | H111: ='G&C Wastewater'!H116 -> 0 | J111: 0 | K111: 0 | L111: 0 | N111: 0
E112: ='G&C Wastewater'!E95 -> Ofwat view of G&C for capex - wastewater network - price control (post-override) | F112: ='G&C Wastewater'!F95 -> 0 | G112: ='G&C Wastewater'!G95 -> £m | H112: ='G&C Wastewater'!H95 -> 0 | J112: 0 | K112: =H112 - INDEX(M112:O112, $J$5) -> 0 | L112: 0 | N112: 0
E113: ='G&C Wastewater'!E93 -> Ofwat view of G&C for opex - wastewater network - price control (post-override) | F113: ='G&C Wastewater'!F93 -> 0 | G113: ='G&C Wastewater'!G93 -> £m | H113: ='G&C Wastewater'!H93 -> 0 | J113: 0 | K113: 0 | L113: 0 | N113: 0
E114: ='G&C Wastewater'!E111 -> Ofwat view of G&C for capex - wastewater network - non price control (post-override) | F114: ='G&C Wastewater'!F111 -> 0 | G114: ='G&C Wastewater'!G111 -> £m | H114: ='G&C Wastewater'!H111 -> 0 | J114: 0 | K114: 0 | L114: 0 | N114: 0
E115: ='G&C Wastewater'!E116 -> Ofwat view of other G&C for opex - wastewater network - non price control (post-override) | F115: ='G&C Wastewater'!F116 -> 0 | G115: ='G&C Wastewater'!G116 -> £m | H115: ='G&C Wastewater'!H116 -> 0 | J115: 0 | K115: 0 | L115: 0 | N115: 0
C116: Outputs | J116: 0 | K116: 0 | L116: 0 | N116: 0
E117: ='G&C outputs'!$E$46 -> WWN - Grants and contributions - capital expenditure - price control - real | F117: ='G&C outputs'!F46 -> 0 | G117: ='G&C outputs'!G46 -> £m | H117: ='G&C outputs'!H46 -> 0 | J117: 0 | K117: 0 | L117: 0 | N117: 0
E118: ='G&C outputs'!E54 -> WWN - Grants and contributions - capital expenditure - non price control - real | F118: ='G&C outputs'!F54 -> 0 | G118: ='G&C outputs'!G54 -> £m | H118: ='G&C outputs'!H54 -> 0 | J118: 0 | K118: 0 | L118: 0 | N118: 0
E119: ='G&C outputs'!E50 -> WWN - Grants and contributions - operational expenditure - price control - real | F119: ='G&C outputs'!F50 -> 0 | G119: ='G&C outputs'!G50 -> £m | H119: ='G&C outputs'!H50 -> 0 | J119: 0 | K119: 0 | L119: 0 | N119: 0
E120: ='G&C outputs'!E58 -> WWN - Grants and contributions - operational expenditure - non price control - real | F120: ='G&C outputs'!F58 -> 0 | G120: ='G&C outputs'!G58 -> £m | H120: ='G&C outputs'!H58 -> 0 | J120: 0 | K120: 0 | L120: 0 | N120: 0
J121: 0 | K121: 0 | L121: 0 | N121: 0
A123: INFO ONLY
E125: Date | H125: =TODAY() -> 2019-12-10 | N125: 2019-11-04
E126: Time | H126: =NOW() -> 43809.65993 | N126: 43166.59595
E127: File | H127: =MID(CELL("filename",$A$1), SEARCH("[", CELL("filename",$A$1)) + 1, SEARCH("]", CELL("filename",$A$1)) - SEARCH("[", CELL("filename",$A$1)) - 1) -> Grants and Contributions model_SSC_FD.xlsm | N127: G&C_3d.xlsm
E128: [do not delete row] | J128: range end
E130: Comment: Key input and logic changes | N130: Nil inputs
E131: Comment: Key result changes
A133: End of sheet

Sheet Check
A1: =RIGHT(CELL("filename", $A$1), LEN(CELL("filename", $A$1)) - SEARCH("]", CELL("filename", $A$1))) -> Check | F1: =IF(InpOverride!$F$108 > 0, "Overrides", "No Overrides") -> Overrides
F2: =F11 + F12 -> 1 | G2: Checks/Alerts
F3: =F26 -> 30 | G3: Track chgs
F5: Constant
A7: CHECK SUMMARY
A9: MODEL INTEGRITY CHECKS
E11: Total model integrity checks | F11: =SUM(F16) -> 0
E12: Total alerts | F12: =SUM(F18:F22) -> 1
E14: [do not delete row]
B17: Water
E18: ='G&C Water'!E145 -> Check resubmitted 'new connections' against Business Plan App28 - water | F18: ='G&C Water'!F145 -> 1 | G18: alert
B20: Wastewater
E21: ='G&C Wastewater'!E129 -> Check resubmitted 'new connections' against Business Plan App28 - wastewater | F21: ='G&C Wastewater'!F129 -> 0 | G21: alert
E24: [do not delete row]
E26: Total track changes | F26: =Track!$F$3 -> 30
A29: End of sheet
